Workbook

Sheet Dashboard
D2: Select Utility
D3: PG&E
D4: PG&E
D5: SCE
D6: SCG
D7: SDG&E
D8: All IOU | AN8: YES
D9: Statewide | AN9: NO
D10: Standards Group Settings
AN11: No adjustment
E12: Standards Group | F12: Included in Analysis | G12: Group Multiplier | J12: Realization Rate | AN12: Recovery by 2016
I13: GWh | J13: MW | K13: MMT | AN13: Follow historic trend
D14: 0 | E14: 2005 T-24 | F14: 1 | G14: 1 | I14: 1 | J14: 1 | K14: 1 | AN14: Linear recovery starting from 2012
D15: =D14+1 -> 1 | E15: 2005 T-20 | F15: 1 | G15: 1 | I15: 1 | J15: 1 | K15: 1 | AN15: Constant percent reduction
D16: =D15+1 -> 2 | E16: 2006 T-20 | F16: 1 | G16: 1 | I16: =I30 -> 0.8547130383 | J16: =J30 -> 0.747485343 | K16: =K30 -> 0.3748103187
D17: 3 | E17: 2008 T-24 | F17: 1 | G17: 1 | I17: =I29 -> 0.6051025494 | J17: 0.4102367288 | K17: 0.5779550163
D18: 4 | E18: 2008 T-20 | F18: 1 | G18: 1 | I18: 0.8547130383 | J18: 0.747485343 | K18: 0.3748103187
D19: 5 | E19: 2009 T-20 | F19: 1 | G19: 1 | I19: =I30 -> 0.8547130383 | J19: =J30 -> 0.747485343 | K19: =K30 -> 0.3748103187
D20: 6 | E20: 2011 T-20 | F20: 1 | G20: 1 | I20: =I30 -> 0.8547130383 | J20: =J30 -> 0.747485343 | K20: =K30 -> 0.3748103187
D21: 7 | E21: Reach Code | F21: 1 | G21: 1 | I21: =I29 -> 0.6051025494 | J21: 0.4102367288 | K21: 0.5779550163
D22: 8 | E22: Fed Appliance | F22: 1 | G22: 1 | I22: 0.8547130383 | J22: 0.747485343 | K22: 0.3748103187
D23: =D22+1 -> 9 | E23: Track 1 Future Title 20 | F23: 1 | G23: 1 | I23: =I30 -> 0.8547130383 | J23: =J30 -> 0.747485343 | K23: =K30 -> 0.3748103187
D24: 10 | E24: Track 1 Future Fed Appliance | F24: 1 | G24: 1 | I24: =I30 -> 0.8547130383 | J24: =J30 -> 0.747485343 | K24: =K30 -> 0.3748103187
D25: 11 | E25: Track 1 Future (2013) T-24 | F25: 1 | G25: 1 | I25: =I29 -> 0.6051025494 | J25: =J29 -> 0.4102367288 | K25: =K29 -> 0.5779550163
G27: Realization Rate of CPUC 2006-08 C&S Program Evaluation
I28: GWh | J28: MW | K28: MMT
G29: 2005 T-24 | I29: 0.6051025494 | J29: 0.4102367288 | K29: 0.5779550163
G30: 2005 T-20 | I30: 0.8547130383 | J30: 0.747485343 | K30: 0.3748103187
D32: C&S Portforlio Analysis
D33: Include Measure Life | F33: YES
D34: Include Realization Rates | F34: YES
D35: Include negative interactive effects | F35: NO
D36: Track 1 compliance model | F36: NO
D37: Construction rate forecast model | F37: Constant percent reduction
D43: Note
E44: Net savings for Fed standards are based on the CPUC method
D45: 2012-08-03 | E45: Change "Include in Analysis" setting to clarify that reach code savings are included
D46: 2012-08-20 | E46: Add the construction forecast model
D47: 2012-08-28 | E47: Add tables in the IOU Summary table for generate data for Ayat's data request dated on Aug 21, 2012

Sheet Track 1 Potential
K2: Total C&S Program Savings for | L2: =Dashboard!D3 -> PG&E | Y2: Cumulative start year | Z2: 2006
E4: Gross Savings - Annual | AA4: Gross Savings - Cumulative
C5: Energy (GWh) | I5: Demand (MW) | O5: Gas (MMT) | Y5: Energy (GWh) | AE5: Demand (MW) | AK5: Gas (MMT) | AS5: Energy (GWh) | AY5: Demand (MW) | BE5: Gas (MMT)
C6: On-the-Books Standards | D6: =Dashboard!E23 -> Track 1 Future Title 20 | E6: =Dashboard!E24 -> Track 1 Future Fed Appliance | F6: =Dashboard!E25 -> Track 1 Future (2013) T-24 | G6: Compliance Enhancement | H6: Total | I6: =C6 -> On-the-Books Standards | J6: Track 1 Future Title 20 | K6: Track 1 Future Fed Appliance | L6: Track 1 Future (2013) T-24 | M6: Compliance Enhancement | N6: Total | O6: On-the-Books Standards | P6: Track 1 Future Title 20 | Q6: Track 1 Future Fed Appliance | R6: Track 1 Future (2013) T-24 | S6: Compliance Enhancement | T6: Total | Y6: =C6 -> On-the-Books Standards | Z6: =D6 -> Track 1 Future Title 20 | AA6: Track 1 Future Fed Appliance | AB6: Track 1 Future (2013) T-24 | AC6: Compliance Enhancement | AD6: Total | AE6: =Y6 -> On-the-Books Standards | AF6: Track 1 Future Title 20 | AG6: Track 1 Future Fed Appliance | AH6: Track 1 Future (2013) T-24 | AI6: Compliance Enhancement | AJ6: Total | AK6: On-the-Books Standards | AL6: Track 1 Future Title 20 | AM6: Track 1 Future Fed Appliance | AN6: Track 1 Future (2013) T-24 | AO6: Compliance Enhancement | AP6: Total | AS6: =C6 -> On-the-Books Standards | AT6: Track 1 Future Title 20 | AU6: Track 1 Future Fed Appliance | AV6: Track 1 Future (2013) T-24 | AW6: Compliance Enhancement | AX6: Total | AY6: On-the-Books Standards | AZ6: Track 1 Future Title 20 | BA6: Track 1 Future Fed Appliance | BB6: Track 1 Future (2013) T-24 | BC6: Compliance Enhancement | BD6: Total | BE6: On-the-Books Standards | BF6: Track 1 Future Title 20 | BG6: Track 1 Future Fed Appliance | BH6: Track 1 Future (2013) T-24 | BI6: Compliance Enhancement | BJ6: Total
B7: =B8-1 -> 2006 | C7: ='Savings by Group'!I90/2+'Savings by Group'!P90/2+'Savings by Group'!W90+'Savings by Group'!AD90+'Savings by Group'!AK90+'Savings by Group'!AR90+'Savings by Group'!AY90+'Savings by Group'!BF90+'Savings by Group'!BM90 -> 78.54508858 | D7: ='Savings by Group'!BT90 -> 0 | E7: ='Savings by Group'!CA90 -> 0 | F7: ='Savings by Group'!CH90 -> 0 | H7: =SUM(C7:G7) -> 78.54508858 | I7: ='Savings by Group'!K90/2+'Savings by Group'!R90/2+'Savings by Group'!Y90+'Savings by Group'!AF90+'Savings by Group'!AM90+'Savings by Group'!AT90+'Savings by Group'!BA90+'Savings by Group'!BH90+'Savings by Group'!BO90 -> 15.76028244 | J7: ='Savings by Group'!BV90 -> 0 | K7: ='Savings by Group'!CC90 -> 0 | L7: ='Savings by Group'!CJ90 -> 0 | N7: =SUM(I7:M7) -> 15.76028244 | O7: ='Savings by Group'!M90/2+'Savings by Group'!T90/2+'Savings by Group'!AA90+'Savings by Group'!AH90+'Savings by Group'!AO90+'Savings by Group'!AV90+'Savings by Group'!BC90+'Savings by Group'!BJ90+'Savings by Group'!BQ90 -> 1.250385173 | P7: ='Savings by Group'!BX90 -> 0 | Q7: ='Savings by Group'!CE90 -> 0 | R7: ='Savings by Group'!CL90 -> 0 | T7: =SUM(O7:S7) -> 1.250385173 | U7: =H7-'Savings by Group'!B90 -> -78.54508858 | V7: =N7-'Savings by Group'!D90 -> -15.76028244 | W7: =T7-'Savings by Group'!F90 -> -1.250385173 | X7: =X8-1 -> 2006 | Y7: =IF($Z$2=2006,C7,0) -> 78.54508858 | Z7: =IF($Z$2=2006,D7,0) -> 0 | AA7: 0 | AB7: 0 | AD7: =SUM(Y7:AC7) -> 78.54508858 | AE7: =IF($Z$2=2006,I7,0) -> 15.76028244 | AF7: =IF($Z$2=2006,J7,0) -> 0 | AG7: =IF($Z$2=2006,K7,0) -> 0 | AH7: =IF($Z$2=2006,L7,0) -> 0 | AJ7: =SUM(AE7:AI7) -> 15.76028244 | AK7: =IF($Z$2=2006,O7,0) -> 1.250385173 | AL7: =IF($Z$2=2006,P7,0) -> 0 | AM7: =IF($Z$2=2006,Q7,0) -> 0 | AN7: =IF($Z$2=2006,R7,0) -> 0 | AP7: =SUM(AK7:AO7) -> 1.250385173 | AS7: 229.0112704 | AT7: 0 | AU7: 0 | AV7: 0 | AW7: -688.3983405 | AX7: 211.9194993 | AY7: 45.68249286 | AZ7: 0 | BA7: 0 | BB7: 0 | BC7: -120.1074168 | BD7: 37.05181648 | BE7: 2.677908463 | BF7: 0 | BG7: 0 | BH7: 0 | BI7: -7.74540466 | BJ7: 0.9956129467
B8: 2007 | C8: ='Savings by Group'!I91/2+'Savings by Group'!P91/2+'Savings by Group'!W91+'Savings by Group'!AD91+'Savings by Group'!AK91+'Savings by Group'!AR91+'Savings by Group'!AY91+'Savings by Group'!BF91+'Savings by Group'!BM91 -> 121.2540802 | D8: ='Savings by Group'!BT91 -> 0 | E8: ='Savings by Group'!CA91 -> 0 | F8: ='Savings by Group'!CH91 -> 0 | H8: 121.2540802 | I8: ='Savings by Group'!K91/2+'Savings by Group'!R91/2+'Savings by Group'!Y91+'Savings by Group'!AF91+'Savings by Group'!AM91+'Savings by Group'!AT91+'Savings by Group'!BA91+'Savings by Group'!BH91+'Savings by Group'!BO91 -> 23.4346274 | J8: ='Savings by Group'!BV91 -> 0 | K8: ='Savings by Group'!CC91 -> 0 | L8: ='Savings by Group'!CJ91 -> 0 | N8: 23.4346274 | O8: ='Savings by Group'!M91/2+'Savings by Group'!T91/2+'Savings by Group'!AA91+'Savings by Group'!AH91+'Savings by Group'!AO91+'Savings by Group'!AV91+'Savings by Group'!BC91+'Savings by Group'!BJ91+'Savings by Group'!BQ91 -> 1.336369021 | P8: ='Savings by Group'!BX91 -> 0 | Q8: ='Savings by Group'!CE91 -> 0 | R8: ='Savings by Group'!CL91 -> 0 | T8: 1.336369021 | U8: =H8-'Savings by Group'!B91 -> -121.2540802 | V8: =N8-'Savings by Group'!D91 -> -23.4346274 | W8: =T8-'Savings by Group'!F91 -> -1.336369021 | X8: 2007 | Y8: =Y7+C8 -> 199.7991688 | Z8: =Z7+D8 -> 0 | AA8: 0 | AB8: 0 | AD8: 199.7991688 | AE8: =AE7+I8 -> 39.19490984 | AF8: =AF7+J8 -> 0 | AG8: =AG7+K8 -> 0 | AH8: =AH7+L8 -> 0 | AJ8: 39.19490984 | AK8: =AK7+O8 -> 2.586754195 | AL8: =AL7+P8 -> 0 | AM8: =AM7+Q8 -> 0 | AN8: =AN7+R8 -> 0 | AP8: 2.586754195
B9: 2008 | C9: ='Savings by Group'!I92/2+'Savings by Group'!P92/2+'Savings by Group'!W92+'Savings by Group'!AD92+'Savings by Group'!AK92+'Savings by Group'!AR92+'Savings by Group'!AY92+'Savings by Group'!BF92+'Savings by Group'!BM92 -> 231.636503 | D9: ='Savings by Group'!BT92 -> 0 | E9: ='Savings by Group'!CA92 -> 0 | F9: ='Savings by Group'!CH92 -> 0 | H9: 231.636503 | I9: ='Savings by Group'!K92/2+'Savings by Group'!R92/2+'Savings by Group'!Y92+'Savings by Group'!AF92+'Savings by Group'!AM92+'Savings by Group'!AT92+'Savings by Group'!BA92+'Savings by Group'!BH92+'Savings by Group'!BO92 -> 38.14651427 | J9: ='Savings by Group'!BV92 -> 0 | K9: ='Savings by Group'!CC92 -> 0 | L9: ='Savings by Group'!CJ92 -> 0 | N9: 38.14651427 | O9: ='Savings by Group'!M92/2+'Savings by Group'!T92/2+'Savings by Group'!AA92+'Savings by Group'!AH92+'Savings by Group'!AO92+'Savings by Group'!AV92+'Savings by Group'!BC92+'Savings by Group'!BJ92+'Savings by Group'!BQ92 -> 1.163277479 | P9: ='Savings by Group'!BX92 -> 0 | Q9: ='Savings by Group'!CE92 -> 0 | R9: ='Savings by Group'!CL92 -> 0 | T9: 1.163277479 | U9: =H9-'Savings by Group'!B92 -> -121.9169935 | V9: =N9-'Savings by Group'!D92 -> -23.50271466 | W9: =T9-'Savings by Group'!F92 -> -1.163277479 | X9: 2008 | Y9: =Y8+C9 -> 431.4356718 | Z9: 0 | AA9: 0 | AB9: 0 | AD9: 431.4356718 | AE9: =AE8+I9 -> 77.34142411 | AF9: 0 | AG9: 0 | AH9: 0 | AJ9: 77.34142411 | AK9: =AK8+O9 -> 3.750031674 | AL9: 0 | AM9: 0 | AN9: 0 | AP9: 3.750031674 | AS9: 214.0926033 | AT9: 156.2774384 | AU9: 55.99636955 | AV9: 0 | AW9: -1113.911895 | AX9: 339.3352079 | AY9: 44.59857377 | AZ9: 43.72010101 | BA9: 6.261224968 | BB9: 0 | BC9: -188.4874201 | BD9: 57.4649442 | BE9: 2.737329117 | BF9: 0 | BG9: 0.5254500749 | BH9: 0 | BI9: -8.501503339 | BJ9: 1.091645187
B10: =B11-1 -> 2009 | C10: ='Savings by Group'!I93/2+'Savings by Group'!P93/2+'Savings by Group'!W93+'Savings by Group'!AD93+'Savings by Group'!AK93+'Savings by Group'!AR93+'Savings by Group'!AY93+'Savings by Group'!BF93+'Savings by Group'!BM93 -> 176.4434518 | D10: ='Savings by Group'!BT93 -> 0 | E10: ='Savings by Group'!CA93 -> 0 | F10: ='Savings by Group'!CH93 -> 0 | H10: 176.4434518 | I10: ='Savings by Group'!K93/2+'Savings by Group'!R93/2+'Savings by Group'!Y93+'Savings by Group'!AF93+'Savings by Group'!AM93+'Savings by Group'!AT93+'Savings by Group'!BA93+'Savings by Group'!BH93+'Savings by Group'!BO93 -> 32.31439879 | J10: ='Savings by Group'!BV93 -> 0 | K10: ='Savings by Group'!CC93 -> 0 | L10: ='Savings by Group'!CJ93 -> 0 | N10: 32.31439879 | O10: ='Savings by Group'!M93/2+'Savings by Group'!T93/2+'Savings by Group'!AA93+'Savings by Group'!AH93+'Savings by Group'!AO93+'Savings by Group'!AV93+'Savings by Group'!BC93+'Savings by Group'!BJ93+'Savings by Group'!BQ93 -> 1.24982325 | P10: ='Savings by Group'!BX93 -> 0 | Q10: ='Savings by Group'!CE93 -> 0 | R10: ='Savings by Group'!CL93 -> 0 | T10: 1.24982325 | U10: =H10-'Savings by Group'!B93 -> -130.1116564 | V10: =N10-'Savings by Group'!D93 -> -24.83394221 | W10: =T10-'Savings by Group'!F93 -> -1.24982325 | X10: =X11-1 -> 2009 | Y10: 607.8791237 | Z10: 0 | AA10: 0 | AB10: 0 | AD10: 607.8791237 | AE10: 109.6558229 | AF10: 0 | AG10: 0 | AH10: 0 | AJ10: 109.6558229 | AK10: 4.999854924 | AL10: 0 | AM10: 0 | AN10: 0 | AP10: 4.999854924 | AS10: 184.3902985 | AT10: 453.6877402 | AU10: 234.4423757 | AV10: 19.97642529 | AW10: -1342.733494 | AX10: 410.9204814 | AY10: 41.82213845 | AZ10: 83.62309765 | BA10: 48.29399597 | BB10: 7.978443105 | BC10: -245.4981684 | BD10: 75.15451646 | BE10: 2.796749771 | BF10: 0 | BG10: 0.7190703706 | BH10: 0.4867623857 | BI10: -9.751823431 | BJ10: 1.250691118
B11: 2010 | C11: ='Savings by Group'!I94+'Savings by Group'!P94+'Savings by Group'!W94+'Savings by Group'!AD94+'Savings by Group'!AK94+'Savings by Group'!AR94+'Savings by Group'!AY94+'Savings by Group'!BF94+'Savings by Group'!BM94 -> 298.2296085 | D11: ='Savings by Group'!BT94 -> 0 | E11: ='Savings by Group'!CA94 -> 0 | F11: ='Savings by Group'!CH94 -> 0 | H11: =SUM(C11:G11) -> 298.2296085 | I11: ='Savings by Group'!K94+'Savings by Group'!R94+'Savings by Group'!Y94+'Savings by Group'!AF94+'Savings by Group'!AM94+'Savings by Group'!AT94+'Savings by Group'!BA94+'Savings by Group'!BH94+'Savings by Group'!BO94 -> 50.31574758 | J11: ='Savings by Group'!BV94 -> 0 | K11: ='Savings by Group'!CC94 -> 0 | L11: ='Savings by Group'!CJ94 -> 0 | N11: =SUM(I11:M11) -> 50.31574758 | O11: ='Savings by Group'!M94+'Savings by Group'!T94+'Savings by Group'!AA94+'Savings by Group'!AH94+'Savings by Group'!AO94+'Savings by Group'!AV94+'Savings by Group'!BC94+'Savings by Group'!BJ94+'Savings by Group'!BQ94 -> 2.077258159 | P11: ='Savings by Group'!BX94 -> 0 | Q11: ='Savings by Group'!CE94 -> 0 | R11: ='Savings by Group'!CL94 -> 0 | T11: =SUM(O11:S11) -> 2.077258159 | U11: =H11-'Savings by Group'!B94 -> 0 | V11: =N11-'Savings by Group'!D94 -> 0 | W11: =T11-'Savings by Group'!F94 -> 0 | X11: 2010 | Y11: 906.1087322 | Z11: 0 | AA11: 0 | AB11: 0 | AD11: =SUM(Y11:AC11) -> 906.1087322 | AE11: 159.9715705 | AF11: 0 | AG11: 0 | AH11: 0 | AJ11: =SUM(AE11:AI11) -> 159.9715705 | AK11: 7.077113083 | AL11: 0 | AM11: 0 | AN11: 0 | AP11: =SUM(AK11:AO11) -> 7.077113083 | AS11: 237.7129076 | AT11: 0 | AU11: 0 | AV11: 0 | AW11: -283.8400559 | AX11: 89.16858702 | AY11: 45.41661749 | AZ11: 0 | BA11: 0 | BB11: 0 | BC11: -57.70488019 | BD11: 18.19198369 | BE11: 2.559067155 | BF11: 0 | BG11: 0 | BH11: 0 | BI11: -3.927246361 | BJ11: 0.5091844922
B12: =B11+1 -> 2011 | C12: ='Savings by Group'!I95+'Savings by Group'!P95+'Savings by Group'!W95+'Savings by Group'!AD95+'Savings by Group'!AK95+'Savings by Group'!AR95+'Savings by Group'!AY95+'Savings by Group'!BF95+'Savings by Group'!BM95 -> 520.4409155 | D12: ='Savings by Group'!BT95 -> 0 | E12: ='Savings by Group'!CA95 -> 0 | F12: ='Savings by Group'!CH95 -> 0 | H12: 520.4409155 | I12: ='Savings by Group'!K95+'Savings by Group'!R95+'Savings by Group'!Y95+'Savings by Group'!AF95+'Savings by Group'!AM95+'Savings by Group'!AT95+'Savings by Group'!BA95+'Savings by Group'!BH95+'Savings by Group'!BO95 -> 69.84218645 | J12: ='Savings by Group'!BV95 -> 0 | K12: ='Savings by Group'!CC95 -> 0 | L12: ='Savings by Group'!CJ95 -> 0 | N12: 69.84218645 | O12: ='Savings by Group'!M95+'Savings by Group'!T95+'Savings by Group'!AA95+'Savings by Group'!AH95+'Savings by Group'!AO95+'Savings by Group'!AV95+'Savings by Group'!BC95+'Savings by Group'!BJ95+'Savings by Group'!BQ95 -> 2.890168521 | P12: ='Savings by Group'!BX95 -> 0 | Q12: ='Savings by Group'!CE95 -> 0 | R12: ='Savings by Group'!CL95 -> 0 | T12: 2.890168521 | U12: =H12-'Savings by Group'!B95 -> 0 | V12: =N12-'Savings by Group'!D95 -> 0 | W12: =T12-'Savings by Group'!F95 -> 0 | X12: =X11+1 -> 2011 | Y12: 1426.549648 | Z12: 0 | AA12: 0 | AB12: 0 | AD12: =SUM(Y12:AC12) -> 1426.549648 | AE12: 229.8137569 | AF12: 0 | AG12: 0 | AH12: 0 | AJ12: 229.8137569 | AK12: 9.967281604 | AL12: 0 | AM12: 0 | AN12: 0 | AP12: 9.967281604 | AS12: 240.3678016 | AT12: 0 | AU12: 0 | AV12: 0 | AW12: -550.3295636 | AX12: 170.1100004 | AY12: 46.34772306 | AZ12: 0 | BA12: 0 | BB12: 0 | BC12: -97.33119876 | BD12: 30.18322693 | BE12: 2.618487809 | BF12: 0 | BG12: 0 | BH12: 0 | BI12: -7.353699925 | BJ12: 0.9463064978
B13: =B12+1 -> 2012 | C13: ='Savings by Group'!I96+'Savings by Group'!P96+'Savings by Group'!W96+'Savings by Group'!AD96+'Savings by Group'!AK96+'Savings by Group'!AR96+'Savings by Group'!AY96+'Savings by Group'!BF96+'Savings by Group'!BM96 -> 546.6423337 | D13: ='Savings by Group'!BT96 -> 0 | E13: ='Savings by Group'!CA96 -> 0 | F13: ='Savings by Group'!CH96 -> 0 | H13: 546.6423337 | I13: ='Savings by Group'!K96+'Savings by Group'!R96+'Savings by Group'!Y96+'Savings by Group'!AF96+'Savings by Group'!AM96+'Savings by Group'!AT96+'Savings by Group'!BA96+'Savings by Group'!BH96+'Savings by Group'!BO96 -> 75.8610948 | J13: ='Savings by Group'!BV96 -> 0 | K13: ='Savings by Group'!CC96 -> 0 | L13: ='Savings by Group'!CJ96 -> 0 | N13: 75.8610948 | O13: ='Savings by Group'!M96+'Savings by Group'!T96+'Savings by Group'!AA96+'Savings by Group'!AH96+'Savings by Group'!AO96+'Savings by Group'!AV96+'Savings by Group'!BC96+'Savings by Group'!BJ96+'Savings by Group'!BQ96 -> 2.97223671 | P13: ='Savings by Group'!BX96 -> 0 | Q13: ='Savings by Group'!CE96 -> 0 | R13: ='Savings by Group'!CL96 -> 0 | T13: 2.97223671 | U13: =H13-'Savings by Group'!B96 -> 0 | V13: =N13-'Savings by Group'!D96 -> 0 | W13: =T13-'Savings by Group'!F96 -> 0 | X13: =X12+1 -> 2012 | Y13: 1973.191981 | Z13: 0 | AA13: 0 | AB13: 0 | AD13: 1973.191981 | AE13: 305.6748517 | AF13: 0 | AG13: 0 | AH13: 0 | AJ13: 305.6748517 | AK13: 12.93951831 | AL13: 0 | AM13: 0 | AN13: 0 | AP13: 12.93951831 | AS13: 229.0112704 | AT13: 0 | AU13: 0 | AV13: 0 | AW13: -688.3983405 | AX13: 211.9194993 | AY13: 45.68249286 | AZ13: 0 | BA13: 0 | BB13: 0 | BC13: -120.1074168 | BD13: 37.05181648 | BE13: 2.677908463 | BF13: 0 | BG13: 0 | BH13: 0 | BI13: -7.74540466 | BJ13: 0.9956129467
B14: 2013 | C14: ='Savings by Group'!I97+'Savings by Group'!P97+'Savings by Group'!W97+'Savings by Group'!AD97+'Savings by Group'!AK97+'Savings by Group'!AR97+'Savings by Group'!AY97+'Savings by Group'!BF97+'Savings by Group'!BM97 -> 663.1364066 | D14: ='Savings by Group'!BT97 -> 0 | E14: ='Savings by Group'!CA97 -> 3.525949498 | F14: ='Savings by Group'!CH97 -> 0 | H14: 666.6623561 | I14: ='Savings by Group'!K97+'Savings by Group'!R97+'Savings by Group'!Y97+'Savings by Group'!AF97+'Savings by Group'!AM97+'Savings by Group'!AT97+'Savings by Group'!BA97+'Savings by Group'!BH97+'Savings by Group'!BO97 -> 84.27109662 | J14: ='Savings by Group'!BV97 -> 0 | K14: ='Savings by Group'!CC97 -> 0.1171122442 | L14: ='Savings by Group'!CJ97 -> 0 | N14: 84.38820886 | O14: ='Savings by Group'!M97+'Savings by Group'!T97+'Savings by Group'!AA97+'Savings by Group'!AH97+'Savings by Group'!AO97+'Savings by Group'!AV97+'Savings by Group'!BC97+'Savings by Group'!BJ97+'Savings by Group'!BQ97 -> 3.010919846 | P14: ='Savings by Group'!BX97 -> 0 | Q14: ='Savings by Group'!CE97 -> 0.19694411 | R14: ='Savings by Group'!CL97 -> 0 | T14: 3.207863956 | U14: =H14-'Savings by Group'!B97 -> 0 | V14: =N14-'Savings by Group'!D97 -> 0 | W14: =T14-'Savings by Group'!F97 -> 0 | X14: 2013 | Y14: 2636.328388 | Z14: 0 | AA14: 3.525949498 | AB14: 0 | AD14: 2639.854337 | AE14: 389.9459483 | AF14: 0 | AG14: 0.1171122442 | AH14: 0 | AJ14: 390.0630606 | AK14: 15.95043816 | AL14: 0 | AM14: 0.19694411 | AN14: 0 | AP14: 16.14738227 | AS14: 214.0926033 | AT14: 156.2774384 | AU14: 55.99636955 | AV14: 0 | AW14: -1113.911895 | AX14: 339.3352079 | AY14: 44.59857377 | AZ14: 43.72010101 | BA14: 6.261224968 | BB14: 0 | BC14: -188.4874201 | BD14: 57.4649442 | BE14: 2.737329117 | BF14: 0 | BG14: 0.5254500749 | BH14: 0 | BI14: -8.501503339 | BJ14: 1.091645187
B15: 2014 | C15: ='Savings by Group'!I98+'Savings by Group'!P98+'Savings by Group'!W98+'Savings by Group'!AD98+'Savings by Group'!AK98+'Savings by Group'!AR98+'Savings by Group'!AY98+'Savings by Group'!BF98+'Savings by Group'!BM98 -> 653.9275575 | D15: ='Savings by Group'!BT98 -> 0 | E15: ='Savings by Group'!CA98 -> 64.75282008 | F15: ='Savings by Group'!CH98 -> 12.78503169 | H15: 731.4654093 | I15: ='Savings by Group'!K98+'Savings by Group'!R98+'Savings by Group'!Y98+'Savings by Group'!AF98+'Savings by Group'!AM98+'Savings by Group'!AT98+'Savings by Group'!BA98+'Savings by Group'!BH98+'Savings by Group'!BO98 -> 83.29080232 | J15: ='Savings by Group'!BV98 -> 0 | K15: ='Savings by Group'!CC98 -> 19.05621115 | L15: ='Savings by Group'!CJ98 -> 3.451026696 | N15: 105.7980402 | O15: ='Savings by Group'!M98+'Savings by Group'!T98+'Savings by Group'!AA98+'Savings by Group'!AH98+'Savings by Group'!AO98+'Savings by Group'!AV98+'Savings by Group'!BC98+'Savings by Group'!BJ98+'Savings by Group'!BQ98 -> 3.010919846 | P15: ='Savings by Group'!BX98 -> 0 | Q15: ='Savings by Group'!CE98 -> 0.264895058 | R15: ='Savings by Group'!CL98 -> 0.2945468454 | T15: 3.570361749 | U15: =H15-'Savings by Group'!B98 -> 0 | V15: =N15-'Savings by Group'!D98 -> 0 | W15: =T15-'Savings by Group'!F98 -> 0 | X15: 2014 | Y15: 3290.255946 | Z15: 0 | AA15: 68.27876958 | AB15: 12.78503169 | AD15: 3371.319747 | AE15: 473.2367507 | AF15: 0 | AG15: 19.17332339 | AH15: 3.451026696 | AJ15: 495.8611008 | AK15: 18.96135801 | AL15: 0 | AM15: 0.461839168 | AN15: 0.2945468454 | AP15: 19.71774402 | AS15: 184.3902985 | AT15: 453.6877402 | AU15: 234.4423757 | AV15: 19.97642529 | AW15: -1342.733494 | AX15: 410.9204814 | AY15: 41.82213845 | AZ15: 83.62309765 | BA15: 48.29399597 | BB15: 7.978443105 | BC15: -245.4981684 | BD15: 75.15451646 | BE15: 2.796749771 | BF15: 0 | BG15: 0.7190703706 | BH15: 0.4867623857 | BI15: -9.751823431 | BJ15: 1.250691118
B16: 2015 | C16: ='Savings by Group'!I99+'Savings by Group'!P99+'Savings by Group'!W99+'Savings by Group'!AD99+'Savings by Group'!AK99+'Savings by Group'!AR99+'Savings by Group'!AY99+'Savings by Group'!BF99+'Savings by Group'!BM99 -> 699.912289 | D16: ='Savings by Group'!BT99 -> 163.0203011 | E16: ='Savings by Group'!CA99 -> 317.6802114 | F16: ='Savings by Group'!CH99 -> 38.25029973 | H16: 1218.863101 | I16: ='Savings by Group'!K99+'Savings by Group'!R99+'Savings by Group'!Y99+'Savings by Group'!AF99+'Savings by Group'!AM99+'Savings by Group'!AT99+'Savings by Group'!BA99+'Savings by Group'!BH99+'Savings by Group'!BO99 -> 90.93345803 | J16: ='Savings by Group'!BV99 -> 37.61107485 | K16: ='Savings by Group'!CC99 -> 122.1225806 | L16: ='Savings by Group'!CJ99 -> 10.32479298 | N16: 260.9919065 | O16: ='Savings by Group'!M99+'Savings by Group'!T99+'Savings by Group'!AA99+'Savings by Group'!AH99+'Savings by Group'!AO99+'Savings by Group'!AV99+'Savings by Group'!BC99+'Savings by Group'!BJ99+'Savings by Group'!BQ99 -> 2.936252071 | P16: ='Savings by Group'!BX99 -> 0 | Q16: ='Savings by Group'!CE99 -> 0.5058850361 | R16: ='Savings by Group'!CL99 -> 0.8812262179 | T16: 4.323363325 | U16: =H16-'Savings by Group'!B99 -> 0 | V16: =N16-'Savings by Group'!D99 -> 0 | W16: =T16-'Savings by Group'!F99 -> 0 | X16: 2015 | Y16: 3990.168234 | Z16: 163.0203011 | AA16: 385.958981 | AB16: 51.03533142 | AD16: 4590.182848 | AE16: 564.1702087 | AF16: 37.61107485 | AG16: 141.295904 | AH16: 13.77581968 | AJ16: 756.8530073 | AK16: 21.89761008 | AL16: 0 | AM16: 0.9677242041 | AN16: 1.175773063 | AP16: 24.04110734 | AS16: 185.820445 | AT16: 579.0369392 | AU16: 375.4543661 | AV16: 61.74885076 | AW16: -1659.995422 | AX16: 453.1283646 | AY16: 42.56395118 | AZ16: 88.34910383 | BA16: 164.2339462 | BB16: 24.66205466 | BC16: -369.8588063 | BD16: 107.6954301 | BE16: 2.856170425 | BF16: 0 | BG16: 1.364689783 | BH16: 1.50462445 | BI16: -12.22989346 | BJ16: 1.566992526
B17: 2016 | C17: ='Savings by Group'!I100+'Savings by Group'!P100+'Savings by Group'!W100+'Savings by Group'!AD100+'Savings by Group'!AK100+'Savings by Group'!AR100+'Savings by Group'!AY100+'Savings by Group'!BF100+'Savings by Group'!BM100 -> 658.4516046 | D17: ='Savings by Group'!BT100 -> 392.3839863 | E17: ='Savings by Group'!CA100 -> 323.8135013 | F17: ='Savings by Group'!CH100 -> 38.25029973 | H17: 1412.899392 | I17: ='Savings by Group'!K100+'Savings by Group'!R100+'Savings by Group'!Y100+'Savings by Group'!AF100+'Savings by Group'!AM100+'Savings by Group'!AT100+'Savings by Group'!BA100+'Savings by Group'!BH100+'Savings by Group'!BO100 -> 84.65623027 | J17: ='Savings by Group'!BV100 -> 63.30765268 | K17: ='Savings by Group'!CC100 -> 122.7549065 | L17: ='Savings by Group'!CJ100 -> 10.32479298 | N17: 281.0435824 | O17: ='Savings by Group'!M100+'Savings by Group'!T100+'Savings by Group'!AA100+'Savings by Group'!AH100+'Savings by Group'!AO100+'Savings by Group'!AV100+'Savings by Group'!BC100+'Savings by Group'!BJ100+'Savings by Group'!BQ100 -> 2.936252071 | P17: ='Savings by Group'!BX100 -> 0 | Q17: ='Savings by Group'!CE100 -> 0.6017485599 | R17: ='Savings by Group'!CL100 -> 0.8812262179 | T17: 4.419226849 | U17: =H17-'Savings by Group'!B100 -> 0 | V17: =N17-'Savings by Group'!D100 -> 0 | W17: =T17-'Savings by Group'!F100 -> 0 | X17: 2016 | Y17: 4648.619839 | Z17: 555.4042874 | AA17: 709.7724823 | AB17: 89.28563116 | AD17: 6003.08224 | AE17: 648.826439 | AF17: 100.9187275 | AG17: 264.0508105 | AH17: 24.10061266 | AJ17: 1037.89659 | AK17: 24.83386215 | AL17: 0 | AM17: 1.569472764 | AN17: 2.056999281 | AP17: 28.46033419 | AS17: 142.1174378 | AT17: 563.5649905 | AU17: 386.6181751 | AV17: 63.73216683 | AW17: -1455.361207 | AX17: 444.4663021 | AY17: 35.87650348 | AZ17: 88.10535873 | BA17: 166.8085555 | BB17: 25.45417709 | BC17: -351.6958479 | BD17: 107.4415093 | BE17: 2.856170425 | BF17: 0 | BG17: 1.637354953 | BH17: 1.552951598 | BI17: -12.7188062 | BJ17: 1.630199557
B18: 2017 | C18: ='Savings by Group'!I101+'Savings by Group'!P101+'Savings by Group'!W101+'Savings by Group'!AD101+'Savings by Group'!AK101+'Savings by Group'!AR101+'Savings by Group'!AY101+'Savings by Group'!BF101+'Savings by Group'!BM101 -> 561.4732623 | D18: ='Savings by Group'!BT101 -> 482.1243615 | E18: ='Savings by Group'!CA101 -> 323.8135013 | F18: ='Savings by Group'!CH101 -> 38.25029973 | H18: 1405.661425 | I18: ='Savings by Group'!K101+'Savings by Group'!R101+'Savings by Group'!Y101+'Savings by Group'!AF101+'Savings by Group'!AM101+'Savings by Group'!AT101+'Savings by Group'!BA101+'Savings by Group'!BH101+'Savings by Group'!BO101 -> 76.50476323 | J18: ='Savings by Group'!BV101 -> 63.88961689 | K18: ='Savings by Group'!CC101 -> 122.7549065 | L18: ='Savings by Group'!CJ101 -> 10.32479298 | N18: 273.4740796 | O18: ='Savings by Group'!M101+'Savings by Group'!T101+'Savings by Group'!AA101+'Savings by Group'!AH101+'Savings by Group'!AO101+'Savings by Group'!AV101+'Savings by Group'!BC101+'Savings by Group'!BJ101+'Savings by Group'!BQ101 -> 2.936252071 | P18: ='Savings by Group'!BX101 -> 0 | Q18: ='Savings by Group'!CE101 -> 0.6017485599 | R18: ='Savings by Group'!CL101 -> 0.8812262179 | T18: 4.419226849 | U18: =H18-'Savings by Group'!B101 -> 0 | V18: =N18-'Savings by Group'!D101 -> 0 | W18: =T18-'Savings by Group'!F101 -> 0 | X18: 2017 | Y18: 5210.093101 | Z18: 1037.528649 | AA18: 1033.585984 | AB18: 127.5359309 | AD18: 7408.743665 | AE18: 725.3312022 | AF18: 164.8083444 | AG18: 386.8057169 | AH18: 34.42540565 | AJ18: 1311.370669 | AK18: 27.77011422 | AL18: 0 | AM18: 2.171221324 | AN18: 2.938225499 | AP18: 32.87956104 | AS18: 142.1998934 | AT18: 554.6906366 | AU18: 365.8575072 | AV18: 65.7154829 | AW18: -1437.915757 | AX18: 439.3391436 | AY18: 35.88788844 | AZ18: 88.32344527 | BA18: 165.6245717 | BB18: 26.24629951 | BC18: -352.3880397 | BD18: 107.6739259 | BE18: 2.856170425 | BF18: 0 | BG18: 1.654254688 | BH18: 1.601278746 | BI18: -12.82132897 | BJ18: 1.643525296
B19: 2018 | C19: ='Savings by Group'!I102+'Savings by Group'!P102+'Savings by Group'!W102+'Savings by Group'!AD102+'Savings by Group'!AK102+'Savings by Group'!AR102+'Savings by Group'!AY102+'Savings by Group'!BF102+'Savings by Group'!BM102 -> 473.4928289 | D19: ='Savings by Group'!BT102 -> 461.1382425 | E19: ='Savings by Group'!CA102 -> 313.5809281 | F19: ='Savings by Group'!CH102 -> 38.25029973 | H19: 1286.462299 | I19: ='Savings by Group'!K102+'Savings by Group'!R102+'Savings by Group'!Y102+'Savings by Group'!AF102+'Savings by Group'!AM102+'Savings by Group'!AT102+'Savings by Group'!BA102+'Savings by Group'!BH102+'Savings by Group'!BO102 -> 65.43082643 | J19: ='Savings by Group'!BV102 -> 62.60488495 | K19: ='Savings by Group'!CC102 -> 121.7017201 | L19: ='Savings by Group'!CJ102 -> 10.32479298 | N19: 260.0622245 | O19: ='Savings by Group'!M102+'Savings by Group'!T102+'Savings by Group'!AA102+'Savings by Group'!AH102+'Savings by Group'!AO102+'Savings by Group'!AV102+'Savings by Group'!BC102+'Savings by Group'!BJ102+'Savings by Group'!BQ102 -> 2.936252071 | P19: ='Savings by Group'!BX102 -> 0 | Q19: ='Savings by Group'!CE102 -> 0.6017485599 | R19: ='Savings by Group'!CL102 -> 0.8812262179 | T19: 4.419226849 | U19: =H19-'Savings by Group'!B102 -> 0 | V19: =N19-'Savings by Group'!D102 -> 0 | W19: =T19-'Savings by Group'!F102 -> 0 | X19: 2018 | Y19: 5683.58593 | Z19: 1498.666891 | AA19: 1347.166912 | AB19: 165.7862306 | AD19: 8695.205964 | AE19: 790.7620286 | AF19: 227.4132294 | AG19: 508.5074371 | AH19: 44.75019863 | AJ19: 1571.432894 | AK19: 30.70636629 | AL19: 0 | AM19: 2.772969884 | AN19: 3.819451717 | AP19: 37.29878789 | AS19: 142.2823491 | AT19: 423.8856646 | AU19: 340.8119925 | AV19: 67.69879896 | AW19: -1246.336517 | AX19: 378.2703751 | AY19: 35.89927341 | AZ19: 44.94934213 | BA19: 163.9364449 | BB19: 27.03842193 | BC19: -304.7229732 | BD19: 92.55935106 | BE19: 2.856170425 | BF19: 0 | BG19: 1.671154424 | BH19: 1.649605894 | BI19: -12.92181805 | BJ19: 1.656590256
B20: 2019 | C20: ='Savings by Group'!I103+'Savings by Group'!P103+'Savings by Group'!W103+'Savings by Group'!AD103+'Savings by Group'!AK103+'Savings by Group'!AR103+'Savings by Group'!AY103+'Savings by Group'!BF103+'Savings by Group'!BM103 -> 437.1665222 | D20: ='Savings by Group'!BT103 -> 446.3302801 | E20: ='Savings by Group'!CA103 -> 291.7333712 | F20: ='Savings by Group'!CH103 -> 38.25029973 | H20: 1213.480473 | I20: ='Savings by Group'!K103+'Savings by Group'!R103+'Savings by Group'!Y103+'Savings by Group'!AF103+'Savings by Group'!AM103+'Savings by Group'!AT103+'Savings by Group'!BA103+'Savings by Group'!BH103+'Savings by Group'!BO103 -> 58.96652306 | J20: ='Savings by Group'!BV103 -> 61.69836849 | K20: ='Savings by Group'!CC103 -> 119.4531128 | L20: ='Savings by Group'!CJ103 -> 10.32479298 | N20: 250.4427973 | O20: ='Savings by Group'!M103+'Savings by Group'!T103+'Savings by Group'!AA103+'Savings by Group'!AH103+'Savings by Group'!AO103+'Savings by Group'!AV103+'Savings by Group'!BC103+'Savings by Group'!BJ103+'Savings by Group'!BQ103 -> 2.936252071 | P20: ='Savings by Group'!BX103 -> 0 | Q20: ='Savings by Group'!CE103 -> 0.6017485599 | R20: ='Savings by Group'!CL103 -> 0.8812262179 | T20: 4.419226849 | U20: =H20-'Savings by Group'!B103 -> 0 | V20: =N20-'Savings by Group'!D103 -> 0 | W20: =T20-'Savings by Group'!F103 -> 0 | X20: 2019 | Y20: 6120.752452 | Z20: 1944.997171 | AA20: 1638.900283 | AB20: 204.0365304 | AD20: 9908.686437 | AE20: 849.7285517 | AF20: 289.1115979 | AG20: 627.9605499 | AH20: 55.07499162 | AJ20: 1821.875691 | AK20: 33.64261836 | AL20: 0 | AM20: 3.374718444 | AN20: 4.700677935 | AP20: 41.71801474 | AS20: 105.8383532 | AT20: 171.0664356 | AU20: 344.1943509 | AV20: 69.68211503 | AW20: -983.6806502 | AX20: 299.6206511 | AY20: 29.410739 | AZ20: 11.93925354 | BA20: 165.5991769 | BB20: 27.83054436 | BC20: -268.1531579 | BD20: 81.8915703 | BE20: 2.856170425 | BF20: 0 | BG20: 1.680614746 | BH20: 1.697933042 | BI20: -13.01571323 | BJ20: 1.66880969
B21: 2020 | C21: ='Savings by Group'!I104+'Savings by Group'!P104+'Savings by Group'!W104+'Savings by Group'!AD104+'Savings by Group'!AK104+'Savings by Group'!AR104+'Savings by Group'!AY104+'Savings by Group'!BF104+'Savings by Group'!BM104 -> 391.0059669 | D21: ='Savings by Group'!BT104 -> 335.8546923 | E21: ='Savings by Group'!CA104 -> 280.1436469 | F21: ='Savings by Group'!CH104 -> 38.25029973 | H21: 1045.254606 | I21: ='Savings by Group'!K104+'Savings by Group'!R104+'Savings by Group'!Y104+'Savings by Group'!AF104+'Savings by Group'!AM104+'Savings by Group'!AT104+'Savings by Group'!BA104+'Savings by Group'!BH104+'Savings by Group'!BO104 -> 51.78798225 | J21: ='Savings by Group'!BV104 -> 30.7997225 | K21: ='Savings by Group'!CC104 -> 118.2602907 | L21: ='Savings by Group'!CJ104 -> 10.32479298 | N21: 211.1727885 | O21: ='Savings by Group'!M104+'Savings by Group'!T104+'Savings by Group'!AA104+'Savings by Group'!AH104+'Savings by Group'!AO104+'Savings by Group'!AV104+'Savings by Group'!BC104+'Savings by Group'!BJ104+'Savings by Group'!BQ104 -> 2.93140903 | P21: ='Savings by Group'!BX104 -> 0 | Q21: ='Savings by Group'!CE104 -> 0.6017485599 | R21: ='Savings by Group'!CL104 -> 0.8812262179 | T21: 4.414383807 | U21: =H21-'Savings by Group'!B104 -> 0 | V21: =N21-'Savings by Group'!D104 -> 0 | W21: =T21-'Savings by Group'!F104 -> 0 | X21: 2020 | Y21: 6511.758419 | Z21: 2280.851864 | AA21: 1919.04393 | AB21: 242.2868301 | AD21: 10953.94104 | AE21: 901.5165339 | AF21: 319.9113204 | AG21: 746.2208406 | AH21: 65.3997846 | AJ21: 2033.04848 | AK21: 36.57402739 | AL21: 0 | AM21: 3.976467004 | AN21: 5.581904153 | AP21: 46.13239855 | AS21: 105.8383532 | AT21: 59.1219606 | AU21: 345.0140996 | AV21: 71.6654311 | AW21: -904.5881756 | AX21: 276.4319039 | AY21: 29.410739 | AZ21: 11.28800093 | BA21: 166.5377358 | BB21: 28.62266678 | BC21: -269.9151851 | BD21: 82.48302435 | BE21: 2.856170425 | BF21: 0 | BG21: 1.689973582 | BH21: 1.74626019 | BI21: -13.10951846 | BJ21: 1.681017589
B22: 2021 | C22: ='Savings by Group'!I105+'Savings by Group'!P105+'Savings by Group'!W105+'Savings by Group'!AD105+'Savings by Group'!AK105+'Savings by Group'!AR105+'Savings by Group'!AY105+'Savings by Group'!BF105+'Savings by Group'!BM105 -> 204.2935479 | D22: ='Savings by Group'!BT105 -> 133.4524648 | E22: ='Savings by Group'!CA105 -> 280.1436469 | F22: ='Savings by Group'!CH105 -> 38.25029973 | H22: =SUM(C22:G22) -> 656.1399593 | I22: ='Savings by Group'!K105+'Savings by Group'!R105+'Savings by Group'!Y105+'Savings by Group'!AF105+'Savings by Group'!AM105+'Savings by Group'!AT105+'Savings by Group'!BA105+'Savings by Group'!BH105+'Savings by Group'!BO105 -> 31.03172243 | J22: ='Savings by Group'!BV105 -> 8.190352694 | K22: ='Savings by Group'!CC105 -> 118.2602907 | L22: ='Savings by Group'!CJ105 -> 10.32479298 | N22: =SUM(I22:M22) -> 167.8071588 | O22: ='Savings by Group'!M105+'Savings by Group'!T105+'Savings by Group'!AA105+'Savings by Group'!AH105+'Savings by Group'!AO105+'Savings by Group'!AV105+'Savings by Group'!BC105+'Savings by Group'!BJ105+'Savings by Group'!BQ105 -> 2.052396946 | P22: ='Savings by Group'!BX105 -> 0 | Q22: ='Savings by Group'!CE105 -> 0.6017485599 | R22: ='Savings by Group'!CL105 -> 0.8812262179 | T22: =SUM(O22:S22) -> 3.535371723 | U22: =H22-'Savings by Group'!B105 -> 0 | V22: =N22-'Savings by Group'!D105 -> 0 | W22: =T22-'Savings by Group'!F105 -> 0 | X22: 2021 | Y22: =Y21+C22 -> 6716.051967 | Z22: =Z21+D22 -> 2414.304329 | AA22: =AA21+E22 -> 2199.187577 | AB22: =AB21+F22 -> 280.5371298 | AD22: =SUM(Y22:AC22) -> 11610.081 | AE22: =AE21+I22 -> 932.5482564 | AF22: =AF21+J22 -> 328.1016731 | AG22: =AG21+K22 -> 864.4811313 | AH22: =AH21+L22 -> 75.72457758 | AJ22: =SUM(AE22:AI22) -> 2200.855638 | AK22: =AK21+O22 -> 38.62642434 | AL22: =AL21+P22 -> 0 | AM22: =AM21+Q22 -> 4.578215564 | AN22: =AN21+R22 -> 6.463130371 | AP22: =SUM(AK22:AO22) -> 49.66777027 | AS22: 103.8439316 | AT22: 60.09649571 | AU22: 345.0140996 | AV22: 71.6654311 | AW22: -770.5157299 | AX22: 234.5902193 | AY22: 29.13201549 | AZ22: 11.47407149 | BA22: 166.5377358 | BB22: 28.62266678 | BC22: -256.2822587 | BD22: 78.22619393 | BE22: 1.972315299 | BF22: 0 | BG22: 1.689973582 | BH22: 1.74626019 | BI22: -12.32816794 | BJ22: 1.57851299
B23: 2022 | C23: ='Savings by Group'!I106+'Savings by Group'!P106+'Savings by Group'!W106+'Savings by Group'!AD106+'Savings by Group'!AK106+'Savings by Group'!AR106+'Savings by Group'!AY106+'Savings by Group'!BF106+'Savings by Group'!BM106 -> 192.6271806 | D23: ='Savings by Group'!BT106 -> 45.59156539 | E23: ='Savings by Group'!CA106 -> 280.1436469 | F23: ='Savings by Group'!CH106 -> 38.25029973 | H23: 556.6126926 | I23: ='Savings by Group'!K106+'Savings by Group'!R106+'Savings by Group'!Y106+'Savings by Group'!AF106+'Savings by Group'!AM106+'Savings by Group'!AT106+'Savings by Group'!BA106+'Savings by Group'!BH106+'Savings by Group'!BO106 -> 30.0749529 | J23: ='Savings by Group'!BV106 -> 7.612475837 | K23: ='Savings by Group'!CC106 -> 118.2602907 | L23: ='Savings by Group'!CJ106 -> 10.32479298 | N23: 166.2725125 | O23: ='Savings by Group'!M106+'Savings by Group'!T106+'Savings by Group'!AA106+'Savings by Group'!AH106+'Savings by Group'!AO106+'Savings by Group'!AV106+'Savings by Group'!BC106+'Savings by Group'!BJ106+'Savings by Group'!BQ106 -> 2.052396946 | P23: ='Savings by Group'!BX106 -> 0 | Q23: ='Savings by Group'!CE106 -> 0.6017485599 | R23: ='Savings by Group'!CL106 -> 0.8812262179 | T23: 3.535371723 | U23: =H23-'Savings by Group'!B106 -> 0 | V23: =N23-'Savings by Group'!D106 -> 0 | W23: =T23-'Savings by Group'!F106 -> 0 | X23: 2022 | Y23: 6908.679148 | Z23: 2459.895894 | AA23: 2479.331224 | AB23: 318.7874296 | AD23: 12166.69369 | AE23: 962.6232093 | AF23: 335.7141489 | AG23: 982.7414221 | AH23: 86.04937057 | AJ23: 2367.128151 | AK23: 40.67882128 | AL23: 0 | AM23: 5.179964123 | AN23: 7.344356589 | AP23: 53.20314199 | AS23: 103.8439316 | AT23: 37.49635393 | AU23: 345.0140996 | AV23: 71.6654311 | AW23: -741.6613169 | AX23: 225.6432095 | AY23: 29.13201549 | AZ23: 6.952024537 | BA23: 166.5377358 | BB23: 28.62266678 | BC23: -251.733595 | BD23: 76.80388312 | BE23: 1.972315299 | BF23: 0 | BG23: 1.689973582 | BH23: 1.74626019 | BI23: -12.32611784 | BJ23: 1.580563082
B24: 2023 | C24: ='Savings by Group'!I107+'Savings by Group'!P107+'Savings by Group'!W107+'Savings by Group'!AD107+'Savings by Group'!AK107+'Savings by Group'!AR107+'Savings by Group'!AY107+'Savings by Group'!BF107+'Savings by Group'!BM107 -> 116.0237773 | D24: ='Savings by Group'!BT107 -> 28.03187791 | E24: ='Savings by Group'!CA107 -> 278.0777539 | F24: ='Savings by Group'!CH107 -> 38.25029973 | H24: 460.3837088 | I24: ='Savings by Group'!K107+'Savings by Group'!R107+'Savings by Group'!Y107+'Savings by Group'!AF107+'Savings by Group'!AM107+'Savings by Group'!AT107+'Savings by Group'!BA107+'Savings by Group'!BH107+'Savings by Group'!BO107 -> 23.93080512 | J24: ='Savings by Group'!BV107 -> 4.545061028 | K24: ='Savings by Group'!CC107 -> 117.9949793 | L24: ='Savings by Group'!CJ107 -> 10.32479298 | N24: 156.7956384 | O24: ='Savings by Group'!M107+'Savings by Group'!T107+'Savings by Group'!AA107+'Savings by Group'!AH107+'Savings by Group'!AO107+'Savings by Group'!AV107+'Savings by Group'!BC107+'Savings by Group'!BJ107+'Savings by Group'!BQ107 -> 2.052396946 | P24: ='Savings by Group'!BX107 -> 0 | Q24: ='Savings by Group'!CE107 -> 0.5758045471 | R24: ='Savings by Group'!CL107 -> 0.8812262179 | T24: 3.509427711 | U24: =H24-'Savings by Group'!B107 -> 0 | V24: =N24-'Savings by Group'!D107 -> 0 | W24: =T24-'Savings by Group'!F107 -> 0 | X24: 2023 | Y24: 7024.702925 | Z24: 2487.927772 | AA24: 2757.408977 | AB24: 357.0377293 | AD24: 12627.0774 | AE24: 986.5540144 | AF24: 340.2592099 | AG24: 1100.736401 | AH24: 96.37416355 | AJ24: 2523.923789 | AK24: 42.73121823 | AL24: 0 | AM24: 5.75576867 | AN24: 8.225582807 | AP24: 56.71256971 | AS24: 103.8439316 | AT24: 25.67178151 | AU24: 342.4934205 | AV24: 71.6654311 | AW24: -648.0068152 | AX24: 196.0542834 | AY24: 29.13201549 | AZ24: 4.298091983 | BA24: 166.1675755 | BB24: 28.62266678 | BC24: -241.7766627 | BD24: 73.560434 | BE24: 1.972315299 | BF24: 0 | BG24: 1.617662339 | BH24: 1.74626019 | BI24: -12.27177027 | BJ24: 1.562599412
B25: 2024 | C25: ='Savings by Group'!I108+'Savings by Group'!P108+'Savings by Group'!W108+'Savings by Group'!AD108+'Savings by Group'!AK108+'Savings by Group'!AR108+'Savings by Group'!AY108+'Savings by Group'!BF108+'Savings by Group'!BM108 -> 103.2007928 | D25: ='Savings by Group'!BT108 -> 18.75973484 | E25: ='Savings by Group'!CA108 -> 276.2816609 | F25: ='Savings by Group'!CH108 -> 38.25029973 | H25: 436.4924883 | I25: ='Savings by Group'!K108+'Savings by Group'!R108+'Savings by Group'!Y108+'Savings by Group'!AF108+'Savings by Group'!AM108+'Savings by Group'!AT108+'Savings by Group'!BA108+'Savings by Group'!BH108+'Savings by Group'!BO108 -> 22.08153726 | J25: ='Savings by Group'!BV108 -> 2.741543517 | K25: ='Savings by Group'!CC108 -> 117.5475112 | L25: ='Savings by Group'!CJ108 -> 10.32479298 | N25: 152.695385 | O25: ='Savings by Group'!M108+'Savings by Group'!T108+'Savings by Group'!AA108+'Savings by Group'!AH108+'Savings by Group'!AO108+'Savings by Group'!AV108+'Savings by Group'!BC108+'Savings by Group'!BJ108+'Savings by Group'!BQ108 -> 2.052396946 | P25: ='Savings by Group'!BX108 -> 0 | Q25: ='Savings by Group'!CE108 -> 0.5429814499 | R25: ='Savings by Group'!CL108 -> 0.8812262179 | T25: 3.476604613 | U25: =H25-'Savings by Group'!B108 -> 0 | V25: =N25-'Savings by Group'!D108 -> 0 | W25: =T25-'Savings by Group'!F108 -> 0 | X25: 2024 | Y25: 7127.903718 | Z25: 2506.687507 | AA25: 3033.690638 | AB25: 395.288029 | AD25: 13063.56989 | AE25: 1008.635552 | AF25: 343.0007534 | AG25: 1218.283913 | AH25: 106.6989565 | AJ25: 2676.619174 | AK25: 44.78361517 | AL25: 0 | AM25: 6.29875012 | AN25: 9.106809024 | AP25: 60.18917432 | AS25: 103.8439316 | AT25: 9.987576224 | AU25: 340.2928545 | AV25: 71.6654311 | AW25: -620.6121527 | AX25: 187.6476954 | AY25: 29.13201549 | AZ25: 1.479907738 | BA25: 165.7196869 | BB25: 28.62266678 | BC25: -244.1410451 | BD25: 64.67835093 | BE25: 1.972315299 | BF25: 0 | BG25: 1.524929791 | BH25: 1.74626019 | BI25: -12.1798321 | BJ25: 1.561805038
B26: 2025 | C26: ='Savings by Group'!I109+'Savings by Group'!P109+'Savings by Group'!W109+'Savings by Group'!AD109+'Savings by Group'!AK109+'Savings by Group'!AR109+'Savings by Group'!AY109+'Savings by Group'!BF109+'Savings by Group'!BM109 -> 103.2007928 | D26: ='Savings by Group'!BT109 -> 7.220451493 | E26: ='Savings by Group'!CA109 -> 271.3464539 | F26: ='Savings by Group'!CH109 -> 38.25029973 | H26: 420.017998 | I26: ='Savings by Group'!K109+'Savings by Group'!R109+'Savings by Group'!Y109+'Savings by Group'!AF109+'Savings by Group'!AM109+'Savings by Group'!AT109+'Savings by Group'!BA109+'Savings by Group'!BH109+'Savings by Group'!BO109 -> 22.08153726 | J26: ='Savings by Group'!BV109 -> 0.9357608174 | K26: ='Savings by Group'!CC109 -> 94.66474372 | L26: ='Savings by Group'!CJ109 -> 10.32479298 | N26: 128.0068348 | O26: ='Savings by Group'!M109+'Savings by Group'!T109+'Savings by Group'!AA109+'Savings by Group'!AH109+'Savings by Group'!AO109+'Savings by Group'!AV109+'Savings by Group'!BC109+'Savings by Group'!BJ109+'Savings by Group'!BQ109 -> 2.052396946 | P26: ='Savings by Group'!BX109 -> 0 | Q26: ='Savings by Group'!CE109 -> 0.5429814499 | R26: ='Savings by Group'!CL109 -> 0.8812262179 | T26: 3.476604613 | U26: =H26-'Savings by Group'!B109 -> 0 | V26: =N26-'Savings by Group'!D109 -> 0 | W26: =T26-'Savings by Group'!F109 -> 0 | X26: 2025 | Y26: 7231.104511 | Z26: 2513.907958 | AA26: 3305.037092 | AB26: 433.5383288 | AD26: 13483.58789 | AE26: 1030.717089 | AF26: 343.9365143 | AG26: 1312.948656 | AH26: 117.0237495 | AJ26: 2804.626009 | AK26: 46.83601212 | AL26: 0 | AM26: 6.84173157 | AN26: 9.988035242 | AP26: 63.66577893 | AS26: 103.8439316 | AT26: 9.989574721 | AU26: 334.1798165 | AV26: 71.6654311 | AW26: -614.3962663 | AX26: 187.7525422 | AY26: 29.13201549 | AZ26: 1.480352526 | BA26: 133.3097693 | BB26: 28.62266678 | BC26: -211.712868 | BD26: 64.69705525 | BE26: 1.972315299 | BF26: 0 | BG26: 1.524929791 | BH26: 1.74626019 | BI26: -12.1798321 | BJ26: 1.561805038
B27: 2026 | C27: ='Savings by Group'!I110+'Savings by Group'!P110+'Savings by Group'!W110+'Savings by Group'!AD110+'Savings by Group'!AK110+'Savings by Group'!AR110+'Savings by Group'!AY110+'Savings by Group'!BF110+'Savings by Group'!BM110 -> 103.1897604 | D27: ='Savings by Group'!BT110 -> 7.220451493 | E27: ='Savings by Group'!CA110 -> 271.3464539 | F27: ='Savings by Group'!CH110 -> 38.25029973 | H27: 420.0069656 | I27: ='Savings by Group'!K110+'Savings by Group'!R110+'Savings by Group'!Y110+'Savings by Group'!AF110+'Savings by Group'!AM110+'Savings by Group'!AT110+'Savings by Group'!BA110+'Savings by Group'!BH110+'Savings by Group'!BO110 -> 22.07966119 | J27: ='Savings by Group'!BV110 -> 0.9357608174 | K27: ='Savings by Group'!CC110 -> 94.66474372 | L27: ='Savings by Group'!CJ110 -> 10.32479298 | N27: 128.0049587 | O27: ='Savings by Group'!M110+'Savings by Group'!T110+'Savings by Group'!AA110+'Savings by Group'!AH110+'Savings by Group'!AO110+'Savings by Group'!AV110+'Savings by Group'!BC110+'Savings by Group'!BJ110+'Savings by Group'!BQ110 -> 2.052396946 | P27: ='Savings by Group'!BX110 -> 0 | Q27: ='Savings by Group'!CE110 -> 0.5429814499 | R27: ='Savings by Group'!CL110 -> 0.8812262179 | T27: 3.476604613 | U27: =H27-'Savings by Group'!B110 -> 0 | V27: =N27-'Savings by Group'!D110 -> 0 | W27: =T27-'Savings by Group'!F110 -> 0 | X27: 2026 | Y27: 7334.294271 | Z27: 2521.12841 | AA27: 3576.383546 | AB27: 471.7886285 | AD27: 13903.59486 | AE27: 1052.79675 | AF27: 344.8722751 | AG27: 1407.6134 | AH27: 127.3485425 | AJ27: 2932.630968 | AK27: 48.88840907 | AL27: 0 | AM27: 7.38471302 | AN27: 10.86926146 | AP27: 67.14238355 | AS27: 103.8439316 | AT27: 9.989574721 | AU27: 334.1798165 | AV27: 71.6654311 | AW27: -614.3962663 | AX27: 187.7525422 | AY27: 29.13201549 | AZ27: 1.480352526 | BA27: 133.3097693 | BB27: 28.62266678 | BC27: -211.712868 | BD27: 64.69705525 | BE27: 1.972315299 | BF27: 0 | BG27: 1.524929791 | BH27: 1.74626019 | BI27: -12.1798321 | BJ27: 1.561805038
B28: 2027 | C28: ='Savings by Group'!I111+'Savings by Group'!P111+'Savings by Group'!W111+'Savings by Group'!AD111+'Savings by Group'!AK111+'Savings by Group'!AR111+'Savings by Group'!AY111+'Savings by Group'!BF111+'Savings by Group'!BM111 -> 99.17395868 | D28: ='Savings by Group'!BT111 -> 7.220451493 | E28: ='Savings by Group'!CA111 -> 271.3464539 | F28: ='Savings by Group'!CH111 -> 38.25029973 | H28: 415.9911639 | I28: ='Savings by Group'!K111+'Savings by Group'!R111+'Savings by Group'!Y111+'Savings by Group'!AF111+'Savings by Group'!AM111+'Savings by Group'!AT111+'Savings by Group'!BA111+'Savings by Group'!BH111+'Savings by Group'!BO111 -> 21.39677213 | J28: ='Savings by Group'!BV111 -> 0.9357608174 | K28: ='Savings by Group'!CC111 -> 94.66474372 | L28: ='Savings by Group'!CJ111 -> 10.32479298 | N28: 127.3220697 | O28: ='Savings by Group'!M111+'Savings by Group'!T111+'Savings by Group'!AA111+'Savings by Group'!AH111+'Savings by Group'!AO111+'Savings by Group'!AV111+'Savings by Group'!BC111+'Savings by Group'!BJ111+'Savings by Group'!BQ111 -> 2.052396946 | P28: ='Savings by Group'!BX111 -> 0 | Q28: ='Savings by Group'!CE111 -> 0.5429814499 | R28: ='Savings by Group'!CL111 -> 0.8812262179 | T28: 3.476604613 | U28: =H28-'Savings by Group'!B111 -> 0 | V28: =N28-'Savings by Group'!D111 -> 0 | W28: =T28-'Savings by Group'!F111 -> 0 | X28: 2027 | Y28: 7433.46823 | Z28: 2528.348861 | AA28: 3847.73 | AB28: 510.0389282 | AD28: 14319.58602 | AE28: 1074.193522 | AF28: 345.8080359 | AG28: 1502.278144 | AH28: 137.6733355 | AJ28: 3059.953037 | AK28: 50.94080601 | AL28: 0 | AM28: 7.92769447 | AN28: 11.75048768 | AP28: 70.61898816 | AS28: 103.8439316 | AT28: 9.989574721 | AU28: 334.1798165 | AV28: 71.6654311 | AW28: -614.3962663 | AX28: 187.7525422 | AY28: 29.13201549 | AZ28: 1.480352526 | BA28: 133.3097693 | BB28: 28.62266678 | BC28: -211.712868 | BD28: 64.69705525 | BE28: 1.972315299 | BF28: 0 | BG28: 1.524929791 | BH28: 1.74626019 | BI28: -12.1798321 | BJ28: 1.561805038
B29: 2028 | C29: ='Savings by Group'!I112+'Savings by Group'!P112+'Savings by Group'!W112+'Savings by Group'!AD112+'Savings by Group'!AK112+'Savings by Group'!AR112+'Savings by Group'!AY112+'Savings by Group'!BF112+'Savings by Group'!BM112 -> 99.17395868 | D29: ='Savings by Group'!BT112 -> 7.220451493 | E29: ='Savings by Group'!CA112 -> 256.1954754 | F29: ='Savings by Group'!CH112 -> 38.25029973 | H29: 400.8401853 | I29: ='Savings by Group'!K112+'Savings by Group'!R112+'Savings by Group'!Y112+'Savings by Group'!AF112+'Savings by Group'!AM112+'Savings by Group'!AT112+'Savings by Group'!BA112+'Savings by Group'!BH112+'Savings by Group'!BO112 -> 21.39677213 | J29: ='Savings by Group'!BV112 -> 0.9357608174 | K29: ='Savings by Group'!CC112 -> 93.10271827 | L29: ='Savings by Group'!CJ112 -> 10.32479298 | N29: 125.7600442 | O29: ='Savings by Group'!M112+'Savings by Group'!T112+'Savings by Group'!AA112+'Savings by Group'!AH112+'Savings by Group'!AO112+'Savings by Group'!AV112+'Savings by Group'!BC112+'Savings by Group'!BJ112+'Savings by Group'!BQ112 -> 2.052396946 | P29: ='Savings by Group'!BX112 -> 0 | Q29: ='Savings by Group'!CE112 -> 0.2475547474 | R29: ='Savings by Group'!CL112 -> 0.8812262179 | T29: 3.181177911 | U29: =H29-'Savings by Group'!B112 -> 0 | V29: =N29-'Savings by Group'!D112 -> 0 | W29: =T29-'Savings by Group'!F112 -> 0 | X29: 2028 | Y29: 7532.642189 | Z29: 2535.569313 | AA29: 4103.925476 | AB29: 548.289228 | AD29: 14720.4262 | AE29: 1095.590294 | AF29: 346.7437967 | AG29: 1595.380862 | AH29: 147.9981285 | AJ29: 3185.713082 | AK29: 52.99320296 | AL29: 0 | AM29: 8.175249217 | AN29: 12.6317139 | AP29: 73.80016607 | AS29: 103.8439316 | AT29: 9.989574721 | AU29: 315.7519178 | AV29: 71.6654311 | AW29: -600.5777769 | AX29: 183.1431329 | AY29: 29.13201549 | AZ29: 1.480352526 | BA29: 131.1373639 | BB29: 28.62266678 | BC29: -210.0838509 | BD29: 64.15366688 | BE29: 1.972315299 | BF29: 0 | BG29: 0.7055341107 | BH29: 1.74626019 | BI29: -11.45995876 | BJ29: 1.462282696
B30: 2029 | C30: ='Savings by Group'!I113+'Savings by Group'!P113+'Savings by Group'!W113+'Savings by Group'!AD113+'Savings by Group'!AK113+'Savings by Group'!AR113+'Savings by Group'!AY113+'Savings by Group'!BF113+'Savings by Group'!BM113 -> 99.17395868 | D30: ='Savings by Group'!BT113 -> 7.220451493 | E30: ='Savings by Group'!CA113 -> 250.2391747 | F30: ='Savings by Group'!CH113 -> 38.25029973 | H30: 394.8838846 | I30: ='Savings by Group'!K113+'Savings by Group'!R113+'Savings by Group'!Y113+'Savings by Group'!AF113+'Savings by Group'!AM113+'Savings by Group'!AT113+'Savings by Group'!BA113+'Savings by Group'!BH113+'Savings by Group'!BO113 -> 21.39677213 | J30: ='Savings by Group'!BV113 -> 0.9357608174 | K30: ='Savings by Group'!CC113 -> 92.48863957 | L30: ='Savings by Group'!CJ113 -> 10.32479298 | N30: 125.1459655 | O30: ='Savings by Group'!M113+'Savings by Group'!T113+'Savings by Group'!AA113+'Savings by Group'!AH113+'Savings by Group'!AO113+'Savings by Group'!AV113+'Savings by Group'!BC113+'Savings by Group'!BJ113+'Savings by Group'!BQ113 -> 2.052396946 | P30: ='Savings by Group'!BX113 -> 0 | Q30: ='Savings by Group'!CE113 -> 0.1314137155 | R30: ='Savings by Group'!CL113 -> 0.8812262179 | T30: 3.065036879 | U30: =H30-'Savings by Group'!B113 -> 0 | V30: =N30-'Savings by Group'!D113 -> 0 | W30: =T30-'Savings by Group'!F113 -> 0 | X30: 2029 | Y30: 7631.816147 | Z30: 2542.789764 | AA30: 4354.16465 | AB30: 586.5395277 | AD30: 15115.31009 | AE30: 1116.987066 | AF30: 347.6795575 | AG30: 1687.869502 | AH30: 158.3229215 | AJ30: 3310.859047 | AK30: 55.0455999 | AL30: 0 | AM30: 8.306662933 | AN30: 13.51294011 | AP30: 76.86520295 | AS30: 103.8439316 | AT30: 9.989574721 | AU30: 308.1849063 | AV30: 71.6654311 | AW30: -594.4857764 | AX30: 181.6681219 | AY30: 29.13201549 | AZ30: 1.480352526 | BA30: 130.2453133 | BB30: 28.62266678 | BC30: -209.3656846 | BD30: 63.9797826 | BE30: 1.972315299 | BF30: 0 | BG30: 0.3690672855 | BH30: 1.74626019 | BI30: -11.15533908 | BJ30: 1.430435547
B31: =B30+1 -> 2030 | C31: ='Savings by Group'!I114+'Savings by Group'!P114+'Savings by Group'!W114+'Savings by Group'!AD114+'Savings by Group'!AK114+'Savings by Group'!AR114+'Savings by Group'!AY114+'Savings by Group'!BF114+'Savings by Group'!BM114 -> 99.17395868 | D31: ='Savings by Group'!BT114 -> 7.220451493 | E31: ='Savings by Group'!CA114 -> 231.7022445 | F31: ='Savings by Group'!CH114 -> 38.25029973 | H31: 376.3469544 | I31: ='Savings by Group'!K114+'Savings by Group'!R114+'Savings by Group'!Y114+'Savings by Group'!AF114+'Savings by Group'!AM114+'Savings by Group'!AT114+'Savings by Group'!BA114+'Savings by Group'!BH114+'Savings by Group'!BO114 -> 21.39677213 | J31: ='Savings by Group'!BV114 -> 0.9357608174 | K31: ='Savings by Group'!CC114 -> 89.60931252 | L31: ='Savings by Group'!CJ114 -> 10.32479298 | N31: 122.2666385 | O31: ='Savings by Group'!M114+'Savings by Group'!T114+'Savings by Group'!AA114+'Savings by Group'!AH114+'Savings by Group'!AO114+'Savings by Group'!AV114+'Savings by Group'!BC114+'Savings by Group'!BJ114+'Savings by Group'!BQ114 -> 2.052396946 | P31: ='Savings by Group'!BX114 -> 0 | Q31: ='Savings by Group'!CE114 -> 0.1313843114 | R31: ='Savings by Group'!CL114 -> 0.8812262179 | T31: 3.065007475 | U31: =H31-'Savings by Group'!B114 -> 0 | V31: =N31-'Savings by Group'!D114 -> 0 | W31: =T31-'Savings by Group'!F114 -> 0 | X31: 2030 | Y31: 7730.990106 | Z31: 2550.010216 | AA31: 4585.866895 | AB31: 624.7898274 | AD31: 15491.65704 | AE31: 1138.383839 | AF31: 348.6153183 | AG31: 1777.478814 | AH31: 168.6477144 | AJ31: 3433.125685 | AK31: 57.09799685 | AL31: 0 | AM31: 8.438047244 | AN31: 14.39416633 | AP31: 79.93021042 | AS31: 103.8439316 | AT31: 9.989574721 | AU31: 242.0253813 | AV31: 71.6654311 | AW31: -546.7462464 | AX31: 163.2481269 | AY31: 29.13201549 | AZ31: 1.480352526 | BA31: 118.4228232 | BB31: 28.62266678 | BC31: -200.8510806 | BD31: 60.67189654 | BE31: 1.972315299 | BF31: 0 | BG31: 0.3643061151 | BH31: 1.74626019 | BI31: -11.15171982 | BJ31: 1.429293635
E33: Net Savings - Annual | AA33: Net Savings - Cumulative | AU33: Net Savings - Annual
C35: =C5 -> Energy (GWh) | I35: =I5 -> Demand (MW) | Y35: =Y5 -> Energy (GWh) | AE35: =AE5 -> Demand (MW) | AS35: Energy (GWh) | AY35: Demand (MW)
C36: =C6 -> On-the-Books Standards | D36: =D6 -> Track 1 Future Title 20 | E36: Track 1 Future Fed Appliance | F36: Track 1 Future (2013) T-24 | G36: =G6 -> Compliance Enhancement | H36: Total | I36: =C36 -> On-the-Books Standards | J36: =D36 -> Track 1 Future Title 20 | K36: =E36 -> Track 1 Future Fed Appliance | L36: =F36 -> Track 1 Future (2013) T-24 | M36: =G36 -> Compliance Enhancement | N36: =N6 -> Total | O36: =I36 -> On-the-Books Standards | P36: =J36 -> Track 1 Future Title 20 | Q36: =K36 -> Track 1 Future Fed Appliance | R36: =L36 -> Track 1 Future (2013) T-24 | S36: =M36 -> Compliance Enhancement | T36: =T6 -> Total | Y36: =Y6 -> On-the-Books Standards | Z36: =Z6 -> Track 1 Future Title 20 | AA36: Track 1 Future Fed Appliance | AB36: Track 1 Future (2013) T-24 | AC36: Compliance Enhancement | AD36: Total | AE36: =Y36 -> On-the-Books Standards | AF36: =Z36 -> Track 1 Future Title 20 | AG36: =AA36 -> Track 1 Future Fed Appliance | AH36: =AB36 -> Track 1 Future (2013) T-24 | AI36: =AC36 -> Compliance Enhancement | AJ36: =AJ6 -> Total | AK36: =AE36 -> On-the-Books Standards | AL36: =AF36 -> Track 1 Future Title 20 | AM36: =AG36 -> Track 1 Future Fed Appliance | AN36: =AH36 -> Track 1 Future (2013) T-24 | AO36: =AI36 -> Compliance Enhancement | AP36: =AP6 -> Total | AS36: Pre-2007 Standards | AT36: Future Title 20 | AU36: Future Fed Appliance | AV36: 2013 T-24 | AW36: Compliance Enhancement | AX36: Total | AY36: Pre-2007 Standards | AZ36: Future Title 20 | BA36: Future Fed Appliance | BB36: 2013 T-24 | BC36: Compliance Enhancement | BD36: Total | BE36: Pre-2007 Standards | BF36: Future Title 20 | BG36: Future Fed Appliance | BH36: 2013 T-24 | BI36: Compliance Enhancement | BJ36: Total
B37: =B38-1 -> 2006 | C37: ='Savings by Group'!J90/2+'Savings by Group'!Q90/2+'Savings by Group'!X90+'Savings by Group'!AE90+'Savings by Group'!AL90+'Savings by Group'!AS90+'Savings by Group'!AZ90+'Savings by Group'!BG90+'Savings by Group'!BN90 -> 44.70658859 | D37: ='Savings by Group'!BU90 -> 0 | E37: ='Savings by Group'!CB90 -> 0 | F37: ='Savings by Group'!CI90 -> 0 | H37: =SUM(C37:G37) -> 44.70658859 | I37: ='Savings by Group'!L90/2+'Savings by Group'!S90/2+'Savings by Group'!Z90+'Savings by Group'!AG90+'Savings by Group'!AN90+'Savings by Group'!AU90+'Savings by Group'!BB90+'Savings by Group'!BI90+'Savings by Group'!BP90 -> 8.518463627 | J37: ='Savings by Group'!BW90 -> 0 | K37: ='Savings by Group'!CD90 -> 0 | L37: ='Savings by Group'!CK90 -> 0 | N37: =SUM(I37:M37) -> 8.518463627 | O37: ='Savings by Group'!N90/2+'Savings by Group'!U90/2+'Savings by Group'!AB90+'Savings by Group'!AI90+'Savings by Group'!AP90+'Savings by Group'!AW90+'Savings by Group'!BD90+'Savings by Group'!BK90+'Savings by Group'!BR90 -> 0.7416382097 | P37: ='Savings by Group'!BY90 -> 0 | Q37: ='Savings by Group'!CF90 -> 0 | R37: ='Savings by Group'!CM90 -> 0 | T37: =SUM(O37:S37) -> 0.7416382097 | U37: =H37-'Savings by Group'!C90 -> -44.70658859 | V37: =N37-'Savings by Group'!E90 -> -8.518463627 | W37: =T37-'Savings by Group'!G90 -> -0.7416382097 | X37: =X38-1 -> 2006 | Y37: =IF($Z$2=2006,C37,0) -> 44.70658859 | Z37: =IF($Z$2=2006,D37,0) -> 0 | AA37: =IF($Z$2=2006,E37,0) -> 0 | AB37: =IF($Z$2=2006,F37,0) -> 0 | AD37: =SUM(Y37:AC37) -> 44.70658859 | AE37: =IF($Z$2=2006,I37,0) -> 8.518463627 | AF37: =IF($Z$2=2006,J37,0) -> 0 | AG37: =IF($Z$2=2006,K37,0) -> 0 | AH37: =IF($Z$2=2006,L37,0) -> 0 | AJ37: =SUM(AE37:AI37) -> 8.518463627 | AK37: =IF($Z$2=2006,O37,0) -> 0.7416382097 | AL37: =IF($Z$2=2006,P37,0) -> 0 | AM37: =IF($Z$2=2006,Q37,0) -> 0 | AN37: =IF($Z$2=2006,R37,0) -> 0 | AP37: =SUM(AK37:AO37) -> 0.7416382097 | AS37: 229.0112704 | AT37: 0 | AU37: 0 | AV37: 0 | AW37: -688.3983405 | AX37: 211.9194993 | AY37: 45.68249286 | AZ37: 0 | BA37: 0 | BB37: 0 | BC37: -120.1074168 | BD37: 37.05181648 | BE37: 2.677908463 | BF37: 0 | BG37: 0 | BH37: 0 | BI37: -7.74540466 | BJ37: 0.9956129467
B38: 2007 | C38: ='Savings by Group'!J91/2+'Savings by Group'!Q91/2+'Savings by Group'!X91+'Savings by Group'!AE91+'Savings by Group'!AL91+'Savings by Group'!AS91+'Savings by Group'!AZ91+'Savings by Group'!BG91+'Savings by Group'!BN91 -> 56.7319451 | D38: ='Savings by Group'!BU91 -> 0 | E38: ='Savings by Group'!CB91 -> 0 | F38: ='Savings by Group'!CI91 -> 0 | H38: 56.7319451 | I38: ='Savings by Group'!L91/2+'Savings by Group'!S91/2+'Savings by Group'!Z91+'Savings by Group'!AG91+'Savings by Group'!AN91+'Savings by Group'!AU91+'Savings by Group'!BB91+'Savings by Group'!BI91+'Savings by Group'!BP91 -> 10.7481664 | J38: ='Savings by Group'!BW91 -> 0 | K38: ='Savings by Group'!CD91 -> 0 | L38: ='Savings by Group'!CK91 -> 0 | N38: 10.7481664 | O38: ='Savings by Group'!N91/2+'Savings by Group'!U91/2+'Savings by Group'!AB91+'Savings by Group'!AI91+'Savings by Group'!AP91+'Savings by Group'!AW91+'Savings by Group'!BD91+'Savings by Group'!BK91+'Savings by Group'!BR91 -> 0.7911884842 | P38: ='Savings by Group'!BY91 -> 0 | Q38: ='Savings by Group'!CF91 -> 0 | R38: ='Savings by Group'!CM91 -> 0 | T38: 0.7911884842 | U38: =H38-'Savings by Group'!C91 -> -56.7319451 | V38: =N38-'Savings by Group'!E91 -> -10.7481664 | W38: =T38-'Savings by Group'!G91 -> -0.7911884842 | X38: 2007 | Y38: =Y37+C38 -> 101.4385337 | Z38: =Z37+D38 -> 0 | AA38: =AA37+E38 -> 0 | AB38: =AB37+F38 -> 0 | AD38: 101.4385337 | AE38: =AE37+I38 -> 19.26663002 | AF38: =AF37+J38 -> 0 | AG38: =AG37+K38 -> 0 | AH38: =AH37+L38 -> 0 | AJ38: 19.26663002 | AK38: =AK37+O38 -> 1.532826694 | AL38: =AL37+P38 -> 0 | AM38: =AM37+Q38 -> 0 | AN38: =AN37+R38 -> 0 | AP38: 1.532826694
B39: 2008 | C39: ='Savings by Group'!J92/2+'Savings by Group'!Q92/2+'Savings by Group'!X92+'Savings by Group'!AE92+'Savings by Group'!AL92+'Savings by Group'!AS92+'Savings by Group'!AZ92+'Savings by Group'!BG92+'Savings by Group'!BN92 -> 131.067477 | D39: ='Savings by Group'!BU92 -> 0 | E39: ='Savings by Group'!CB92 -> 0 | F39: ='Savings by Group'!CI92 -> 0 | H39: 131.067477 | I39: ='Savings by Group'!L92/2+'Savings by Group'!S92/2+'Savings by Group'!Z92+'Savings by Group'!AG92+'Savings by Group'!AN92+'Savings by Group'!AU92+'Savings by Group'!BB92+'Savings by Group'!BI92+'Savings by Group'!BP92 -> 20.84106806 | J39: ='Savings by Group'!BW92 -> 0 | K39: ='Savings by Group'!CD92 -> 0 | L39: ='Savings by Group'!CK92 -> 0 | N39: 20.84106806 | O39: ='Savings by Group'!N92/2+'Savings by Group'!U92/2+'Savings by Group'!AB92+'Savings by Group'!AI92+'Savings by Group'!AP92+'Savings by Group'!AW92+'Savings by Group'!BD92+'Savings by Group'!BK92+'Savings by Group'!BR92 -> 0.6681462189 | P39: ='Savings by Group'!BY92 -> 0 | Q39: ='Savings by Group'!CF92 -> 0 | R39: ='Savings by Group'!CM92 -> 0 | T39: 0.6681462189 | U39: =H39-'Savings by Group'!C92 -> -52.9936821 | V39: =N39-'Savings by Group'!E92 -> -10.35585568 | W39: =T39-'Savings by Group'!G92 -> -0.6681462189 | X39: 2008 | Y39: =Y38+C39 -> 232.5060107 | Z39: 0 | AA39: 0 | AB39: 0 | AD39: 232.5060107 | AE39: =AE38+I39 -> 40.10769809 | AF39: 0 | AG39: 0 | AH39: 0 | AJ39: 40.10769809 | AK39: =AK38+O39 -> 2.200972913 | AL39: 0 | AM39: 0 | AN39: 0 | AP39: 2.200972913 | AS39: 214.0926033 | AT39: 156.2774384 | AU39: 55.99636955 | AV39: 0 | AW39: -1113.911895 | AX39: 339.3352079 | AY39: 44.59857377 | AZ39: 43.72010101 | BA39: 6.261224968 | BB39: 0 | BC39: -188.4874201 | BD39: 57.4649442 | BE39: 2.737329117 | BF39: 0 | BG39: 0.5254500749 | BH39: 0 | BI39: -8.501503339 | BJ39: 1.091645187
B40: 2009 | C40: ='Savings by Group'!J93/2+'Savings by Group'!Q93/2+'Savings by Group'!X93+'Savings by Group'!AE93+'Savings by Group'!AL93+'Savings by Group'!AS93+'Savings by Group'!AZ93+'Savings by Group'!BG93+'Savings by Group'!BN93 -> 85.83146445 | D40: ='Savings by Group'!BU93 -> 0 | E40: ='Savings by Group'!CB93 -> 0 | F40: ='Savings by Group'!CI93 -> 0 | H40: 85.83146445 | I40: ='Savings by Group'!L93/2+'Savings by Group'!S93/2+'Savings by Group'!Z93+'Savings by Group'!AG93+'Savings by Group'!AN93+'Savings by Group'!AU93+'Savings by Group'!BB93+'Savings by Group'!BI93+'Savings by Group'!BP93 -> 15.63159036 | J40: ='Savings by Group'!BW93 -> 0 | K40: ='Savings by Group'!CD93 -> 0 | L40: ='Savings by Group'!CK93 -> 0 | N40: 15.63159036 | O40: ='Savings by Group'!N93/2+'Savings by Group'!U93/2+'Savings by Group'!AB93+'Savings by Group'!AI93+'Savings by Group'!AP93+'Savings by Group'!AW93+'Savings by Group'!BD93+'Savings by Group'!BK93+'Savings by Group'!BR93 -> 0.68609092 | P40: ='Savings by Group'!BY93 -> 0 | Q40: ='Savings by Group'!CF93 -> 0 | R40: ='Savings by Group'!CM93 -> 0 | T40: 0.68609092 | U40: =H40-'Savings by Group'!C93 -> -52.48047951 | V40: =N40-'Savings by Group'!E93 -> -10.21104335 | W40: =T40-'Savings by Group'!G93 -> -0.68609092 | X40: 2009 | Y40: 318.3374751 | Z40: 0 | AA40: 0 | AB40: 0 | AD40: 318.3374751 | AE40: 55.73928845 | AF40: 0 | AG40: 0 | AH40: 0 | AJ40: 55.73928845 | AK40: 2.887063833 | AL40: 0 | AM40: 0 | AN40: 0 | AP40: 2.887063833 | AS40: 184.3902985 | AT40: 453.6877402 | AU40: 234.4423757 | AV40: 19.97642529 | AW40: -1342.733494 | AX40: 410.9204814 | AY40: 41.82213845 | AZ40: 83.62309765 | BA40: 48.29399597 | BB40: 7.978443105 | BC40: -245.4981684 | BD40: 75.15451646 | BE40: 2.796749771 | BF40: 0 | BG40: 0.7190703706 | BH40: 0.4867623857 | BI40: -9.751823431 | BJ40: 1.250691118
B41: 2010 | C41: ='Savings by Group'!J94+'Savings by Group'!Q94+'Savings by Group'!X94+'Savings by Group'!AE94+'Savings by Group'!AL94+'Savings by Group'!AS94+'Savings by Group'!AZ94+'Savings by Group'!BG94+'Savings by Group'!BN94 -> 134.8253119 | D41: ='Savings by Group'!BU94 -> 0 | E41: ='Savings by Group'!CB94 -> 0 | F41: ='Savings by Group'!CI94 -> 0 | H41: =SUM(C41:G41) -> 134.8253119 | I41: ='Savings by Group'!L94+'Savings by Group'!S94+'Savings by Group'!Z94+'Savings by Group'!AG94+'Savings by Group'!AN94+'Savings by Group'!AU94+'Savings by Group'!BB94+'Savings by Group'!BI94+'Savings by Group'!BP94 -> 23.09745079 | J41: ='Savings by Group'!BW94 -> 0 | K41: ='Savings by Group'!CD94 -> 0 | L41: ='Savings by Group'!CK94 -> 0 | N41: =SUM(I41:M41) -> 23.09745079 | O41: ='Savings by Group'!N94+'Savings by Group'!U94+'Savings by Group'!AB94+'Savings by Group'!AI94+'Savings by Group'!AP94+'Savings by Group'!AW94+'Savings by Group'!BD94+'Savings by Group'!BK94+'Savings by Group'!BR94 -> 1.184220446 | P41: ='Savings by Group'!BY94 -> 0 | Q41: ='Savings by Group'!CF94 -> 0 | R41: ='Savings by Group'!CM94 -> 0 | T41: =SUM(O41:S41) -> 1.184220446 | U41: =H41-'Savings by Group'!C94 -> 0 | V41: =N41-'Savings by Group'!E94 -> 0 | W41: =T41-'Savings by Group'!G94 -> 0 | X41: 2010 | Y41: 453.162787 | Z41: 0 | AA41: 0 | AB41: 0 | AD41: =SUM(Y41:AC41) -> 453.162787 | AE41: 78.83673924 | AF41: 0 | AG41: 0 | AH41: 0 | AJ41: =SUM(AE41:AI41) -> 78.83673924 | AK41: 4.071284279 | AL41: 0 | AM41: 0 | AN41: 0 | AP41: =SUM(AK41:AO41) -> 4.071284279 | AS41: 85.51998837 | AT41: 0 | AU41: 0 | AV41: 0 | AW41: 2.688997547 | AX41: 162.539158 | AY41: 16.93628897 | AZ41: 0 | BA41: 0 | BB41: 0 | BC41: 0.7152406691 | BD41: 33.90080668 | BE41: 1.35432268 | BF41: 0 | BG41: 0 | BH41: 0 | BI41: -1.039543885 | BJ41: 1.430547079
B42: =B41+1 -> 2011 | C42: ='Savings by Group'!J95+'Savings by Group'!Q95+'Savings by Group'!X95+'Savings by Group'!AE95+'Savings by Group'!AL95+'Savings by Group'!AS95+'Savings by Group'!AZ95+'Savings by Group'!BG95+'Savings by Group'!BN95 -> 226.5239007 | D42: ='Savings by Group'!BU95 -> 0 | E42: ='Savings by Group'!CB95 -> 0 | F42: ='Savings by Group'!CI95 -> 0 | H42: 226.5239007 | I42: ='Savings by Group'!L95+'Savings by Group'!S95+'Savings by Group'!Z95+'Savings by Group'!AG95+'Savings by Group'!AN95+'Savings by Group'!AU95+'Savings by Group'!BB95+'Savings by Group'!BI95+'Savings by Group'!BP95 -> 29.85967192 | J42: ='Savings by Group'!BW95 -> 0 | K42: ='Savings by Group'!CD95 -> 0 | L42: ='Savings by Group'!CK95 -> 0 | N42: 29.85967192 | O42: ='Savings by Group'!N95+'Savings by Group'!U95+'Savings by Group'!AB95+'Savings by Group'!AI95+'Savings by Group'!AP95+'Savings by Group'!AW95+'Savings by Group'!BD95+'Savings by Group'!BK95+'Savings by Group'!BR95 -> 1.61203982 | P42: ='Savings by Group'!BY95 -> 0 | Q42: ='Savings by Group'!CF95 -> 0 | R42: ='Savings by Group'!CM95 -> 0 | T42: 1.61203982 | U42: =H42-'Savings by Group'!C95 -> 0 | V42: =N42-'Savings by Group'!E95 -> 0 | W42: =T42-'Savings by Group'!G95 -> 0 | X42: =X41+1 -> 2011 | Y42: 679.6866877 | Z42: 0 | AA42: 0 | AB42: 0 | AD42: 679.6866877 | AE42: 108.6964112 | AF42: 0 | AG42: 0 | AH42: 0 | AJ42: 108.6964112 | AK42: 5.683324099 | AL42: 0 | AM42: 0 | AN42: 0 | AP42: 5.683324099 | AS42: 79.63635837 | AT42: 0 | AU42: 0 | AV42: 0 | AW42: -45.97662741 | AX42: 255.4536803 | AY42: 16.20272783 | AZ42: 0 | BA42: 0 | BB42: 0 | BC42: -2.8552313 | BD42: 49.36672022 | BE42: 1.335024309 | BF42: 0 | BG42: 0 | BH42: 0 | BI42: -1.830906045 | BJ42: 2.72805329
B43: =B42+1 -> 2012 | C43: ='Savings by Group'!J96+'Savings by Group'!Q96+'Savings by Group'!X96+'Savings by Group'!AE96+'Savings by Group'!AL96+'Savings by Group'!AS96+'Savings by Group'!AZ96+'Savings by Group'!BG96+'Savings by Group'!BN96 -> 193.8203969 | D43: ='Savings by Group'!BU96 -> 0 | E43: ='Savings by Group'!CB96 -> 0 | F43: ='Savings by Group'!CI96 -> 0 | H43: 193.8203969 | I43: ='Savings by Group'!L96+'Savings by Group'!S96+'Savings by Group'!Z96+'Savings by Group'!AG96+'Savings by Group'!AN96+'Savings by Group'!AU96+'Savings by Group'!BB96+'Savings by Group'!BI96+'Savings by Group'!BP96 -> 26.51574317 | J43: ='Savings by Group'!BW96 -> 0 | K43: ='Savings by Group'!CD96 -> 0 | L43: ='Savings by Group'!CK96 -> 0 | N43: 26.51574317 | O43: ='Savings by Group'!N96+'Savings by Group'!U96+'Savings by Group'!AB96+'Savings by Group'!AI96+'Savings by Group'!AP96+'Savings by Group'!AW96+'Savings by Group'!BD96+'Savings by Group'!BK96+'Savings by Group'!BR96 -> 1.590757626 | P43: ='Savings by Group'!BY96 -> 0 | Q43: ='Savings by Group'!CF96 -> 0 | R43: ='Savings by Group'!CM96 -> 0 | T43: 1.590757626 | U43: =H43-'Savings by Group'!C96 -> 0 | V43: =N43-'Savings by Group'!E96 -> 0 | W43: =T43-'Savings by Group'!G96 -> 0 | X43: =X42+1 -> 2012 | Y43: 873.5070846 | Z43: 0 | AA43: 0 | AB43: 0 | AD43: 873.5070846 | AE43: 135.2121543 | AF43: 0 | AG43: 0 | AH43: 0 | AJ43: 135.2121543 | AK43: 7.274081726 | AL43: 0 | AM43: 0 | AN43: 0 | AP43: 7.274081726 | AS43: 71.79180514 | AT43: 0 | AU43: 0 | AV43: 0 | AW43: -48.31482167 | AX43: 264.6130924 | AY43: 15.24223647 | AZ43: 0 | BA43: 0 | BB43: 0 | BC43: -3.816307667 | BD43: 50.04473452 | BE43: 1.313945565 | BF43: 0 | BG43: 0 | BH43: 0 | BI43: -2.100368114 | BJ43: 2.476716042
B44: 2013 | C44: ='Savings by Group'!J97+'Savings by Group'!Q97+'Savings by Group'!X97+'Savings by Group'!AE97+'Savings by Group'!AL97+'Savings by Group'!AS97+'Savings by Group'!AZ97+'Savings by Group'!BG97+'Savings by Group'!BN97 -> 250.7323182 | D44: ='Savings by Group'!BU97 -> 0 | E44: ='Savings by Group'!CB97 -> 0.1469538689 | F44: ='Savings by Group'!CI97 -> 0 | H44: 250.8792721 | I44: ='Savings by Group'!L97+'Savings by Group'!S97+'Savings by Group'!Z97+'Savings by Group'!AG97+'Savings by Group'!AN97+'Savings by Group'!AU97+'Savings by Group'!BB97+'Savings by Group'!BI97+'Savings by Group'!BP97 -> 29.78148695 | J44: ='Savings by Group'!BW97 -> 0 | K44: ='Savings by Group'!CD97 -> 0.003741355749 | L44: ='Savings by Group'!CK97 -> 0 | N44: 29.78522831 | O44: ='Savings by Group'!N97+'Savings by Group'!U97+'Savings by Group'!AB97+'Savings by Group'!AI97+'Savings by Group'!AP97+'Savings by Group'!AW97+'Savings by Group'!BD97+'Savings by Group'!BK97+'Savings by Group'!BR97 -> 1.567032151 | P44: ='Savings by Group'!BY97 -> 0 | Q44: ='Savings by Group'!CF97 -> 0.00900606902 | R44: ='Savings by Group'!CM97 -> 0 | T44: 1.57603822 | U44: =H44-'Savings by Group'!C97 -> 0 | V44: =N44-'Savings by Group'!E97 -> 0 | W44: =T44-'Savings by Group'!G97 -> 0 | X44: 2013 | Y44: 1124.239403 | Z44: 0 | AA44: 0.1469538689 | AB44: 0 | AD44: 1124.386357 | AE44: 164.9936413 | AF44: 0 | AG44: 0.003741355749 | AH44: 0 | AJ44: 164.9973826 | AK44: 8.841113876 | AL44: 0 | AM44: 0.00900606902 | AN44: 0 | AP44: 8.850119945 | AS44: 65.37540828 | AT44: 45.54339772 | AU44: 2.240465614 | AV44: 0 | AW44: -93.33389208 | AX44: 397.7225906 | AY44: 14.44063803 | AZ44: 10.95646454 | BA44: 0.2484445737 | BB44: 0 | BC44: -7.547681491 | BD44: 69.06439302 | BE44: 1.290859548 | BF44: 0 | BG44: 0.02402833799 | BH44: 0 | BI44: -4.537372061 | BJ44: 0.0715429844
B45: 2014 | C45: ='Savings by Group'!J98+'Savings by Group'!Q98+'Savings by Group'!X98+'Savings by Group'!AE98+'Savings by Group'!AL98+'Savings by Group'!AS98+'Savings by Group'!AZ98+'Savings by Group'!BG98+'Savings by Group'!BN98 -> 225.0512214 | D45: ='Savings by Group'!BU98 -> 0 | E45: ='Savings by Group'!CB98 -> 2.503980408 | F45: ='Savings by Group'!CI98 -> 6.145787243 | H45: 233.7009891 | I45: ='Savings by Group'!L98+'Savings by Group'!S98+'Savings by Group'!Z98+'Savings by Group'!AG98+'Savings by Group'!AN98+'Savings by Group'!AU98+'Savings by Group'!BB98+'Savings by Group'!BI98+'Savings by Group'!BP98 -> 28.60969119 | J45: ='Savings by Group'!BW98 -> 0 | K45: ='Savings by Group'!CD98 -> 0.8174484796 | L45: ='Savings by Group'!CK98 -> 1.658914609 | N45: 31.08605427 | O45: ='Savings by Group'!N98+'Savings by Group'!U98+'Savings by Group'!AB98+'Savings by Group'!AI98+'Savings by Group'!AP98+'Savings by Group'!AW98+'Savings by Group'!BD98+'Savings by Group'!BK98+'Savings by Group'!BR98 -> 1.530319871 | P45: ='Savings by Group'!BY98 -> 0 | Q45: ='Savings by Group'!CF98 -> 0.01231353628 | R45: ='Savings by Group'!CM98 -> 0.1415891872 | T45: 1.684222594 | U45: =H45-'Savings by Group'!C98 -> 0 | V45: =N45-'Savings by Group'!E98 -> 0 | W45: =T45-'Savings by Group'!G98 -> 0 | X45: 2014 | Y45: 1349.290624 | Z45: 0 | AA45: 2.650934276 | AB45: 6.145787243 | AD45: 1358.087346 | AE45: 193.6033325 | AF45: 0 | AG45: 0.8211898353 | AH45: 1.658914609 | AJ45: 196.0834369 | AK45: 10.37143375 | AL45: 0 | AM45: 0.0213196053 | AN45: 0.1415891872 | AP45: 10.53434254 | AS45: 53.43823224 | AT45: 109.5527531 | AU45: 7.66471689 | AV45: 9.602702808 | AW45: -19.71902121 | AX45: 449.5185445 | AY45: 13.06635883 | AZ45: 18.53051013 | BA45: 1.822315492 | BB45: 3.835251647 | BC45: -3.859201304 | BD45: 80.57875802 | BE45: 1.265839015 | BF45: 0 | BG45: 0.03332673099 | BH45: 0.2339875358 | BI45: -5.165408717 | BJ45: -0.0964450203
B46: 2015 | C46: ='Savings by Group'!J99+'Savings by Group'!Q99+'Savings by Group'!X99+'Savings by Group'!AE99+'Savings by Group'!AL99+'Savings by Group'!AS99+'Savings by Group'!AZ99+'Savings by Group'!BG99+'Savings by Group'!BN99 -> 210.5067793 | D46: ='Savings by Group'!BU99 -> 39.47950794 | E46: ='Savings by Group'!CB99 -> 12.40124107 | F46: ='Savings by Group'!CI99 -> 17.74723057 | H46: 280.1347588 | I46: ='Savings by Group'!L99+'Savings by Group'!S99+'Savings by Group'!Z99+'Savings by Group'!AG99+'Savings by Group'!AN99+'Savings by Group'!AU99+'Savings by Group'!BB99+'Savings by Group'!BI99+'Savings by Group'!BP99 -> 27.27758363 | J46: ='Savings by Group'!BW99 -> 7.315755524 | K46: ='Savings by Group'!CD99 -> 5.295492067 | L46: ='Savings by Group'!CK99 -> 4.790458715 | N46: 44.67928994 | O46: ='Savings by Group'!N99+'Savings by Group'!U99+'Savings by Group'!AB99+'Savings by Group'!AI99+'Savings by Group'!AP99+'Savings by Group'!AW99+'Savings by Group'!BD99+'Savings by Group'!BK99+'Savings by Group'!BR99 -> 1.441651112 | P46: ='Savings by Group'!BY99 -> 0 | Q46: ='Savings by Group'!CF99 -> 0.02295284294 | R46: ='Savings by Group'!CM99 -> 0.4088680346 | T46: 1.87347199 | U46: =H46-'Savings by Group'!C99 -> 0 | V46: =N46-'Savings by Group'!E99 -> 0 | W46: =T46-'Savings by Group'!G99 -> 0 | X46: 2015 | Y46: 1559.797404 | Z46: 39.47950794 | AA46: 15.05217534 | AB46: 23.89301782 | AD46: 1638.222105 | AE46: 220.8809161 | AF46: 7.315755524 | AG46: 6.116681903 | AH46: 6.449373323 | AJ46: 240.7627269 | AK46: 11.81308486 | AL46: 0 | AM46: 0.04427244824 | AN46: 0.5504572218 | AP46: 12.40781453 | AS46: 49.06008573 | AT46: 112.4075492 | AU46: 14.65188693 | AV46: 28.65000012 | AW46: -105.3594725 | AX46: 393.3573863 | AY46: 12.55758117 | AZ46: 16.49549956 | BA46: 7.11999036 | BB46: 11.4426076 | BC46: -16.88066483 | BD46: 84.36960779 | BE46: 1.239337508 | BF46: 0 | BG46: 0.0619304424 | BH46: 0.6981100074 | BI46: -3.524304422 | BJ46: 2.394842953
B47: 2016 | C47: ='Savings by Group'!J100+'Savings by Group'!Q100+'Savings by Group'!X100+'Savings by Group'!AE100+'Savings by Group'!AL100+'Savings by Group'!AS100+'Savings by Group'!AZ100+'Savings by Group'!BG100+'Savings by Group'!BN100 -> 179.6614023 | D47: ='Savings by Group'!BU100 -> 67.01249183 | E47: ='Savings by Group'!CB100 -> 12.60463829 | F47: ='Savings by Group'!CI100 -> 17.15510648 | H47: 276.4336389 | I47: ='Savings by Group'!L100+'Savings by Group'!S100+'Savings by Group'!Z100+'Savings by Group'!AG100+'Savings by Group'!AN100+'Savings by Group'!AU100+'Savings by Group'!BB100+'Savings by Group'!BI100+'Savings by Group'!BP100 -> 23.0057113 | J47: ='Savings by Group'!BW100 -> 9.720208664 | K47: ='Savings by Group'!CD100 -> 5.304084538 | L47: ='Savings by Group'!CK100 -> 4.630628368 | N47: 42.66063287 | O47: ='Savings by Group'!N100+'Savings by Group'!U100+'Savings by Group'!AB100+'Savings by Group'!AI100+'Savings by Group'!AP100+'Savings by Group'!AW100+'Savings by Group'!BD100+'Savings by Group'!BK100+'Savings by Group'!BR100 -> 1.408337658 | P47: ='Savings by Group'!BY100 -> 0 | Q47: ='Savings by Group'!CF100 -> 0.02714711863 | R47: ='Savings by Group'!CM100 -> 0.395226435 | T47: 1.830711212 | U47: =H47-'Savings by Group'!C100 -> 0 | V47: =N47-'Savings by Group'!E100 -> 0 | W47: =T47-'Savings by Group'!G100 -> 0 | X47: 2016 | Y47: 1739.458806 | Z47: 106.4919998 | AA47: 27.65681363 | AB47: 41.04812429 | AD47: 1914.655744 | AE47: 243.8866274 | AF47: 17.03596419 | AG47: 11.42076644 | AH47: 11.08000169 | AJ47: 283.4233597 | AK47: 13.22142252 | AL47: 0 | AM47: 0.07141956687 | AN47: 0.9456836568 | AP47: 14.23852574 | AS47: 24.80441045 | AT47: 82.46792228 | AU47: 15.04397576 | AV47: 28.58362198 | AW47: -26.69873581 | AX47: 330.4335417 | AY47: 8.768359127 | AZ47: 12.9083502 | BA47: 7.205988977 | BB47: 11.41609664 | BC47: -9.158781673 | BD47: 76.16177153 | BE47: 1.17716937 | BF47: 0 | BG47: 0.0738812437 | BH47: 0.6964925817 | BI47: -2.730013367 | BJ47: 3.154274219
B48: 2017 | C48: ='Savings by Group'!J101+'Savings by Group'!Q101+'Savings by Group'!X101+'Savings by Group'!AE101+'Savings by Group'!AL101+'Savings by Group'!AS101+'Savings by Group'!AZ101+'Savings by Group'!BG101+'Savings by Group'!BN101 -> 130.0592975 | D48: ='Savings by Group'!BU101 -> 63.31129705 | E48: ='Savings by Group'!CB101 -> 12.55117646 | F48: ='Savings by Group'!CI101 -> 16.61707546 | H48: 222.5388465 | I48: ='Savings by Group'!L101+'Savings by Group'!S101+'Savings by Group'!Z101+'Savings by Group'!AG101+'Savings by Group'!AN101+'Savings by Group'!AU101+'Savings by Group'!BB101+'Savings by Group'!BI101+'Savings by Group'!BP101 -> 18.62671264 | J48: ='Savings by Group'!BW101 -> 8.007959332 | K48: ='Savings by Group'!CD101 -> 5.287379157 | L48: ='Savings by Group'!CK101 -> 4.485399208 | N48: 36.40745034 | O48: ='Savings by Group'!N101+'Savings by Group'!U101+'Savings by Group'!AB101+'Savings by Group'!AI101+'Savings by Group'!AP101+'Savings by Group'!AW101+'Savings by Group'!BD101+'Savings by Group'!BK101+'Savings by Group'!BR101 -> 1.381583846 | P48: ='Savings by Group'!BY101 -> 0 | Q48: ='Savings by Group'!CF101 -> 0.02707500636 | R48: ='Savings by Group'!CM101 -> 0.382831054 | T48: 1.791489906 | U48: =H48-'Savings by Group'!C101 -> 0 | V48: =N48-'Savings by Group'!E101 -> 0 | W48: =T48-'Savings by Group'!G101 -> 0 | X48: 2017 | Y48: 1869.518103 | Z48: 169.8032968 | AA48: 40.2079901 | AB48: 57.66519975 | AD48: 2137.19459 | AE48: 262.51334 | AF48: 25.04392352 | AG48: 16.7081456 | AH48: 15.5654009 | AJ48: 319.8308101 | AK48: 14.60300636 | AL48: 0 | AM48: 0.09849457323 | AN48: 1.328514711 | AP48: 16.03001565 | AS48: 21.57662369 | AT48: 60.3310056 | AU48: 14.22843479 | AV48: 28.54877336 | AW48: -25.10661856 | AX48: 298.1216924 | AY48: 8.219654987 | AZ48: 10.12800027 | BA48: 7.15107761 | BB48: 11.40217835 | BC48: -8.992597936 | BD48: 71.90131456 | BE48: 1.119846154 | BF48: 0 | BG48: 0.07444551664 | BH48: 0.6956434311 | BI48: -2.185640255 | BJ48: 3.578846146
B49: 2018 | C49: ='Savings by Group'!J102+'Savings by Group'!Q102+'Savings by Group'!X102+'Savings by Group'!AE102+'Savings by Group'!AL102+'Savings by Group'!AS102+'Savings by Group'!AZ102+'Savings by Group'!BG102+'Savings by Group'!BN102 -> 86.09730806 | D49: ='Savings by Group'!BU102 -> 44.48250783 | E49: ='Savings by Group'!CB102 -> 12.13873017 | F49: ='Savings by Group'!CI102 -> 16.13632124 | H49: 158.8548673 | I49: ='Savings by Group'!L102+'Savings by Group'!S102+'Savings by Group'!Z102+'Savings by Group'!AG102+'Savings by Group'!AN102+'Savings by Group'!AU102+'Savings by Group'!BB102+'Savings by Group'!BI102+'Savings by Group'!BP102 -> 12.61436344 | J49: ='Savings by Group'!BW102 -> 6.103566754 | K49: ='Savings by Group'!CD102 -> 5.234798447 | L49: ='Savings by Group'!CK102 -> 4.355630608 | N49: 28.30835925 | O49: ='Savings by Group'!N102+'Savings by Group'!U102+'Savings by Group'!AB102+'Savings by Group'!AI102+'Savings by Group'!AP102+'Savings by Group'!AW102+'Savings by Group'!BD102+'Savings by Group'!BK102+'Savings by Group'!BR102 -> 1.368806505 | P49: ='Savings by Group'!BY102 -> 0 | Q49: ='Savings by Group'!CF102 -> 0.02701109812 | R49: ='Savings by Group'!CM102 -> 0.3717552394 | T49: 1.767572843 | U49: =H49-'Savings by Group'!C102 -> 0 | V49: =N49-'Savings by Group'!E102 -> 0 | W49: =T49-'Savings by Group'!G102 -> 0 | X49: 2018 | Y49: 1955.615411 | Z49: 214.2858046 | AA49: 52.34672027 | AB49: 73.80152099 | AD49: 2296.049457 | AE49: 275.1277035 | AF49: 31.14749027 | AG49: 21.94294404 | AH49: 19.92103151 | AJ49: 348.1391693 | AK49: 15.97181287 | AL49: 0 | AM49: 0.1255056713 | AN49: 1.70026995 | AP49: 17.79758849 | AS49: 21.00117422 | AT49: 40.28564874 | AU49: 13.28690652 | AV49: 28.55950345 | AW49: -20.99476043 | AX49: 249.2667704 | AY49: 8.101571033 | AZ49: 5.511458475 | BA49: 7.082515207 | BB49: 11.40646387 | BC49: -8.420074124 | BD49: 61.08937743 | BE49: 1.11150447 | BF49: 0 | BG49: 0.07502856716 | BH49: 0.6959048895 | BI49: -1.770268665 | BJ49: 3.93644666
B50: 2019 | C50: ='Savings by Group'!J103+'Savings by Group'!Q103+'Savings by Group'!X103+'Savings by Group'!AE103+'Savings by Group'!AL103+'Savings by Group'!AS103+'Savings by Group'!AZ103+'Savings by Group'!BG103+'Savings by Group'!BN103 -> 75.44491517 | D50: ='Savings by Group'!BU103 -> 31.42563693 | E50: ='Savings by Group'!CB103 -> 11.3208504 | F50: ='Savings by Group'!CI103 -> 15.71313726 | H50: 133.9045398 | I50: ='Savings by Group'!L103+'Savings by Group'!S103+'Savings by Group'!Z103+'Savings by Group'!AG103+'Savings by Group'!AN103+'Savings by Group'!AU103+'Savings by Group'!BB103+'Savings by Group'!BI103+'Savings by Group'!BP103 -> 10.92315639 | J50: ='Savings by Group'!BW103 -> 4.710071929 | K50: ='Savings by Group'!CD103 -> 5.141461726 | L50: ='Savings by Group'!CK103 -> 4.241401779 | N50: 25.01609182 | O50: ='Savings by Group'!N103+'Savings by Group'!U103+'Savings by Group'!AB103+'Savings by Group'!AI103+'Savings by Group'!AP103+'Savings by Group'!AW103+'Savings by Group'!BD103+'Savings by Group'!BK103+'Savings by Group'!BR103 -> 1.358027343 | P50: ='Savings by Group'!BY103 -> 0 | Q50: ='Savings by Group'!CF103 -> 0.0269542276 | R50: ='Savings by Group'!CM103 -> 0.362005752 | T50: 1.746987323 | U50: =H50-'Savings by Group'!C103 -> 0 | V50: =N50-'Savings by Group'!E103 -> 0 | W50: =T50-'Savings by Group'!G103 -> 0 | X50: 2019 | Y50: 2031.060327 | Z50: 245.7114416 | AA50: 63.66757066 | AB50: 89.51465825 | AD50: 2429.953997 | AE50: 286.0508599 | AF50: 35.8575622 | AG50: 27.08440577 | AH50: 24.16243329 | AJ50: 373.1552611 | AK50: 17.32984021 | AL50: 0 | AM50: 0.1524598989 | AN50: 2.062275702 | AP50: 19.54457581 | AS50: 12.75912022 | AT50: 21.24644812 | AU50: 13.39117189 | AV50: 28.62525642 | AW50: -17.55699445 | AX50: 219.1080729 | AY50: 6.615148038 | AZ50: 3.175707516 | BA50: 7.138341079 | BB50: 11.43272514 | BC50: -7.783826734 | BD50: 56.91371641 | BE50: 1.103405999 | BF50: 0 | BG50: 0.07528629324 | BH50: 0.6975070816 | BI50: -1.288909172 | BJ50: 4.372423494
B51: 2020 | C51: ='Savings by Group'!J104+'Savings by Group'!Q104+'Savings by Group'!X104+'Savings by Group'!AE104+'Savings by Group'!AL104+'Savings by Group'!AS104+'Savings by Group'!AZ104+'Savings by Group'!BG104+'Savings by Group'!BN104 -> 71.06877858 | D51: ='Savings by Group'!BU104 -> 21.66330882 | E51: ='Savings by Group'!CB104 -> 10.88412121 | F51: ='Savings by Group'!CI104 -> 15.34551649 | H51: 118.9617251 | I51: ='Savings by Group'!L104+'Savings by Group'!S104+'Savings by Group'!Z104+'Savings by Group'!AG104+'Savings by Group'!AN104+'Savings by Group'!AU104+'Savings by Group'!BB104+'Savings by Group'!BI104+'Savings by Group'!BP104 -> 10.32936562 | J51: ='Savings by Group'!BW104 -> 2.79868289 | K51: ='Savings by Group'!CD104 -> 5.088234463 | L51: ='Savings by Group'!CK104 -> 4.142170965 | N51: 22.35845394 | O51: ='Savings by Group'!N104+'Savings by Group'!U104+'Savings by Group'!AB104+'Savings by Group'!AI104+'Savings by Group'!AP104+'Savings by Group'!AW104+'Savings by Group'!BD104+'Savings by Group'!BK104+'Savings by Group'!BR104 -> 1.346316498 | P51: ='Savings by Group'!BY104 -> 0 | Q51: ='Savings by Group'!CF104 -> 0.02690347419 | R51: ='Savings by Group'!CM104 -> 0.3535363527 | T51: 1.726756325 | U51: =H51-'Savings by Group'!C104 -> 0 | V51: =N51-'Savings by Group'!E104 -> 0 | W51: =T51-'Savings by Group'!G104 -> 0 | X51: 2020 | Y51: 2102.129105 | Z51: 267.3747504 | AA51: 74.55169187 | AB51: 104.8601747 | AD51: 2548.915722 | AE51: 296.3802255 | AF51: 38.65624509 | AG51: 32.17264023 | AH51: 28.30460425 | AJ51: 395.5137151 | AK51: 18.67615671 | AL51: 0 | AM51: 0.1793633731 | AN51: 2.415812055 | AP51: 21.27133214 | AS51: 12.61947483 | AT51: 14.84135432 | AU51: 13.40446346 | AV51: 28.75122711 | AW51: -17.03264334 | AX51: 211.6257346 | AY51: 6.565620241 | AZ51: 2.933460733 | BA51: 7.165406422 | BB51: 11.48303695 | BC51: -7.727579537 | BD51: 56.50783734 | BE51: 1.095138042 | BF51: 0 | BG51: 0.07555674192 | BH51: 0.7005765894 | BI51: -1.175531012 | BJ51: 4.451602578
B52: 2021 | C52: ='Savings by Group'!J105+'Savings by Group'!Q105+'Savings by Group'!X105+'Savings by Group'!AE105+'Savings by Group'!AL105+'Savings by Group'!AS105+'Savings by Group'!AZ105+'Savings by Group'!BG105+'Savings by Group'!BN105 -> 54.84269083 | D52: ='Savings by Group'!BU105 -> 12.85150002 | E52: ='Savings by Group'!CB105 -> 10.86858088 | F52: ='Savings by Group'!CI105 -> 15.02980941 | H52: =SUM(C52:G52) -> 93.59258114 | I52: ='Savings by Group'!L105+'Savings by Group'!S105+'Savings by Group'!Z105+'Savings by Group'!AG105+'Savings by Group'!AN105+'Savings by Group'!AU105+'Savings by Group'!BB105+'Savings by Group'!BI105+'Savings by Group'!BP105 -> 8.435860477 | J52: ='Savings by Group'!BW105 -> 1.84756768 | K52: ='Savings by Group'!CD105 -> 5.079152807 | L52: ='Savings by Group'!CK105 -> 4.056953066 | N52: =SUM(I52:M52) -> 19.41953403 | O52: ='Savings by Group'!N105+'Savings by Group'!U105+'Savings by Group'!AB105+'Savings by Group'!AI105+'Savings by Group'!AP105+'Savings by Group'!AW105+'Savings by Group'!BD105+'Savings by Group'!BK105+'Savings by Group'!BR105 -> 0.8884120349 | P52: ='Savings by Group'!BY105 -> 0 | Q52: ='Savings by Group'!CF105 -> 0.02685808834 | R52: ='Savings by Group'!CM105 -> 0.3462629625 | T52: =SUM(O52:S52) -> 1.261533086 | U52: =H52-'Savings by Group'!C105 -> 0 | V52: =N52-'Savings by Group'!E105 -> 0 | W52: =T52-'Savings by Group'!G105 -> 0 | X52: 2021 | Y52: =Y51+C52 -> 2156.971796 | Z52: =Z51+D52 -> 280.2262504 | AA52: =AA51+E52 -> 85.42027275 | AB52: =AB51+F52 -> 119.8899841 | AD52: =SUM(Y52:AC52) -> 2642.508303 | AE52: =AE51+I52 -> 304.816086 | AF52: =AF51+J52 -> 40.50381277 | AG52: =AG51+K52 -> 37.25179304 | AH52: =AH51+L52 -> 32.36155732 | AJ52: =SUM(AE52:AI52) -> 414.9332491 | AK52: =AK51+O52 -> 19.56456874 | AL52: =AL51+P52 -> 0 | AM52: =AM51+Q52 -> 0.2062214615 | AN52: =AN51+R52 -> 2.762075017 | AP52: =SUM(AK52:AO52) -> 22.53286522 | AS52: 12.28891195 | AT52: 13.88990795 | AU52: 13.3853246 | AV52: 28.15972106 | AW52: -17.1143354 | AX52: 192.4204254 | AY52: 6.484913615 | AZ52: 2.752776188 | BA52: 7.152617358 | BB52: 11.24679361 | BC52: -7.715984311 | BD52: 53.82571194 | BE52: 0.634219749 | BF52: 0 | BG52: 0.07542927858 | BH52: 0.6861634553 | BI52: -0.9486222662 | BJ52: 4.163280902
B53: 2022 | C53: ='Savings by Group'!J106+'Savings by Group'!Q106+'Savings by Group'!X106+'Savings by Group'!AE106+'Savings by Group'!AL106+'Savings by Group'!AS106+'Savings by Group'!AZ106+'Savings by Group'!BG106+'Savings by Group'!BN106 -> 46.45822661 | D53: ='Savings by Group'!BU106 -> 9.758911146 | E53: ='Savings by Group'!CB106 -> 10.85549259 | F53: ='Savings by Group'!CI106 -> 14.76134746 | H53: 81.8339778 | I53: ='Savings by Group'!L106+'Savings by Group'!S106+'Savings by Group'!Z106+'Savings by Group'!AG106+'Savings by Group'!AN106+'Savings by Group'!AU106+'Savings by Group'!BB106+'Savings by Group'!BI106+'Savings by Group'!BP106 -> 7.722408431 | J53: ='Savings by Group'!BW106 -> 1.69624806 | K53: ='Savings by Group'!CD106 -> 5.071044729 | L53: ='Savings by Group'!CK106 -> 3.984487905 | N53: 18.47418912 | O53: ='Savings by Group'!N106+'Savings by Group'!U106+'Savings by Group'!AB106+'Savings by Group'!AI106+'Savings by Group'!AP106+'Savings by Group'!AW106+'Savings by Group'!BD106+'Savings by Group'!BK106+'Savings by Group'!BR106 -> 0.8822602418 | P53: ='Savings by Group'!BY106 -> 0 | Q53: ='Savings by Group'!CF106 -> 0.0268174439 | R53: ='Savings by Group'!CM106 -> 0.340078025 | T53: 1.249155711 | U53: =H53-'Savings by Group'!C106 -> 0 | V53: =N53-'Savings by Group'!E106 -> 0 | W53: =T53-'Savings by Group'!G106 -> 0 | X53: 2022 | Y53: 2203.430023 | Z53: 289.9851616 | AA53: 96.27576534 | AB53: 134.6513316 | AD53: 2724.342281 | AE53: 312.5384944 | AF53: 42.20006083 | AG53: 42.32283777 | AH53: 36.34604522 | AJ53: 433.4074382 | AK53: 20.44682899 | AL53: 0 | AM53: 0.2330389054 | AN53: 3.102153042 | AP53: 23.78202093 | AS53: 12.1783234 | AT53: 6.516705396 | AU53: 13.36920556 | AV53: 27.65673306 | AW53: -18.16930539 | AX53: 170.930974 | AY53: 6.433123818 | AZ53: 1.287269037 | BA53: 7.141199315 | BB53: 11.04590376 | BC53: -7.828626413 | BD53: 50.56439706 | BE53: 0.6265295579 | BF53: 0 | BG53: 0.07531513117 | BH53: 0.6739072265 | BI53: -0.7109072442 | BJ53: 4.348977301
B54: 2023 | C54: ='Savings by Group'!J107+'Savings by Group'!Q107+'Savings by Group'!X107+'Savings by Group'!AE107+'Savings by Group'!AL107+'Savings by Group'!AS107+'Savings by Group'!AZ107+'Savings by Group'!BG107+'Savings by Group'!BN107 -> 31.60950173 | D54: ='Savings by Group'!BU107 -> 4.501466156 | E54: ='Savings by Group'!CB107 -> 10.77211881 | F54: ='Savings by Group'!CI107 -> 14.53496955 | H54: 61.41805625 | I54: ='Savings by Group'!L107+'Savings by Group'!S107+'Savings by Group'!Z107+'Savings by Group'!AG107+'Savings by Group'!AN107+'Savings by Group'!AU107+'Savings by Group'!BB107+'Savings by Group'!BI107+'Savings by Group'!BP107 -> 6.522489931 | J54: ='Savings by Group'!BW107 -> 0.7811887977 | K54: ='Savings by Group'!CD107 -> 5.054518946 | L54: ='Savings by Group'!CK107 -> 3.923382371 | N54: 16.28158005 | O54: ='Savings by Group'!N107+'Savings by Group'!U107+'Savings by Group'!AB107+'Savings by Group'!AI107+'Savings by Group'!AP107+'Savings by Group'!AW107+'Savings by Group'!BD107+'Savings by Group'!BK107+'Savings by Group'!BR107 -> 0.8771017838 | P54: ='Savings by Group'!BY107 -> 0 | Q54: ='Savings by Group'!CF107 -> 0.02578983139 | R54: ='Savings by Group'!CM107 -> 0.3348626373 | T54: 1.237754252 | U54: =H54-'Savings by Group'!C107 -> 0 | V54: =N54-'Savings by Group'!E107 -> 0 | W54: =T54-'Savings by Group'!G107 -> 0 | X54: 2023 | Y54: 2235.039524 | Z54: 294.4866277 | AA54: 107.0478841 | AB54: 149.1863012 | AD54: 2785.760337 | AE54: 319.0609843 | AF54: 42.98124963 | AG54: 47.37735672 | AH54: 40.26942759 | AJ54: 449.6890183 | AK54: 21.32393077 | AL54: 0 | AM54: 0.2588287368 | AN54: 3.43701568 | AP54: 25.01977519 | AS54: 12.07921361 | AT54: 2.865113044 | AU54: 13.26735515 | AV54: 27.23259337 | AW54: -18.50142897 | AX54: 143.6449845 | AY54: 6.385396066 | AZ54: 0.4893133141 | BA54: 7.118048755 | BB54: 10.87650536 | BC54: -7.966646504 | BD54: 47.03653214 | BE54: 0.6194434543 | BF54: 0 | BG54: 0.07245072892 | BH54: 0.6635722821 | BI54: -0.4245474727 | BJ54: 4.589512676
B55: 2024 | C55: ='Savings by Group'!J108+'Savings by Group'!Q108+'Savings by Group'!X108+'Savings by Group'!AE108+'Savings by Group'!AL108+'Savings by Group'!AS108+'Savings by Group'!AZ108+'Savings by Group'!BG108+'Savings by Group'!BN108 -> 23.58197277 | D55: ='Savings by Group'!BU108 -> 1.92078612 | E55: ='Savings by Group'!CB108 -> 10.7006493 | F55: ='Savings by Group'!CI108 -> 14.3454265 | H55: 50.54883469 | I55: ='Savings by Group'!L108+'Savings by Group'!S108+'Savings by Group'!Z108+'Savings by Group'!AG108+'Savings by Group'!AN108+'Savings by Group'!AU108+'Savings by Group'!BB108+'Savings by Group'!BI108+'Savings by Group'!BP108 -> 5.321878127 | J55: ='Savings by Group'!BW108 -> 0.2877932579 | K55: ='Savings by Group'!CD108 -> 5.030604163 | L55: ='Savings by Group'!CK108 -> 3.872219562 | N55: 14.51249511 | O55: ='Savings by Group'!N108+'Savings by Group'!U108+'Savings by Group'!AB108+'Savings by Group'!AI108+'Savings by Group'!AP108+'Savings by Group'!AW108+'Savings by Group'!BD108+'Savings by Group'!BK108+'Savings by Group'!BR108 -> 0.8729672179 | P55: ='Savings by Group'!BY108 -> 0 | Q55: ='Savings by Group'!CF108 -> 0.02465986538 | R55: ='Savings by Group'!CM108 -> 0.3304958661 | T55: 1.228122949 | U55: =H55-'Savings by Group'!C108 -> 0 | V55: =N55-'Savings by Group'!E108 -> 0 | W55: =T55-'Savings by Group'!G108 -> 0 | X55: 2024 | Y55: 2258.621497 | Z55: 296.4074138 | AA55: 117.7485334 | AB55: 163.5317277 | AD55: 2836.309172 | AE55: 324.3828625 | AF55: 43.26904289 | AG55: 52.40796088 | AH55: 44.14164715 | AJ55: 464.2015134 | AK55: 22.19689799 | AL55: 0 | AM55: 0.2834886022 | AN55: 3.767511546 | AP55: 26.24789814 | AS55: 12.03320754 | AT55: 0.3918668796 | AU55: 13.18003846 | AV55: 26.87746715 | AW55: -14.17203156 | AX55: 133.2768536 | AY55: 6.345502904 | AZ55: 0.04986447084 | BA55: 7.092371537 | BB55: 10.73467046 | BC55: -7.181654018 | BD55: 44.95053493 | BE55: 0.6135242151 | BF55: 0 | BG55: 0.06925570547 | BH55: 0.6549189777 | BI55: -0.2915386171 | BJ55: 4.684423994
B56: 2025 | C56: ='Savings by Group'!J109+'Savings by Group'!Q109+'Savings by Group'!X109+'Savings by Group'!AE109+'Savings by Group'!AL109+'Savings by Group'!AS109+'Savings by Group'!AZ109+'Savings by Group'!BG109+'Savings by Group'!BN109 -> 23.51578882 | D56: ='Savings by Group'!BU109 -> 0.2460655975 | E56: ='Savings by Group'!CB109 -> 10.47708031 | F56: ='Savings by Group'!CI109 -> 14.1876641 | H56: 48.42659883 | I56: ='Savings by Group'!L109+'Savings by Group'!S109+'Savings by Group'!Z109+'Savings by Group'!AG109+'Savings by Group'!AN109+'Savings by Group'!AU109+'Savings by Group'!BB109+'Savings by Group'!BI109+'Savings by Group'!BP109 -> 5.301358672 | J56: ='Savings by Group'!BW109 -> 0.02746530858 | K56: ='Savings by Group'!CD109 -> 4.025383212 | L56: ='Savings by Group'!CK109 -> 3.829635212 | N56: 13.1838424 | O56: ='Savings by Group'!N109+'Savings by Group'!U109+'Savings by Group'!AB109+'Savings by Group'!AI109+'Savings by Group'!AP109+'Savings by Group'!AW109+'Savings by Group'!BD109+'Savings by Group'!BK109+'Savings by Group'!BR109 -> 0.869805321 | P56: ='Savings by Group'!BY109 -> 0 | Q56: ='Savings by Group'!CF109 -> 0.02463086072 | R56: ='Savings by Group'!CM109 -> 0.3268612706 | T56: 1.221297452 | U56: =H56-'Savings by Group'!C109 -> 0 | V56: =N56-'Savings by Group'!E109 -> 0 | W56: =T56-'Savings by Group'!G109 -> 0 | X56: 2025 | Y56: 2282.137286 | Z56: 296.6534794 | AA56: 128.2256138 | AB56: 177.7193918 | AD56: 2884.735771 | AE56: 329.6842211 | AF56: 43.2965082 | AG56: 56.43334409 | AH56: 47.97128237 | AJ56: 477.3853558 | AK56: 23.06670331 | AL56: 0 | AM56: 0.3081194629 | AN56: 4.094372816 | AP56: 27.46919559 | AS56: 11.99813709 | AT56: 0.3404344831 | AU56: 12.90316761 | AV56: 26.58188487 | AW56: -13.70363735 | AX56: 132.555739 | AY56: 6.315028986 | AZ56: 0.04344949924 | BA56: 5.668666985 | BB56: 10.61661698 | BC56: -5.724323278 | BD56: 44.64563461 | BE56: 0.6090085639 | BF56: 0 | BG56: 0.06917424766 | BH56: 0.6477165713 | BI56: -0.292209239 | BJ56: 4.655813201
B57: 2026 | C57: ='Savings by Group'!J110+'Savings by Group'!Q110+'Savings by Group'!X110+'Savings by Group'!AE110+'Savings by Group'!AL110+'Savings by Group'!AS110+'Savings by Group'!AZ110+'Savings by Group'!BG110+'Savings by Group'!BN110 -> 23.45976617 | D57: ='Savings by Group'!BU110 -> 0.2152543966 | E57: ='Savings by Group'!CB110 -> 10.47043853 | F57: ='Savings by Group'!CI110 -> 14.05700122 | H57: 48.20246032 | I57: ='Savings by Group'!L110+'Savings by Group'!S110+'Savings by Group'!Z110+'Savings by Group'!AG110+'Savings by Group'!AN110+'Savings by Group'!AU110+'Savings by Group'!BB110+'Savings by Group'!BI110+'Savings by Group'!BP110 -> 5.285371496 | J57: ='Savings by Group'!BW110 -> 0.02413998706 | K57: ='Savings by Group'!CD110 -> 4.02139651 | L57: ='Savings by Group'!CK110 -> 3.79436576 | N57: 13.12527375 | O57: ='Savings by Group'!N110+'Savings by Group'!U110+'Savings by Group'!AB110+'Savings by Group'!AI110+'Savings by Group'!AP110+'Savings by Group'!AW110+'Savings by Group'!BD110+'Savings by Group'!BK110+'Savings by Group'!BR110 -> 0.8674757539 | P57: ='Savings by Group'!BY110 -> 0 | Q57: ='Savings by Group'!CF110 -> 0.02460477302 | R57: ='Savings by Group'!CM110 -> 0.3238510054 | T57: 1.215931532 | U57: =H57-'Savings by Group'!C110 -> 0 | V57: =N57-'Savings by Group'!E110 -> 0 | W57: =T57-'Savings by Group'!G110 -> 0 | X57: 2026 | Y57: 2305.597052 | Z57: 296.8687338 | AA57: 138.6960523 | AB57: 191.776393 | AD57: 2932.938231 | AE57: 334.9695926 | AF57: 43.32064819 | AG57: 60.4547406 | AH57: 51.76564813 | AJ57: 490.5106295 | AK57: 23.93417906 | AL57: 0 | AM57: 0.3327242359 | AN57: 4.418223822 | AP57: 28.68512712 | AS57: 11.97233058 | AT57: 0.2978068451 | AU57: 12.89498785 | AV57: 26.33707604 | AW57: -13.69568118 | AX57: 131.8125157 | AY57: 6.29336659 | AZ57: 0.03818891553 | BA57: 5.663052791 | BB57: 10.51884207 | BC57: -5.719094433 | BD57: 44.37176288 | BE57: 0.605806201 | BF57: 0 | BG57: 0.06910098198 | BH57: 0.6417513534 | BI57: -0.2906040955 | BJ57: 4.635384553
B58: 2027 | C58: ='Savings by Group'!J111+'Savings by Group'!Q111+'Savings by Group'!X111+'Savings by Group'!AE111+'Savings by Group'!AL111+'Savings by Group'!AS111+'Savings by Group'!AZ111+'Savings by Group'!BG111+'Savings by Group'!BN111 -> 21.72777312 | D58: ='Savings by Group'!BU111 -> 0.1898139322 | E58: ='Savings by Group'!CB111 -> 10.46471226 | F58: ='Savings by Group'!CI111 -> 13.94922525 | H58: 46.33152456 | I58: ='Savings by Group'!L111+'Savings by Group'!S111+'Savings by Group'!Z111+'Savings by Group'!AG111+'Savings by Group'!AN111+'Savings by Group'!AU111+'Savings by Group'!BB111+'Savings by Group'!BI111+'Savings by Group'!BP111 -> 4.986617173 | J58: ='Savings by Group'!BW111 -> 0.02143824501 | K58: ='Savings by Group'!CD111 -> 4.017828303 | L58: ='Savings by Group'!CK111 -> 3.765274103 | N58: 12.79115782 | O58: ='Savings by Group'!N111+'Savings by Group'!U111+'Savings by Group'!AB111+'Savings by Group'!AI111+'Savings by Group'!AP111+'Savings by Group'!AW111+'Savings by Group'!BD111+'Savings by Group'!BK111+'Savings by Group'!BR111 -> 0.8657989926 | P58: ='Savings by Group'!BY111 -> 0 | Q58: ='Savings by Group'!CF111 -> 0.02458130536 | R58: ='Savings by Group'!CM111 -> 0.3213680179 | T58: 1.211748316 | U58: =H58-'Savings by Group'!C111 -> 0 | V58: =N58-'Savings by Group'!E111 -> 0 | W58: =T58-'Savings by Group'!G111 -> 0 | X58: 2027 | Y58: 2327.324825 | Z58: 297.0585478 | AA58: 149.1607645 | AB58: 205.7256182 | AD58: 2979.269756 | AE58: 339.9562098 | AF58: 43.34208643 | AG58: 64.4725689 | AH58: 55.53092223 | AJ58: 503.3017874 | AK58: 24.79997805 | AL58: 0 | AM58: 0.3573055412 | AN58: 4.73959184 | AP58: 29.89687544 | AS58: 11.95368723 | AT58: 0.2626096803 | AU58: 12.88793559 | AV58: 26.13514791 | AW58: -13.68889167 | AX58: 131.2088515 | AY58: 6.278742711 | AZ58: 0.03391482048 | BA58: 5.658027934 | BB58: 10.4381934 | BC58: -5.714398168 | BD58: 44.15154255 | BE58: 0.603652952 | BF58: 0 | BG58: 0.06903507449 | BH58: 0.6368310027 | BI58: -0.2892860722 | BJ58: 4.619433273
B59: 2028 | C59: ='Savings by Group'!J112+'Savings by Group'!Q112+'Savings by Group'!X112+'Savings by Group'!AE112+'Savings by Group'!AL112+'Savings by Group'!AS112+'Savings by Group'!AZ112+'Savings by Group'!BG112+'Savings by Group'!BN112 -> 21.69722601 | D59: ='Savings by Group'!BU112 -> 0.1686933911 | E59: ='Savings by Group'!CB112 -> 9.800212089 | F59: ='Savings by Group'!CI112 -> 13.86062727 | H59: 45.52675876 | I59: ='Savings by Group'!L112+'Savings by Group'!S112+'Savings by Group'!Z112+'Savings by Group'!AG112+'Savings by Group'!AN112+'Savings by Group'!AU112+'Savings by Group'!BB112+'Savings by Group'!BI112+'Savings by Group'!BP112 -> 4.97874714 | J59: ='Savings by Group'!BW112 -> 0.01922624969 | K59: ='Savings by Group'!CD112 -> 3.946634605 | L59: ='Savings by Group'!CK112 -> 3.741359104 | N59: 12.6859671 | O59: ='Savings by Group'!N112+'Savings by Group'!U112+'Savings by Group'!AB112+'Savings by Group'!AI112+'Savings by Group'!AP112+'Savings by Group'!AW112+'Savings by Group'!BD112+'Savings by Group'!BK112+'Savings by Group'!BR112 -> 0.8646045246 | P59: ='Savings by Group'!BY112 -> 0 | Q59: ='Savings by Group'!CF112 -> 0.01098673335 | R59: ='Savings by Group'!CM112 -> 0.3193268609 | T59: 1.194918119 | U59: =H59-'Savings by Group'!C112 -> 0 | V59: =N59-'Savings by Group'!E112 -> 0 | W59: =T59-'Savings by Group'!G112 -> 0 | X59: 2028 | Y59: 2349.022051 | Z59: 297.2272412 | AA59: 158.9609766 | AB59: 219.5862455 | AD59: 3024.796515 | AE59: 344.9349569 | AF59: 43.36131268 | AG59: 68.41920351 | AH59: 59.27228133 | AJ59: 515.9877545 | AK59: 25.66458258 | AL59: 0 | AM59: 0.3682922746 | AN59: 5.0589187 | AP59: 31.09179355 | AS59: 11.94023468 | AT59: 0.2333891775 | AU59: 12.07963874 | AV59: 25.96915149 | AW59: -12.88086399 | AX59: 130.7207459 | AY59: 6.269195917 | AZ59: 0.03041549373 | BA59: 5.55895862 | BB59: 10.3718956 | BC59: -5.615606888 | BD59: 43.97472732 | BE59: 0.6022565074 | BF59: 0 | BG59: 0.03132842582 | BH59: 0.6327861942 | BI59: -0.2505523169 | BJ59: 4.607001394
B60: 2029 | C60: ='Savings by Group'!J113+'Savings by Group'!Q113+'Savings by Group'!X113+'Savings by Group'!AE113+'Savings by Group'!AL113+'Savings by Group'!AS113+'Savings by Group'!AZ113+'Savings by Group'!BG113+'Savings by Group'!BN113 -> 21.67326649 | D60: ='Savings by Group'!BU113 -> 0.1510692431 | E60: ='Savings by Group'!CB113 -> 9.537456556 | F60: ='Savings by Group'!CI113 -> 13.78799682 | H60: 45.14978911 | I60: ='Savings by Group'!L113+'Savings by Group'!S113+'Savings by Group'!Z113+'Savings by Group'!AG113+'Savings by Group'!AN113+'Savings by Group'!AU113+'Savings by Group'!BB113+'Savings by Group'!BI113+'Savings by Group'!BP113 -> 4.973065044 | J60: ='Savings by Group'!BW113 -> 0.01740137495 | K60: ='Savings by Group'!CD113 -> 3.917123373 | L60: ='Savings by Group'!CK113 -> 3.721754178 | N60: 12.62934397 | O60: ='Savings by Group'!N113+'Savings by Group'!U113+'Savings by Group'!AB113+'Savings by Group'!AI113+'Savings by Group'!AP113+'Savings by Group'!AW113+'Savings by Group'!BD113+'Savings by Group'!BK113+'Savings by Group'!BR113 -> 0.8637540846 | P60: ='Savings by Group'!BY113 -> 0 | Q60: ='Savings by Group'!CF113 -> 0.005645630732 | R60: ='Savings by Group'!CM113 -> 0.3176535707 | T60: 1.187053286 | U60: =H60-'Savings by Group'!C113 -> 0 | V60: =N60-'Savings by Group'!E113 -> 0 | W60: =T60-'Savings by Group'!G113 -> 0 | X60: 2029 | Y60: 2370.695318 | Z60: 297.3783104 | AA60: 168.4984332 | AB60: 233.3742423 | AD60: 3069.946304 | AE60: 349.908022 | AF60: 43.37871406 | AG60: 72.33632688 | AH60: 62.99403551 | AJ60: 528.6170984 | AK60: 26.52833666 | AL60: 0 | AM60: 0.3739379053 | AN60: 5.376572271 | AP60: 32.27884684 | AS60: 11.93039518 | AT60: 0.2090059733 | AU60: 11.74596327 | AV60: 25.83307172 | AW60: -12.54745089 | AX60: 130.325026 | AY60: 6.263080025 | AZ60: 0.02752858303 | BA60: 5.516212191 | BB60: 10.3175463 | BC60: -5.573094146 | BD60: 43.83273175 | BE60: 0.6013715699 | BF60: 0 | BG60: 0.01585540444 | BH60: 0.6294703599 | BI60: -0.2342340159 | BJ60: 4.597299842
B61: =B60+1 -> 2030 | C61: ='Savings by Group'!J114+'Savings by Group'!Q114+'Savings by Group'!X114+'Savings by Group'!AE114+'Savings by Group'!AL114+'Savings by Group'!AS114+'Savings by Group'!AZ114+'Savings by Group'!BG114+'Savings by Group'!BN114 -> 21.654333 | D61: ='Savings by Group'!BU114 -> 0.1362929273 | E61: ='Savings by Group'!CB114 -> 8.479567917 | F61: ='Savings by Group'!CI114 -> 13.7285917 | H61: 43.99878555 | I61: ='Savings by Group'!L114+'Savings by Group'!S114+'Savings by Group'!Z114+'Savings by Group'!AG114+'Savings by Group'!AN114+'Savings by Group'!AU114+'Savings by Group'!BB114+'Savings by Group'!BI114+'Savings by Group'!BP114 -> 4.96891782 | J61: ='Savings by Group'!BW114 -> 0.01588472295 | K61: ='Savings by Group'!CD114 -> 3.750804725 | L61: ='Savings by Group'!CK114 -> 3.705719126 | N61: 12.44132639 | O61: ='Savings by Group'!N114+'Savings by Group'!U114+'Savings by Group'!AB114+'Savings by Group'!AI114+'Savings by Group'!AP114+'Savings by Group'!AW114+'Savings by Group'!BD114+'Savings by Group'!BK114+'Savings by Group'!BR114 -> 0.8631450128 | P61: ='Savings by Group'!BY114 -> 0 | Q61: ='Savings by Group'!CF114 -> 0.005640418068 | R61: ='Savings by Group'!CM114 -> 0.3162849711 | T61: 1.185070402 | U61: =H61-'Savings by Group'!C114 -> 0 | V61: =N61-'Savings by Group'!E114 -> 0 | W61: =T61-'Savings by Group'!G114 -> 0 | X61: 2030 | Y61: 2392.349651 | Z61: 297.5146033 | AA61: 176.9780011 | AB61: 247.102834 | AD61: 3113.945089 | AE61: 354.8769398 | AF61: 43.39459878 | AG61: 76.08713161 | AH61: 66.69975464 | AJ61: 541.0584248 | AK61: 27.39148168 | AL61: 0 | AM61: 0.3795783234 | AN61: 5.692857242 | AP61: 33.46391724 | AS61: 11.92301772 | AT61: 0.1885627765 | AU61: 7.995323471 | AV61: 25.7217708 | AW61: -8.797055957 | AX61: 130.0041669 | AY61: 6.259189121 | AZ61: 0.02512927374 | BA61: 4.845572071 | BB61: 10.2730935 | BC61: -4.902649324 | BD61: 43.71858565 | BE61: 0.6008184968 | BF61: 0 | BG61: 0.01572670336 | BH61: 0.6267583082 | BI61: -0.2334076033 | BJ61: 4.589707909

Sheet Inputs
A1: =MAX(C5:C136) -> 133 | C1: 133 | D1: Select standard for details | F1: 11 | H1: Selected Group | P1: Unit Savings | R1: Interactive Setting | S1: =Dashboard!F35 -> NO | U1: Annual Installation | AL1: Compliance | BB1: Compliance Improvement | BF1: NO | BI1: Natural Market Adoption | BP1: Attribution | BR1: =Dashboard!E14 -> 2005 T-24 | BS1: =Dashboard!E15 -> 2005 T-20 | BT1: =Dashboard!E16 -> 2006 T-20 | BU1: =Dashboard!E17 -> 2008 T-24 | BV1: =Dashboard!E18 -> 2008 T-20 | BW1: =Dashboard!E19 -> 2009 T-20 | BX1: =Dashboard!E20 -> 2011 T-20 | BY1: =Dashboard!E21 -> Reach Code | BZ1: =Dashboard!E22 -> Fed Appliance | CA1: =Dashboard!E23 -> Track 1 Future Title 20 | CB1: =Dashboard!E24 -> Track 1 Future Fed Appliance | CC1: =Dashboard!E25 -> Track 1 Future (2013) T-24 | CD1: All | CF1: Fed Pre-emption | CL1: E | CQ1: Annual Installation Based on Evaluation or CASE Study | DQ1: Market Sector | DW1: Market Forecast Adjustment
BF2: =Dashboard!AN8 -> YES | BG2: =Dashboard!AN9 -> NO | BJ2: Bass Curve Parameters | BR2: 0 | BS2: =BR2+1 -> 1 | BT2: =BS2+1 -> 2 | BU2: 3 | BV2: 4 | BW2: 5 | BX2: 6 | BY2: =BX2+1 -> 7 | BZ2: 8 | CA2: =BZ2+1 -> 9 | CB2: 10 | CC2: 11 | CD2: 12
A3: Include | C3: Index | D3: Standards | E3: 1st Year Savings (GWh) | F3: 1st Year Demand Savings (MW) | G3: 1st Year Gas Savings (Mtherms/yr) | H3: Start Year | I3: Measure Life | J3: New Installation % | K3: Discount | L3: Federal measure | M3: Assumed Code Update Rate | N3: Comments | P3: 1st Year Potential Energy Savings Per Unit (kWh) | Q3: 1st Year Potential Demand Savings Per Unit (kW) | R3: 1st Year Potential Gas Savings Per Unit (therms) | S3: Interactive factor | U3: 2006 | V3: =U3+1 -> 2007 | W3: =V3+1 -> 2008 | X3: 2009 | Y3: 2010 | Z3: 2011 | AA3: 2012 | AB3: 2013 | AC3: 2014 | AD3: 2015 | AE3: 2016 | AF3: 2017 | AG3: =AF3+1 -> 2018 | AH3: =AG3+1 -> 2019 | AI3: =AH3+1 -> 2020 | AJ3: Potential GWh | AL3: 2006 | AM3: =AL3+1 -> 2007 | AN3: =AM3+1 -> 2008 | AO3: 2009 | AP3: 2010 | AQ3: 2011 | AR3: 2012 | AS3: 2013 | AT3: 2014 | AU3: 2015 | AV3: 2016 | AW3: 2017 | AX3: =AW3+1 -> 2018 | AY3: =AX3+1 -> 2019 | AZ3: =AY3+1 -> 2020 | BA3: Number of Year to Reach 100% Compliance | BB3: 2009 | BC3: 2010 | BD3: 2011 | BE3: 2012 | BF3: 2013 | BG3: 2014 | BH3: First Year of Improvement | BI3: Natural Market Adoption | BJ3: Max Penetration | BK3: Starting Year | BL3: p | BM3: q | BN3: Utility Programs Effect (units) | BP3: Weighted Attribution Score | BR3: Include | BS3: Include | BT3: Include | BU3: Include | BV3: Include | BW3: Include | BX3: Include | BY3: Include | BZ3: Include | CA3: Include | CB3: Include | CC3: Include | CD3: Include | CF3: Preemption amount | CI3: Fed | CJ3: Rulemaking | CL3: Include | CQ3: 2006 | CR3: =CQ3+1 -> 2007 | CS3: =CR3+1 -> 2008 | CT3: =CS3+1 -> 2009 | CU3: =CT3+1 -> 2010 | CV3: =CU3+1 -> 2011 | CW3: =CV3+1 -> 2012 | CX3: =CW3+1 -> 2013 | CY3: =CX3+1 -> 2014 | CZ3: =CY3+1 -> 2015 | DA3: =CZ3+1 -> 2016 | DB3: =DA3+1 -> 2017 | DC3: =DB3+1 -> 2018 | DD3: =DC3+1 -> 2019 | DE3: =DD3+1 -> 2020 | DF3: =DE3+1 -> 2021 | DG3: 2022 | DH3: 2023 | DI3: 2024 | DJ3: 2025 | DK3: 2026 | DL3: 2027 | DM3: 2028 | DN3: 2029 | DO3: 2030 | DQ3: Single Family NC | DR3: Multi-Family NC | DS3: Res Retrofit | DT3: Nonres NC | DU3: Nonres Retrofit | DW3: 2006 | DX3: =DW3+1 -> 2007 | DY3: =DX3+1 -> 2008 | DZ3: =DY3+1 -> 2009 | EA3: =DZ3+1 -> 2010 | EB3: =EA3+1 -> 2011 | EC3: =EB3+1 -> 2012 | ED3: =EC3+1 -> 2013 | EE3: =ED3+1 -> 2014 | EF3: =EE3+1 -> 2015 | EG3: =EF3+1 -> 2016 | EH3: =EG3+1 -> 2017 | EI3: =EH3+1 -> 2018 | EJ3: =EI3+1 -> 2019 | EK3: =EJ3+1 -> 2020 | EL3: =EK3+1 -> 2021 | EM3: 2022 | EN3: 2023 | EO3: 2024 | EP3: 2025 | EQ3: 2026 | ER3: 2027 | ES3: 2028 | ET3: 2029 | EU3: 2030
A4: =OFFSET(BR4,0,$F$1) -> 0 | C4: 1 | D4: =Dashboard!E15 -> 2005 T-20 | E4: =SUM(E5:E26) -> 694.18 | F4: =SUM(F5:F26) -> 102.42 | G4: 3.49 | N4: =P4/E4 -> 0.3448863946 | P4: =(SUMPRODUCT(P5:P26,$CU5:$CU26)-P28*$CU28-P29*$CU29)/1000000 -> 239.4132374 | Q4: =(SUMPRODUCT(Q5:Q26,$CU5:$CU26)-Q28*$CU28-Q29*$CU29)/1000 -> 30.09370582 | R4: =(SUMPRODUCT(R5:R26,$CU5:$CU26)-R28*$CU28-R29*$CU29)/1000000 -> 2.4732 | AJ4: =SUMPRODUCT(AJ5:AJ26,AP5:AP26) -> 548.9471708 | AN4: =SUMPRODUCT(AN5:AN26,$AK$5:$AK$26)/SUM($AK$5:$AK$26) -> 0.8456624092 | BA4: 10 | BP4: =SUMPRODUCT(BP5:BP26,AJ5:AJ26)/SUM(AJ5:AJ26) -> 0.7388298427 | BR4: 0 | BS4: 0 | BT4: 0 | BU4: 0 | BV4: 0 | BW4: 0 | BX4: 0 | BY4: 0 | BZ4: 0 | CA4: 0 | CB4: 0 | CC4: 0 | CD4: 0 | CL4: 0
A5: =OFFSET(BR5,0,$F$1) -> 0 | B5: Std1 | C5: =C4+1 -> 2 | D5: Commercial Refrigeration Equipment, Solid Door | E5: 9.1 | F5: 1.2 | G5: 0 | H5: =InputsStatic!I4 -> 2006-01-01 | I5: =InputsStatic!K4 -> 9 | J5: 0.02 | K5: 1 | L5: 0 | M5: =IF(Dashboard!$F$33="YES",I5,100) -> 9 | P5: =InputsStatic!L4 -> 433.5671963 | Q5: =InputsStatic!M4 -> 0.05698583083 | R5: =InputsStatic!N4 -> 0 | S5: -0.01208388048 | U5: =CQ5*DW5 -> 21062.16393 | V5: =CR5*DX5 -> 21062.16393 | W5: =CS5*DY5 -> 21062.16393 | X5: =CT5*DZ5 -> 21062.16393 | Y5: =CU5*EA5 -> 21062.16393 | Z5: =CV5*EB5 -> 21062.16393 | AA5: =CW5*EC5 -> 21062.16393 | AB5: =CX5*ED5 -> 21062.16393 | AC5: =CY5*EE5 -> 21062.16393 | AD5: =CZ5*EF5 -> 21062.16393 | AE5: =DA5*EG5 -> 21062.16393 | AF5: =DB5*EH5 -> 21062.16393 | AG5: =DC5*EI5 -> 21062.16393 | AH5: =DD5*EJ5 -> 21062.16393 | AI5: =DE5*EK5 -> 21062.16393 | AJ5: =(P5*CU5)/1000000 -> 9.131863362 | AK5: =IF(AL5>0,E5,0) -> 9.1 | AL5: =InputsTimeDependentCompliance!D4 -> 0.7 | AM5: =InputsTimeDependentCompliance!E4 -> 0.7 | AN5: =InputsTimeDependentCompliance!F4 -> 0.7 | AO5: =InputsTimeDependentCompliance!G4 -> 0.7 | AP5: =IF(SEandT_ON=$BG$2,$AO5,$AO5+BC5) -> 0.7 | AQ5: =IF(SEandT_ON=$BG$2,$AO5,$AO5+BD5) -> 0.7 | AR5: =IF(SEandT_ON=$BG$2,$AO5,$AO5+BE5) -> 0.7 | AS5: =IF(SEandT_ON=$BG$2,$AO5,$AO5+BF5) -> 0.7 | AT5: =IF(SEandT_ON=$BG$2,$AO5,$AO5+BG5) -> 0.7 | AU5: =AT5 -> 0.7 | AV5: =AU5 -> 0.7 | AW5: 0.7 | AX5: 0.7 | AY5: 0.7 | AZ5: 0.7 | BA5: =$BA$4 -> 10 | BC5: =MIN(5%,(100%-$AO5)) -> 0.05 | BD5: =MIN(5%,(100%-$AO5)) -> 0.05 | BE5: 0.05 | BF5: 0.05 | BG5: 0.05 | BH5: =2010 -> 2010 | BI5: =InputsStatic!O4 -> 9 | BJ5: =InputsNOMAD!AG4 -> 0.79 | BK5: =InputsStatic!P4 -> 1995 | BL5: =InputsNOMAD!AH4 -> 0.00891 | BM5: =InputsNOMAD!AI4 -> 0.4334 | BN5: =InputsStatic!J4 -> 25 | BP5: =InputsStatic!AB4 -> 0.8009583333 | BR5: 0 | BS5: 1 | BT5: 0 | BU5: 0 | BV5: 0 | BW5: 0 | BX5: 0 | BY5: 0 | BZ5: 0 | CA5: 0 | CB5: 0 | CC5: 0 | CD5: 1 | CL5: 0 | CQ5: =InputsTimeDependentUnits!D4 -> 21062.16393 | CR5: =InputsTimeDependentUnits!E4 -> 21062.16393 | CS5: =InputsTimeDependentUnits!F4 -> 21062.16393 | CT5: =InputsTimeDependentUnits!G4 -> 21062.16393 | CU5: =InputsTimeDependentUnits!H4 -> 21062.16393 | CV5: =InputsTimeDependentUnits!I4 -> 21062.16393 | CW5: =InputsTimeDependentUnits!J4 -> 21062.16393 | CX5: =InputsTimeDependentUnits!K4 -> 21062.16393 | CY5: =InputsTimeDependentUnits!L4 -> 21062.16393 | CZ5: =InputsTimeDependentUnits!M4 -> 21062.16393 | DA5: =InputsTimeDependentUnits!N4 -> 21062.16393 | DB5: =InputsTimeDependentUnits!O4 -> 21062.16393 | DC5: =InputsTimeDependentUnits!P4 -> 21062.16393 | DD5: =InputsTimeDependentUnits!Q4 -> 21062.16393 | DE5: =InputsTimeDependentUnits!R4 -> 21062.16393 | DF5: =DE5 -> 21062.16393 | DG5: =DF5 -> 21062.16393 | DH5: 21062.16393 | DI5: 21062.16393 | DJ5: 21062.16393 | DK5: 21062.16393 | DL5: 21062.16393 | DM5: 21062.16393 | DN5: 21062.16393 | DO5: 21062.16393 | DW5: 1 | DX5: 1 | DY5: 1 | DZ5: 1 | EA5: 1 | EB5: 1 | EC5: 1 | ED5: 1 | EE5: 1 | EF5: 1 | EG5: 1 | EH5: 1 | EI5: 1 | EJ5: 1 | EK5: 1 | EL5: 1 | EM5: 1 | EN5: 1 | EO5: 1 | EP5: 1 | EQ5: 1 | ER5: 1 | ES5: 1 | ET5: 1 | EU5: 1
A6: =OFFSET(BR6,0,$F$1) -> 0 | B6: Std2 | C6: 3 | D6: Commercial Refrigeration Equipment, Transparent Door | E6: 12.2 | F6: 1.6 | G6: 0 | H6: =InputsStatic!I5 -> 2007-01-01 | I6: =InputsStatic!K5 -> 9 | J6: 0.02 | K6: 1 | L6: 0 | M6: =IF(Dashboard!$F$33="YES",I6,100) -> 9 | P6: =InputsStatic!L5 -> 1555.58111 | Q6: =InputsStatic!M5 -> 0.204681725 | R6: =InputsStatic!N5 -> 0 | S6: -0.01208388048 | U6: 0 | V6: 7815.00749 | W6: 7815.00749 | X6: 7815.00749 | Y6: 7815.00749 | Z6: 7815.00749 | AA6: 7815.00749 | AB6: 7815.00749 | AC6: 7815.00749 | AD6: 7815.00749 | AE6: 7815.00749 | AF6: 7815.00749 | AG6: 7815.00749 | AH6: 7815.00749 | AI6: 7815.00749 | AJ6: 12.15687803 | AK6: 0 | AL6: =InputsTimeDependentCompliance!D5 -> 0 | AM6: =InputsTimeDependentCompliance!E5 -> 0.7 | AN6: =InputsTimeDependentCompliance!F5 -> 0.7 | AO6: =InputsTimeDependentCompliance!G5 -> 0.7 | AP6: 0.7 | AQ6: 0.7 | AR6: 0.7 | AS6: 0.7 | AT6: 0.7 | AU6: =AT6 -> 0.7 | AV6: 0.7 | AW6: 0.7 | AX6: 0.7 | AY6: 0.7 | AZ6: 0.7 | BA6: =$BA$4 -> 10 | BC6: =MIN(5%,(100%-$AO6)) -> 0.05 | BD6: 0.05 | BE6: 0.05 | BF6: 0.05 | BG6: 0.05 | BH6: =2010 -> 2010 | BI6: =InputsStatic!O5 -> 9 | BJ6: =InputsNOMAD!AG5 -> 0.5 | BK6: =InputsStatic!P5 -> 1995 | BL6: =InputsNOMAD!AH5 -> 0.00232 | BM6: =InputsNOMAD!AI5 -> 0.50729 | BN6: =InputsStatic!J5 -> 22 | BP6: =InputsStatic!AB5 -> 0.8006666667 | BR6: 0 | BS6: 1 | BT6: 0 | BU6: 0 | BV6: 0 | BW6: 0 | BX6: 0 | BY6: 0 | BZ6: 0 | CA6: 0 | CB6: 0 | CC6: 0 | CD6: 1 | CL6: 0 | CQ6: =InputsTimeDependentUnits!D5 -> 0 | CR6: =InputsTimeDependentUnits!E5 -> 7815.00749 | CS6: =InputsTimeDependentUnits!F5 -> 7815.00749 | CT6: =InputsTimeDependentUnits!G5 -> 7815.00749 | CU6: =InputsTimeDependentUnits!H5 -> 7815.00749 | CV6: =InputsTimeDependentUnits!I5 -> 7815.00749 | CW6: =InputsTimeDependentUnits!J5 -> 7815.00749 | CX6: =InputsTimeDependentUnits!K5 -> 7815.00749 | CY6: =InputsTimeDependentUnits!L5 -> 7815.00749 | CZ6: =InputsTimeDependentUnits!M5 -> 7815.00749 | DA6: =InputsTimeDependentUnits!N5 -> 7815.00749 | DB6: =InputsTimeDependentUnits!O5 -> 7815.00749 | DC6: =InputsTimeDependentUnits!P5 -> 7815.00749 | DD6: =InputsTimeDependentUnits!Q5 -> 7815.00749 | DE6: =InputsTimeDependentUnits!R5 -> 7815.00749 | DF6: =DE6 -> 7815.00749 | DG6: 7815.00749 | DH6: 7815.00749 | DI6: 7815.00749 | DJ6: 7815.00749 | DK6: 7815.00749 | DL6: 7815.00749 | DM6: 7815.00749 | DN6: 7815.00749 | DO6: 7815.00749 | DW6: 1 | DX6: 1 | DY6: 1 | DZ6: 1 | EA6: 1 | EB6: 1 | EC6: 1 | ED6: 1 | EE6: 1 | EF6: 1 | EG6: 1 | EH6: 1 | EI6: 1 | EJ6: 1 | EK6: 1 | EL6: 1 | EM6: 1 | EN6: 1 | EO6: 1 | EP6: 1 | EQ6: 1 | ER6: 1 | ES6: 1 | ET6: 1 | EU6: 1
A7: 0 | B7: Std3 | C7: 4 | D7: Commercial Ice Maker Equipment | E7: 6.5 | F7: 0.9 | G7: 0 | H7: =InputsStatic!I6 -> 2008-01-01 | I7: =InputsStatic!K6 -> 9 | J7: 0.02 | K7: 1 | L7: 0 | M7: =IF(Dashboard!$F$33="YES",I7,100) -> 9 | P7: =InputsStatic!L6 -> 297.4159063 | Q7: =InputsStatic!M6 -> 0.04143565258 | R7: =InputsStatic!N6 -> 0 | S7: -0.00604194024 | U7: 0 | V7: 0 | W7: 21740 | X7: 21740 | Y7: 21740 | Z7: 21740 | AA7: 21740 | AB7: 21740 | AC7: 21740 | AD7: 21740 | AE7: 21740 | AF7: 21740 | AG7: 21740 | AH7: 21740 | AI7: 21740 | AJ7: 6.465821803 | AK7: 0 | AL7: =InputsTimeDependentCompliance!D6 -> 0 | AM7: =InputsTimeDependentCompliance!E6 -> 0 | AN7: =InputsTimeDependentCompliance!F6 -> 0.7 | AO7: =InputsTimeDependentCompliance!G6 -> 0.7 | AP7: 0.7 | AQ7: 0.7 | AR7: 0.7 | AS7: 0.7 | AT7: 0.7 | AU7: =AT7 -> 0.7 | AV7: 0.7 | AW7: 0.7 | AX7: 0.7 | AY7: 0.7 | AZ7: 0.7 | BA7: 10 | BC7: 0.05 | BD7: 0.05 | BE7: 0.05 | BF7: 0.05 | BG7: 0.05 | BH7: =2010 -> 2010 | BI7: =InputsStatic!O6 -> 9 | BJ7: =InputsNOMAD!AG6 -> 0.25 | BK7: =InputsStatic!P6 -> 1995 | BL7: =InputsNOMAD!AH6 -> 0.00538 | BM7: =InputsNOMAD!AI6 -> 0.53466 | BN7: =InputsStatic!J6 -> 26 | BP7: =InputsStatic!AB6 -> 0.7983333333 | BR7: 0 | BS7: 1 | BT7: 0 | BU7: 0 | BV7: 0 | BW7: 0 | BX7: 0 | BY7: 0 | BZ7: 0 | CA7: 0 | CB7: 0 | CC7: 0 | CD7: 1 | CL7: 0 | CQ7: =InputsTimeDependentUnits!D6 -> 0 | CR7: =InputsTimeDependentUnits!E6 -> 0 | CS7: =InputsTimeDependentUnits!F6 -> 21740 | CT7: =InputsTimeDependentUnits!G6 -> 21740 | CU7: =InputsTimeDependentUnits!H6 -> 21740 | CV7: =InputsTimeDependentUnits!I6 -> 21740 | CW7: =InputsTimeDependentUnits!J6 -> 21740 | CX7: =InputsTimeDependentUnits!K6 -> 21740 | CY7: =InputsTimeDependentUnits!L6 -> 21740 | CZ7: =InputsTimeDependentUnits!M6 -> 21740 | DA7: =InputsTimeDependentUnits!N6 -> 21740 | DB7: =InputsTimeDependentUnits!O6 -> 21740 | DC7: =InputsTimeDependentUnits!P6 -> 21740 | DD7: =InputsTimeDependentUnits!Q6 -> 21740 | DE7: =InputsTimeDependentUnits!R6 -> 21740 | DF7: =DE7 -> 21740 | DG7: 21740 | DH7: 21740 | DI7: 21740 | DJ7: 21740 | DK7: 21740 | DL7: 21740 | DM7: 21740 | DN7: 21740 | DO7: 21740 | DW7: 1 | DX7: 1 | DY7: 1 | DZ7: 1 | EA7: 1 | EB7: 1 | EC7: 1 | ED7: 1 | EE7: 1 | EF7: 1 | EG7: 1 | EH7: 1 | EI7: 1 | EJ7: 1 | EK7: 1 | EL7: 1 | EM7: 1 | EN7: 1 | EO7: 1 | EP7: 1 | EQ7: 1 | ER7: 1 | ES7: 1 | ET7: 1 | EU7: 1
A8: 0 | B8: Std4 | C8: 5 | D8: Walk-In Refrigerators / Freezers | E8: 72.1 | F8: 9.5 | G8: 0 | H8: =InputsStatic!I7 -> 2006-01-01 | I8: =InputsStatic!K7 -> 10 | J8: 0.02 | K8: 1 | L8: 0 | M8: =IF(Dashboard!$F$33="YES",I8,100) -> 10 | P8: =InputsStatic!L7 -> 8350.950423 | Q8: =InputsStatic!M7 -> 1.100333273 | R8: =InputsStatic!N7 -> 0 | S8: 0 | U8: 8633 | V8: 8633 | W8: 8633 | X8: 8633 | Y8: 8633 | Z8: 8633 | AA8: 8633 | AB8: 8633 | AC8: 8633 | AD8: 8633 | AE8: 8633 | AF8: 8633 | AG8: 8633 | AH8: 8633 | AI8: 8633 | AJ8: 72.093755 | AK8: 72.1 | AL8: =InputsTimeDependentCompliance!D7 -> 0.88 | AM8: =InputsTimeDependentCompliance!E7 -> 0.88 | AN8: =InputsTimeDependentCompliance!F7 -> 0.88 | AO8: =InputsTimeDependentCompliance!G7 -> 0.88 | AP8: 0.88 | AQ8: 0.88 | AR8: 0.88 | AS8: 0.88 | AT8: 0.88 | AU8: =AT8 -> 0.88 | AV8: 0.88 | AW8: 0.88 | AX8: 0.88 | AY8: 0.88 | AZ8: 0.88 | BA8: 10 | BC8: 0.05 | BD8: 0.05 | BE8: 0.05 | BF8: 0.05 | BG8: 0.05 | BH8: =2010 -> 2010 | BI8: =InputsStatic!O7 -> 18 | BJ8: =InputsNOMAD!AG7 -> 0.41 | BK8: =InputsStatic!P7 -> 1995 | BL8: =InputsNOMAD!AH7 -> 0.01117 | BM8: =InputsNOMAD!AI7 -> 0.24829 | BN8: =InputsStatic!J7 -> 0 | BP8: =InputsStatic!AB7 -> 0.8086458333 | BR8: 0 | BS8: 1 | BT8: 0 | BU8: 0 | BV8: 0 | BW8: 0 | BX8: 0 | BY8: 0 | BZ8: 0 | CA8: 0 | CB8: 0 | CC8: 0 | CD8: 1 | CL8: 0 | CQ8: =InputsTimeDependentUnits!D7 -> 8633 | CR8: =InputsTimeDependentUnits!E7 -> 8633 | CS8: =InputsTimeDependentUnits!F7 -> 8633 | CT8: =InputsTimeDependentUnits!G7 -> 8633 | CU8: =InputsTimeDependentUnits!H7 -> 8633 | CV8: =InputsTimeDependentUnits!I7 -> 8633 | CW8: =InputsTimeDependentUnits!J7 -> 8633 | CX8: =InputsTimeDependentUnits!K7 -> 8633 | CY8: =InputsTimeDependentUnits!L7 -> 8633 | CZ8: =InputsTimeDependentUnits!M7 -> 8633 | DA8: =InputsTimeDependentUnits!N7 -> 8633 | DB8: =InputsTimeDependentUnits!O7 -> 8633 | DC8: =InputsTimeDependentUnits!P7 -> 8633 | DD8: =InputsTimeDependentUnits!Q7 -> 8633 | DE8: =InputsTimeDependentUnits!R7 -> 8633 | DF8: =DE8 -> 8633 | DG8: 8633 | DH8: 8633 | DI8: 8633 | DJ8: 8633 | DK8: 8633 | DL8: 8633 | DM8: 8633 | DN8: 8633 | DO8: 8633 | DW8: 1 | DX8: 1 | DY8: 1 | DZ8: 1 | EA8: 1 | EB8: 1 | EC8: 1 | ED8: 1 | EE8: 1 | EF8: 1 | EG8: 1 | EH8: 1 | EI8: 1 | EJ8: 1 | EK8: 1 | EL8: 1 | EM8: 1 | EN8: 1 | EO8: 1 | EP8: 1 | EQ8: 1 | ER8: 1 | ES8: 1 | ET8: 1 | EU8: 1
A9: 0 | B9: Std5 | C9: 6 | D9: Refrigerated Beverage Vending Machines | E9: 15.1 | F9: 2 | G9: 0 | H9: =InputsStatic!I8 -> 2006-01-01 | I9: =InputsStatic!K8 -> 10 | J9: 0.02 | K9: 1 | L9: 0 | M9: =IF(Dashboard!$F$33="YES",I9,100) -> 10 | P9: =InputsStatic!L8 -> 307.7 | Q9: =InputsStatic!M8 -> 0.04089036545 | R9: =InputsStatic!N8 -> 0 | S9: -0.00604194024 | U9: 48900 | V9: 48900 | W9: 48900 | X9: 48900 | Y9: 48900 | Z9: 48900 | AA9: 48900 | AB9: 48900 | AC9: 48900 | AD9: 48900 | AE9: 48900 | AF9: 48900 | AG9: 48900 | AH9: 48900 | AI9: 48900 | AJ9: 15.04653 | AK9: 15.1 | AL9: =InputsTimeDependentCompliance!D8 -> 0.37 | AM9: =InputsTimeDependentCompliance!E8 -> 0.37 | AN9: =InputsTimeDependentCompliance!F8 -> 0.37 | AO9: =InputsTimeDependentCompliance!G8 -> 0.37 | AP9: 0.37 | AQ9: 0.37 | AR9: 0.37 | AS9: 0.37 | AT9: 0.37 | AU9: =AT9 -> 0.37 | AV9: 0.37 | AW9: 0.37 | AX9: 0.37 | AY9: 0.37 | AZ9: 0.37 | BA9: 10 | BC9: 0.05 | BD9: 0.05 | BE9: 0.05 | BF9: 0.05 | BG9: 0.05 | BH9: =2010 -> 2010 | BI9: =InputsStatic!O8 -> 6 | BJ9: =InputsNOMAD!AG8 -> 0.96 | BK9: =InputsStatic!P8 -> 1998 | BL9: =InputsNOMAD!AH8 -> 0.01416 | BM9: =InputsNOMAD!AI8 -> 0.58412 | BN9: =InputsStatic!J8 -> 340 | BP9: =InputsStatic!AB8 -> 0.6251041667 | BR9: 0 | BS9: 1 | BT9: 0 | BU9: 0 | BV9: 0 | BW9: 0 | BX9: 0 | BY9: 0 | BZ9: 0 | CA9: 0 | CB9: 0 | CC9: 0 | CD9: 1 | CL9: 0 | CQ9: =InputsTimeDependentUnits!D8 -> 48900 | CR9: =InputsTimeDependentUnits!E8 -> 48900 | CS9: =InputsTimeDependentUnits!F8 -> 48900 | CT9: =InputsTimeDependentUnits!G8 -> 48900 | CU9: =InputsTimeDependentUnits!H8 -> 48900 | CV9: =InputsTimeDependentUnits!I8 -> 48900 | CW9: =InputsTimeDependentUnits!J8 -> 48900 | CX9: =InputsTimeDependentUnits!K8 -> 48900 | CY9: =InputsTimeDependentUnits!L8 -> 48900 | CZ9: =InputsTimeDependentUnits!M8 -> 48900 | DA9: =InputsTimeDependentUnits!N8 -> 48900 | DB9: =InputsTimeDependentUnits!O8 -> 48900 | DC9: =InputsTimeDependentUnits!P8 -> 48900 | DD9: =InputsTimeDependentUnits!Q8 -> 48900 | DE9: =InputsTimeDependentUnits!R8 -> 48900 | DF9: =DE9 -> 48900 | DG9: 48900 | DH9: 48900 | DI9: 48900 | DJ9: 48900 | DK9: 48900 | DL9: 48900 | DM9: 48900 | DN9: 48900 | DO9: 48900 | DW9: 1 | DX9: 1 | DY9: 1 | DZ9: 1 | EA9: 1 | EB9: 1 | EC9: 1 | ED9: 1 | EE9: 1 | EF9: 1 | EG9: 1 | EH9: 1 | EI9: 1 | EJ9: 1 | EK9: 1 | EL9: 1 | EM9: 1 | EN9: 1 | EO9: 1 | EP9: 1 | EQ9: 1 | ER9: 1 | ES9: 1 | ET9: 1 | EU9: 1
A10: 0 | B10: Std6 | C10: 7 | D10: Large Packaged Commercial Air-Conditioners, Tier 1 | E10: 13.5 | F10: 7 | G10: 0 | H10: =InputsStatic!I9 -> 2006-10-01 | I10: =InputsStatic!K9 -> 15 | J10: 0.02 | K10: 1 | L10: 0 | M10: =IF(Dashboard!$F$33="YES",I10,100) -> 15 | P10: =InputsStatic!L9 -> 3741.855319 | Q10: =InputsStatic!M9 -> 1.935919234 | R10: =InputsStatic!N9 -> 0 | S10: 0 | U10: 3617.02 | V10: 3617.02 | W10: 3617.02 | X10: 3617.02 | Y10: 0 | Z10: 0 | AA10: 0 | AB10: 0 | AC10: 0 | AD10: 0 | AE10: 0 | AF10: 0 | AG10: 0 | AH10: 0 | AI10: 0 | AJ10: 0 | AK10: 13.5 | AL10: =InputsTimeDependentCompliance!D9 -> 0.7 | AM10: =InputsTimeDependentCompliance!E9 -> 0.7 | AN10: =InputsTimeDependentCompliance!F9 -> 0.7 | AO10: =InputsTimeDependentCompliance!G9 -> 0.7 | AP10: 0.7 | AQ10: 0.7 | AR10: 0.7 | AS10: 0.7 | AT10: 0.7 | AU10: =AT10 -> 0.7 | AV10: 0.7 | AW10: 0.7 | AX10: 0.7 | AY10: 0.7 | AZ10: 0.7 | BA10: 10 | BC10: 0.05 | BD10: 0.05 | BE10: 0.05 | BF10: 0.05 | BG10: 0.05 | BH10: =2010 -> 2010 | BI10: =InputsStatic!O9 -> 6 | BJ10: =InputsNOMAD!AG9 -> 0.35 | BK10: =InputsStatic!P9 -> 1990 | BL10: =InputsNOMAD!AH9 -> 0.00025 | BM10: =InputsNOMAD!AI9 -> 0.5 | BN10: =InputsStatic!J9 -> 14 | BP10: =InputsStatic!AB9 -> 0.7658333333 | BR10: 0 | BS10: 1 | BT10: 0 | BU10: 0 | BV10: 0 | BW10: 0 | BX10: 0 | BY10: 0 | BZ10: 0 | CA10: 0 | CB10: 0 | CC10: 0 | CD10: 1 | CL10: 0 | CQ10: =InputsTimeDependentUnits!D9 -> 3617.02 | CR10: =InputsTimeDependentUnits!E9 -> 3617.02 | CS10: =InputsTimeDependentUnits!F9 -> 3617.02 | CT10: =InputsTimeDependentUnits!G9 -> 3617.02 | CU10: =InputsTimeDependentUnits!H9 -> 0 | CV10: =InputsTimeDependentUnits!I9 -> 0 | CW10: =InputsTimeDependentUnits!J9 -> 0 | CX10: =InputsTimeDependentUnits!K9 -> 0 | CY10: =InputsTimeDependentUnits!L9 -> 0 | CZ10: =InputsTimeDependentUnits!M9 -> 0 | DA10: =InputsTimeDependentUnits!N9 -> 0 | DB10: =InputsTimeDependentUnits!O9 -> 0 | DC10: =InputsTimeDependentUnits!P9 -> 0 | DD10: =InputsTimeDependentUnits!Q9 -> 0 | DE10: =InputsTimeDependentUnits!R9 -> 0 | DF10: =DE10 -> 0 | DG10: 0 | DH10: 0 | DI10: 0 | DJ10: 0 | DK10: 0 | DL10: 0 | DM10: 0 | DN10: 0 | DO10: 0 | DW10: 1 | DX10: 1 | DY10: 1 | DZ10: 1 | EA10: 1 | EB10: 1 | EC10: 1 | ED10: 1 | EE10: 1 | EF10: 1 | EG10: 1 | EH10: 1 | EI10: 1 | EJ10: 1 | EK10: 1 | EL10: 1 | EM10: 1 | EN10: 1 | EO10: 1 | EP10: 1 | EQ10: 1 | ER10: 1 | ES10: 1 | ET10: 1 | EU10: 1
A11: 0 | B11: Std7 | C11: 8 | D11: Large Packaged Commercial Air-Conditioners, Tier 2 | E11: 0 | F11: 0 | G11: 0 | H11: =InputsStatic!I10 -> 2010-01-01 | I11: =InputsStatic!K10 -> 15 | J11: 0.02 | K11: 1 | L11: 0 | M11: =IF(Dashboard!$F$33="YES",I11,100) -> 15 | P11: =InputsStatic!L10 -> 2791.54 | Q11: =InputsStatic!M10 -> 1.44 | R11: =InputsStatic!N10 -> 0 | S11: 0 | U11: 0 | V11: 0 | W11: 0 | X11: 0 | Y11: 0 | Z11: 0 | AA11: 0 | AB11: 0 | AC11: 0 | AD11: 0 | AE11: 0 | AF11: 0 | AG11: 0 | AH11: 0 | AI11: 0 | AJ11: 0 | AK11: 0 | AL11: =InputsTimeDependentCompliance!D10 -> 0 | AM11: =InputsTimeDependentCompliance!E10 -> 0 | AN11: =InputsTimeDependentCompliance!F10 -> 0 | AO11: =InputsTimeDependentCompliance!G10 -> 0 | AP11: 0 | AQ11: 0 | AR11: 0 | AS11: 0 | AT11: 0 | AU11: =AT11 -> 0 | AV11: 0 | AW11: 0 | AX11: 0 | AY11: 0 | AZ11: 0 | BA11: 10 | BC11: 0.05 | BD11: 0.05 | BE11: 0.05 | BF11: 0.05 | BG11: 0.05 | BH11: =2010 -> 2010 | BI11: =InputsStatic!O10 -> 9 | BJ11: =InputsNOMAD!AG10 -> 0.1 | BK11: =InputsStatic!P10 -> 1990 | BL11: =InputsNOMAD!AH10 -> 0.00012 | BM11: =InputsNOMAD!AI10 -> 0.35265 | BN11: =InputsStatic!J10 -> 0 | BP11: =InputsStatic!AB10 -> 0.749375 | BR11: 0 | BS11: 1 | BT11: 0 | BU11: 0 | BV11: 0 | BW11: 0 | BX11: 0 | BY11: 0 | BZ11: 0 | CA11: 0 | CB11: 0 | CC11: 0 | CD11: 1 | CL11: 0 | CQ11: =InputsTimeDependentUnits!D10 -> 0 | CR11: =InputsTimeDependentUnits!E10 -> 0 | CS11: =InputsTimeDependentUnits!F10 -> 0 | CT11: =InputsTimeDependentUnits!G10 -> 0 | CU11: =InputsTimeDependentUnits!H10 -> 0 | CV11: =InputsTimeDependentUnits!I10 -> 0 | CW11: =InputsTimeDependentUnits!J10 -> 0 | CX11: =InputsTimeDependentUnits!K10 -> 0 | CY11: =InputsTimeDependentUnits!L10 -> 0 | CZ11: =InputsTimeDependentUnits!M10 -> 0 | DA11: =InputsTimeDependentUnits!N10 -> 0 | DB11: =InputsTimeDependentUnits!O10 -> 0 | DC11: =InputsTimeDependentUnits!P10 -> 0 | DD11: =InputsTimeDependentUnits!Q10 -> 0 | DE11: =InputsTimeDependentUnits!R10 -> 0 | DF11: =DE11 -> 0 | DG11: 0 | DH11: 0 | DI11: 0 | DJ11: 0 | DK11: 0 | DL11: 0 | DM11: 0 | DN11: 0 | DO11: 0 | DW11: 1 | DX11: 1 | DY11: 1 | DZ11: 1 | EA11: 1 | EB11: 1 | EC11: 1 | ED11: 1 | EE11: 1 | EF11: 1 | EG11: 1 | EH11: 1 | EI11: 1 | EJ11: 1 | EK11: 1 | EL11: 1 | EM11: 1 | EN11: 1 | EO11: 1 | EP11: 1 | EQ11: 1 | ER11: 1 | ES11: 1 | ET11: 1 | EU11: 1
A12: 0 | B12: Std8 | C12: 9 | D12: Residential Pool Pumps, High Eff Motor, Tier 1 | E12: 35.5 | F12: 6.8 | G12: 0 | H12: =InputsStatic!I11 -> 2006-01-01 | I12: =InputsStatic!K11 -> 10 | J12: 0.01 | K12: 1 | L12: 0 | M12: =IF(Dashboard!$F$33="YES",I12,100) -> 10 | P12: =InputsStatic!L11 -> 241.72 | Q12: =InputsStatic!M11 -> 0.04630129577 | R12: =InputsStatic!N11 -> 0 | S12: 0 | U12: 142700 | V12: 142700 | W12: 142700 | X12: 142700 | Y12: 142700 | Z12: 142700 | AA12: 142700 | AB12: 142700 | AC12: 142700 | AD12: 142700 | AE12: 142700 | AF12: 142700 | AG12: 142700 | AH12: 142700 | AI12: 142700 | AJ12: 34.493444 | AK12: 35.5 | AL12: =InputsTimeDependentCompliance!D11 -> 1 | AM12: =InputsTimeDependentCompliance!E11 -> 1 | AN12: =InputsTimeDependentCompliance!F11 -> 1 | AO12: =InputsTimeDependentCompliance!G11 -> 1 | AP12: 1 | AQ12: 1 | AR12: 1 | AS12: 1 | AT12: 1 | AU12: =AT12 -> 1 | AV12: 1 | AW12: 1 | AX12: 1 | AY12: 1 | AZ12: 1 | BA12: 10 | BC12: 0 | BD12: 0 | BE12: 0 | BF12: 0 | BG12: 0 | BH12: =2010 -> 2010 | BI12: =InputsStatic!O11 -> 18 | BJ12: =InputsNOMAD!AG11 -> 1.35 | BK12: =InputsStatic!P11 -> 1965 | BL12: =InputsNOMAD!AH11 -> 0.00083 | BM12: =InputsNOMAD!AI11 -> 0.04462 | BN12: =InputsStatic!J11 -> 3480 | BP12: =InputsStatic!AB11 -> 0.7960416667 | BR12: 0 | BS12: 1 | BT12: 0 | BU12: 0 | BV12: 0 | BW12: 0 | BX12: 0 | BY12: 0 | BZ12: 0 | CA12: 0 | CB12: 0 | CC12: 0 | CD12: 1 | CL12: 0 | CQ12: =InputsTimeDependentUnits!D11 -> 142700 | CR12: =InputsTimeDependentUnits!E11 -> 142700 | CS12: =InputsTimeDependentUnits!F11 -> 142700 | CT12: =InputsTimeDependentUnits!G11 -> 142700 | CU12: =InputsTimeDependentUnits!H11 -> 142700 | CV12: =InputsTimeDependentUnits!I11 -> 142700 | CW12: =InputsTimeDependentUnits!J11 -> 142700 | CX12: =InputsTimeDependentUnits!K11 -> 142700 | CY12: =InputsTimeDependentUnits!L11 -> 142700 | CZ12: =InputsTimeDependentUnits!M11 -> 142700 | DA12: =InputsTimeDependentUnits!N11 -> 142700 | DB12: =InputsTimeDependentUnits!O11 -> 142700 | DC12: =InputsTimeDependentUnits!P11 -> 142700 | DD12: =InputsTimeDependentUnits!Q11 -> 142700 | DE12: =InputsTimeDependentUnits!R11 -> 142700 | DF12: =DE12 -> 142700 | DG12: 142700 | DH12: 142700 | DI12: 142700 | DJ12: 142700 | DK12: 142700 | DL12: 142700 | DM12: 142700 | DN12: 142700 | DO12: 142700 | DW12: 1 | DX12: 1 | DY12: 1 | DZ12: 1 | EA12: 1 | EB12: 1 | EC12: 1 | ED12: 1 | EE12: 1 | EF12: 1 | EG12: 1 | EH12: 1 | EI12: 1 | EJ12: 1 | EK12: 1 | EL12: 1 | EM12: 1 | EN12: 1 | EO12: 1 | EP12: 1 | EQ12: 1 | ER12: 1 | ES12: 1 | ET12: 1 | EU12: 1
A13: 0 | B13: Std10 | C13: 10 | D13: Portable Electric Spas | E13: 18.04 | F13: 3.4 | G13: 0 | H13: =InputsStatic!I13 -> 2006-01-01 | I13: =InputsStatic!K13 -> 10 | J13: 0.01 | K13: 1 | L13: 0 | M13: =IF(Dashboard!$F$33="YES",I13,100) -> 10 | P13: =InputsStatic!L13 -> 375.8 | Q13: =InputsStatic!M13 -> 0.070827051 | R13: =InputsStatic!N13 -> 0 | S13: 0 | U13: 48000 | V13: 48000 | W13: 48000 | X13: 48000 | Y13: 48000 | Z13: 48000 | AA13: 48000 | AB13: 48000 | AC13: 48000 | AD13: 48000 | AE13: 48000 | AF13: 48000 | AG13: 48000 | AH13: 48000 | AI13: 48000 | AJ13: 18.0384 | AK13: 18.04 | AL13: =InputsTimeDependentCompliance!D13 -> 0.7 | AM13: =InputsTimeDependentCompliance!E13 -> 0.7 | AN13: =InputsTimeDependentCompliance!F13 -> 0.7 | AO13: =InputsTimeDependentCompliance!G13 -> 0.7 | AP13: 0.7 | AQ13: 0.7 | AR13: 0.7 | AS13: 0.7 | AT13: 0.7 | AU13: =AT13 -> 0.7 | AV13: 0.7 | AW13: 0.7 | AX13: 0.7 | AY13: 0.7 | AZ13: 0.7 | BA13: 10 | BC13: 0.05 | BD13: 0.05 | BE13: 0.05 | BF13: 0.05 | BG13: 0.05 | BH13: =2010 -> 2010 | BI13: =InputsStatic!O13 -> 12 | BJ13: =InputsNOMAD!AG13 -> 0 | BK13: =InputsStatic!P13 -> 2000 | BL13: =InputsNOMAD!AH13 -> 0 | BM13: =InputsNOMAD!AI13 -> 0 | BN13: =InputsStatic!J13 -> 0 | BP13: =InputsStatic!AB13 -> 0.8275 | BR13: 0 | BS13: 1 | BT13: 0 | BU13: 0 | BV13: 0 | BW13: 0 | BX13: 0 | BY13: 0 | BZ13: 0 | CA13: 0 | CB13: 0 | CC13: 0 | CD13: 1 | CL13: 0 | CQ13: =InputsTimeDependentUnits!D13 -> 48000 | CR13: =InputsTimeDependentUnits!E13 -> 48000 | CS13: =InputsTimeDependentUnits!F13 -> 48000 | CT13: =InputsTimeDependentUnits!G13 -> 48000 | CU13: =InputsTimeDependentUnits!H13 -> 48000 | CV13: =InputsTimeDependentUnits!I13 -> 48000 | CW13: =InputsTimeDependentUnits!J13 -> 48000 | CX13: =InputsTimeDependentUnits!K13 -> 48000 | CY13: =InputsTimeDependentUnits!L13 -> 48000 | CZ13: =InputsTimeDependentUnits!M13 -> 48000 | DA13: =InputsTimeDependentUnits!N13 -> 48000 | DB13: =InputsTimeDependentUnits!O13 -> 48000 | DC13: =InputsTimeDependentUnits!P13 -> 48000 | DD13: =InputsTimeDependentUnits!Q13 -> 48000 | DE13: =InputsTimeDependentUnits!R13 -> 48000 | DF13: =DE13 -> 48000 | DG13: 48000 | DH13: 48000 | DI13: 48000 | DJ13: 48000 | DK13: 48000 | DL13: 48000 | DM13: 48000 | DN13: 48000 | DO13: 48000 | DW13: 1 | DX13: 1 | DY13: 1 | DZ13: 1 | EA13: 1 | EB13: 1 | EC13: 1 | ED13: 1 | EE13: 1 | EF13: 1 | EG13: 1 | EH13: 1 | EI13: 1 | EJ13: 1 | EK13: 1 | EL13: 1 | EM13: 1 | EN13: 1 | EO13: 1 | EP13: 1 | EQ13: 1 | ER13: 1 | ES13: 1 | ET13: 1 | EU13: 1
A14: 0 | B14: Std11a | C14: 11 | D14: General Service Incandescent Lamps, Tier 1 | E14: 79.18 | F14: 9.82 | H14: =InputsStatic!I14 -> 2006-01-01 | I14: =InputsStatic!K14 -> 1 | J14: 0.015 | K14: 1 | L14: 0 | M14: =IF(Dashboard!$F$33="YES",I14,100) -> 1 | P14: =InputsStatic!L14 -> 0 | Q14: =InputsStatic!M14 -> 0 | R14: =InputsStatic!N14 -> 0 | S14: -0.01765 | U14: 74316888 | V14: 74316888 | W14: 74316888 | X14: 74316888 | Y14: 74316888 | Z14: 74316888 | AA14: 74316888 | AB14: 74316888 | AC14: 74316888 | AD14: 74316888 | AE14: 74316888 | AF14: 74316888 | AG14: 74316888 | AH14: 74316888 | AI14: 74316888 | AJ14: 0 | AK14: 79.18 | AL14: =InputsTimeDependentCompliance!D14 -> 0.687 | AM14: =InputsTimeDependentCompliance!E14 -> 0.687 | AN14: =InputsTimeDependentCompliance!F14 -> 0.687 | AO14: =InputsTimeDependentCompliance!G14 -> 0.687 | AP14: 0.687 | AQ14: 0.687 | AR14: 0.687 | AS14: 0.687 | AT14: 0.687 | AU14: =AT14 -> 0.687 | AV14: 0.687 | AW14: 0.687 | AX14: 0.687 | AY14: 0.687 | AZ14: 0.687 | BA14: 10 | BC14: 0.05 | BD14: 0.05 | BE14: 0.05 | BF14: 0.05 | BG14: 0.05 | BH14: =2010 -> 2010 | BI14: =InputsStatic!O14 -> 18 | BJ14: =InputsNOMAD!AG14 -> 0.09 | BK14: =InputsStatic!P14 -> 1970 | BL14: =InputsNOMAD!AH14 -> 7e-05 | BM14: =InputsNOMAD!AI14 -> 0.21307 | BN14: =InputsStatic!J14 -> 0 | BP14: =InputsStatic!AB14 -> 0.735 | BR14: 0 | BS14: 1 | BT14: 0 | BU14: 0 | BV14: 0 | BW14: 0 | BX14: 0 | BY14: 0 | BZ14: 0 | CA14: 0 | CB14: 0 | CC14: 0 | CD14: 1 | CL14: 1 | CQ14: =InputsTimeDependentUnits!D14 -> 74316888 | CR14: =InputsTimeDependentUnits!E14 -> 74316888 | CS14: =InputsTimeDependentUnits!F14 -> 74316888 | CT14: =InputsTimeDependentUnits!G14 -> 74316888 | CU14: =InputsTimeDependentUnits!H14 -> 74316888 | CV14: =InputsTimeDependentUnits!I14 -> 74316888 | CW14: =InputsTimeDependentUnits!J14 -> 74316888 | CX14: =InputsTimeDependentUnits!K14 -> 74316888 | CY14: =InputsTimeDependentUnits!L14 -> 74316888 | CZ14: =InputsTimeDependentUnits!M14 -> 74316888 | DA14: =InputsTimeDependentUnits!N14 -> 74316888 | DB14: =InputsTimeDependentUnits!O14 -> 74316888 | DC14: =InputsTimeDependentUnits!P14 -> 74316888 | DD14: =InputsTimeDependentUnits!Q14 -> 74316888 | DE14: =InputsTimeDependentUnits!R14 -> 74316888 | DF14: =DE14 -> 74316888 | DG14: 74316888 | DH14: 74316888 | DI14: 74316888 | DJ14: 74316888 | DK14: 74316888 | DL14: 74316888 | DM14: 74316888 | DN14: 74316888 | DO14: 74316888 | DW14: 1 | DX14: 1 | DY14: 1 | DZ14: 1 | EA14: 1 | EB14: 1 | EC14: 1 | ED14: 1 | EE14: 1 | EF14: 1 | EG14: 1 | EH14: 1 | EI14: 1 | EJ14: 1 | EK14: 1 | EL14: 1 | EM14: 1 | EN14: 1 | EO14: 1 | EP14: 1 | EQ14: 1 | ER14: 1 | ES14: 1 | ET14: 1 | EU14: 1
A15: 0 | B15: Std12a | C15: 12 | D15: Pulse Start Metal Halide HID Luminaires, Tier 1 | E15: 118 | F15: 21 | G15: 0 | H15: =InputsStatic!I16 -> 2006-01-01 | I15: =InputsStatic!K16 -> 13 | J15: 0.02 | K15: 1 | L15: 0 | M15: =IF(Dashboard!$F$33="YES",I15,100) -> 13 | P15: =InputsStatic!L16 -> 306.6 | Q15: =InputsStatic!M16 -> 0.05455978307 | R15: =InputsStatic!N16 -> 0 | S15: -0.0119 | U15: 384912 | V15: 384912 | W15: 384912 | X15: 384912 | Y15: 384912 | Z15: 384912 | AA15: 384912 | AB15: 384912 | AC15: 384912 | AD15: 384912 | AE15: 384912 | AF15: 384912 | AG15: 384912 | AH15: 384912 | AI15: 384912 | AJ15: 118.0140192 | AK15: 118 | AL15: =InputsTimeDependentCompliance!D16 -> 1 | AM15: =InputsTimeDependentCompliance!E16 -> 1 | AN15: =InputsTimeDependentCompliance!F16 -> 1 | AO15: =InputsTimeDependentCompliance!G16 -> 1 | AP15: 1 | AQ15: 1 | AR15: 1 | AS15: 1 | AT15: 1 | AU15: =AT15 -> 1 | AV15: 1 | AW15: 1 | AX15: 1 | AY15: 1 | AZ15: 1 | BA15: 10 | BC15: 0 | BD15: 0 | BE15: 0 | BF15: 0 | BG15: 0 | BH15: =2010 -> 2010 | BI15: =InputsStatic!O16 -> 6 | BJ15: =InputsNOMAD!AG16 -> 0.74 | BK15: =InputsStatic!P16 -> 1992 | BL15: =InputsNOMAD!AH16 -> 0.00075 | BM15: =InputsNOMAD!AI16 -> 0.34836 | BN15: =InputsStatic!J16 -> 44565 | BP15: =InputsStatic!AB16 -> 0.744975 | BR15: 0 | BS15: 1 | BT15: 0 | BU15: 0 | BV15: 0 | BW15: 0 | BX15: 0 | BY15: 0 | BZ15: 0 | CA15: 0 | CB15: 0 | CC15: 0 | CD15: 1 | CL15: 0 | CQ15: =InputsTimeDependentUnits!D16 -> 384912 | CR15: =InputsTimeDependentUnits!E16 -> 384912 | CS15: =InputsTimeDependentUnits!F16 -> 384912 | CT15: =InputsTimeDependentUnits!G16 -> 384912 | CU15: =InputsTimeDependentUnits!H16 -> 384912 | CV15: =InputsTimeDependentUnits!I16 -> 384912 | CW15: =InputsTimeDependentUnits!J16 -> 384912 | CX15: =InputsTimeDependentUnits!K16 -> 384912 | CY15: =InputsTimeDependentUnits!L16 -> 384912 | CZ15: =InputsTimeDependentUnits!M16 -> 384912 | DA15: =InputsTimeDependentUnits!N16 -> 384912 | DB15: =InputsTimeDependentUnits!O16 -> 384912 | DC15: =InputsTimeDependentUnits!P16 -> 384912 | DD15: =InputsTimeDependentUnits!Q16 -> 384912 | DE15: =InputsTimeDependentUnits!R16 -> 384912 | DF15: =DE15 -> 384912 | DG15: 384912 | DH15: 384912 | DI15: 384912 | DJ15: 384912 | DK15: 384912 | DL15: 384912 | DM15: 384912 | DN15: 384912 | DO15: 384912 | DW15: 1 | DX15: 1 | DY15: 1 | DZ15: 1 | EA15: 1 | EB15: 1 | EC15: 1 | ED15: 1 | EE15: 1 | EF15: 1 | EG15: 1 | EH15: 1 | EI15: 1 | EJ15: 1 | EK15: 1 | EL15: 1 | EM15: 1 | EN15: 1 | EO15: 1 | EP15: 1 | EQ15: 1 | ER15: 1 | ES15: 1 | ET15: 1 | EU15: 1
A16: 0 | B16: Std12b | C16: 13 | D16: Pulse Start Metal Halide HID Luminaires, Tier 2 | E16: 48.62 | F16: 8.7 | G16: 0 | H16: =InputsStatic!I17 -> 2008-01-01 | I16: =InputsStatic!K17 -> 13 | J16: 0.02 | K16: 1 | L16: 0 | M16: =IF(Dashboard!$F$33="YES",I16,100) -> 13 | P16: =InputsStatic!L17 -> 84.20465116 | Q16: =InputsStatic!M17 -> 0.01502729159 | R16: =InputsStatic!N17 -> 0 | S16: -0.0119 | U16: 577368 | V16: 577368 | W16: 577368 | X16: 577368 | Y16: 577368 | Z16: 577368 | AA16: 577368 | AB16: 577368 | AC16: 577368 | AD16: 577368 | AE16: 577368 | AF16: 577368 | AG16: 577368 | AH16: 577368 | AI16: 577368 | AJ16: 48.61707103 | AK16: 0 | AL16: =InputsTimeDependentCompliance!D17 -> 0 | AM16: =InputsTimeDependentCompliance!E17 -> 0 | AN16: =InputsTimeDependentCompliance!F17 -> 0.519 | AO16: =InputsTimeDependentCompliance!G17 -> 1 | AP16: 1 | AQ16: 1 | AR16: 1 | AS16: 1 | AT16: 1 | AU16: =AT16 -> 1 | AV16: =AU16 -> 1 | AW16: 1 | AX16: 1 | AY16: 1 | AZ16: 1 | BA16: 10 | BC16: 0 | BD16: 0 | BE16: 0 | BF16: 0 | BG16: 0 | BH16: =2010 -> 2010 | BI16: =InputsStatic!O17 -> 6 | BJ16: =InputsNOMAD!AG17 -> 0.74 | BK16: =InputsStatic!P17 -> 1992 | BL16: =InputsNOMAD!AH17 -> 0.00075 | BM16: =InputsNOMAD!AI17 -> 0.34836 | BN16: =InputsStatic!J17 -> 44565 | BP16: =InputsStatic!AB17 -> 0.744975 | BR16: 0 | BS16: 1 | BT16: 0 | BU16: 0 | BV16: 0 | BW16: 0 | BX16: 0 | BY16: 0 | BZ16: 0 | CA16: 0 | CB16: 0 | CC16: 0 | CD16: 1 | CL16: 0 | CQ16: =InputsTimeDependentUnits!D17 -> 577368 | CR16: =InputsTimeDependentUnits!E17 -> 577368 | CS16: =InputsTimeDependentUnits!F17 -> 577368 | CT16: =InputsTimeDependentUnits!G17 -> 577368 | CU16: =InputsTimeDependentUnits!H17 -> 577368 | CV16: =InputsTimeDependentUnits!I17 -> 577368 | CW16: =InputsTimeDependentUnits!J17 -> 577368 | CX16: =InputsTimeDependentUnits!K17 -> 577368 | CY16: =InputsTimeDependentUnits!L17 -> 577368 | CZ16: =InputsTimeDependentUnits!M17 -> 577368 | DA16: =InputsTimeDependentUnits!N17 -> 577368 | DB16: =InputsTimeDependentUnits!O17 -> 577368 | DC16: =InputsTimeDependentUnits!P17 -> 577368 | DD16: =InputsTimeDependentUnits!Q17 -> 577368 | DE16: =InputsTimeDependentUnits!R17 -> 577368 | DF16: =DE16 -> 577368 | DG16: 577368 | DH16: 577368 | DI16: 577368 | DJ16: 577368 | DK16: 577368 | DL16: 577368 | DM16: 577368 | DN16: 577368 | DO16: 577368 | DW16: 1 | DX16: 1 | DY16: 1 | DZ16: 1 | EA16: 1 | EB16: 1 | EC16: 1 | ED16: 1 | EE16: 1 | EF16: 1 | EG16: 1 | EH16: 1 | EI16: 1 | EJ16: 1 | EK16: 1 | EL16: 1 | EM16: 1 | EN16: 1 | EO16: 1 | EP16: 1 | EQ16: 1 | ER16: 1 | ES16: 1 | ET16: 1 | EU16: 1
A17: 0 | B17: Std13 | C17: =C16+1 -> 14 | D17: Modular Furniture Task Lighting Fixtures | E17: 5.57 | F17: 1 | G17: 0 | H17: =InputsStatic!I18 -> 2008-01-01 | I17: =InputsStatic!K18 -> 15 | J17: 0.02 | K17: 1 | L17: 0 | M17: =IF(Dashboard!$F$33="YES",I17,100) -> 15 | P17: =InputsStatic!L18 -> 16 | Q17: =InputsStatic!M18 -> 0.002872531418 | R17: =InputsStatic!N18 -> 0 | S17: -0.0119 | U17: 0 | V17: 0 | W17: 348000 | X17: 348000 | Y17: 348000 | Z17: 348000 | AA17: 348000 | AB17: 348000 | AC17: 348000 | AD17: 348000 | AE17: 348000 | AF17: 348000 | AG17: 348000 | AH17: 348000 | AI17: 348000 | AJ17: 5.568 | AK17: 0 | AL17: =InputsTimeDependentCompliance!D18 -> 0 | AM17: =InputsTimeDependentCompliance!E18 -> 0 | AN17: =InputsTimeDependentCompliance!F18 -> 0.7 | AO17: =InputsTimeDependentCompliance!G18 -> 0.7 | AP17: 0.7 | AQ17: 0.7 | AR17: 0.7 | AS17: 0.7 | AT17: 0.7 | AU17: =AT17 -> 0.7 | AV17: 0.7 | AW17: 0.7 | AX17: 0.7 | AY17: 0.7 | AZ17: 0.7 | BA17: 10 | BC17: 0.05 | BD17: 0.05 | BE17: 0.05 | BF17: 0.05 | BG17: 0.05 | BH17: =2010 -> 2010 | BI17: =InputsStatic!O18 -> 6 | BJ17: =InputsNOMAD!AG18 -> 0.94 | BK17: =InputsStatic!P18 -> 2000 | BL17: =InputsNOMAD!AH18 -> 0.13179 | BM17: =InputsNOMAD!AI18 -> 0.19778 | BN17: =InputsStatic!J18 -> 22 | BP17: =InputsStatic!AB18 -> 0.826 | BR17: 0 | BS17: 1 | BT17: 0 | BU17: 0 | BV17: 0 | BW17: 0 | BX17: 0 | BY17: 0 | BZ17: 0 | CA17: 0 | CB17: 0 | CC17: 0 | CD17: 1 | CL17: 0 | CQ17: =InputsTimeDependentUnits!D18 -> 0 | CR17: =InputsTimeDependentUnits!E18 -> 0 | CS17: =InputsTimeDependentUnits!F18 -> 348000 | CT17: =InputsTimeDependentUnits!G18 -> 348000 | CU17: =InputsTimeDependentUnits!H18 -> 348000 | CV17: =InputsTimeDependentUnits!I18 -> 348000 | CW17: =InputsTimeDependentUnits!J18 -> 348000 | CX17: =InputsTimeDependentUnits!K18 -> 348000 | CY17: =InputsTimeDependentUnits!L18 -> 348000 | CZ17: =InputsTimeDependentUnits!M18 -> 348000 | DA17: =InputsTimeDependentUnits!N18 -> 348000 | DB17: =InputsTimeDependentUnits!O18 -> 348000 | DC17: =InputsTimeDependentUnits!P18 -> 348000 | DD17: =InputsTimeDependentUnits!Q18 -> 348000 | DE17: =InputsTimeDependentUnits!R18 -> 348000 | DF17: =DE17 -> 348000 | DG17: 348000 | DH17: 348000 | DI17: 348000 | DJ17: 348000 | DK17: 348000 | DL17: 348000 | DM17: 348000 | DN17: 348000 | DO17: 348000 | DW17: 1 | DX17: 1 | DY17: 1 | DZ17: 1 | EA17: 1 | EB17: 1 | EC17: 1 | ED17: 1 | EE17: 1 | EF17: 1 | EG17: 1 | EH17: 1 | EI17: 1 | EJ17: 1 | EK17: 1 | EL17: 1 | EM17: 1 | EN17: 1 | EO17: 1 | EP17: 1 | EQ17: 1 | ER17: 1 | ES17: 1 | ET17: 1 | EU17: 1
A18: 0 | B18: Std14 | C18: 15 | D18: Hot Food Holding Cabinets | E18: 6.44 | F18: 0.9 | G18: 0 | H18: =InputsStatic!I19 -> 2006-01-01 | I18: =InputsStatic!K19 -> 15 | J18: 0.02 | K18: 1 | L18: 0 | M18: =IF(Dashboard!$F$33="YES",I18,100) -> 15 | P18: =InputsStatic!L19 -> 1952.671269 | Q18: =InputsStatic!M19 -> 0.2728888419 | R18: =InputsStatic!N19 -> 0 | S18: -0.01208388048 | U18: 3300 | V18: 3300 | W18: 3300 | X18: 3300 | Y18: 3300 | Z18: 3300 | AA18: 3300 | AB18: 3300 | AC18: 3300 | AD18: 3300 | AE18: 3300 | AF18: 3300 | AG18: 3300 | AH18: 3300 | AI18: 3300 | AJ18: 6.443815187 | AK18: 6.44 | AL18: =InputsTimeDependentCompliance!D19 -> 0.7 | AM18: =InputsTimeDependentCompliance!E19 -> 0.7 | AN18: =InputsTimeDependentCompliance!F19 -> 0.7 | AO18: =InputsTimeDependentCompliance!G19 -> 0.7 | AP18: 0.7 | AQ18: 0.7 | AR18: 0.7 | AS18: 0.7 | AT18: 0.7 | AU18: =AT18 -> 0.7 | AV18: 0.7 | AW18: 0.7 | AX18: 0.7 | AY18: 0.7 | AZ18: 0.7 | BA18: 10 | BC18: 0.05 | BD18: 0.05 | BE18: 0.05 | BF18: 0.05 | BG18: 0.05 | BH18: =2010 -> 2010 | BI18: =InputsStatic!O19 -> 12 | BJ18: =InputsNOMAD!AG19 -> 0.86 | BK18: =InputsStatic!P19 -> 2000 | BL18: =InputsNOMAD!AH19 -> 0.00823 | BM18: =InputsNOMAD!AI19 -> 0.48 | BN18: =InputsStatic!J19 -> 148 | BP18: =InputsStatic!AB19 -> 0.7301041667 | BR18: 0 | BS18: 1 | BT18: 0 | BU18: 0 | BV18: 0 | BW18: 0 | BX18: 0 | BY18: 0 | BZ18: 0 | CA18: 0 | CB18: 0 | CC18: 0 | CD18: 1 | CL18: 0 | CQ18: =InputsTimeDependentUnits!D19 -> 3300 | CR18: =InputsTimeDependentUnits!E19 -> 3300 | CS18: =InputsTimeDependentUnits!F19 -> 3300 | CT18: =InputsTimeDependentUnits!G19 -> 3300 | CU18: =InputsTimeDependentUnits!H19 -> 3300 | CV18: =InputsTimeDependentUnits!I19 -> 3300 | CW18: =InputsTimeDependentUnits!J19 -> 3300 | CX18: =InputsTimeDependentUnits!K19 -> 3300 | CY18: =InputsTimeDependentUnits!L19 -> 3300 | CZ18: =InputsTimeDependentUnits!M19 -> 3300 | DA18: =InputsTimeDependentUnits!N19 -> 3300 | DB18: =InputsTimeDependentUnits!O19 -> 3300 | DC18: =InputsTimeDependentUnits!P19 -> 3300 | DD18: =InputsTimeDependentUnits!Q19 -> 3300 | DE18: =InputsTimeDependentUnits!R19 -> 3300 | DF18: =DE18 -> 3300 | DG18: 3300 | DH18: 3300 | DI18: 3300 | DJ18: 3300 | DK18: 3300 | DL18: 3300 | DM18: 3300 | DN18: 3300 | DO18: 3300 | DW18: 1 | DX18: 1 | DY18: 1 | DZ18: 1 | EA18: 1 | EB18: 1 | EC18: 1 | ED18: 1 | EE18: 1 | EF18: 1 | EG18: 1 | EH18: 1 | EI18: 1 | EJ18: 1 | EK18: 1 | EL18: 1 | EM18: 1 | EN18: 1 | EO18: 1 | EP18: 1 | EQ18: 1 | ER18: 1 | ES18: 1 | ET18: 1 | EU18: 1
A19: 0 | B19: Std15 | C19: 16 | D19: External Power Supplies, Tier 1 | E19: 103.2 | F19: 11.7 | G19: 0 | H19: =InputsStatic!I20 -> 2007-01-01 | I19: =InputsStatic!K20 -> 7 | J19: 0.015 | K19: 1 | L19: 0 | M19: =IF(Dashboard!$F$33="YES",I19,100) -> 7 | P19: =InputsStatic!L20 -> 3.76 | Q19: =InputsStatic!M20 -> 0.0004271067961 | R19: =InputsStatic!N20 -> 0 | S19: -0.01208388048 | U19: 0 | V19: 27400000 | W19: 27400000 | X19: 27400000 | Y19: 27400000 | Z19: 27400000 | AA19: 27400000 | AB19: 27400000 | AC19: 27400000 | AD19: 27400000 | AE19: 27400000 | AF19: 27400000 | AG19: 27400000 | AH19: 27400000 | AI19: 27400000 | AJ19: 103.024 | AK19: 0 | AL19: =InputsTimeDependentCompliance!D20 -> 0 | AM19: =InputsTimeDependentCompliance!E20 -> 1 | AN19: =InputsTimeDependentCompliance!F20 -> 1 | AO19: =InputsTimeDependentCompliance!G20 -> 1 | AP19: 1 | AQ19: 1 | AR19: 1 | AS19: 1 | AT19: 1 | AU19: =AT19 -> 1 | AV19: 1 | AW19: 1 | AX19: 1 | AY19: 1 | AZ19: 1 | BA19: 10 | BC19: 0 | BD19: 0 | BE19: 0 | BF19: 0 | BG19: 0 | BH19: =2010 -> 2010 | BI19: =InputsStatic!O20 -> 6 | BJ19: =InputsNOMAD!AG20 -> 0.67 | BK19: =InputsStatic!P20 -> 2000 | BL19: =InputsNOMAD!AH20 -> 0.02549 | BM19: =InputsNOMAD!AI20 -> 0.35551 | BN19: =InputsStatic!J20 -> 0 | BP19: =InputsStatic!AB20 -> 0.5770833333 | BR19: 0 | BS19: 1 | BT19: 0 | BU19: 0 | BV19: 0 | BW19: 0 | BX19: 0 | BY19: 0 | BZ19: 0 | CA19: 0 | CB19: 0 | CC19: 0 | CD19: 1 | CL19: 0 | CQ19: =InputsTimeDependentUnits!D20 -> 0 | CR19: =InputsTimeDependentUnits!E20 -> 27400000 | CS19: =InputsTimeDependentUnits!F20 -> 27400000 | CT19: =InputsTimeDependentUnits!G20 -> 27400000 | CU19: =InputsTimeDependentUnits!H20 -> 27400000 | CV19: =InputsTimeDependentUnits!I20 -> 27400000 | CW19: =InputsTimeDependentUnits!J20 -> 27400000 | CX19: =InputsTimeDependentUnits!K20 -> 27400000 | CY19: =InputsTimeDependentUnits!L20 -> 27400000 | CZ19: =InputsTimeDependentUnits!M20 -> 27400000 | DA19: =InputsTimeDependentUnits!N20 -> 27400000 | DB19: =InputsTimeDependentUnits!O20 -> 27400000 | DC19: =InputsTimeDependentUnits!P20 -> 27400000 | DD19: =InputsTimeDependentUnits!Q20 -> 27400000 | DE19: =InputsTimeDependentUnits!R20 -> 27400000 | DF19: =DE19 -> 27400000 | DG19: 27400000 | DH19: 27400000 | DI19: 27400000 | DJ19: 27400000 | DK19: 27400000 | DL19: 27400000 | DM19: 27400000 | DN19: 27400000 | DO19: 27400000 | DW19: 1 | DX19: 1 | DY19: 1 | DZ19: 1 | EA19: 1 | EB19: 1 | EC19: 1 | ED19: 1 | EE19: 1 | EF19: 1 | EG19: 1 | EH19: 1 | EI19: 1 | EJ19: 1 | EK19: 1 | EL19: 1 | EM19: 1 | EN19: 1 | EO19: 1 | EP19: 1 | EQ19: 1 | ER19: 1 | ES19: 1 | ET19: 1 | EU19: 1
A20: 0 | B20: Std16 | C20: 17 | D20: External Power Supplies, Tier 2 | E20: 18.6 | F20: 2.1 | G20: 0 | H20: =InputsStatic!I21 -> 2008-07-01 | I20: =InputsStatic!K21 -> 7 | J20: 0.015 | K20: 1 | L20: 0 | M20: =IF(Dashboard!$F$33="YES",I20,100) -> 7 | P20: =InputsStatic!L21 -> 0.68 | Q20: =InputsStatic!M21 -> 7.677419355e-05 | R20: =InputsStatic!N21 -> 0 | S20: -0.01208388048 | U20: 0 | V20: 0 | W20: 27400000 | X20: 27400000 | Y20: 27400000 | Z20: 27400000 | AA20: 27400000 | AB20: 27400000 | AC20: 27400000 | AD20: 27400000 | AE20: 27400000 | AF20: 27400000 | AG20: 27400000 | AH20: 27400000 | AI20: 27400000 | AJ20: 18.632 | AK20: 0 | AL20: =InputsTimeDependentCompliance!D21 -> 0 | AM20: =InputsTimeDependentCompliance!E21 -> 0 | AN20: =InputsTimeDependentCompliance!F21 -> 0.987 | AO20: =InputsTimeDependentCompliance!G21 -> 0.987 | AP20: 0.987 | AQ20: 0.987 | AR20: 0.987 | AS20: 0.987 | AT20: 0.987 | AU20: =AT20 -> 0.987 | AV20: 0.987 | AW20: 0.987 | AX20: 0.987 | AY20: 0.987 | AZ20: 0.987 | BA20: 10 | BC20: 0.013 | BD20: 0.013 | BE20: 0.013 | BF20: 0.013 | BG20: 0.013 | BH20: =2010 -> 2010 | BI20: =InputsStatic!O21 -> 9 | BJ20: =InputsNOMAD!AG21 -> 0.43 | BK20: =InputsStatic!P21 -> 2000 | BL20: =InputsNOMAD!AH21 -> 0.01208 | BM20: =InputsNOMAD!AI21 -> 0.38571 | BN20: =InputsStatic!J21 -> 0 | BP20: =InputsStatic!AB21 -> 0.5770833333 | BR20: 0 | BS20: 1 | BT20: 0 | BU20: 0 | BV20: 0 | BW20: 0 | BX20: 0 | BY20: 0 | BZ20: 0 | CA20: 0 | CB20: 0 | CC20: 0 | CD20: 1 | CL20: 0 | CQ20: =InputsTimeDependentUnits!D21 -> 0 | CR20: =InputsTimeDependentUnits!E21 -> 0 | CS20: =InputsTimeDependentUnits!F21 -> 27400000 | CT20: =InputsTimeDependentUnits!G21 -> 27400000 | CU20: =InputsTimeDependentUnits!H21 -> 27400000 | CV20: =InputsTimeDependentUnits!I21 -> 27400000 | CW20: =InputsTimeDependentUnits!J21 -> 27400000 | CX20: =InputsTimeDependentUnits!K21 -> 27400000 | CY20: =InputsTimeDependentUnits!L21 -> 27400000 | CZ20: =InputsTimeDependentUnits!M21 -> 27400000 | DA20: =InputsTimeDependentUnits!N21 -> 27400000 | DB20: =InputsTimeDependentUnits!O21 -> 27400000 | DC20: =InputsTimeDependentUnits!P21 -> 27400000 | DD20: =InputsTimeDependentUnits!Q21 -> 27400000 | DE20: =InputsTimeDependentUnits!R21 -> 27400000 | DF20: =DE20 -> 27400000 | DG20: 27400000 | DH20: 27400000 | DI20: 27400000 | DJ20: 27400000 | DK20: 27400000 | DL20: 27400000 | DM20: 27400000 | DN20: 27400000 | DO20: 27400000 | DW20: 1 | DX20: 1 | DY20: 1 | DZ20: 1 | EA20: 1 | EB20: 1 | EC20: 1 | ED20: 1 | EE20: 1 | EF20: 1 | EG20: 1 | EH20: 1 | EI20: 1 | EJ20: 1 | EK20: 1 | EL20: 1 | EM20: 1 | EN20: 1 | EO20: 1 | EP20: 1 | EQ20: 1 | ER20: 1 | ES20: 1 | ET20: 1 | EU20: 1
A21: 0 | B21: Std17 | C21: 18 | D21: Consumer Electronics - Audio Players | E21: 49.3 | F21: 5.6 | G21: 0 | H21: =InputsStatic!I22 -> 2007-01-01 | I21: =InputsStatic!K22 -> 5 | J21: 0.01 | K21: 1 | L21: 0 | M21: =IF(Dashboard!$F$33="YES",I21,100) -> 5 | P21: =InputsStatic!L22 -> 44.676 | Q21: =InputsStatic!M22 -> 0.005074758621 | R21: =InputsStatic!N22 -> 0 | S21: -0.01581196581 | U21: 0 | V21: 1102970 | W21: 1102970 | X21: 1102970 | Y21: 1102970 | Z21: 1102970 | AA21: 1102970 | AB21: 1102970 | AC21: 1102970 | AD21: 1102970 | AE21: 1102970 | AF21: 1102970 | AG21: 1102970 | AH21: 1102970 | AI21: 1102970 | AJ21: 49.27628772 | AK21: 0 | AL21: =InputsTimeDependentCompliance!D22 -> 0 | AM21: =InputsTimeDependentCompliance!E22 -> 1 | AN21: =InputsTimeDependentCompliance!F22 -> 1 | AO21: =InputsTimeDependentCompliance!G22 -> 1 | AP21: 1 | AQ21: 1 | AR21: 1 | AS21: 1 | AT21: 1 | AU21: =AT21 -> 1 | AV21: 1 | AW21: 1 | AX21: 1 | AY21: 1 | AZ21: 1 | BA21: 10 | BC21: 0 | BD21: 0 | BE21: 0 | BF21: 0 | BG21: 0 | BH21: =2010 -> 2010 | BI21: =InputsStatic!O22 -> 6 | BJ21: =InputsNOMAD!AG22 -> 0.8 | BK21: =InputsStatic!P22 -> 2000 | BL21: =InputsNOMAD!AH22 -> 0.04009 | BM21: =InputsNOMAD!AI22 -> 0.43149 | BN21: =InputsStatic!J22 -> 0 | BP21: =InputsStatic!AB22 -> 0.8141666667 | BR21: 0 | BS21: 1 | BT21: 0 | BU21: 0 | BV21: 0 | BW21: 0 | BX21: 0 | BY21: 0 | BZ21: 0 | CA21: 0 | CB21: 0 | CC21: 0 | CD21: 1 | CL21: 0 | CQ21: =InputsTimeDependentUnits!D22 -> 0 | CR21: =InputsTimeDependentUnits!E22 -> 1102970 | CS21: =InputsTimeDependentUnits!F22 -> 1102970 | CT21: =InputsTimeDependentUnits!G22 -> 1102970 | CU21: =InputsTimeDependentUnits!H22 -> 1102970 | CV21: =InputsTimeDependentUnits!I22 -> 1102970 | CW21: =InputsTimeDependentUnits!J22 -> 1102970 | CX21: =InputsTimeDependentUnits!K22 -> 1102970 | CY21: =InputsTimeDependentUnits!L22 -> 1102970 | CZ21: =InputsTimeDependentUnits!M22 -> 1102970 | DA21: =InputsTimeDependentUnits!N22 -> 1102970 | DB21: =InputsTimeDependentUnits!O22 -> 1102970 | DC21: =InputsTimeDependentUnits!P22 -> 1102970 | DD21: =InputsTimeDependentUnits!Q22 -> 1102970 | DE21: =InputsTimeDependentUnits!R22 -> 1102970 | DF21: =DE21 -> 1102970 | DG21: 1102970 | DH21: 1102970 | DI21: 1102970 | DJ21: 1102970 | DK21: 1102970 | DL21: 1102970 | DM21: 1102970 | DN21: 1102970 | DO21: 1102970 | DW21: 1 | DX21: 1 | DY21: 1 | DZ21: 1 | EA21: 1 | EB21: 1 | EC21: 1 | ED21: 1 | EE21: 1 | EF21: 1 | EG21: 1 | EH21: 1 | EI21: 1 | EJ21: 1 | EK21: 1 | EL21: 1 | EM21: 1 | EN21: 1 | EO21: 1 | EP21: 1 | EQ21: 1 | ER21: 1 | ES21: 1 | ET21: 1 | EU21: 1
A22: 0 | B22: Std18a | C22: 19 | D22: Consumer Electronics - TVs | E22: 62.1 | F22: 7.1 | G22: 0 | H22: =InputsStatic!I23 -> 2006-01-01 | I22: =InputsStatic!K23 -> 7 | J22: 0.01 | K22: 1 | L22: 0 | M22: =IF(Dashboard!$F$33="YES",I22,100) -> 7 | P22: =InputsStatic!L23 -> 26.685 | Q22: =InputsStatic!M23 -> 0.003050942029 | R22: =InputsStatic!N23 -> 0 | S22: -0.01581196581 | U22: 2328000 | V22: 2328000 | W22: 2328000 | X22: 2328000 | Y22: 2328000 | Z22: 2328000 | AA22: 2328000 | AB22: 2328000 | AC22: 2328000 | AD22: 2328000 | AE22: 2328000 | AF22: 2328000 | AG22: 2328000 | AH22: 2328000 | AI22: 2328000 | AJ22: 62.12268 | AK22: 62.1 | AL22: =InputsTimeDependentCompliance!D23 -> 0.961 | AM22: =InputsTimeDependentCompliance!E23 -> 0.961 | AN22: =InputsTimeDependentCompliance!F23 -> 0.961 | AO22: =InputsTimeDependentCompliance!G23 -> 0.961 | AP22: 0.961 | AQ22: 0.961 | AR22: 0.961 | AS22: 0.961 | AT22: 0.961 | AU22: =AT22 -> 0.961 | AV22: 0.961 | AW22: 0.961 | AX22: 0.961 | AY22: 0.961 | AZ22: 0.961 | BA22: 10 | BC22: =MIN(5%,(100%-$AO22)) -> 0.039 | BD22: 0.039 | BE22: 0.039 | BF22: 0.039 | BG22: 0.039 | BH22: =2010 -> 2010 | BI22: =InputsStatic!O23 -> 6 | BJ22: =InputsNOMAD!AG23 -> 0.87 | BK22: =InputsStatic!P23 -> 2000 | BL22: =InputsNOMAD!AH23 -> 0.0536 | BM22: =InputsNOMAD!AI23 -> 0.50342 | BN22: =InputsStatic!J23 -> 0 | BP22: =InputsStatic!AB23 -> 0.8141666667 | BR22: 0 | BS22: 1 | BT22: 0 | BU22: 0 | BV22: 0 | BW22: 0 | BX22: 0 | BY22: 0 | BZ22: 0 | CA22: 0 | CB22: 0 | CC22: 0 | CD22: 1 | CL22: 0 | CQ22: =InputsTimeDependentUnits!D23 -> 2328000 | CR22: =InputsTimeDependentUnits!E23 -> 2328000 | CS22: =InputsTimeDependentUnits!F23 -> 2328000 | CT22: =InputsTimeDependentUnits!G23 -> 2328000 | CU22: =InputsTimeDependentUnits!H23 -> 2328000 | CV22: =InputsTimeDependentUnits!I23 -> 2328000 | CW22: =InputsTimeDependentUnits!J23 -> 2328000 | CX22: =InputsTimeDependentUnits!K23 -> 2328000 | CY22: =InputsTimeDependentUnits!L23 -> 2328000 | CZ22: =InputsTimeDependentUnits!M23 -> 2328000 | DA22: =InputsTimeDependentUnits!N23 -> 2328000 | DB22: =InputsTimeDependentUnits!O23 -> 2328000 | DC22: =InputsTimeDependentUnits!P23 -> 2328000 | DD22: =InputsTimeDependentUnits!Q23 -> 2328000 | DE22: =InputsTimeDependentUnits!R23 -> 2328000 | DF22: =DE22 -> 2328000 | DG22: 2328000 | DH22: 2328000 | DI22: 2328000 | DJ22: 2328000 | DK22: 2328000 | DL22: 2328000 | DM22: 2328000 | DN22: 2328000 | DO22: 2328000 | DW22: 1 | DX22: 1 | DY22: 1 | DZ22: 1 | EA22: 1 | EB22: 1 | EC22: 1 | ED22: 1 | EE22: 1 | EF22: 1 | EG22: 1 | EH22: 1 | EI22: 1 | EJ22: 1 | EK22: 1 | EL22: 1 | EM22: 1 | EN22: 1 | EO22: 1 | EP22: 1 | EQ22: 1 | ER22: 1 | ES22: 1 | ET22: 1 | EU22: 1
A23: 0 | B23: Std18b | C23: 20 | D23: Consumer Electronics - DVDs | E23: 11.8 | F23: 1.3 | G23: 0 | H23: =InputsStatic!I24 -> 2006-01-01 | I23: =InputsStatic!K24 -> 5 | J23: 0.01 | K23: 1 | L23: 0 | M23: =IF(Dashboard!$F$33="YES",I23,100) -> 5 | P23: =InputsStatic!L24 -> 7.579 | Q23: =InputsStatic!M24 -> 0.0008349745763 | R23: =InputsStatic!N24 -> 0 | S23: -0.01581196581 | U23: 1554000 | V23: 1554000 | W23: 1554000 | X23: 1554000 | Y23: 1554000 | Z23: 1554000 | AA23: 1554000 | AB23: 1554000 | AC23: 1554000 | AD23: 1554000 | AE23: 1554000 | AF23: 1554000 | AG23: 1554000 | AH23: 1554000 | AI23: 1554000 | AJ23: 11.777766 | AK23: 11.8 | AL23: =InputsTimeDependentCompliance!D24 -> 0.31 | AM23: =InputsTimeDependentCompliance!E24 -> 0.31 | AN23: =InputsTimeDependentCompliance!F24 -> 0.31 | AO23: =InputsTimeDependentCompliance!G24 -> 0.31 | AP23: 0.31 | AQ23: 0.31 | AR23: 0.31 | AS23: 0.31 | AT23: 0.31 | AU23: =AT23 -> 0.31 | AV23: 0.31 | AW23: 0.31 | AX23: 0.31 | AY23: 0.31 | AZ23: 0.31 | BA23: 10 | BC23: 0.05 | BD23: 0.05 | BE23: 0.05 | BF23: 0.05 | BG23: 0.05 | BH23: =2010 -> 2010 | BI23: =InputsStatic!O24 -> 6 | BJ23: =InputsNOMAD!AG24 -> 0.75 | BK23: =InputsStatic!P24 -> 2000 | BL23: =InputsNOMAD!AH24 -> 0.12574 | BM23: =InputsNOMAD!AI24 -> 0.09946 | BN23: =InputsStatic!J24 -> 0 | BP23: =InputsStatic!AB24 -> 0.8141666667 | BR23: 0 | BS23: 1 | BT23: 0 | BU23: 0 | BV23: 0 | BW23: 0 | BX23: 0 | BY23: 0 | BZ23: 0 | CA23: 0 | CB23: 0 | CC23: 0 | CD23: 1 | CL23: 0 | CQ23: =InputsTimeDependentUnits!D24 -> 1554000 | CR23: =InputsTimeDependentUnits!E24 -> 1554000 | CS23: =InputsTimeDependentUnits!F24 -> 1554000 | CT23: =InputsTimeDependentUnits!G24 -> 1554000 | CU23: =InputsTimeDependentUnits!H24 -> 1554000 | CV23: =InputsTimeDependentUnits!I24 -> 1554000 | CW23: =InputsTimeDependentUnits!J24 -> 1554000 | CX23: =InputsTimeDependentUnits!K24 -> 1554000 | CY23: =InputsTimeDependentUnits!L24 -> 1554000 | CZ23: =InputsTimeDependentUnits!M24 -> 1554000 | DA23: =InputsTimeDependentUnits!N24 -> 1554000 | DB23: =InputsTimeDependentUnits!O24 -> 1554000 | DC23: =InputsTimeDependentUnits!P24 -> 1554000 | DD23: =InputsTimeDependentUnits!Q24 -> 1554000 | DE23: =InputsTimeDependentUnits!R24 -> 1554000 | DF23: =DE23 -> 1554000 | DG23: 1554000 | DH23: 1554000 | DI23: 1554000 | DJ23: 1554000 | DK23: 1554000 | DL23: 1554000 | DM23: 1554000 | DN23: 1554000 | DO23: 1554000 | DW23: 1 | DX23: 1 | DY23: 1 | DZ23: 1 | EA23: 1 | EB23: 1 | EC23: 1 | ED23: 1 | EE23: 1 | EF23: 1 | EG23: 1 | EH23: 1 | EI23: 1 | EJ23: 1 | EK23: 1 | EL23: 1 | EM23: 1 | EN23: 1 | EO23: 1 | EP23: 1 | EQ23: 1 | ER23: 1 | ES23: 1 | ET23: 1 | EU23: 1
A24: 0 | B24: Std19 | C24: 21 | D24: Water Dispensers | E24: 6.15 | F24: 0.8 | G24: 0 | H24: =InputsStatic!I25 -> 2006-01-01 | I24: =InputsStatic!K25 -> 8 | J24: 0.015 | K24: 1 | L24: 0 | M24: =IF(Dashboard!$F$33="YES",I24,100) -> 8 | P24: =InputsStatic!L25 -> 266.45 | Q24: =InputsStatic!M25 -> 0.03471661238 | R24: =InputsStatic!N25 -> 0 | S24: -0.01208388048 | U24: 23100 | V24: 23100 | W24: 23100 | X24: 23100 | Y24: 23100 | Z24: 23100 | AA24: 23100 | AB24: 23100 | AC24: 23100 | AD24: 23100 | AE24: 23100 | AF24: 23100 | AG24: 23100 | AH24: 23100 | AI24: 23100 | AJ24: 6.154995 | AK24: 6.15 | AL24: =InputsTimeDependentCompliance!D25 -> 0.7 | AM24: =InputsTimeDependentCompliance!E25 -> 0.7 | AN24: =InputsTimeDependentCompliance!F25 -> 0.7 | AO24: =InputsTimeDependentCompliance!G25 -> 0.7 | AP24: 0.7 | AQ24: 0.7 | AR24: 0.7 | AS24: 0.7 | AT24: 0.7 | AU24: =AT24 -> 0.7 | AV24: 0.7 | AW24: 0.7 | AX24: 0.7 | AY24: 0.7 | AZ24: 0.7 | BA24: 10 | BC24: 0.05 | BD24: 0.05 | BE24: 0.05 | BF24: 0.05 | BG24: 0.05 | BH24: =2010 -> 2010 | BI24: =InputsStatic!O25 -> 12 | BJ24: =InputsNOMAD!AG25 -> 0.61 | BK24: =InputsStatic!P25 -> 2000 | BL24: =InputsNOMAD!AH25 -> 0.03664 | BM24: =InputsNOMAD!AI25 -> 0.34288 | BN24: =InputsStatic!J25 -> 0 | BP24: =InputsStatic!AB25 -> 0.795 | BR24: 0 | BS24: 1 | BT24: 0 | BU24: 0 | BV24: 0 | BW24: 0 | BX24: 0 | BY24: 0 | BZ24: 0 | CA24: 0 | CB24: 0 | CC24: 0 | CD24: 1 | CL24: 0 | CQ24: =InputsTimeDependentUnits!D25 -> 23100 | CR24: =InputsTimeDependentUnits!E25 -> 23100 | CS24: =InputsTimeDependentUnits!F25 -> 23100 | CT24: =InputsTimeDependentUnits!G25 -> 23100 | CU24: =InputsTimeDependentUnits!H25 -> 23100 | CV24: =InputsTimeDependentUnits!I25 -> 23100 | CW24: =InputsTimeDependentUnits!J25 -> 23100 | CX24: =InputsTimeDependentUnits!K25 -> 23100 | CY24: =InputsTimeDependentUnits!L25 -> 23100 | CZ24: =InputsTimeDependentUnits!M25 -> 23100 | DA24: =InputsTimeDependentUnits!N25 -> 23100 | DB24: =InputsTimeDependentUnits!O25 -> 23100 | DC24: =InputsTimeDependentUnits!P25 -> 23100 | DD24: =InputsTimeDependentUnits!Q25 -> 23100 | DE24: =InputsTimeDependentUnits!R25 -> 23100 | DF24: =DE24 -> 23100 | DG24: 23100 | DH24: 23100 | DI24: 23100 | DJ24: 23100 | DK24: 23100 | DL24: 23100 | DM24: 23100 | DN24: 23100 | DO24: 23100 | DW24: 1 | DX24: 1 | DY24: 1 | DZ24: 1 | EA24: 1 | EB24: 1 | EC24: 1 | ED24: 1 | EE24: 1 | EF24: 1 | EG24: 1 | EH24: 1 | EI24: 1 | EJ24: 1 | EK24: 1 | EL24: 1 | EM24: 1 | EN24: 1 | EO24: 1 | EP24: 1 | EQ24: 1 | ER24: 1 | ES24: 1 | ET24: 1 | EU24: 1
A25: 0 | B25: Std20 | C25: 22 | D25: Unit Heaters and Duct Furnaces | E25: 0 | F25: 0 | G25: 2.47 | H25: =InputsStatic!I26 -> 2006-01-01 | I25: =InputsStatic!K26 -> 15 | J25: 0.02 | K25: 1 | L25: 0 | M25: =IF(Dashboard!$F$33="YES",I25,100) -> 15 | P25: =InputsStatic!L26 -> 0 | Q25: =InputsStatic!M26 -> 0 | R25: =InputsStatic!N26 -> 229 | S25: 0 | U25: 10800 | V25: 10800 | W25: 10800 | X25: 10800 | Y25: 10800 | Z25: 10800 | AA25: 10800 | AB25: 10800 | AC25: 10800 | AD25: 10800 | AE25: 10800 | AF25: 10800 | AG25: 10800 | AH25: 10800 | AI25: 10800 | AJ25: 0 | AK25: 0 | AL25: =InputsTimeDependentCompliance!D26 -> 1 | AM25: =InputsTimeDependentCompliance!E26 -> 1 | AN25: =InputsTimeDependentCompliance!F26 -> 1 | AO25: =InputsTimeDependentCompliance!G26 -> 1 | AP25: 1 | AQ25: 1 | AR25: 1 | AS25: 1 | AT25: 1 | AU25: =AT25 -> 1 | AV25: 1 | AW25: 1 | AX25: 1 | AY25: 1 | AZ25: 1 | BA25: 10 | BC25: 0 | BD25: 0 | BE25: 0 | BF25: 0 | BG25: 0 | BH25: =2010 -> 2010 | BI25: =InputsStatic!O26 -> 9 | BJ25: =InputsNOMAD!AG26 -> 0.31 | BK25: =InputsStatic!P26 -> 1965 | BL25: =InputsNOMAD!AH26 -> 0.00708 | BM25: =InputsNOMAD!AI26 -> 0.09653 | BN25: =InputsStatic!J26 -> 0 | BP25: =InputsStatic!AB26 -> 0.727875 | BR25: 0 | BS25: 1 | BT25: 0 | BU25: 0 | BV25: 0 | BW25: 0 | BX25: 0 | BY25: 0 | BZ25: 0 | CA25: 0 | CB25: 0 | CC25: 0 | CD25: 1 | CL25: 0 | CQ25: =InputsTimeDependentUnits!D26 -> 10800 | CR25: =InputsTimeDependentUnits!E26 -> 10800 | CS25: =InputsTimeDependentUnits!F26 -> 10800 | CT25: =InputsTimeDependentUnits!G26 -> 10800 | CU25: =InputsTimeDependentUnits!H26 -> 10800 | CV25: =InputsTimeDependentUnits!I26 -> 10800 | CW25: =InputsTimeDependentUnits!J26 -> 10800 | CX25: =InputsTimeDependentUnits!K26 -> 10800 | CY25: =InputsTimeDependentUnits!L26 -> 10800 | CZ25: =InputsTimeDependentUnits!M26 -> 10800 | DA25: =InputsTimeDependentUnits!N26 -> 10800 | DB25: =InputsTimeDependentUnits!O26 -> 10800 | DC25: =InputsTimeDependentUnits!P26 -> 10800 | DD25: =InputsTimeDependentUnits!Q26 -> 10800 | DE25: =InputsTimeDependentUnits!R26 -> 10800 | DF25: =DE25 -> 10800 | DG25: 10800 | DH25: 10800 | DI25: 10800 | DJ25: 10800 | DK25: 10800 | DL25: 10800 | DM25: 10800 | DN25: 10800 | DO25: 10800 | DW25: 1 | DX25: 1 | DY25: 1 | DZ25: 1 | EA25: 1 | EB25: 1 | EC25: 1 | ED25: 1 | EE25: 1 | EF25: 1 | EG25: 1 | EH25: 1 | EI25: 1 | EJ25: 1 | EK25: 1 | EL25: 1 | EM25: 1 | EN25: 1 | EO25: 1 | EP25: 1 | EQ25: 1 | ER25: 1 | ES25: 1 | ET25: 1 | EU25: 1
A26: 0 | B26: Std21 | C26: 23 | D26: Commercial Dishwasher Pre-Rinse Spray Valves | E26: 3.18 | F26: 0 | G26: 1.02 | H26: =InputsStatic!I27 -> 2006-01-01 | I26: =InputsStatic!K27 -> 5 | J26: 0.02 | K26: 1 | L26: 0 | M26: =IF(Dashboard!$F$33="YES",I26,100) -> 5 | P26: =InputsStatic!L27 -> 0 | Q26: =InputsStatic!M27 -> 0 | R26: =InputsStatic!N27 -> 0 | S26: 0 | U26: 9000 | V26: 9000 | W26: 9000 | X26: 9000 | Y26: 9000 | Z26: 9000 | AA26: 9000 | AB26: 9000 | AC26: 9000 | AD26: 9000 | AE26: 9000 | AF26: 9000 | AG26: 9000 | AH26: 9000 | AI26: 9000 | AJ26: 0 | AK26: 3.18 | AL26: =InputsTimeDependentCompliance!D27 -> 1 | AM26: =InputsTimeDependentCompliance!E27 -> 1 | AN26: =InputsTimeDependentCompliance!F27 -> 1 | AO26: =InputsTimeDependentCompliance!G27 -> 1 | AP26: 1 | AQ26: 1 | AR26: 1 | AS26: 1 | AT26: 1 | AU26: =AT26 -> 1 | AV26: 1 | AW26: 1 | AX26: 1 | AY26: 1 | AZ26: 1 | BA26: 10 | BC26: 0 | BD26: 0 | BE26: 0 | BF26: 0 | BG26: 0 | BH26: =2010 -> 2010 | BI26: =InputsStatic!O27 -> 9 | BJ26: =InputsNOMAD!AG27 -> 0.83 | BK26: =InputsStatic!P27 -> 2003 | BL26: =InputsNOMAD!AH27 -> 0.03926 | BM26: =InputsNOMAD!AI27 -> 0.38936 | BN26: =InputsStatic!J27 -> 0 | BP26: =InputsStatic!AB27 -> 0.64375 | BR26: 0 | BS26: 1 | BT26: 0 | BU26: 0 | BV26: 0 | BW26: 0 | BX26: 0 | BY26: 0 | BZ26: 0 | CA26: 0 | CB26: 0 | CC26: 0 | CD26: 1 | CL26: 0 | CQ26: =InputsTimeDependentUnits!D27 -> 9000 | CR26: =InputsTimeDependentUnits!E27 -> 9000 | CS26: =InputsTimeDependentUnits!F27 -> 9000 | CT26: =InputsTimeDependentUnits!G27 -> 9000 | CU26: =InputsTimeDependentUnits!H27 -> 9000 | CV26: =InputsTimeDependentUnits!I27 -> 9000 | CW26: =InputsTimeDependentUnits!J27 -> 9000 | CX26: =InputsTimeDependentUnits!K27 -> 9000 | CY26: =InputsTimeDependentUnits!L27 -> 9000 | CZ26: =InputsTimeDependentUnits!M27 -> 9000 | DA26: =InputsTimeDependentUnits!N27 -> 9000 | DB26: =InputsTimeDependentUnits!O27 -> 9000 | DC26: =InputsTimeDependentUnits!P27 -> 9000 | DD26: =InputsTimeDependentUnits!Q27 -> 9000 | DE26: =InputsTimeDependentUnits!R27 -> 9000 | DF26: =DE26 -> 9000 | DG26: 9000 | DH26: 9000 | DI26: 9000 | DJ26: 9000 | DK26: 9000 | DL26: 9000 | DM26: 9000 | DN26: 9000 | DO26: 9000 | DW26: 1 | DX26: 1 | DY26: 1 | DZ26: 1 | EA26: 1 | EB26: 1 | EC26: 1 | ED26: 1 | EE26: 1 | EF26: 1 | EG26: 1 | EH26: 1 | EI26: 1 | EJ26: 1 | EK26: 1 | EL26: 1 | EM26: 1 | EN26: 1 | EO26: 1 | EP26: 1 | EQ26: 1 | ER26: 1 | ES26: 1 | ET26: 1 | EU26: 1
A27: 0 | C27: =C26+1 -> 24 | D27: =Dashboard!E16 -> 2006 T-20 | E27: =E30+E31+E28+E29 -> 597.3 | F27: =F30+F31+F28+F29 -> 86.57 | G27: =G30+G31+G28+G29 -> 0 | I27: =SUMPRODUCT(E5:E26,I5:I26)/SUM(E5:E26) -> 8.561741911 | P27: =(P28*$CU28+P29*$CU29+P30*$CU30+P31*$CU31)/1000000 -> 596.944089 | Q27: =(Q28*$CU28+Q29*$CU29+Q30*$CU30+Q31*$CU31)/1000 -> 86.56545831 | R27: =(R28*$CU28+R29*$CU29+R30*$CU30+R31*$CU31)/1000000 -> 0 | AJ27: =SUMPRODUCT(AJ28:AJ31,AP28:AP31) -> 410.0400033 | BR27: 0 | BS27: 0 | BT27: 0 | BU27: 0 | BV27: 0 | BW27: 0 | BX27: 0 | BY27: 0 | BZ27: 0 | CA27: 0 | CB27: 0 | CC27: 0 | CD27: 0 | CL27: 0
A28: 0 | B28: Std9 | C28: =C27+1 -> 25 | D28: Residential Pool Pumps, 2-speed Motors, Tier 2 | E28: 103.5 | F28: 23.9 | G28: 0 | H28: =InputsStatic!I12 -> 2008-01-01 | I28: =InputsStatic!K12 -> 10 | J28: 0.01 | K28: 1 | L28: 0 | M28: =IF(Dashboard!$F$33="YES",I28,100) -> 10 | P28: 725.16 | Q28: 0.1674524058 | R28: =G28*1000000/$CS28 -> 0 | S28: 0 | U28: =CQ28*DW28 -> 0 | V28: 0 | W28: 142700 | X28: 142700 | Y28: 142700 | Z28: 142700 | AA28: 142700 | AB28: 142700 | AC28: 142700 | AD28: 142700 | AE28: 142700 | AF28: 142700 | AG28: 142700 | AH28: 142700 | AI28: 142700 | AJ28: =(P28*CU28)/1000000 -> 103.480332 | AK28: =IF(AL28>0,E28,0) -> 0 | AL28: =InputsTimeDependentCompliance!D12 -> 0 | AM28: =InputsTimeDependentCompliance!E12 -> 0 | AN28: =InputsTimeDependentCompliance!F12 -> 0.936 | AO28: =InputsTimeDependentCompliance!G12 -> 0.936 | AP28: =IF(SEandT_ON=$BG$2,$AO28,$AO28+BC28) -> 0.936 | AQ28: 0.936 | AR28: 0.936 | AS28: 0.936 | AT28: 0.936 | AU28: =AT28 -> 0.936 | AV28: 0.936 | AW28: 0.936 | AX28: 0.936 | AY28: 0.936 | AZ28: 0.936 | BA28: =$BA$4 -> 10 | BC28: 0.05 | BD28: 0.05 | BE28: 0.05 | BF28: 0.05 | BG28: 0.05 | BH28: 2010 | BI28: =InputsStatic!O12 -> 24 | BJ28: =InputsNOMAD!AG12 -> 0.11 | BK28: =InputsStatic!P12 -> 1975 | BL28: =InputsNOMAD!AH12 -> 0.00043 | BM28: =InputsNOMAD!AI12 -> 0.20166 | BN28: =InputsStatic!J12 -> 771 | BP28: =InputsStatic!AB12 -> 0.7897916667 | BR28: 0 | BS28: 0 | BT28: 1 | BU28: 0 | BV28: 0 | BW28: 0 | BX28: 0 | BY28: 0 | BZ28: 0 | CA28: 0 | CB28: 0 | CC28: 0 | CD28: 1 | CL28: 0 | CQ28: =InputsTimeDependentUnits!D12 -> 0 | CR28: =InputsTimeDependentUnits!E12 -> 0 | CS28: =InputsTimeDependentUnits!F12 -> 142700 | CT28: =InputsTimeDependentUnits!G12 -> 142700 | CU28: =InputsTimeDependentUnits!H12 -> 142700 | CV28: =InputsTimeDependentUnits!I12 -> 142700 | CW28: =InputsTimeDependentUnits!J12 -> 142700 | CX28: =InputsTimeDependentUnits!K12 -> 142700 | CY28: =InputsTimeDependentUnits!L12 -> 142700 | CZ28: =InputsTimeDependentUnits!M12 -> 142700 | DA28: =InputsTimeDependentUnits!N12 -> 142700 | DB28: =InputsTimeDependentUnits!O12 -> 142700 | DC28: =InputsTimeDependentUnits!P12 -> 142700 | DD28: =InputsTimeDependentUnits!Q12 -> 142700 | DE28: =InputsTimeDependentUnits!R12 -> 142700 | DF28: =DE28 -> 142700 | DG28: 142700 | DH28: 142700 | DI28: 142700 | DJ28: 142700 | DK28: 142700 | DL28: 142700 | DM28: 142700 | DN28: 142700 | DO28: 142700 | DW28: 1 | DX28: 1 | DY28: 1 | DZ28: 1 | EA28: 1 | EB28: 1 | EC28: 1 | ED28: 1 | EE28: 1 | EF28: 1 | EG28: 1 | EH28: 1 | EI28: 1 | EJ28: 1 | EK28: 1 | EL28: 1 | EM28: 1 | EN28: 1 | EO28: 1 | EP28: 1 | EQ28: 1 | ER28: 1 | ES28: 1 | ET28: 1 | EU28: 1
A29: 0 | B29: Std11b | C29: =C28+1 -> 26 | D29: General Service Incandescent Lamps, Tier 2 | E29: 254.5 | F29: 31.4 | G29: 0 | H29: =InputsStatic!I15 -> 2008-01-01 | I29: =InputsStatic!K15 -> 1 | J29: 0.015 | K29: 1 | L29: 0 | M29: =IF(Dashboard!$F$33="YES",I29,100) -> 1 | P29: 3.42 | Q29: =F29*1000/$CS29 -> 0.0004225150009 | R29: =G29*1000000/$CS29 -> 0 | S29: -0.01765 | U29: 0 | V29: 0 | W29: 74316888 | X29: 74316888 | Y29: 74316888 | Z29: 74316888 | AA29: 74316888 | AB29: 74316888 | AC29: 74316888 | AD29: 74316888 | AE29: 74316888 | AF29: 74316888 | AG29: 74316888 | AH29: 74316888 | AI29: 74316888 | AJ29: =(P29*CU29)/1000000 -> 254.163757 | AK29: =IF(AL29>0,E29,0) -> 0 | AL29: =InputsTimeDependentCompliance!D15 -> 0 | AM29: =InputsTimeDependentCompliance!E15 -> 0 | AN29: =InputsTimeDependentCompliance!F15 -> 0.436 | AO29: =InputsTimeDependentCompliance!G15 -> 0.436 | AP29: 0.436 | AQ29: 0.436 | AR29: 0.436 | AS29: 0.436 | AT29: 0.436 | AU29: =AT29 -> 0.436 | AV29: 0.436 | AW29: 0.436 | AX29: 0.436 | AY29: 0.436 | AZ29: 0.436 | BA29: 10 | BC29: 0.05 | BD29: 0.05 | BE29: 0.05 | BF29: 0.05 | BG29: 0.05 | BH29: 2010 | BI29: =InputsStatic!O15 -> 18 | BJ29: =InputsNOMAD!AG15 -> 0.09 | BK29: =InputsStatic!P15 -> 1970 | BL29: =InputsNOMAD!AH15 -> 7e-05 | BM29: =InputsNOMAD!AI15 -> 0.21307 | BN29: =InputsStatic!J15 -> 0 | BP29: =InputsStatic!AB15 -> 0.735 | BR29: 0 | BS29: 0 | BT29: 1 | BU29: 0 | BV29: 0 | BW29: 0 | BX29: 0 | BY29: 0 | BZ29: 0 | CA29: 0 | CB29: 0 | CC29: 0 | CD29: 1 | CL29: 1 | CQ29: =InputsTimeDependentUnits!D15 -> 0 | CR29: =InputsTimeDependentUnits!E15 -> 0 | CS29: =InputsTimeDependentUnits!F15 -> 74316888 | CT29: =InputsTimeDependentUnits!G15 -> 74316888 | CU29: =InputsTimeDependentUnits!H15 -> 74316888 | CV29: =InputsTimeDependentUnits!I15 -> 74316888 | CW29: =InputsTimeDependentUnits!J15 -> 74316888 | CX29: =InputsTimeDependentUnits!K15 -> 74316888 | CY29: =InputsTimeDependentUnits!L15 -> 74316888 | CZ29: =InputsTimeDependentUnits!M15 -> 74316888 | DA29: =InputsTimeDependentUnits!N15 -> 74316888 | DB29: =InputsTimeDependentUnits!O15 -> 74316888 | DC29: =InputsTimeDependentUnits!P15 -> 74316888 | DD29: =InputsTimeDependentUnits!Q15 -> 74316888 | DE29: =InputsTimeDependentUnits!R15 -> 74316888 | DF29: =DE29 -> 74316888 | DG29: 74316888 | DH29: 74316888 | DI29: 74316888 | DJ29: 74316888 | DK29: 74316888 | DL29: 74316888 | DM29: 74316888 | DN29: 74316888 | DO29: 74316888 | DW29: 1 | DX29: 1 | DY29: 1 | DZ29: 1 | EA29: 1 | EB29: 1 | EC29: 1 | ED29: 1 | EE29: 1 | EF29: 1 | EG29: 1 | EH29: 1 | EI29: 1 | EJ29: 1 | EK29: 1 | EL29: 1 | EM29: 1 | EN29: 1 | EO29: 1 | EP29: 1 | EQ29: 1 | ER29: 1 | ES29: 1 | ET29: 1 | EU29: 1
A30: 0 | B30: Std22a | C30: =C29+1 -> 27 | D30: BR, ER and R20 Incandescent Reflector Lamps: Residential | E30: 81.1 | F30: 10.06 | H30: 2008-01-08 | I30: 4 | J30: 0.015 | K30: 1 | L30: 0 | M30: =IF(Dashboard!$F$33="YES",I30,100) -> 4 | P30: 1000 | Q30: =F30*1000/$DE30 -> 0.1240443896 | R30: =G30*1000000/DE30 -> 0 | S30: -0.0234 | W30: =CS30*DY30 -> 81100 | X30: 81100 | Y30: 81100 | Z30: 81100 | AA30: 81100 | AB30: 81100 | AC30: 81100 | AD30: 81100 | AE30: 81100 | AF30: 81100 | AG30: 81100 | AH30: 81100 | AI30: 81100 | AJ30: =(P30*CU30)/1000000 -> 81.1 | AN30: =$AN$4 -> 0.8456624092 | AO30: =AN30 -> 0.8456624092 | AP30: =AO30 -> 0.8456624092 | AQ30: 0.8456624092 | AR30: 0.8456624092 | AS30: 0.8456624092 | AT30: 0.8456624092 | AU30: 0.8456624092 | AV30: 0.8456624092 | AW30: 0.8456624092 | AX30: 0.8456624092 | AY30: 0.8456624092 | AZ30: 0.8456624092 | BA30: 10 | BH30: 2010 | BI30: 18 | BJ30: 0.09 | BK30: 1970 | BL30: 7e-05 | BM30: 0.21307 | BN30: 0 | BP30: =$BP$4 -> 0.7388298427 | BR30: 0 | BS30: 0 | BT30: 1 | BU30: 0 | BV30: 0 | BW30: 0 | BX30: 0 | BY30: 0 | BZ30: 0 | CA30: 0 | CB30: 0 | CC30: 0 | CD30: 1 | CL30: 0 | CS30: =$E30*1000000/$P30 -> 81100 | CT30: 81100 | CU30: 81100 | CV30: 81100 | CW30: 81100 | CX30: 81100 | CY30: 81100 | CZ30: 81100 | DA30: 81100 | DB30: 81100 | DC30: 81100 | DD30: 81100 | DE30: 81100 | DF30: =DE30 -> 81100 | DG30: 81100 | DH30: 81100 | DI30: 81100 | DJ30: 81100 | DK30: 81100 | DL30: 81100 | DM30: 81100 | DN30: 81100 | DO30: 81100 | DY30: 1 | DZ30: 1 | EA30: 1 | EB30: 1 | EC30: 1 | ED30: 1 | EE30: 1 | EF30: 1 | EG30: 1 | EH30: 1 | EI30: 1 | EJ30: 1 | EK30: 1 | EL30: 1 | EM30: 1 | EN30: 1 | EO30: 1 | EP30: 1 | EQ30: 1 | ER30: 1 | ES30: 1 | ET30: 1 | EU30: 1
A31: 0 | B31: Std22b | C31: =C30+1 -> 28 | D31: BR, ER and R20 Incandescent Reflector Lamps: Commercial | E31: 158.2 | F31: 21.21 | H31: 2008-01-08 | I31: 1 | J31: 0.015 | K31: 1 | L31: 0 | M31: =IF(Dashboard!$F$33="YES",I31,100) -> 1 | P31: 1000 | Q31: =F31*1000/$DE31 -> 0.1340707965 | R31: =G31*1000000/DE31 -> 0 | S31: -0.0119 | W31: 158200 | X31: 158200 | Y31: 158200 | Z31: 158200 | AA31: 158200 | AB31: 158200 | AC31: 158200 | AD31: 158200 | AE31: 158200 | AF31: 158200 | AG31: 158200 | AH31: 158200 | AI31: 158200 | AJ31: =(P31*CU31)/1000000 -> 158.2 | AN31: =$AN$4 -> 0.8456624092 | AO31: =AN31 -> 0.8456624092 | AP31: 0.8456624092 | AQ31: 0.8456624092 | AR31: 0.8456624092 | AS31: 0.8456624092 | AT31: 0.8456624092 | AU31: 0.8456624092 | AV31: 0.8456624092 | AW31: 0.8456624092 | AX31: 0.8456624092 | AY31: 0.8456624092 | AZ31: 0.8456624092 | BA31: 10 | BH31: 2010 | BI31: 18 | BJ31: 0.09 | BK31: 1970 | BL31: 7e-05 | BM31: 0.21307 | BN31: 0 | BP31: =$BP$4 -> 0.7388298427 | BR31: 0 | BS31: 0 | BT31: 1 | BU31: 0 | BV31: 0 | BW31: 0 | BX31: 0 | BY31: 0 | BZ31: 0 | CA31: 0 | CB31: 0 | CC31: 0 | CD31: 1 | CL31: 0 | CS31: 158200 | CT31: 158200 | CU31: 158200 | CV31: 158200 | CW31: 158200 | CX31: 158200 | CY31: 158200 | CZ31: 158200 | DA31: 158200 | DB31: 158200 | DC31: 158200 | DD31: 158200 | DE31: 158200 | DF31: =DE31 -> 158200 | DG31: 158200 | DH31: 158200 | DI31: 158200 | DJ31: 158200 | DK31: 158200 | DL31: 158200 | DM31: 158200 | DN31: 158200 | DO31: 158200 | DY31: 1 | DZ31: 1 | EA31: 1 | EB31: 1 | EC31: 1 | ED31: 1 | EE31: 1 | EF31: 1 | EG31: 1 | EH31: 1 | EI31: 1 | EJ31: 1 | EK31: 1 | EL31: 1 | EM31: 1 | EN31: 1 | EO31: 1 | EP31: 1 | EQ31: 1 | ER31: 1 | ES31: 1 | ET31: 1 | EU31: 1
A32: 0 | C32: =C31+1 -> 29 | D32: =Dashboard!E18 -> 2008 T-20 | E32: =SUM(E33:E37) -> 1022.67 | F32: =SUM(F33:F37) -> 77.66 | G32: =SUM(G33:G37) -> 0 | I32: =SUMPRODUCT(E15:E31,I15:I31)/SUM(E15:E31) -> 6.691082629 | BR32: 0 | BS32: 0 | BT32: 0 | BU32: 0 | BV32: 0 | BW32: 0 | BX32: 0 | BY32: 0 | BZ32: 0 | CA32: 0 | CB32: 0 | CC32: 0 | CD32: 0 | CL32: 0
A33: 0 | B33: Std23 | C33: 30 | D33: Metal Halide Fixtures | E33: 45 | F33: 8 | H33: 2010-01-01 | I33: 14 | J33: 0.02 | K33: 1 | L33: 0 | M33: =IF(Dashboard!$F$33="YES",I33,100) -> 14 | P33: 1000 | Q33: =F33*1000/$DE33 -> 0.1777777778 | R33: =G33*1000000/DE33 -> 0 | S33: -0.0119 | Y33: =CU33*EA33 -> 45000 | Z33: 45000 | AA33: 45000 | AB33: 45000 | AC33: 45000 | AD33: 45000 | AE33: 45000 | AF33: 45000 | AG33: 45000 | AH33: 45000 | AI33: 45000 | AN33: =$AN$4 -> 0.8456624092 | AO33: =AN33 -> 0.8456624092 | AP33: 0.8456624092 | AQ33: 0.8456624092 | AR33: 0.8456624092 | AS33: 0.8456624092 | AT33: 0.8456624092 | AU33: 0.8456624092 | AV33: 0.8456624092 | AW33: 0.8456624092 | AX33: 0.8456624092 | AY33: 0.8456624092 | AZ33: 0.8456624092 | BA33: =$BA$4 -> 10 | BH33: =YEAR(H33)+1 -> 2011 | BI33: 9 | BJ33: 0.09 | BK33: 1970 | BL33: 7e-05 | BM33: 0.21307 | BN33: 0 | BP33: =$BP$4 -> 0.7388298427 | BR33: 0 | BS33: 0 | BT33: 0 | BU33: 0 | BV33: 1 | BW33: 0 | BX33: 0 | BY33: 0 | BZ33: 0 | CA33: 0 | CB33: 0 | CC33: 0 | CD33: 1 | CL33: 0 | CU33: =$E33*1000000/$P33 -> 45000 | CV33: 45000 | CW33: 45000 | CX33: 45000 | CY33: 45000 | CZ33: 45000 | DA33: 45000 | DB33: 45000 | DC33: 45000 | DD33: 45000 | DE33: 45000 | DF33: =DE33 -> 45000 | DG33: 45000 | DH33: 45000 | DI33: 45000 | DJ33: 45000 | DK33: 45000 | DL33: 45000 | DM33: 45000 | DN33: 45000 | DO33: 45000 | EA33: 1 | EB33: 1 | EC33: 1 | ED33: 1 | EE33: 1 | EF33: 1 | EG33: 1 | EH33: 1 | EI33: 1 | EJ33: 1 | EK33: 1 | EL33: 1 | EM33: 1 | EN33: 1 | EO33: 1 | EP33: 1 | EQ33: 1 | ER33: 1 | ES33: 1 | ET33: 1 | EU33: 1
A34: 0 | B34: Std24 | C34: 31 | D34: Portable Lighting Fixtures | E34: 51.2 | F34: 4.8 | H34: 2010-01-01 | I34: 12 | J34: 0.015 | K34: 1 | L34: 0 | M34: =IF(Dashboard!$F$33="YES",I34,100) -> 12 | P34: 1000 | Q34: =F34*1000/$DE34 -> 0.09375 | R34: =G34*1000000/DE34 -> 0 | S34: -0.01765 | Y34: 51200 | Z34: 51200 | AA34: 51200 | AB34: 51200 | AC34: 51200 | AD34: 51200 | AE34: 51200 | AF34: 51200 | AG34: 51200 | AH34: 51200 | AI34: 51200 | AN34: 0.8456624092 | AO34: =AN34 -> 0.8456624092 | AP34: 0.8456624092 | AQ34: 0.8456624092 | AR34: 0.8456624092 | AS34: 0.8456624092 | AT34: 0.8456624092 | AU34: 0.8456624092 | AV34: 0.8456624092 | AW34: 0.8456624092 | AX34: 0.8456624092 | AY34: 0.8456624092 | AZ34: 0.8456624092 | BA34: 10 | BH34: =YEAR(H34)+1 -> 2011 | BI34: 9 | BJ34: 0.09 | BK34: 1970 | BL34: 7e-05 | BM34: 0.21307 | BN34: 0 | BP34: 0.7388298427 | BR34: 0 | BS34: 0 | BT34: 0 | BU34: 0 | BV34: 1 | BW34: 0 | BX34: 0 | BY34: 0 | BZ34: 0 | CA34: 0 | CB34: 0 | CC34: 0 | CD34: 1 | CL34: 0 | CU34: 51200 | CV34: 51200 | CW34: 51200 | CX34: 51200 | CY34: 51200 | CZ34: 51200 | DA34: 51200 | DB34: 51200 | DC34: 51200 | DD34: 51200 | DE34: 51200 | DF34: =DE34 -> 51200 | DG34: 51200 | DH34: 51200 | DI34: 51200 | DJ34: 51200 | DK34: 51200 | DL34: 51200 | DM34: 51200 | DN34: 51200 | DO34: 51200 | EA34: 1 | EB34: 1 | EC34: 1 | ED34: 1 | EE34: 1 | EF34: 1 | EG34: 1 | EH34: 1 | EI34: 1 | EJ34: 1 | EK34: 1 | EL34: 1 | EM34: 1 | EN34: 1 | EO34: 1 | EP34: 1 | EQ34: 1 | ER34: 1 | ES34: 1 | ET34: 1 | EU34: 1
A35: 0 | B35: Std25 | C35: 32 | D35: General Purpose Lighting -- 100 watt | E35: 254.5 | F35: 17.82 | H35: 2011-01-01 | I35: 2 | J35: 0 | K35: 1 | L35: 0 | M35: 1 | P35: 1000 | Q35: =F35*1000/$DE35 -> 0.07001964637 | R35: =G35*1000000/DE35 -> 0 | S35: -0.01765 | Z35: =CV35*EB35 -> 254500 | AA35: 254500 | AB35: 254500 | AC35: 254500 | AD35: 254500 | AE35: 254500 | AF35: 254500 | AG35: 254500 | AH35: 254500 | AI35: 254500 | AN35: 0.8456624092 | AO35: =AN35 -> 0.8456624092 | AP35: 0.8456624092 | AQ35: 0.8456624092 | AR35: 0.8456624092 | AS35: 0.8456624092 | AT35: 0.8456624092 | AU35: 0.8456624092 | AV35: 0.8456624092 | AW35: 0.8456624092 | AX35: 0.8456624092 | AY35: 0.8456624092 | AZ35: 0.8456624092 | BA35: 10 | BH35: 2012 | BI35: 6 | BJ35: 0.09 | BK35: 1970 | BL35: 7e-05 | BM35: 0.21307 | BN35: 0 | BP35: 0.7388298427 | BR35: 0 | BS35: 0 | BT35: 0 | BU35: 0 | BV35: 1 | BW35: 0 | BX35: 0 | BY35: 0 | BZ35: 0 | CA35: 0 | CB35: 0 | CC35: 0 | CD35: 1 | CL35: 1 | CV35: =$E35*1000000/$P35 -> 254500 | CW35: 254500 | CX35: 254500 | CY35: 254500 | CZ35: 254500 | DA35: 254500 | DB35: 254500 | DC35: 254500 | DD35: 254500 | DE35: 254500 | DF35: =DE35 -> 254500 | DG35: 254500 | DH35: 254500 | DI35: 254500 | DJ35: 254500 | DK35: 254500 | DL35: 254500 | DM35: 254500 | DN35: 254500 | DO35: 254500 | EB35: 1 | EC35: 1 | ED35: 1 | EE35: 1 | EF35: 1 | EG35: 1 | EH35: 1 | EI35: 1 | EJ35: 1 | EK35: 1 | EL35: 1 | EM35: 1 | EN35: 1 | EO35: 1 | EP35: 1 | EQ35: 1 | ER35: 1 | ES35: 1 | ET35: 1 | EU35: 1
A36: 0 | B36: Std26 | C36: 33 | D36: General Purpose Lighting -- 75 watt | E36: 230.14 | F36: 16.11 | H36: 2012-01-01 | I36: 2 | J36: 0 | K36: 1 | L36: 0 | M36: 1 | P36: 1000 | Q36: =F36*1000/$DE36 -> 0.07000086904 | R36: =G36*1000000/DE36 -> 0 | S36: -0.01765 | AA36: =CW36*EC36 -> 230140 | AB36: 230140 | AC36: 230140 | AD36: 230140 | AE36: 230140 | AF36: 230140 | AG36: 230140 | AH36: 230140 | AI36: 230140 | AN36: 0.8456624092 | AO36: =AN36 -> 0.8456624092 | AP36: 0.8456624092 | AQ36: 0.8456624092 | AR36: 0.8456624092 | AS36: 0.8456624092 | AT36: 0.8456624092 | AU36: 0.8456624092 | AV36: 0.8456624092 | AW36: 0.8456624092 | AX36: 0.8456624092 | AY36: 0.8456624092 | AZ36: 0.8456624092 | BA36: 10 | BH36: 2013 | BI36: 6 | BJ36: 0.09 | BK36: 1970 | BL36: 7e-05 | BM36: 0.21307 | BN36: 0 | BP36: 0.7388298427 | BR36: 0 | BS36: 0 | BT36: 0 | BU36: 0 | BV36: 1 | BW36: 0 | BX36: 0 | BY36: 0 | BZ36: 0 | CA36: 0 | CB36: 0 | CC36: 0 | CD36: 1 | CL36: 1 | CW36: =$E36*1000000/$P36 -> 230140 | CX36: 230140 | CY36: 230140 | CZ36: 230140 | DA36: 230140 | DB36: 230140 | DC36: 230140 | DD36: 230140 | DE36: 230140 | DF36: =DE36 -> 230140 | DG36: 230140 | DH36: 230140 | DI36: 230140 | DJ36: 230140 | DK36: 230140 | DL36: 230140 | DM36: 230140 | DN36: 230140 | DO36: 230140 | EC36: 1 | ED36: 1 | EE36: 1 | EF36: 1 | EG36: 1 | EH36: 1 | EI36: 1 | EJ36: 1 | EK36: 1 | EL36: 1 | EM36: 1 | EN36: 1 | EO36: 1 | EP36: 1 | EQ36: 1 | ER36: 1 | ES36: 1 | ET36: 1 | EU36: 1
A37: 0 | B37: Std27 | C37: 34 | D37: General Purpose Lighting -- 60 and 40 watt | E37: 441.83 | F37: 30.93 | H37: 2013-01-01 | I37: 2 | J37: 0 | K37: 1 | L37: 0 | M37: 1 | P37: 1000 | Q37: =F37*1000/$DE37 -> 0.0700043003 | R37: =G37*1000000/DE37 -> 0 | S37: -0.01765 | AB37: =CX37*ED37 -> 441830 | AC37: 441830 | AD37: 441830 | AE37: 441830 | AF37: 441830 | AG37: 441830 | AH37: 441830 | AI37: 441830 | AN37: 0.8456624092 | AO37: =AN37 -> 0.8456624092 | AP37: 0.8456624092 | AQ37: 0.8456624092 | AR37: 0.8456624092 | AS37: 0.8456624092 | AT37: 0.8456624092 | AU37: 0.8456624092 | AV37: 0.8456624092 | AW37: 0.8456624092 | AX37: 0.8456624092 | AY37: 0.8456624092 | AZ37: 0.8456624092 | BA37: 10 | BH37: 2014 | BI37: 6 | BJ37: 0.09 | BK37: 1970 | BL37: 7e-05 | BM37: 0.21307 | BN37: 0 | BP37: 0.7388298427 | BR37: 0 | BS37: 0 | BT37: 0 | BU37: 0 | BV37: 1 | BW37: 0 | BX37: 0 | BY37: 0 | BZ37: 0 | CA37: 0 | CB37: 0 | CC37: 0 | CD37: 1 | CL37: 1 | CX37: =$E37*1000000/$P37 -> 441830 | CY37: 441830 | CZ37: 441830 | DA37: 441830 | DB37: 441830 | DC37: 441830 | DD37: 441830 | DE37: 441830 | DF37: =DE37 -> 441830 | DG37: 441830 | DH37: 441830 | DI37: 441830 | DJ37: 441830 | DK37: 441830 | DL37: 441830 | DM37: 441830 | DN37: 441830 | DO37: 441830 | ED37: 1 | EE37: 1 | EF37: 1 | EG37: 1 | EH37: 1 | EI37: 1 | EJ37: 1 | EK37: 1 | EL37: 1 | EM37: 1 | EN37: 1 | EO37: 1 | EP37: 1 | EQ37: 1 | ER37: 1 | ES37: 1 | ET37: 1 | EU37: 1
A38: 0 | C38: =C37+1 -> 35 | D38: =Dashboard!E19 -> 2009 T-20 | E38: =SUM(E39:E40) -> 605 | F38: =SUM(F39:F40) -> 56 | I38: =SUMPRODUCT(E33:E37,I33:I37)/SUM(E33:E37) -> 3.028679828 | AJ38: =SUMPRODUCT(AJ39:AJ40,AP39:AP40) -> 730.6523216 | BR38: 0 | BS38: 0 | BT38: 0 | BU38: 0 | BV38: 0 | BW38: 0 | BX38: 0 | BY38: 0 | BZ38: 0 | CA38: 0 | CB38: 0 | CC38: 0 | CD38: 0 | CL38: 0
A39: 0 | B39: Std28a | C39: 36 | D39: Televisions - Tier 1 | E39: 349 | F39: 33 | H39: 2011-01-01 | I39: 10 | J39: 0.015 | K39: 1 | L39: 0 | M39: =IF(Dashboard!$F$33="YES",I39,100) -> 10 | P39: 132 | Q39: =F39*1000/E39*(P39*CX39/1000000)/CX39 -> 0.01248137536 | R39: =G39*1000000 -> 0 | S39: -0.01208388048 | Z39: =CV39*EB39 -> 4000000 | AA39: 4000000 | AB39: 4000000 | AC39: 4000000 | AD39: 4000000 | AE39: 4000000 | AF39: 4000000 | AG39: 4000000 | AH39: 4000000 | AI39: 4000000 | AJ39: =(P39*CX39)/1000000 -> 528 | AN39: =$AN$4 -> 0.8456624092 | AO39: =AN39 -> 0.8456624092 | AP39: 0.8456624092 | AQ39: 0.8456624092 | AR39: 0.8456624092 | AS39: 0.8456624092 | AT39: 0.8456624092 | AU39: 0.8456624092 | AV39: 0.8456624092 | AW39: 0.8456624092 | AX39: 0.8456624092 | AY39: 0.8456624092 | AZ39: 0.8456624092 | BA39: =$BA$4 -> 10 | BH39: =YEAR(H39)+1 -> 2012 | BI39: 6 | BJ39: 0.9 | BK39: 1995 | BL39: 5e-05 | BM39: 0.6 | BN39: 0 | BP39: 0.7388298427 | BR39: 0 | BS39: 0 | BT39: 0 | BU39: 0 | BV39: 0 | BW39: 1 | BX39: 0 | BY39: 0 | BZ39: 0 | CA39: 0 | CB39: 0 | CC39: 0 | CD39: 1 | CL39: 0 | CV39: 4000000 | CW39: 4000000 | CX39: 4000000 | CY39: 4000000 | CZ39: 4000000 | DA39: 4000000 | DB39: 4000000 | DC39: 4000000 | DD39: 4000000 | DE39: 4000000 | DF39: =DE39 -> 4000000 | DG39: 4000000 | DH39: 4000000 | DI39: 4000000 | DJ39: 4000000 | DK39: 4000000 | DL39: 4000000 | DM39: 4000000 | DN39: 4000000 | DO39: 4000000 | EB39: 1 | EC39: 1 | ED39: 1 | EE39: 1 | EF39: 1 | EG39: 1 | EH39: 1 | EI39: 1 | EJ39: 1 | EK39: 1 | EL39: 1 | EM39: 1 | EN39: 1 | EO39: 1 | EP39: 1 | EQ39: 1 | ER39: 1 | ES39: 1 | ET39: 1 | EU39: 1
A40: 0 | B40: Std28b | C40: 37 | D40: Televisions - Tier 2 | E40: =605-E39 -> 256 | F40: =56-F39 -> 23 | H40: 2013-01-01 | I40: 10 | J40: 0.015 | K40: 1 | L40: 0 | M40: =IF(Dashboard!$F$33="YES",I40,100) -> 10 | P40: 84 | Q40: =F40*1000/E40*(P40*CX40/1000000)/CX40 -> 0.007546875 | R40: =G40*1000000 -> 0 | S40: -0.01208388048 | AB40: =CX40*ED40 -> 4000000 | AC40: 4000000 | AD40: 4000000 | AE40: 4000000 | AF40: 4000000 | AG40: 4000000 | AH40: 4000000 | AI40: 4000000 | AJ40: =(P40*CX40)/1000000 -> 336 | AN40: 0.8456624092 | AO40: =AN40 -> 0.8456624092 | AP40: 0.8456624092 | AQ40: 0.8456624092 | AR40: 0.8456624092 | AS40: 0.8456624092 | AT40: 0.8456624092 | AU40: 0.8456624092 | AV40: 0.8456624092 | AW40: 0.8456624092 | AX40: 0.8456624092 | AY40: 0.8456624092 | AZ40: 0.8456624092 | BA40: 10 | BH40: 2014 | BI40: 6 | BJ40: 0.75 | BK40: 1995 | BL40: 4e-05 | BM40: 0.5 | BN40: 0 | BP40: 0.7388298427 | BR40: 0 | BS40: 0 | BT40: 0 | BU40: 0 | BV40: 0 | BW40: 1 | BX40: 0 | BY40: 0 | BZ40: 0 | CA40: 0 | CB40: 0 | CC40: 0 | CD40: 1 | CL40: 0 | CX40: 4000000 | CY40: 4000000 | CZ40: 4000000 | DA40: 4000000 | DB40: 4000000 | DC40: 4000000 | DD40: 4000000 | DE40: 4000000 | DF40: =DE40 -> 4000000 | DG40: 4000000 | DH40: 4000000 | DI40: 4000000 | DJ40: 4000000 | DK40: 4000000 | DL40: 4000000 | DM40: 4000000 | DN40: 4000000 | DO40: 4000000 | ED40: 1 | EE40: 1 | EF40: 1 | EG40: 1 | EH40: 1 | EI40: 1 | EJ40: 1 | EK40: 1 | EL40: 1 | EM40: 1 | EN40: 1 | EO40: 1 | EP40: 1 | EQ40: 1 | ER40: 1 | ES40: 1 | ET40: 1 | EU40: 1
A41: 0 | C41: =C40+1 -> 38 | D41: =Dashboard!E20 -> 2011 T-20 | I41: =SUMPRODUCT(E32:E39,I32:I39)/SUM(E32:E39) -> 5.088606416 | BR41: 0 | BS41: 0 | BT41: 0 | BU41: 0 | BV41: 0 | BW41: 0 | BX41: 0 | BY41: 0 | BZ41: 0 | CA41: 0 | CB41: 0 | CC41: 0 | CD41: 0 | CL41: 0
A42: 0 | B42: Std29 | C42: 39 | D42: Battery charger - consumer - Tier 1 | E42: 647.4 | F42: 63.8 | G42: 0 | H42: 2014-01-01 | I42: 3.325795848 | J42: 0.015 | K42: 1 | L42: 0 | M42: =IF(Dashboard!$F$33="YES",I42,100) -> 3.325795848 | P42: =IF(E42>0,1000,0) -> 1000 | Q42: =IF(P42>0,F42*1000/$DE42,IF(F42>0,1,)) -> 0.09854803831 | R42: =IF(P42>0,G42*1000000/DE42,IF(G42>0,10,0)) -> 0 | S42: -0.01581196581 | AA42: =CW42*EC42 -> 647400 | AB42: 647400 | AC42: 647400 | AD42: 647400 | AE42: 647400 | AF42: 647400 | AG42: 647400 | AH42: 647400 | AI42: 647400 | AN42: =$AN$4 -> 0.8456624092 | AO42: =AN42 -> 0.8456624092 | AP42: 0.8456624092 | AQ42: 0.8456624092 | AR42: 0.8456624092 | AS42: 0.8456624092 | AT42: 0.8456624092 | AU42: 0.8456624092 | AV42: 0.8456624092 | AW42: 0.8456624092 | AX42: 0.8456624092 | AY42: 0.8456624092 | AZ42: 0.8456624092 | BA42: =$BA$4 -> 10 | BH42: =YEAR(H42)+1 -> 2015 | BI42: 9 | BJ42: 0.43 | BK42: 2000 | BL42: 0.01208 | BM42: 0.38571 | BN42: 0 | BP42: 0.7388298427 | BR42: 0 | BS42: 0 | BT42: 0 | BU42: 0 | BV42: 0 | BW42: 0 | BX42: 1 | BY42: 0 | BZ42: 0 | CA42: 0 | CB42: 0 | CC42: 0 | CD42: 1 | CL42: 0 | CW42: =IF($P42>0,$E42*1000000/$P42,IF($R42>0,$G42*1000000/$R42,IF($Q42>0,$F42*1000/$Q42,0))) -> 647400 | CX42: 647400 | CY42: 647400 | CZ42: 647400 | DA42: 647400 | DB42: 647400 | DC42: 647400 | DD42: 647400 | DE42: 647400 | DF42: =DE42 -> 647400 | DG42: 647400 | DH42: 647400 | DI42: 647400 | DJ42: 647400 | DK42: 647400 | DL42: 647400 | DM42: 647400 | DN42: 647400 | DO42: 647400 | EC42: 1 | ED42: 1 | EE42: 1 | EF42: 1 | EG42: 1 | EH42: 1 | EI42: 1 | EJ42: 1 | EK42: 1 | EL42: 1 | EM42: 1 | EN42: 1 | EO42: 1 | EP42: 1 | EQ42: 1 | ER42: 1 | ES42: 1 | ET42: 1 | EU42: 1
A43: 0 | B43: Std31 | C43: =C42+1 -> 40 | D43: Battery charger - large - Tier 1 | E43: 12.6 | F43: 1.5 | G43: 0 | H43: 2014-01-01 | I43: 10 | J43: 0.02 | K43: 1 | L43: 0 | M43: =IF(Dashboard!$F$33="YES",I43,100) -> 10 | P43: =IF(E43>0,1000,0) -> 1000 | Q43: =IF(P43>0,F43*1000/$DE43,IF(F43>0,1,)) -> 0.119047619 | R43: =IF(P43>0,G43*1000000/DE43,IF(G43>0,10,0)) -> 0 | S43: 0 | AA43: 12600 | AB43: 12600 | AC43: 12600 | AD43: 12600 | AE43: 12600 | AF43: 12600 | AG43: 12600 | AH43: 12600 | AI43: 12600 | AN43: 0.8456624092 | AO43: =AN43 -> 0.8456624092 | AP43: 0.8456624092 | AQ43: 0.8456624092 | AR43: 0.8456624092 | AS43: 0.8456624092 | AT43: 0.8456624092 | AU43: 0.8456624092 | AV43: 0.8456624092 | AW43: 0.8456624092 | AX43: 0.8456624092 | AY43: 0.8456624092 | AZ43: 0.8456624092 | BA43: 10 | BH43: 2015 | BI43: 9 | BJ43: 0.43 | BK43: 2000 | BL43: 0.01208 | BM43: 0.38571 | BN43: 0 | BP43: 0.7388298427 | BR43: 0 | BS43: 0 | BT43: 0 | BU43: 0 | BV43: 0 | BW43: 0 | BX43: 1 | BY43: 0 | BZ43: 0 | CA43: 0 | CB43: 0 | CC43: 0 | CD43: 1 | CL43: 0 | CW43: 12600 | CX43: 12600 | CY43: 12600 | CZ43: 12600 | DA43: 12600 | DB43: 12600 | DC43: 12600 | DD43: 12600 | DE43: 12600 | DF43: =DE43 -> 12600 | DG43: 12600 | DH43: 12600 | DI43: 12600 | DJ43: 12600 | DK43: 12600 | DL43: 12600 | DM43: 12600 | DN43: 12600 | DO43: 12600 | EC43: 1 | ED43: 1 | EE43: 1 | EF43: 1 | EG43: 1 | EH43: 1 | EI43: 1 | EJ43: 1 | EK43: 1 | EL43: 1 | EM43: 1 | EN43: 1 | EO43: 1 | EP43: 1 | EQ43: 1 | ER43: 1 | ES43: 1 | ET43: 1 | EU43: 1
A44: 0 | B44: Std32 | C44: 41 | D44: Battery charger - large - Tier 2 incremental | E44: 18 | F44: 3.5 | G44: 0 | H44: 2017-01-01 | I44: 10 | J44: 0.02 | K44: 1 | L44: 0 | M44: =IF(Dashboard!$F$33="YES",I44,100) -> 10 | P44: 1000 | Q44: =IF(P44>0,F44*1000/$DE44,IF(F44>0,1,)) -> 0.1944444444 | R44: =IF(P44>0,G44*1000000/DE44,IF(G44>0,10,0)) -> 0 | S44: 0 | AB44: =CX44*ED44 -> 18000 | AC44: 18000 | AD44: 18000 | AE44: 18000 | AF44: 18000 | AG44: 18000 | AH44: 18000 | AI44: 18000 | AN44: 0.8456624092 | AO44: =AN44 -> 0.8456624092 | AP44: 0.8456624092 | AQ44: 0.8456624092 | AR44: 0.8456624092 | AS44: 0.8456624092 | AT44: 0.8456624092 | AU44: 0.8456624092 | AV44: 0.8456624092 | AW44: 0.8456624092 | AX44: 0.8456624092 | AY44: 0.8456624092 | AZ44: 0.8456624092 | BA44: 10 | BH44: 2018 | BI44: 9 | BJ44: 0.43 | BK44: 2000 | BL44: 0.01208 | BM44: 0.38571 | BN44: 0 | BP44: 0.7388298427 | BR44: 0 | BS44: 0 | BT44: 0 | BU44: 0 | BV44: 0 | BW44: 0 | BX44: 1 | BY44: 0 | BZ44: 0 | CA44: 0 | CB44: 0 | CC44: 0 | CD44: 1 | CL44: 0 | CX44: =IF($P44>0,$E44*1000000/$P44,IF($R44>0,$G44*1000000/$R44,IF($Q44>0,$F44*1000/$Q44,0))) -> 18000 | CY44: 18000 | CZ44: 18000 | DA44: 18000 | DB44: 18000 | DC44: 18000 | DD44: 18000 | DE44: 18000 | DF44: =DE44 -> 18000 | DG44: 18000 | DH44: 18000 | DI44: 18000 | DJ44: 18000 | DK44: 18000 | DL44: 18000 | DM44: 18000 | DN44: 18000 | DO44: 18000 | ED44: 1 | EE44: 1 | EF44: 1 | EG44: 1 | EH44: 1 | EI44: 1 | EJ44: 1 | EK44: 1 | EL44: 1 | EM44: 1 | EN44: 1 | EO44: 1 | EP44: 1 | EQ44: 1 | ER44: 1 | ES44: 1 | ET44: 1 | EU44: 1
A45: 0 | C45: 42 | D45: =Dashboard!E23 -> Track 1 Future Title 20 | I45: =SUMPRODUCT(E36:E43,I36:I43)/SUM(E36:E43) -> 4.526179116 | BR45: 0 | BS45: 0 | BT45: 0 | BU45: 0 | BV45: 0 | BW45: 0 | BX45: 0 | BY45: 0 | BZ45: 0 | CA45: 0 | CB45: 0 | CC45: 0 | CD45: 0 | CL45: 0
A46: 0 | B46: Std36 | C46: 43 | D46: Computers - Tier 1 | Desktops, Notebooks | E46: 838 | F46: 268 | G46: 0 | H46: 2015-06-01 | I46: 5 | J46: 0.015 | K46: 1 | L46: 0 | M46: =IF(Dashboard!$F$33="YES",I46,100) -> 5 | P46: 1000 | Q46: =IF(P46>0,F46*1000/$DE46,IF(F46>0,1,)) -> 0.3198090692 | R46: =IF(P46>0,G46*1000000/DE46,IF(G46>0,10,0)) -> 0 | S46: =S42 -> -0.01581196581 | AB46: =CX46*ED46 -> 838000 | AC46: 838000 | AD46: 838000 | AE46: 838000 | AF46: 838000 | AG46: 838000 | AH46: 838000 | AI46: 838000 | AS46: =AT46 -> 0.8456624092 | AT46: =$AN$4 -> 0.8456624092 | AU46: =AT46 -> 0.8456624092 | AV46: 0.8456624092 | AW46: 0.8456624092 | AX46: 0.8456624092 | AY46: 0.8456624092 | AZ46: 0.8456624092 | BA46: =$BA$4 -> 10 | BH46: =YEAR(H46)+1 -> 2016 | BJ46: 1 | BK46: 2005 | BL46: 0.06 | BM46: 0.25 | BN46: 0 | BP46: =BP44 -> 0.7388298427 | BR46: 0 | BS46: 0 | BT46: 0 | BU46: 0 | BV46: 0 | BW46: 0 | BX46: 0 | BY46: 0 | BZ46: 0 | CA46: 1 | CB46: 0 | CC46: 0 | CD46: 1 | CL46: 0 | CX46: =IF($P46>0,$E46*1000000/$P46,IF($R46>0,$G46*1000000/$R46,IF($Q46>0,$F46*1000/$Q46,0))) -> 838000 | CY46: 838000 | CZ46: 838000 | DA46: 838000 | DB46: 838000 | DC46: 838000 | DD46: 838000 | DE46: 838000 | DF46: =DE46 -> 838000 | DG46: 838000 | DH46: 838000 | DI46: 838000 | DJ46: 838000 | DK46: 838000 | DL46: 838000 | DM46: 838000 | DN46: 838000 | DO46: 838000 | ED46: 1 | EE46: 1 | EF46: 1 | EG46: 1 | EH46: 1 | EI46: 1 | EJ46: 1 | EK46: 1 | EL46: 1 | EM46: 1 | EN46: 1 | EO46: 1 | EP46: 1 | EQ46: 1 | ER46: 1 | ES46: 1 | ET46: 1 | EU46: 1
A47: 0 | B47: Std37 | C47: 44 | D47: Computers - Tier 2 (incremental) | Desktops, Notebooks | E47: 944 | F47: 7 | G47: 0 | H47: 2016-06-01 | I47: 5 | J47: 0.015 | K47: 1 | L47: 0 | M47: =IF(Dashboard!$F$33="YES",I47,100) -> 5 | P47: =IF(E47>0,1000,0) -> 1000 | Q47: 0.007415254237 | R47: 0 | S47: =S46 -> -0.01581196581 | AB47: 944000 | AC47: 944000 | AD47: 944000 | AE47: 944000 | AF47: 944000 | AG47: 944000 | AH47: 944000 | AI47: 944000 | AS47: =AT47 -> 0.8456624092 | AT47: =$AN$4 -> 0.8456624092 | AU47: 0.8456624092 | AV47: 0.8456624092 | AW47: 0.8456624092 | AX47: 0.8456624092 | AY47: 0.8456624092 | AZ47: 0.8456624092 | BA47: =$BA$4 -> 10 | BH47: 2017 | BJ47: 1 | BK47: 2005 | BL47: 0.06 | BM47: 0.25 | BN47: 0 | BP47: =BP46 -> 0.7388298427 | BR47: 0 | BS47: 0 | BT47: 0 | BU47: 0 | BV47: 0 | BW47: 0 | BX47: 0 | BY47: 0 | BZ47: 0 | CA47: 1 | CB47: 0 | CC47: 0 | CD47: 1 | CL47: 0 | CX47: 944000 | CY47: 944000 | CZ47: 944000 | DA47: 944000 | DB47: 944000 | DC47: 944000 | DD47: 944000 | DE47: 944000 | DF47: =DE47 -> 944000 | DG47: 944000 | DH47: 944000 | DI47: 944000 | DJ47: 944000 | DK47: 944000 | DL47: 944000 | DM47: 944000 | DN47: 944000 | DO47: 944000 | ED47: 1 | EE47: 1 | EF47: 1 | EG47: 1 | EH47: 1 | EI47: 1 | EJ47: 1 | EK47: 1 | EL47: 1 | EM47: 1 | EN47: 1 | EO47: 1 | EP47: 1 | EQ47: 1 | ER47: 1 | ES47: 1 | ET47: 1 | EU47: 1
A48: 0 | B48: Std38 | C48: 45 | D48: Multifaceted Reflector Lamps | E48: 160 | F48: 11.2 | G48: 0 | H48: 2015-06-01 | I48: 3 | J48: 0.02 | K48: 1 | L48: 0 | M48: =IF(Dashboard!$F$33="YES",I48,100) -> 3 | P48: 1000 | Q48: 0.07 | R48: 0 | S48: =S30 -> -0.0234 | AB48: 160000 | AC48: 160000 | AD48: 160000 | AE48: 160000 | AF48: 160000 | AG48: 160000 | AH48: 160000 | AI48: 160000 | AS48: 0.8456624092 | AT48: 0.8456624092 | AU48: 0.8456624092 | AV48: 0.8456624092 | AW48: 0.8456624092 | AX48: 0.8456624092 | AY48: 0.8456624092 | AZ48: 0.8456624092 | BA48: 10 | BH48: 2016 | BJ48: 0.97 | BK48: 2009 | BL48: 0.052 | BM48: 0.11 | BN48: 0 | BP48: =BP47 -> 0.7388298427 | BR48: 0 | BS48: 0 | BT48: 0 | BU48: 0 | BV48: 0 | BW48: 0 | BX48: 0 | BY48: 0 | BZ48: 0 | CA48: 1 | CB48: 0 | CC48: 0 | CD48: 1 | CL48: 0 | CX48: 160000 | CY48: 160000 | CZ48: 160000 | DA48: 160000 | DB48: 160000 | DC48: 160000 | DD48: 160000 | DE48: 160000 | DF48: =DE48 -> 160000 | DG48: 160000 | DH48: 160000 | DI48: 160000 | DJ48: 160000 | DK48: 160000 | DL48: 160000 | DM48: 160000 | DN48: 160000 | DO48: 160000 | ED48: 1 | EE48: 1 | EF48: 1 | EG48: 1 | EH48: 1 | EI48: 1 | EJ48: 1 | EK48: 1 | EL48: 1 | EM48: 1 | EN48: 1 | EO48: 1 | EP48: 1 | EQ48: 1 | ER48: 1 | ES48: 1 | ET48: 1 | EU48: 1
A49: 0 | B49: Std33 | C49: 46 | D49: Decorative String Lights - Tier 1 | Mini, Standard, Jumbo, Rope | E49: 77.8 | F49: 15.5375 | G49: 0 | H49: 2015-01-01 | I49: 8 | J49: 0.01 | K49: 1 | L49: 0 | M49: =IF(Dashboard!$F$33="YES",I49,100) -> 8 | P49: 1000 | Q49: 0.1997107969 | R49: 0 | S49: 0 | AB49: 77800 | AC49: 77800 | AD49: 77800 | AE49: 77800 | AF49: 77800 | AG49: 77800 | AH49: 77800 | AI49: 77800 | AS49: 0.8456624092 | AT49: 0.8456624092 | AU49: 0.8456624092 | AV49: 0.8456624092 | AW49: 0.8456624092 | AX49: 0.8456624092 | AY49: 0.8456624092 | AZ49: 0.8456624092 | BA49: 10 | BH49: 2016 | BJ49: 0.9 | BK49: 2004 | BL49: 0.04 | BM49: 0.07 | BN49: 0 | BP49: 0.7388298427 | BR49: 0 | BS49: 0 | BT49: 0 | BU49: 0 | BV49: 0 | BW49: 0 | BX49: 0 | BY49: 0 | BZ49: 0 | CA49: 1 | CB49: 0 | CC49: 0 | CD49: 1 | CL49: 0 | CX49: 77800 | CY49: 77800 | CZ49: 77800 | DA49: 77800 | DB49: 77800 | DC49: 77800 | DD49: 77800 | DE49: 77800 | DF49: =DE49 -> 77800 | DG49: 77800 | DH49: 77800 | DI49: 77800 | DJ49: 77800 | DK49: 77800 | DL49: 77800 | DM49: 77800 | DN49: 77800 | DO49: 77800 | ED49: 1 | EE49: 1 | EF49: 1 | EG49: 1 | EH49: 1 | EI49: 1 | EJ49: 1 | EK49: 1 | EL49: 1 | EM49: 1 | EN49: 1 | EO49: 1 | EP49: 1 | EQ49: 1 | ER49: 1 | ES49: 1 | ET49: 1 | EU49: 1
A50: 0 | B50: Std34 | C50: 47 | D50: Decorative String Lights - Tier 2 (incremental) | Mini, Standard, Jumbo, Rope | E50: 41 | F50: 9.125 | G50: 0 | H50: 2016-01-01 | I50: 8 | J50: 0.01 | K50: 1 | L50: 0 | M50: =IF(Dashboard!$F$33="YES",I50,100) -> 8 | P50: 1000 | Q50: 0.2225609756 | R50: 0 | S50: 0 | AB50: 41000 | AC50: 41000 | AD50: 41000 | AE50: 41000 | AF50: 41000 | AG50: 41000 | AH50: 41000 | AI50: 41000 | AS50: 0.8456624092 | AT50: 0.8456624092 | AU50: 0.8456624092 | AV50: 0.8456624092 | AW50: 0.8456624092 | AX50: 0.8456624092 | AY50: 0.8456624092 | AZ50: 0.8456624092 | BA50: =$BA$4 -> 10 | BH50: 2017 | BJ50: 0.9 | BK50: 2004 | BL50: 0.04 | BM50: 0.07 | BN50: 0 | BP50: 0.7388298427 | BR50: 0 | BS50: 0 | BT50: 0 | BU50: 0 | BV50: 0 | BW50: 0 | BX50: 0 | BY50: 0 | BZ50: 0 | CA50: 1 | CB50: 0 | CC50: 0 | CD50: 1 | CL50: 0 | CX50: 41000 | CY50: 41000 | CZ50: 41000 | DA50: 41000 | DB50: 41000 | DC50: 41000 | DD50: 41000 | DE50: 41000 | DF50: =DE50 -> 41000 | DG50: 41000 | DH50: 41000 | DI50: 41000 | DJ50: 41000 | DK50: 41000 | DL50: 41000 | DM50: 41000 | DN50: 41000 | DO50: 41000 | ED50: 1 | EE50: 1 | EF50: 1 | EG50: 1 | EH50: 1 | EI50: 1 | EJ50: 1 | EK50: 1 | EL50: 1 | EM50: 1 | EN50: 1 | EO50: 1 | EP50: 1 | EQ50: 1 | ER50: 1 | ES50: 1 | ET50: 1 | EU50: 1
A51: =OFFSET(BR51,0,$F$1) -> 0 | B51: Std34 | C51: 48 | D51: Outdoor Lighting | E51: 51.2 | F51: 9.161661868 | G51: 0 | H51: 2015-01-01 | I51: 10 | J51: 0.01 | K51: 1 | L51: 0 | M51: =IF(Dashboard!$F$33="YES",I51,100) -> 10 | P51: =IF(E51>0,1000,0) -> 1000 | Q51: 0.1789387084 | R51: 0 | S51: 0 | AB51: 51200 | AC51: 51200 | AD51: 51200 | AE51: 51200 | AF51: 51200 | AG51: 51200 | AH51: 51200 | AI51: 51200 | AS51: =AT51 -> 0.8456624092 | AT51: 0.8456624092 | AU51: =AT51 -> 0.8456624092 | AV51: =AU51 -> 0.8456624092 | AW51: =AV51 -> 0.8456624092 | AX51: =AW51 -> 0.8456624092 | AY51: =AX51 -> 0.8456624092 | AZ51: =AY51 -> 0.8456624092 | BA51: =$BA$4 -> 10 | BH51: =YEAR(H51)+1 -> 2016 | BJ51: 0.85 | BK51: 2007 | BL51: 0.025 | BM51: 0.3 | BN51: 0 | BP51: 0.7388298427 | BR51: 0 | BS51: 0 | BT51: 0 | BU51: 0 | BV51: 0 | BW51: 0 | BX51: 0 | BY51: 0 | BZ51: 0 | CA51: 1 | CB51: 0 | CC51: 0 | CD51: 1 | CL51: 0 | CX51: 51200 | CY51: 51200 | CZ51: 51200 | DA51: 51200 | DB51: 51200 | DC51: 51200 | DD51: 51200 | DE51: 51200 | DF51: =DE51 -> 51200 | DG51: 51200 | DH51: 51200 | DI51: 51200 | DJ51: 51200 | DK51: 51200 | DL51: 51200 | DM51: 51200 | DN51: 51200 | DO51: 51200 | ED51: 1 | EE51: 1 | EF51: 1 | EG51: 1 | EH51: 1 | EI51: 1 | EJ51: 1 | EK51: 1 | EL51: 1 | EM51: 1 | EN51: 1 | EO51: 1 | EP51: 1 | EQ51: 1 | ER51: 1 | ES51: 1 | ET51: 1 | EU51: 1
A52: 0 | C52: =C51+1 -> 49 | D52: =Dashboard!E22 -> Fed Appliance | E52: =SUMPRODUCT(E53:E59,$CF53:$CF59)*12.1% -> 990.70928 | F52: =SUMPRODUCT(F53:F59,$CF53:$CF59)*12.1% -> 174.0827 | G52: =SUMPRODUCT(G53:G59,$CF53:$CF59)*12.1% -> 0.6292 | S52: 0 | AJ52: =SUMPRODUCT(AJ53:AJ59,AR53:AR59)*12.1%-AK54-AK55 -> 961.2136052 | BA52: 5 | BR52: 0 | BS52: 0 | BT52: 0 | BU52: 0 | BV52: 0 | BW52: 0 | BX52: 0 | BY52: 0 | BZ52: 0 | CA52: 0 | CB52: 0 | CC52: 0 | CD52: 0 | CF52: Percentage savings that are incremental to Title 20 savings | CI52: Final Rule passed? (Y/N) | CJ52: Start Date | CL52: 0
A53: 0 | B53: Fed1 | C53: =C52+1 -> 50 | D53: Electric Motors 1-200HP | E53: 526.67 | F53: 72.22 | H53: 2010-12-01 | I53: 7 | J53: 0.02 | K53: =CF53 -> 1 | L53: 1 | M53: =IF(Dashboard!$F$33="YES",I53,100) -> 7 | P53: =IF(E53>0,1000,0) -> 1000 | Q53: =IF(P53>0,F53*1000/$DE53,IF(F53>0,1,)) -> 0.1371257144 | R53: =IF(P53>0,G53*1000000/DE53,IF(G53>0,10,0)) -> 0 | S53: 0 | Y53: =CU53*EA53 -> 526670 | Z53: 526670 | AA53: 526670 | AB53: 526670 | AC53: 526670 | AD53: 526670 | AE53: 526670 | AF53: 526670 | AG53: 526670 | AH53: 526670 | AI53: 526670 | AJ53: =(P53*CX53)/1000000 -> 526.67 | AK53: =AJ53*AR53*BP53 -> 31.27103125 | AP53: 0.95 | AQ53: 0.95 | AR53: 0.95 | AS53: 0.95 | AT53: 0.95 | AU53: 0.95 | AV53: 0.95 | AW53: 0.95 | AX53: 0.95 | AY53: 0.95 | AZ53: 0.95 | BA53: =$BA$52 -> 5 | BH53: =YEAR(H53)+1 -> 2011 | BI53: 24 | BJ53: 0.11 | BK53: 1975 | BL53: 0.00043 | BM53: 0.20166 | BN53: 0 | BP53: 0.0625 | BR53: 0 | BS53: 0 | BT53: 0 | BU53: 0 | BV53: 0 | BW53: 0 | BX53: 0 | BY53: 0 | BZ53: 1 | CA53: 0 | CB53: 0 | CC53: 0 | CD53: 1 | CF53: 1 | CI53: Y | CJ53: 2010-12-01 | CL53: 0 | CU53: =IF($P53>0,$E53*1000000/$P53,IF($R53>0,$G53*1000000/$R53,IF($Q53>0,$F53*1000/$Q53,0))) -> 526670 | CV53: 526670 | CW53: 526670 | CX53: 526670 | CY53: 526670 | CZ53: 526670 | DA53: 526670 | DB53: 526670 | DC53: 526670 | DD53: 526670 | DE53: 526670 | DF53: =DE53 -> 526670 | DG53: 526670 | DH53: 526670 | DI53: 526670 | DJ53: 526670 | DK53: 526670 | DL53: 526670 | DM53: 526670 | DN53: 526670 | DO53: 526670 | EA53: 1 | EB53: 1 | EC53: 1 | ED53: 1 | EE53: 1 | EF53: 1 | EG53: 1 | EH53: 1 | EI53: 1 | EJ53: 1 | EK53: 1 | EL53: 1 | EM53: 1 | EN53: 1 | EO53: 1 | EP53: 1 | EQ53: 1 | ER53: 1 | ES53: 1 | ET53: 1 | EU53: 1
A54: 0 | B54: Fed2 | C54: =C53+1 -> 51 | D54: Refrigerated Beverage Vending Machines | E54: 48.02 | F54: 6.3 | H54: 2011-08-31 | I54: 10 | J54: 0.02 | K54: =CF54 -> 0 | L54: 1 | M54: =IF(Dashboard!$F$33="YES",I54,100) -> 10 | P54: =IF(E54>0,1000,0) -> 1000 | Q54: 0.1311953353 | R54: 0 | S54: -0.00604194024 | Z54: =CV54*EB54 -> 48020 | AA54: 48020 | AB54: 48020 | AC54: 48020 | AD54: 48020 | AE54: 48020 | AF54: 48020 | AG54: 48020 | AH54: 48020 | AI54: 48020 | AJ54: 48.02 | AK54: =AJ54*AR54*BP54 -> 2.8511875 | AP54: 0.95 | AQ54: 0.95 | AR54: 0.95 | AS54: 0.95 | AT54: 0.95 | AU54: 0.95 | AV54: 0.95 | AW54: 0.95 | AX54: 0.95 | AY54: 0.95 | AZ54: 0.95 | BA54: 5 | BH54: 2012 | BI54: 9 | BJ54: 0.96 | BK54: 1998 | BL54: 0.01416 | BM54: 0.58412 | BN54: 0 | BP54: 0.0625 | BR54: 0 | BS54: 0 | BT54: 0 | BU54: 0 | BV54: 0 | BW54: 0 | BX54: 0 | BY54: 0 | BZ54: 1 | CA54: 0 | CB54: 0 | CC54: 0 | CD54: 1 | CF54: 0 | CI54: Y | CJ54: 2011-08-31 | CL54: 0 | CV54: =IF($P54>0,$E54*1000000/$P54,IF($R54>0,$G54*1000000/$R54,IF($Q54>0,$F54*1000/$Q54,0))) -> 48020 | CW54: 48020 | CX54: 48020 | CY54: 48020 | CZ54: 48020 | DA54: 48020 | DB54: 48020 | DC54: 48020 | DD54: 48020 | DE54: 48020 | DF54: =DE54 -> 48020 | DG54: 48020 | DH54: 48020 | DI54: 48020 | DJ54: 48020 | DK54: 48020 | DL54: 48020 | DM54: 48020 | DN54: 48020 | DO54: 48020 | EB54: 1 | EC54: 1 | ED54: 1 | EE54: 1 | EF54: 1 | EG54: 1 | EH54: 1 | EI54: 1 | EJ54: 1 | EK54: 1 | EL54: 1 | EM54: 1 | EN54: 1 | EO54: 1 | EP54: 1 | EQ54: 1 | ER54: 1 | ES54: 1 | ET54: 1 | EU54: 1
A55: 0 | B55: Fed3 | C55: =C54+1 -> 52 | D55: Commercial Refrigeration | E55: 312.57 | F55: 41.01 | H55: 2012-01-01 | I55: 10 | J55: 0.02 | K55: =CF55 -> 0 | L55: 1 | M55: =IF(Dashboard!$F$33="YES",I55,100) -> 10 | P55: =IF(E55>0,1000,0) -> 1000 | Q55: 0.1312026106 | R55: 0 | S55: -0.01208388048 | AA55: =CW55*EC55 -> 312570 | AB55: 312570 | AC55: 312570 | AD55: 312570 | AE55: 312570 | AF55: 312570 | AG55: 312570 | AH55: 312570 | AI55: 312570 | AJ55: 312.57 | AK55: 18.55884375 | AP55: 0.95 | AQ55: 0.95 | AR55: 0.95 | AS55: 0.95 | AT55: 0.95 | AU55: 0.95 | AV55: 0.95 | AW55: 0.95 | AX55: 0.95 | AY55: 0.95 | AZ55: 0.95 | BA55: 5 | BH55: 2013 | BI55: 9 | BJ55: 0.79 | BK55: 1995 | BL55: 0.00891 | BM55: 0.4334 | BN55: 0 | BP55: 0.0625 | BR55: 0 | BS55: 0 | BT55: 0 | BU55: 0 | BV55: 0 | BW55: 0 | BX55: 0 | BY55: 0 | BZ55: 1 | CA55: 0 | CB55: 0 | CC55: 0 | CD55: 1 | CF55: 0 | CI55: Y | CJ55: 2012-01-01 | CL55: 0 | CW55: =IF($P55>0,$E55*1000000/$P55,IF($R55>0,$G55*1000000/$R55,IF($Q55>0,$F55*1000/$Q55,0))) -> 312570 | CX55: 312570 | CY55: 312570 | CZ55: 312570 | DA55: 312570 | DB55: 312570 | DC55: 312570 | DD55: 312570 | DE55: 312570 | DF55: =DE55 -> 312570 | DG55: 312570 | DH55: 312570 | DI55: 312570 | DJ55: 312570 | DK55: 312570 | DL55: 312570 | DM55: 312570 | DN55: 312570 | DO55: 312570 | EC55: 1 | ED55: 1 | EE55: 1 | EF55: 1 | EG55: 1 | EH55: 1 | EI55: 1 | EJ55: 1 | EK55: 1 | EL55: 1 | EM55: 1 | EN55: 1 | EO55: 1 | EP55: 1 | EQ55: 1 | ER55: 1 | ES55: 1 | ET55: 1 | EU55: 1
A56: 0 | B56: Fed4 | C56: 53 | D56: ASHRAE Products (Commercial boilers) | E56: 0 | G56: 2.12 | H56: 2012-03-02 | I56: 30 | J56: 0.02 | K56: 1 | L56: 1 | M56: =IF(Dashboard!$F$33="YES",I56,100) -> 30 | P56: =IF(E56>0,1000,0) -> 0 | Q56: 0 | R56: 10 | S56: 0 | AA56: 212000 | AB56: 212000 | AC56: 212000 | AD56: 212000 | AE56: 212000 | AF56: 212000 | AG56: 212000 | AH56: 212000 | AI56: 212000 | AJ56: 0 | AK56: 0 | AP56: 0.95 | AQ56: 0.95 | AR56: 0.95 | AS56: 0.95 | AT56: 0.95 | AU56: 0.95 | AV56: 0.95 | AW56: 0.95 | AX56: 0.95 | AY56: 0.95 | AZ56: 0.95 | BA56: 5 | BH56: 2013 | BI56: 9 | BJ56: 0.31 | BK56: 1965 | BL56: 0.00708 | BM56: 0.09653 | BN56: 0 | BP56: 0.0625 | BR56: 0 | BS56: 0 | BT56: 0 | BU56: 0 | BV56: 0 | BW56: 0 | BX56: 0 | BY56: 0 | BZ56: 1 | CA56: 0 | CB56: 0 | CC56: 0 | CD56: 1 | CF56: 1 | CI56: Y | CJ56: 2012-03-02 | CL56: 0 | CW56: 212000 | CX56: 212000 | CY56: 212000 | CZ56: 212000 | DA56: 212000 | DB56: 212000 | DC56: 212000 | DD56: 212000 | DE56: 212000 | DF56: =DE56 -> 212000 | DG56: 212000 | DH56: 212000 | DI56: 212000 | DJ56: 212000 | DK56: 212000 | DL56: 212000 | DM56: 212000 | DN56: 212000 | DO56: 212000 | EC56: 1 | ED56: 1 | EE56: 1 | EF56: 1 | EG56: 1 | EH56: 1 | EI56: 1 | EJ56: 1 | EK56: 1 | EL56: 1 | EM56: 1 | EN56: 1 | EO56: 1 | EP56: 1 | EQ56: 1 | ER56: 1 | ES56: 1 | ET56: 1 | EU56: 1
A57: 0 | B57: Fed5 | C57: 54 | D57: Residential Electric & Gas Ranges | E57: 0 | G57: 3.08 | H57: 2012-04-09 | I57: 19 | J57: 0.01 | K57: 1 | L57: 1 | M57: =IF(Dashboard!$F$33="YES",I57,100) -> 19 | P57: =IF(E57>0,1000,0) -> 0 | Q57: 0 | R57: 10 | S57: 0 | AA57: 308000 | AB57: 308000 | AC57: 308000 | AD57: 308000 | AE57: 308000 | AF57: 308000 | AG57: 308000 | AH57: 308000 | AI57: 308000 | AJ57: 0 | AK57: 0 | AP57: 0.95 | AQ57: 0.95 | AR57: 0.95 | AS57: 0.95 | AT57: 0.95 | AU57: 0.95 | AV57: 0.95 | AW57: 0.95 | AX57: 0.95 | AY57: 0.95 | AZ57: 0.95 | BA57: 5 | BH57: 2013 | BI57: 9 | BJ57: 0.31 | BK57: 1965 | BL57: 0.00708 | BM57: 0.09653 | BN57: 0 | BP57: 0.0625 | BR57: 0 | BS57: 0 | BT57: 0 | BU57: 0 | BV57: 0 | BW57: 0 | BX57: 0 | BY57: 0 | BZ57: 1 | CA57: 0 | CB57: 0 | CC57: 0 | CD57: 1 | CF57: 1 | CI57: Y | CJ57: 2012-04-09 | CL57: 0 | CW57: 308000 | CX57: 308000 | CY57: 308000 | CZ57: 308000 | DA57: 308000 | DB57: 308000 | DC57: 308000 | DD57: 308000 | DE57: 308000 | DF57: =DE57 -> 308000 | DG57: 308000 | DH57: 308000 | DI57: 308000 | DJ57: 308000 | DK57: 308000 | DL57: 308000 | DM57: 308000 | DN57: 308000 | DO57: 308000 | EC57: 1 | ED57: 1 | EE57: 1 | EF57: 1 | EG57: 1 | EH57: 1 | EI57: 1 | EJ57: 1 | EK57: 1 | EL57: 1 | EM57: 1 | EN57: 1 | EO57: 1 | EP57: 1 | EQ57: 1 | ER57: 1 | ES57: 1 | ET57: 1 | EU57: 1
A58: 0 | B58: Fed6 | C58: 55 | D58: Incandescent Reflector Lamps | E58: 4450.02 | F58: 793.74 | H58: 2012-07-14 | I58: 1 | J58: 0.015 | K58: =CF58 -> 1 | L58: 1 | M58: =IF(Dashboard!$F$33="YES",I58,100) -> 1 | P58: =IF(E58>0,1000,0) -> 1000 | Q58: 0.1783677377 | R58: 0 | S58: -0.01765 | AA58: 4450020 | AB58: 4450020 | AC58: 4450020 | AD58: 4450020 | AE58: 4450020 | AF58: 4450020 | AG58: 4450020 | AH58: 4450020 | AI58: 4450020 | AJ58: 4450.02 | AK58: 264.2199375 | AP58: 0.95 | AQ58: 0.95 | AR58: 0.95 | AS58: 0.95 | AT58: 0.95 | AU58: 0.95 | AV58: 0.95 | AW58: 0.95 | AX58: 0.95 | AY58: 0.95 | AZ58: 0.95 | BA58: 5 | BH58: 2013 | BI58: 9 | BJ58: =BJ29 -> 0.09 | BK58: =BK29 -> 1970 | BL58: 7e-05 | BM58: 0.21307 | BN58: 0 | BP58: 0.0625 | BR58: 0 | BS58: 0 | BT58: 0 | BU58: 0 | BV58: 0 | BW58: 0 | BX58: 0 | BY58: 0 | BZ58: 1 | CA58: 0 | CB58: 0 | CC58: 0 | CD58: 1 | CF58: 1 | CI58: Y | CJ58: 2012-07-14 | CL58: 0 | CW58: 4450020 | CX58: 4450020 | CY58: 4450020 | CZ58: 4450020 | DA58: 4450020 | DB58: 4450020 | DC58: 4450020 | DD58: 4450020 | DE58: 4450020 | DF58: =DE58 -> 4450020 | DG58: 4450020 | DH58: 4450020 | DI58: 4450020 | DJ58: 4450020 | DK58: 4450020 | DL58: 4450020 | DM58: 4450020 | DN58: 4450020 | DO58: 4450020 | EC58: 1 | ED58: 1 | EE58: 1 | EF58: 1 | EG58: 1 | EH58: 1 | EI58: 1 | EJ58: 1 | EK58: 1 | EL58: 1 | EM58: 1 | EN58: 1 | EO58: 1 | EP58: 1 | EQ58: 1 | ER58: 1 | ES58: 1 | ET58: 1 | EU58: 1
A59: 0 | B59: Fed7 | C59: 56 | D59: General Service Fluorescent Lamps | E59: 3210.99 | F59: 572.74 | H59: 2014-07-14 | I59: 6 | J59: 0.02 | K59: =CF59 -> 1 | L59: 1 | M59: =IF(Dashboard!$F$33="YES",I59,100) -> 6 | P59: 1000 | Q59: 0.1783686651 | R59: 0 | S59: -0.0119 | AA59: 3210990 | AB59: 3210990 | AC59: 3210990 | AD59: 3210990 | AE59: 3210990 | AF59: 3210990 | AG59: 3210990 | AH59: 3210990 | AI59: 3210990 | AJ59: 3210.99 | AK59: 190.6525312 | AP59: 0.95 | AQ59: 0.95 | AR59: 0.95 | AS59: 0.95 | AT59: 0.95 | AU59: 0.95 | AV59: 0.95 | AW59: 0.95 | AX59: 0.95 | AY59: 0.95 | AZ59: 0.95 | BA59: 5 | BH59: 2015 | BI59: 9 | BJ59: =BJ29 -> 0.09 | BK59: =BK29 -> 1970 | BL59: 7e-05 | BM59: 0.21307 | BN59: 0 | BP59: 0.0625 | BR59: 0 | BS59: 0 | BT59: 0 | BU59: 0 | BV59: 0 | BW59: 0 | BX59: 0 | BY59: 0 | BZ59: 1 | CA59: 0 | CB59: 0 | CC59: 0 | CD59: 1 | CF59: 1 | CI59: Y | CJ59: 2012-07-14 | CL59: 0 | CW59: 3210990 | CX59: 3210990 | CY59: 3210990 | CZ59: 3210990 | DA59: 3210990 | DB59: 3210990 | DC59: 3210990 | DD59: 3210990 | DE59: 3210990 | DF59: =DE59 -> 3210990 | DG59: 3210990 | DH59: 3210990 | DI59: 3210990 | DJ59: 3210990 | DK59: 3210990 | DL59: 3210990 | DM59: 3210990 | DN59: 3210990 | DO59: 3210990 | EC59: 1 | ED59: 1 | EE59: 1 | EF59: 1 | EG59: 1 | EH59: 1 | EI59: 1 | EJ59: 1 | EK59: 1 | EL59: 1 | EM59: 1 | EN59: 1 | EO59: 1 | EP59: 1 | EQ59: 1 | ER59: 1 | ES59: 1 | ET59: 1 | EU59: 1
A60: 0 | B60: Fed8 | C60: 57 | D60: BR, ER and R20 Incandescent Reflector Lamps: Residential (Exempt IRLs) | E60: 0 | F60: 0 | H60: 2013-01-01 | I60: 1 | J60: 0.01 | K60: =CF60 -> 1 | L60: 1 | M60: =IF(Dashboard!$F$33="YES",I60,100) -> 1 | P60: =IF(E60>0,1000,0) -> 0 | Q60: 0 | R60: 0 | S60: -0.0234 | AB60: =CX60*ED60 -> 0 | AC60: =CY60*EE60 -> 0 | AD60: =CZ60*EF60 -> 0 | AE60: =DA60*EG60 -> 0 | AF60: =DB60*EH60 -> 0 | AG60: =DC60*EI60 -> 0 | AH60: =DD60*EJ60 -> 0 | AI60: =DE60*EK60 -> 0 | AP60: 0.95 | AQ60: 0.95 | AR60: 0.95 | AS60: 0.95 | AT60: 0.95 | AU60: 0.95 | AV60: 0.95 | AW60: 0.95 | AX60: 0.95 | AY60: 0.95 | AZ60: 0.95 | BA60: 5 | BH60: 2014 | BI60: 9 | BJ60: =BJ30 -> 0.09 | BK60: 1970 | BL60: 7e-05 | BM60: 0.21307 | BN60: 0 | BP60: 0.0625 | BR60: 0 | BS60: 0 | BT60: 0 | BU60: 0 | BV60: 0 | BW60: 0 | BX60: 0 | BY60: 0 | BZ60: 0 | CA60: 0 | CB60: 1 | CC60: 0 | CD60: 1 | CF60: 1 | CI60: N | CJ60: 2013-01-01 | CL60: 0 | CX60: =IF($P60>0,$E60*1000000/$P60,IF($R60>0,$G60*1000000/$R60,IF($Q60>0,$F60*1000/$Q60,0))) -> 0 | CY60: 0 | CZ60: 0 | DA60: 0 | DB60: 0 | DC60: 0 | DD60: 0 | DE60: 0 | DF60: =DE60 -> 0 | DG60: 0 | DH60: 0 | DI60: 0 | DJ60: 0 | DK60: 0 | DL60: 0 | DM60: 0 | DN60: 0 | DO60: 0 | ED60: 1 | EE60: 1 | EF60: 1 | EG60: 1 | EH60: 1 | EI60: 1 | EJ60: 1 | EK60: 1 | EL60: 1 | EM60: 1 | EN60: 1 | EO60: 1 | EP60: 1 | EQ60: 1 | ER60: 1 | ES60: 1 | ET60: 1 | EU60: 1
A61: 0 | B61: Fed9 | C61: 58 | D61: External Power Supplies | E61: 664.12 | F61: 78.16 | H61: 2014-07-01 | I61: 4 | J61: 0.015 | K61: 1 | L61: 1 | M61: =IF(Dashboard!$F$33="YES",I61,100) -> 4 | P61: =IF(E61>0,1000,0) -> 1000 | Q61: 0.1176895742 | R61: 0 | S61: -0.01208388048 | AB61: 664120 | AC61: 664120 | AD61: 664120 | AE61: 664120 | AF61: 664120 | AG61: 664120 | AH61: 664120 | AI61: 664120 | AP61: 0.95 | AQ61: 0.95 | AR61: 0.95 | AS61: 0.95 | AT61: 0.95 | AU61: 0.95 | AV61: 0.95 | AW61: 0.95 | AX61: 0.95 | AY61: 0.95 | AZ61: 0.95 | BA61: 5 | BH61: 2015 | BI61: 9 | BJ61: =BJ20 -> 0.43 | BK61: =BK20 -> 2000 | BL61: 0.01208 | BM61: 0.38571 | BN61: 0 | BP61: 0.0625 | BR61: 0 | BS61: 0 | BT61: 0 | BU61: 0 | BV61: 0 | BW61: 0 | BX61: 0 | BY61: 0 | BZ61: 0 | CA61: 0 | CB61: 1 | CC61: 0 | CD61: 1 | CF61: 1 | CI61: N | CJ61: 2013-01-01 | CL61: 0 | CX61: 664120 | CY61: 664120 | CZ61: 664120 | DA61: 664120 | DB61: 664120 | DC61: 664120 | DD61: 664120 | DE61: 664120 | DF61: =DE61 -> 664120 | DG61: 664120 | DH61: 664120 | DI61: 664120 | DJ61: 664120 | DK61: 664120 | DL61: 664120 | DM61: 664120 | DN61: 664120 | DO61: 664120 | ED61: 1 | EE61: 1 | EF61: 1 | EG61: 1 | EH61: 1 | EI61: 1 | EJ61: 1 | EK61: 1 | EL61: 1 | EM61: 1 | EN61: 1 | EO61: 1 | EP61: 1 | EQ61: 1 | ER61: 1 | ES61: 1 | ET61: 1 | EU61: 1
A62: 0 | B62: Fed10 | C62: 59 | D62: Battery Chargers | E62: 764.67 | F62: 89.99 | H62: 2014-07-01 | I62: 5 | J62: 0.015 | K62: 1 | L62: 1 | M62: =IF(Dashboard!$F$33="YES",I62,100) -> 5 | P62: =IF(E62>0,1000,0) -> 1000 | Q62: 0.1176847529 | R62: 0 | S62: -0.01208388048 | AB62: 764670 | AC62: 764670 | AD62: 764670 | AE62: 764670 | AF62: 764670 | AG62: 764670 | AH62: 764670 | AI62: 764670 | AP62: 0.95 | AQ62: 0.95 | AR62: 0.95 | AS62: 0.95 | AT62: 0.95 | AU62: 0.95 | AV62: 0.95 | AW62: 0.95 | AX62: 0.95 | AY62: 0.95 | AZ62: 0.95 | BA62: 5 | BH62: 2015 | BI62: 9 | BJ62: =BJ20 -> 0.43 | BK62: =BK20 -> 2000 | BL62: 0.01208 | BM62: 0.38571 | BN62: 0 | BP62: 0.0625 | BR62: 0 | BS62: 0 | BT62: 0 | BU62: 0 | BV62: 0 | BW62: 0 | BX62: 0 | BY62: 0 | BZ62: 0 | CA62: 0 | CB62: 1 | CC62: 0 | CD62: 1 | CF62: 1 | CI62: N | CJ62: 2013-01-01 | CL62: 0 | CX62: 764670 | CY62: 764670 | CZ62: 764670 | DA62: 764670 | DB62: 764670 | DC62: 764670 | DD62: 764670 | DE62: 764670 | DF62: =DE62 -> 764670 | DG62: 764670 | DH62: 764670 | DI62: 764670 | DJ62: 764670 | DK62: 764670 | DL62: 764670 | DM62: 764670 | DN62: 764670 | DO62: 764670 | ED62: 1 | EE62: 1 | EF62: 1 | EG62: 1 | EH62: 1 | EI62: 1 | EJ62: 1 | EK62: 1 | EL62: 1 | EM62: 1 | EN62: 1 | EO62: 1 | EP62: 1 | EQ62: 1 | ER62: 1 | ES62: 1 | ET62: 1 | EU62: 1
A63: 0 | B63: Fed11 | C63: 60 | D63: Commercial Clothes Washers | E63: 28.94 | F63: 4.4 | G63: 3.15 | H63: 2013-01-08 | I63: 10.6 | J63: 0.02 | K63: 1 | L63: 1 | M63: =IF(Dashboard!$F$33="YES",I63,100) -> 10.6 | P63: =IF(E63>0,1000,0) -> 1000 | Q63: 0.1520387008 | R63: 108.845888 | S63: 0 | AB63: 28940 | AC63: 28940 | AD63: 28940 | AE63: 28940 | AF63: 28940 | AG63: 28940 | AH63: 28940 | AI63: 28940 | AP63: 0.95 | AQ63: 0.95 | AR63: 0.95 | AS63: 0.95 | AT63: 0.95 | AU63: 0.95 | AV63: 0.95 | AW63: 0.95 | AX63: 0.95 | AY63: 0.95 | AZ63: 0.95 | BA63: 5 | BH63: 2014 | BI63: 9 | BJ63: =BJ6 -> 0.5 | BK63: =BK6 -> 1995 | BL63: 0.00232 | BM63: 0.50729 | BN63: 0 | BP63: 0.0625 | BR63: 0 | BS63: 0 | BT63: 0 | BU63: 0 | BV63: 0 | BW63: 0 | BX63: 0 | BY63: 0 | BZ63: 0 | CA63: 0 | CB63: 1 | CC63: 0 | CD63: 1 | CF63: 1 | CI63: Y | CJ63: 2013-01-08 | CL63: 0 | CX63: 28940 | CY63: 28940 | CZ63: 28940 | DA63: 28940 | DB63: 28940 | DC63: 28940 | DD63: 28940 | DE63: 28940 | DF63: =DE63 -> 28940 | DG63: 28940 | DH63: 28940 | DI63: 28940 | DJ63: 28940 | DK63: 28940 | DL63: 28940 | DM63: 28940 | DN63: 28940 | DO63: 28940 | ED63: 1 | EE63: 1 | EF63: 1 | EG63: 1 | EH63: 1 | EI63: 1 | EJ63: 1 | EK63: 1 | EL63: 1 | EM63: 1 | EN63: 1 | EO63: 1 | EP63: 1 | EQ63: 1 | ER63: 1 | ES63: 1 | ET63: 1 | EU63: 1
A64: 0 | B64: Fed12 | C64: 61 | D64: Residential Pool Heaters | E64: 0 | G64: 0.66 | H64: 2013-04-16 | I64: 10 | J64: 0.01 | K64: 1 | L64: 1 | M64: =IF(Dashboard!$F$33="YES",I64,100) -> 10 | P64: =IF(E64>0,1000,0) -> 0 | Q64: 0 | R64: 10 | S64: 0 | AB64: 66000 | AC64: 66000 | AD64: 66000 | AE64: 66000 | AF64: 66000 | AG64: 66000 | AH64: 66000 | AI64: 66000 | AP64: 0.95 | AQ64: 0.95 | AR64: 0.95 | AS64: 0.95 | AT64: 0.95 | AU64: 0.95 | AV64: 0.95 | AW64: 0.95 | AX64: 0.95 | AY64: 0.95 | AZ64: 0.95 | BA64: 5 | BH64: 2014 | BI64: 9 | BJ64: =BJ28 -> 0.11 | BK64: =BK28 -> 1975 | BL64: 0.00043 | BM64: 0.20166 | BN64: 0 | BP64: 0.0625 | BR64: 0 | BS64: 0 | BT64: 0 | BU64: 0 | BV64: 0 | BW64: 0 | BX64: 0 | BY64: 0 | BZ64: 0 | CA64: 0 | CB64: 1 | CC64: 0 | CD64: 1 | CF64: 1 | CI64: Y | CJ64: 2013-04-16 | CL64: 1 | CX64: 66000 | CY64: 66000 | CZ64: 66000 | DA64: 66000 | DB64: 66000 | DC64: 66000 | DD64: 66000 | DE64: 66000 | DF64: =DE64 -> 66000 | DG64: 66000 | DH64: 66000 | DI64: 66000 | DJ64: 66000 | DK64: 66000 | DL64: 66000 | DM64: 66000 | DN64: 66000 | DO64: 66000 | ED64: 1 | EE64: 1 | EF64: 1 | EG64: 1 | EH64: 1 | EI64: 1 | EJ64: 1 | EK64: 1 | EL64: 1 | EM64: 1 | EN64: 1 | EO64: 1 | EP64: 1 | EQ64: 1 | ER64: 1 | ES64: 1 | ET64: 1 | EU64: 1
A65: 0 | B65: Fed13 | C65: 62 | D65: Residential Direct Heating Equipment | E65: 0 | G65: 5.25 | H65: 2013-04-16 | I65: 15 | J65: 0.01 | K65: 1 | L65: 1 | M65: =IF(Dashboard!$F$33="YES",I65,100) -> 15 | P65: =IF(E65>0,1000,0) -> 0 | Q65: 0 | R65: 10 | S65: -0.01765 | AB65: 525000 | AC65: 525000 | AD65: 525000 | AE65: 525000 | AF65: 525000 | AG65: 525000 | AH65: 525000 | AI65: 525000 | AP65: 0.95 | AQ65: 0.95 | AR65: 0.95 | AS65: 0.95 | AT65: 0.95 | AU65: 0.95 | AV65: 0.95 | AW65: 0.95 | AX65: 0.95 | AY65: 0.95 | AZ65: 0.95 | BA65: 5 | BH65: 2014 | BI65: 9 | BJ65: =BJ64 -> 0.11 | BK65: =BK64 -> 1975 | BL65: 0.00043 | BM65: 0.20166 | BN65: 0 | BP65: 0.0625 | BR65: 0 | BS65: 0 | BT65: 0 | BU65: 0 | BV65: 0 | BW65: 0 | BX65: 0 | BY65: 0 | BZ65: 0 | CA65: 0 | CB65: 1 | CC65: 0 | CD65: 1 | CF65: 1 | CI65: Y | CJ65: 2013-04-16 | CL65: 0 | CX65: 525000 | CY65: 525000 | CZ65: 525000 | DA65: 525000 | DB65: 525000 | DC65: 525000 | DD65: 525000 | DE65: 525000 | DF65: =DE65 -> 525000 | DG65: 525000 | DH65: 525000 | DI65: 525000 | DJ65: 525000 | DK65: 525000 | DL65: 525000 | DM65: 525000 | DN65: 525000 | DO65: 525000 | ED65: 1 | EE65: 1 | EF65: 1 | EG65: 1 | EH65: 1 | EI65: 1 | EJ65: 1 | EK65: 1 | EL65: 1 | EM65: 1 | EN65: 1 | EO65: 1 | EP65: 1 | EQ65: 1 | ER65: 1 | ES65: 1 | ET65: 1 | EU65: 1
A66: 0 | B66: Fed14 | C66: 63 | D66: Residential Refrigerators & Freezers | E66: 2940 | F66: 394 | H66: 2014-11-01 | I66: 19 | J66: 0.01 | K66: 1 | L66: 1 | M66: =IF(Dashboard!$F$33="YES",I66,100) -> 19 | P66: =IF(E66>0,1000,0) -> 1000 | Q66: 0.1340136054 | R66: 0 | S66: -0.01581196581 | AB66: 2940000 | AC66: 2940000 | AD66: 2940000 | AE66: 2940000 | AF66: 2940000 | AG66: 2940000 | AH66: 2940000 | AI66: 2940000 | AP66: 0.95 | AQ66: 0.95 | AR66: 0.95 | AS66: 0.95 | AT66: 0.95 | AU66: 0.95 | AV66: 0.95 | AW66: 0.95 | AX66: 0.95 | AY66: 0.95 | AZ66: 0.95 | BA66: 5 | BH66: 2015 | BI66: 9 | BJ66: =BJ5 -> 0.79 | BK66: =BK5 -> 1995 | BL66: 0.00891 | BM66: 0.4334 | BN66: 0 | BP66: 0.0625 | BR66: 0 | BS66: 0 | BT66: 0 | BU66: 0 | BV66: 0 | BW66: 0 | BX66: 0 | BY66: 0 | BZ66: 0 | CA66: 0 | CB66: 1 | CC66: 0 | CD66: 1 | CF66: 1 | CI66: Y | CJ66: 2014-01-01 | CL66: 1 | CX66: 2940000 | CY66: 2940000 | CZ66: 2940000 | DA66: 2940000 | DB66: 2940000 | DC66: 2940000 | DD66: 2940000 | DE66: 2940000 | DF66: =DE66 -> 2940000 | DG66: 2940000 | DH66: 2940000 | DI66: 2940000 | DJ66: 2940000 | DK66: 2940000 | DL66: 2940000 | DM66: 2940000 | DN66: 2940000 | DO66: 2940000 | ED66: 1 | EE66: 1 | EF66: 1 | EG66: 1 | EH66: 1 | EI66: 1 | EJ66: 1 | EK66: 1 | EL66: 1 | EM66: 1 | EN66: 1 | EO66: 1 | EP66: 1 | EQ66: 1 | ER66: 1 | ES66: 1 | ET66: 1 | EU66: 1
A67: 0 | B67: Fed15 | C67: 64 | D67: Microwave Ovens [Standby] | E67: 96 | F67: 14 | H67: 2014-06-01 | I67: 9 | J67: 0.015 | K67: 1 | L67: 1 | M67: =IF(Dashboard!$F$33="YES",I67,100) -> 9 | P67: =IF(E67>0,1000,0) -> 1000 | Q67: 0.1458333333 | R67: 0 | S67: -0.01208388048 | AB67: 96000 | AC67: 96000 | AD67: 96000 | AE67: 96000 | AF67: 96000 | AG67: 96000 | AH67: 96000 | AI67: 96000 | AP67: 0.95 | AQ67: 0.95 | AR67: 0.95 | AS67: 0.95 | AT67: 0.95 | AU67: 0.95 | AV67: 0.95 | AW67: 0.95 | AX67: 0.95 | AY67: 0.95 | AZ67: 0.95 | BA67: 5 | BH67: 2015 | BI67: 9 | BJ67: =BJ42 -> 0.43 | BK67: =BK42 -> 2000 | BL67: 0.01208 | BM67: 0.38571 | BN67: 0 | BP67: 0.0625 | BR67: 0 | BS67: 0 | BT67: 0 | BU67: 0 | BV67: 0 | BW67: 0 | BX67: 0 | BY67: 0 | BZ67: 0 | CA67: 0 | CB67: 1 | CC67: 0 | CD67: 1 | CF67: 1 | CI67: N | CJ67: 2014-06-01 | CL67: 0 | CX67: 96000 | CY67: 96000 | CZ67: 96000 | DA67: 96000 | DB67: 96000 | DC67: 96000 | DD67: 96000 | DE67: 96000 | DF67: =DE67 -> 96000 | DG67: 96000 | DH67: 96000 | DI67: 96000 | DJ67: 96000 | DK67: 96000 | DL67: 96000 | DM67: 96000 | DN67: 96000 | DO67: 96000 | ED67: 1 | EE67: 1 | EF67: 1 | EG67: 1 | EH67: 1 | EI67: 1 | EJ67: 1 | EK67: 1 | EL67: 1 | EM67: 1 | EN67: 1 | EO67: 1 | EP67: 1 | EQ67: 1 | ER67: 1 | ES67: 1 | ET67: 1 | EU67: 1
A68: 0 | B68: Fed16 | C68: 65 | D68: Residential Clothes Dryers | E68: 32.57 | F68: 10 | G68: 0.23 | H68: 2015-01-01 | I68: 16 | J68: 0.01 | K68: 1 | L68: 1 | M68: =IF(Dashboard!$F$33="YES",I68,100) -> 16 | P68: =IF(E68>0,1000,0) -> 1000 | Q68: 0.3070310101 | R68: 7.061713233 | S68: 0 | AB68: 32570 | AC68: 32570 | AD68: 32570 | AE68: 32570 | AF68: 32570 | AG68: 32570 | AH68: 32570 | AI68: 32570 | AP68: 0.95 | AQ68: 0.95 | AR68: 0.95 | AS68: 0.95 | AT68: 0.95 | AU68: 0.95 | AV68: 0.95 | AW68: 0.95 | AX68: 0.95 | AY68: 0.95 | AZ68: 0.95 | BA68: 5 | BH68: 2016 | BI68: 9 | BJ68: =BJ24 -> 0.61 | BK68: =BK24 -> 2000 | BL68: 0.03664 | BM68: 0.34288 | BN68: 0 | BP68: 0.0625 | BR68: 0 | BS68: 0 | BT68: 0 | BU68: 0 | BV68: 0 | BW68: 0 | BX68: 0 | BY68: 0 | BZ68: 0 | CA68: 0 | CB68: 1 | CC68: 0 | CD68: 1 | CF68: 1 | CI68: Y | CJ68: 2014-05-21 | CL68: 0 | CX68: 32570 | CY68: 32570 | CZ68: 32570 | DA68: 32570 | DB68: 32570 | DC68: 32570 | DD68: 32570 | DE68: 32570 | DF68: =DE68 -> 32570 | DG68: 32570 | DH68: 32570 | DI68: 32570 | DJ68: 32570 | DK68: 32570 | DL68: 32570 | DM68: 32570 | DN68: 32570 | DO68: 32570 | ED68: 1 | EE68: 1 | EF68: 1 | EG68: 1 | EH68: 1 | EI68: 1 | EJ68: 1 | EK68: 1 | EL68: 1 | EM68: 1 | EN68: 1 | EO68: 1 | EP68: 1 | EQ68: 1 | ER68: 1 | ES68: 1 | ET68: 1 | EU68: 1
A69: 0 | B69: Fed17 | C69: 66 | D69: Residential Room AC | E69: 162.21 | F69: 860 | H69: 2014-06-30 | I69: 10.5 | J69: 0.01 | K69: 1 | L69: 1 | M69: =IF(Dashboard!$F$33="YES",I69,100) -> 10.5 | P69: =IF(E69>0,1000,0) -> 1000 | Q69: 5.301769311 | R69: 0 | S69: 0 | AB69: 162210 | AC69: 162210 | AD69: 162210 | AE69: 162210 | AF69: 162210 | AG69: 162210 | AH69: 162210 | AI69: 162210 | AP69: 0.95 | AQ69: 0.95 | AR69: 0.95 | AS69: 0.95 | AT69: 0.95 | AU69: 0.95 | AV69: 0.95 | AW69: 0.95 | AX69: 0.95 | AY69: 0.95 | AZ69: 0.95 | BA69: 5 | BH69: 2015 | BI69: 9 | BJ69: =BJ57 -> 0.31 | BK69: =BK57 -> 1965 | BL69: 0.00708 | BM69: 0.09653 | BN69: 0 | BP69: 0.0625 | BR69: 0 | BS69: 0 | BT69: 0 | BU69: 0 | BV69: 0 | BW69: 0 | BX69: 0 | BY69: 0 | BZ69: 0 | CA69: 0 | CB69: 1 | CC69: 0 | CD69: 1 | CF69: 1 | CI69: Y | CJ69: 2014-05-21 | CL69: 1 | CX69: 162210 | CY69: 162210 | CZ69: 162210 | DA69: 162210 | DB69: 162210 | DC69: 162210 | DD69: 162210 | DE69: 162210 | DF69: =DE69 -> 162210 | DG69: 162210 | DH69: 162210 | DI69: 162210 | DJ69: 162210 | DK69: 162210 | DL69: 162210 | DM69: 162210 | DN69: 162210 | DO69: 162210 | ED69: 1 | EE69: 1 | EF69: 1 | EG69: 1 | EH69: 1 | EI69: 1 | EJ69: 1 | EK69: 1 | EL69: 1 | EM69: 1 | EN69: 1 | EO69: 1 | EP69: 1 | EQ69: 1 | ER69: 1 | ES69: 1 | ET69: 1 | EU69: 1
A70: 0 | B70: Fed18 | C70: 67 | D70: Flourescent Ballasts | E70: 3475 | F70: 617 | H70: 2014-11-01 | I70: 16 | J70: 0.02 | K70: 1 | L70: 1 | M70: =IF(Dashboard!$F$33="YES",I70,100) -> 16 | P70: =IF(E70>0,1000,0) -> 1000 | Q70: 0.1775539568 | R70: 0 | S70: -0.0119 | AB70: 3475000 | AC70: 3475000 | AD70: 3475000 | AE70: 3475000 | AF70: 3475000 | AG70: 3475000 | AH70: 3475000 | AI70: 3475000 | AP70: 0.95 | AQ70: 0.95 | AR70: 0.95 | AS70: 0.95 | AT70: 0.95 | AU70: 0.95 | AV70: 0.95 | AW70: 0.95 | AX70: 0.95 | AY70: 0.95 | AZ70: 0.95 | BA70: 5 | BH70: 2015 | BI70: 9 | BJ70: =BJ59 -> 0.09 | BK70: =BK59 -> 1970 | BL70: 7e-05 | BM70: 0.21307 | BN70: 0 | BP70: 0.0625 | BR70: 0 | BS70: 0 | BT70: 0 | BU70: 0 | BV70: 0 | BW70: 0 | BX70: 0 | BY70: 0 | BZ70: 0 | CA70: 0 | CB70: 1 | CC70: 0 | CD70: 1 | CF70: 1 | CI70: N | CJ70: 2014-06-30 | CL70: 0 | CX70: =IF($P70>0,$E70*1000000/$P70,IF($R70>0,$G70*1000000/$R70,IF($Q70>0,$F70*1000/$Q70,0))) -> 3475000 | CY70: 3475000 | CZ70: 3475000 | DA70: 3475000 | DB70: 3475000 | DC70: 3475000 | DD70: 3475000 | DE70: 3475000 | DF70: =DE70 -> 3475000 | DG70: 3475000 | DH70: 3475000 | DI70: 3475000 | DJ70: 3475000 | DK70: 3475000 | DL70: 3475000 | DM70: 3475000 | DN70: 3475000 | DO70: 3475000 | ED70: 1 | EE70: 1 | EF70: 1 | EG70: 1 | EH70: 1 | EI70: 1 | EJ70: 1 | EK70: 1 | EL70: 1 | EM70: 1 | EN70: 1 | EO70: 1 | EP70: 1 | EQ70: 1 | ER70: 1 | ES70: 1 | ET70: 1 | EU70: 1
A71: 0 | B71: Fed19 | C71: 68 | D71: Electric Motors | H71: 2015-01-01 | I71: 15 | J71: 0.02 | K71: 1 | L71: 1 | M71: =IF(Dashboard!$F$33="YES",I71,100) -> 15 | P71: =IF(E71>0,1000,0) -> 0 | Q71: 0 | R71: 0 | S71: -0.01765 | AB71: 0 | AC71: 0 | AD71: 0 | AE71: 0 | AF71: 0 | AG71: 0 | AH71: 0 | AI71: 0 | AP71: 0.95 | AQ71: 0.95 | AR71: 0.95 | AS71: 0.95 | AT71: 0.95 | AU71: 0.95 | AV71: 0.95 | AW71: 0.95 | AX71: 0.95 | AY71: 0.95 | AZ71: 0.95 | BA71: 5 | BH71: 2016 | BI71: 9 | BJ71: =BJ28 -> 0.11 | BK71: =BK28 -> 1975 | BL71: 0.00043 | BM71: 0.20166 | BN71: 0 | BP71: 0.0625 | BR71: 0 | BS71: 0 | BT71: 0 | BU71: 0 | BV71: 0 | BW71: 0 | BX71: 0 | BY71: 0 | BZ71: 0 | CA71: 0 | CB71: =IF(CI71="Y",1,0) -> 0 | CC71: 0 | CD71: 1 | CF71: 1 | CI71: N | CJ71: 2015-01-01 | CL71: 0 | CX71: 0 | CY71: 0 | CZ71: 0 | DA71: 0 | DB71: 0 | DC71: 0 | DD71: 0 | DE71: 0 | DF71: =DE71 -> 0 | DG71: 0 | DH71: 0 | DI71: 0 | DJ71: 0 | DK71: 0 | DL71: 0 | DM71: 0 | DN71: 0 | DO71: 0 | ED71: 1 | EE71: 1 | EF71: 1 | EG71: 1 | EH71: 1 | EI71: 1 | EJ71: 1 | EK71: 1 | EL71: 1 | EM71: 1 | EN71: 1 | EO71: 1 | EP71: 1 | EQ71: 1 | ER71: 1 | ES71: 1 | ET71: 1 | EU71: 1
A72: 0 | B72: Fed20 | C72: 69 | D72: Residential Clothes Washers | E72: 3073 | F72: 550 | H72: 2015-01-01 | I72: 11 | J72: 0.01 | K72: 1 | L72: 1 | M72: =IF(Dashboard!$F$33="YES",I72,100) -> 11 | P72: 1000 | Q72: 0.1789781972 | R72: 0 | S72: 0 | AB72: 3073000 | AC72: 3073000 | AD72: 3073000 | AE72: 3073000 | AF72: 3073000 | AG72: 3073000 | AH72: 3073000 | AI72: 3073000 | AP72: 0.95 | AQ72: 0.95 | AR72: 0.95 | AS72: 0.95 | AT72: 0.95 | AU72: 0.95 | AV72: 0.95 | AW72: 0.95 | AX72: 0.95 | AY72: 0.95 | AZ72: 0.95 | BA72: 5 | BH72: 2016 | BI72: 9 | BJ72: =BJ57 -> 0.31 | BK72: =BK57 -> 1965 | BL72: 0.00708 | BM72: 0.09653 | BN72: 0 | BP72: 0.0625 | BR72: 0 | BS72: 0 | BT72: 0 | BU72: 0 | BV72: 0 | BW72: 0 | BX72: 0 | BY72: 0 | BZ72: 0 | CA72: 0 | CB72: =IF(CI72="Y",1,0) -> 0 | CC72: 0 | CD72: 1 | CF72: 1 | CI72: N | CJ72: 2015-01-01 | CL72: 0 | CX72: 3073000 | CY72: 3073000 | CZ72: 3073000 | DA72: 3073000 | DB72: 3073000 | DC72: 3073000 | DD72: 3073000 | DE72: 3073000 | DF72: =DE72 -> 3073000 | DG72: 3073000 | DH72: 3073000 | DI72: 3073000 | DJ72: 3073000 | DK72: 3073000 | DL72: 3073000 | DM72: 3073000 | DN72: 3073000 | DO72: 3073000 | ED72: 1 | EE72: 1 | EF72: 1 | EG72: 1 | EH72: 1 | EI72: 1 | EJ72: 1 | EK72: 1 | EL72: 1 | EM72: 1 | EN72: 1 | EO72: 1 | EP72: 1 | EQ72: 1 | ER72: 1 | ES72: 1 | ET72: 1 | EU72: 1
A73: 0 | B73: Fed21 | C73: 70 | D73: Walk-in Coolers & Freezers | E73: 613 | F73: 78 | H73: 2015-01-01 | I73: 12 | J73: 0.02 | K73: 1 | L73: 1 | M73: =IF(Dashboard!$F$33="YES",I73,100) -> 12 | P73: 11991.39539 | Q73: 0.001374320158 | R73: 0 | S73: 0 | AB73: 51119.98898 | AC73: 51119.98898 | AD73: 51119.98898 | AE73: 51119.98898 | AF73: 51119.98898 | AG73: 51119.98898 | AH73: 51119.98898 | AI73: 51119.98898 | AP73: 0.95 | AQ73: 0.95 | AR73: 0.95 | AS73: 0.95 | AT73: 0.95 | AU73: 0.95 | AV73: 0.95 | AW73: 0.95 | AX73: 0.95 | AY73: 0.95 | AZ73: 0.95 | BA73: 5 | BH73: 2016 | BI73: 9 | BJ73: =BJ8 -> 0.41 | BK73: =BK8 -> 1995 | BL73: 0.01117 | BM73: 0.24829 | BN73: 0 | BP73: 0.0625 | BR73: 0 | BS73: 0 | BT73: 0 | BU73: 0 | BV73: 0 | BW73: 0 | BX73: 0 | BY73: 0 | BZ73: 0 | CA73: 0 | CB73: 0 | CC73: 0 | CD73: 1 | CF73: 1 | CI73: N | CJ73: 2015-01-01 | CL73: 0 | CX73: 51119.98898 | CY73: 51119.98898 | CZ73: 51119.98898 | DA73: 51119.98898 | DB73: 51119.98898 | DC73: 51119.98898 | DD73: 51119.98898 | DE73: 51119.98898 | DF73: =DE73 -> 51119.98898 | DG73: 51119.98898 | DH73: 51119.98898 | DI73: 51119.98898 | DJ73: 51119.98898 | DK73: 51119.98898 | DL73: 51119.98898 | DM73: 51119.98898 | DN73: 51119.98898 | DO73: 51119.98898 | ED73: 1 | EE73: 1 | EF73: 1 | EG73: 1 | EH73: 1 | EI73: 1 | EJ73: 1 | EK73: 1 | EL73: 1 | EM73: 1 | EN73: 1 | EO73: 1 | EP73: 1 | EQ73: 1 | ER73: 1 | ES73: 1 | ET73: 1 | EU73: 1
A74: 0 | B74: Fed22 | C74: 71 | D74: Metal Halide Lamp Fixtures | E74: 2025 | F74: 372 | H74: 2015-01-01 | I74: 20 | J74: 0.02 | K74: 1 | L74: 1 | M74: =IF(Dashboard!$F$33="YES",I74,100) -> 20 | P74: =IF(E74>0,1000,0) -> 1000 | Q74: =IF(P74>0,F74*1000/$DE74,IF(F74>0,1,)) -> 0.1837037037 | R74: =IF(P74>0,G74*1000000/DE74,IF(G74>0,10,0)) -> 0 | S74: -0.0119 | AB74: 2025000 | AC74: 2025000 | AD74: 2025000 | AE74: 2025000 | AF74: 2025000 | AG74: 2025000 | AH74: 2025000 | AI74: 2025000 | AP74: 0.95 | AQ74: 0.95 | AR74: 0.95 | AS74: 0.95 | AT74: 0.95 | AU74: 0.95 | AV74: 0.95 | AW74: 0.95 | AX74: 0.95 | AY74: 0.95 | AZ74: 0.95 | BA74: 5 | BH74: 2016 | BI74: 9 | BJ74: =BJ15 -> 0.74 | BK74: =BK15 -> 1992 | BL74: 0.00075 | BM74: 0.34836 | BN74: 0 | BP74: 0.0625 | BR74: 0 | BS74: 0 | BT74: 0 | BU74: 0 | BV74: 0 | BW74: 0 | BX74: 0 | BY74: 0 | BZ74: 0 | CA74: 0 | CB74: 0 | CC74: 0 | CD74: 1 | CF74: 1 | CI74: N | CJ74: 2015-01-01 | CL74: 0 | CX74: 2025000 | CY74: 2025000 | CZ74: 2025000 | DA74: 2025000 | DB74: 2025000 | DC74: 2025000 | DD74: 2025000 | DE74: 2025000 | DF74: =DE74 -> 2025000 | DG74: 2025000 | DH74: 2025000 | DI74: 2025000 | DJ74: 2025000 | DK74: 2025000 | DL74: 2025000 | DM74: 2025000 | DN74: 2025000 | DO74: 2025000 | ED74: 1 | EE74: 1 | EF74: 1 | EG74: 1 | EH74: 1 | EI74: 1 | EJ74: 1 | EK74: 1 | EL74: 1 | EM74: 1 | EN74: 1 | EO74: 1 | EP74: 1 | EQ74: 1 | ER74: 1 | ES74: 1 | ET74: 1 | EU74: 1
A75: 0 | B75: Fed23 | C75: 72 | D75: Residential Central AC and Heat Pumps | E75: 1458 | F75: 2375 | H75: 2015-01-01 | I75: 18 | J75: 0.01 | K75: 1 | L75: 1 | M75: =IF(Dashboard!$F$33="YES",I75,100) -> 18 | P75: =IF(E75>0,1000,0) -> 1000 | Q75: =IF(P75>0,F75*1000/$DE75,IF(F75>0,1,)) -> 1.628943759 | R75: 0 | S75: 0 | AB75: 1458000 | AC75: 1458000 | AD75: 1458000 | AE75: 1458000 | AF75: 1458000 | AG75: 1458000 | AH75: 1458000 | AI75: 1458000 | AP75: 0.95 | AQ75: 0.95 | AR75: 0.95 | AS75: 0.95 | AT75: 0.95 | AU75: 0.95 | AV75: 0.95 | AW75: 0.95 | AX75: 0.95 | AY75: 0.95 | AZ75: 0.95 | BA75: 5 | BH75: 2016 | BI75: 9 | BJ75: =BJ57 -> 0.31 | BK75: =BK57 -> 1965 | BL75: 0.00708 | BM75: 0.09653 | BN75: 0 | BP75: 0.0625 | BR75: 0 | BS75: 0 | BT75: 0 | BU75: 0 | BV75: 0 | BW75: 0 | BX75: 0 | BY75: 0 | BZ75: 0 | CA75: 0 | CB75: 1 | CC75: 0 | CD75: 1 | CF75: 1 | CI75: Y | CJ75: 2015-01-01 | CL75: 1 | CX75: 1458000 | CY75: 1458000 | CZ75: 1458000 | DA75: 1458000 | DB75: 1458000 | DC75: 1458000 | DD75: 1458000 | DE75: 1458000 | DF75: =DE75 -> 1458000 | DG75: 1458000 | DH75: 1458000 | DI75: 1458000 | DJ75: 1458000 | DK75: 1458000 | DL75: 1458000 | DM75: 1458000 | DN75: 1458000 | DO75: 1458000 | ED75: 1 | EE75: 1 | EF75: 1 | EG75: 1 | EH75: 1 | EI75: 1 | EJ75: 1 | EK75: 1 | EL75: 1 | EM75: 1 | EN75: 1 | EO75: 1 | EP75: 1 | EQ75: 1 | ER75: 1 | ES75: 1 | ET75: 1 | EU75: 1
A76: 0 | B76: Fed24 | C76: 73 | D76: Distribution Transformers | E76: 482 | F76: 66 | H76: 2015-01-01 | I76: 30 | J76: 0.02 | K76: 1 | L76: 1 | M76: =IF(Dashboard!$F$33="YES",I76,100) -> 30 | P76: =IF(E76>0,1000,0) -> 1000 | Q76: =IF(P76>0,F76*1000/$DE76,IF(F76>0,1,)) -> 0.1369294606 | R76: 0 | S76: 0 | AB76: 482000 | AC76: 482000 | AD76: 482000 | AE76: 482000 | AF76: 482000 | AG76: 482000 | AH76: 482000 | AI76: 482000 | AP76: 0.95 | AQ76: 0.95 | AR76: 0.95 | AS76: 0.95 | AT76: 0.95 | AU76: 0.95 | AV76: 0.95 | AW76: 0.95 | AX76: 0.95 | AY76: 0.95 | AZ76: 0.95 | BA76: 5 | BH76: 2016 | BI76: 9 | BJ76: =BJ71 -> 0.11 | BK76: =BK71 -> 1975 | BL76: 0.00043 | BM76: 0.20166 | BN76: 0 | BP76: 0.0625 | BR76: 0 | BS76: 0 | BT76: 0 | BU76: 0 | BV76: 0 | BW76: 0 | BX76: 0 | BY76: 0 | BZ76: 0 | CA76: 0 | CB76: 0 | CC76: 0 | CD76: 1 | CF76: 1 | CI76: N | CJ76: 2015-01-01 | CL76: 0 | CX76: 482000 | CY76: 482000 | CZ76: 482000 | DA76: 482000 | DB76: 482000 | DC76: 482000 | DD76: 482000 | DE76: 482000 | DF76: =DE76 -> 482000 | DG76: 482000 | DH76: 482000 | DI76: 482000 | DJ76: 482000 | DK76: 482000 | DL76: 482000 | DM76: 482000 | DN76: 482000 | DO76: 482000 | ED76: 1 | EE76: 1 | EF76: 1 | EG76: 1 | EH76: 1 | EI76: 1 | EJ76: 1 | EK76: 1 | EL76: 1 | EM76: 1 | EN76: 1 | EO76: 1 | EP76: 1 | EQ76: 1 | ER76: 1 | ES76: 1 | ET76: 1 | EU76: 1
A77: 0 | B77: Fed25 | C77: 74 | D77: Commercial Automatic Ice Makers | E77: 0 | F77: 0 | H77: 2015-01-01 | I77: 7 | J77: 0.02 | K77: 1 | L77: 1 | M77: =IF(Dashboard!$F$33="YES",I77,100) -> 7 | P77: =IF(E77>0,1000,0) -> 0 | Q77: =IF(P77>0,F77*1000/$DE77,IF(F77>0,1,)) -> 0 | R77: 0 | S77: -0.00604194024 | AB77: 0 | AC77: 0 | AD77: 0 | AE77: 0 | AF77: 0 | AG77: 0 | AH77: 0 | AI77: 0 | AP77: 0.95 | AQ77: 0.95 | AR77: 0.95 | AS77: 0.95 | AT77: 0.95 | AU77: 0.95 | AV77: 0.95 | AW77: 0.95 | AX77: 0.95 | AY77: 0.95 | AZ77: 0.95 | BA77: 5 | BH77: 2016 | BI77: 9 | BJ77: =BJ7 -> 0.25 | BK77: =BK7 -> 1995 | BL77: 0.00538 | BM77: 0.53466 | BN77: 0 | BP77: 0.0625 | BR77: 0 | BS77: 0 | BT77: 0 | BU77: 0 | BV77: 0 | BW77: 0 | BX77: 0 | BY77: 0 | BZ77: 0 | CA77: 0 | CB77: 0 | CC77: 0 | CD77: 1 | CF77: 1 | CI77: N | CJ77: 2015-01-01 | CL77: 0 | CX77: 0 | CY77: 0 | CZ77: 0 | DA77: 0 | DB77: 0 | DC77: 0 | DD77: 0 | DE77: 0 | DF77: =DE77 -> 0 | DG77: 0 | DH77: 0 | DI77: 0 | DJ77: 0 | DK77: 0 | DL77: 0 | DM77: 0 | DN77: 0 | DO77: 0 | ED77: 1 | EE77: 1 | EF77: 1 | EG77: 1 | EH77: 1 | EI77: 1 | EJ77: 1 | EK77: 1 | EL77: 1 | EM77: 1 | EN77: 1 | EO77: 1 | EP77: 1 | EQ77: 1 | ER77: 1 | ES77: 1 | ET77: 1 | EU77: 1
A78: 0 | B78: Fed26 | C78: 75 | D78: Small Electric Motors | E78: 1392.91 | F78: 181 | H78: 2015-03-09 | I78: 7.286393434 | J78: 0.02 | K78: 1 | L78: 1 | M78: =IF(Dashboard!$F$33="YES",I78,100) -> 7.286393434 | P78: 257.7202247 | Q78: 0.1391690143 | R78: 0 | S78: 0 | AB78: 503.6357303 | AC78: 504.6357303 | AD78: 504.6357303 | AE78: 504.6357303 | AF78: 504.6357303 | AG78: 504.6357303 | AH78: 504.6357303 | AI78: 504.6357303 | AP78: 0.95 | AQ78: 0.95 | AR78: 0.95 | AS78: 0.95 | AT78: 0.95 | AU78: 0.95 | AV78: 0.95 | AW78: 0.95 | AX78: 0.95 | AY78: 0.95 | AZ78: 0.95 | BA78: 5 | BH78: 2016 | BI78: 9 | BJ78: =BJ71 -> 0.11 | BK78: =BK71 -> 1975 | BL78: 0.00043 | BM78: 0.20166 | BN78: 0 | BP78: 0.0625 | BR78: 0 | BS78: 0 | BT78: 0 | BU78: 0 | BV78: 0 | BW78: 0 | BX78: 0 | BY78: 0 | BZ78: 0 | CA78: 0 | CB78: 0 | CC78: 0 | CD78: 1 | CF78: 1 | CI78: N | CJ78: 2015-03-09 | CL78: 0 | CX78: 503.6357303 | CY78: 504.6357303 | CZ78: 504.6357303 | DA78: 504.6357303 | DB78: 504.6357303 | DC78: 504.6357303 | DD78: 504.6357303 | DE78: 504.6357303 | DF78: =DE78 -> 504.6357303 | DG78: 504.6357303 | DH78: 504.6357303 | DI78: 504.6357303 | DJ78: 504.6357303 | DK78: 504.6357303 | DL78: 504.6357303 | DM78: 504.6357303 | DN78: 504.6357303 | DO78: 504.6357303 | ED78: 1 | EE78: 1 | EF78: 1 | EG78: 1 | EH78: 1 | EI78: 1 | EJ78: 1 | EK78: 1 | EL78: 1 | EM78: 1 | EN78: 1 | EO78: 1 | EP78: 1 | EQ78: 1 | ER78: 1 | ES78: 1 | ET78: 1 | EU78: 1
A79: 0 | B79: Fed27 | C79: 76 | D79: Residential Gas Fired Water Heaters | E79: 0 | G79: 21.21 | H79: 2015-04-16 | I79: 13 | J79: 0.01 | K79: 1 | L79: 1 | M79: =IF(Dashboard!$F$33="YES",I79,100) -> 13 | P79: =IF(E79>0,1000,0) -> 0 | Q79: =IF(P79>0,F79*1000/$DE79,IF(F79>0,1,)) -> 0 | R79: 10 | S79: 0 | AB79: 2121000 | AC79: 2121000 | AD79: 2121000 | AE79: 2121000 | AF79: 2121000 | AG79: 2121000 | AH79: 2121000 | AI79: 2121000 | AP79: 0.95 | AQ79: 0.95 | AR79: 0.95 | AS79: 0.95 | AT79: 0.95 | AU79: 0.95 | AV79: 0.95 | AW79: 0.95 | AX79: 0.95 | AY79: 0.95 | AZ79: 0.95 | BA79: 5 | BH79: 2016 | BI79: 9 | BJ79: =BJ57 -> 0.31 | BK79: =BK57 -> 1965 | BL79: 0.00708 | BM79: 0.09653 | BN79: 0 | BP79: 0.0625 | BR79: 0 | BS79: 0 | BT79: 0 | BU79: 0 | BV79: 0 | BW79: 0 | BX79: 0 | BY79: 0 | BZ79: 0 | CA79: 0 | CB79: 1 | CC79: 0 | CD79: 1 | CF79: 1 | CI79: Y | CJ79: 2015-04-16 | CL79: 1 | CX79: =IF($P79>0,$E79*1000000/$P79,IF($R79>0,$G79*1000000/$R79,IF($Q79>0,$F79*1000/$Q79,0))) -> 2121000 | CY79: 2121000 | CZ79: 2121000 | DA79: 2121000 | DB79: 2121000 | DC79: 2121000 | DD79: 2121000 | DE79: 2121000 | DF79: =DE79 -> 2121000 | DG79: 2121000 | DH79: 2121000 | DI79: 2121000 | DJ79: 2121000 | DK79: 2121000 | DL79: 2121000 | DM79: 2121000 | DN79: 2121000 | DO79: 2121000 | ED79: 1 | EE79: 1 | EF79: 1 | EG79: 1 | EH79: 1 | EI79: 1 | EJ79: 1 | EK79: 1 | EL79: 1 | EM79: 1 | EN79: 1 | EO79: 1 | EP79: 1 | EQ79: 1 | ER79: 1 | ES79: 1 | ET79: 1 | EU79: 1
A80: 0 | B80: Fed28 | C80: 77 | D80: Residential Electric Storage Water Heaters | E80: 687.1 | F80: 81 | H80: 2015-04-16 | I80: 13 | J80: 0.01 | K80: 1 | L80: 1 | M80: =IF(Dashboard!$F$33="YES",I80,100) -> 13 | P80: 1000 | Q80: 0.1178867705 | R80: 0 | S80: 0 | AB80: 687100 | AC80: 687100 | AD80: 687100 | AE80: 687100 | AF80: 687100 | AG80: 687100 | AH80: 687100 | AI80: 687100 | AP80: 0.95 | AQ80: 0.95 | AR80: 0.95 | AS80: 0.95 | AT80: 0.95 | AU80: 0.95 | AV80: 0.95 | AW80: 0.95 | AX80: 0.95 | AY80: 0.95 | AZ80: 0.95 | BA80: 5 | BH80: 2016 | BI80: 9 | BJ80: =BJ79 -> 0.31 | BK80: =BK79 -> 1965 | BL80: 0.00708 | BM80: 0.09653 | BN80: 0 | BP80: 0.0625 | BR80: 0 | BS80: 0 | BT80: 0 | BU80: 0 | BV80: 0 | BW80: 0 | BX80: 0 | BY80: 0 | BZ80: 0 | CA80: 0 | CB80: 1 | CC80: 0 | CD80: 1 | CF80: 1 | CI80: Y | CJ80: 2015-04-16 | CL80: 0 | CX80: 687100 | CY80: 687100 | CZ80: 687100 | DA80: 687100 | DB80: 687100 | DC80: 687100 | DD80: 687100 | DE80: 687100 | DF80: =DE80 -> 687100 | DG80: 687100 | DH80: 687100 | DI80: 687100 | DJ80: 687100 | DK80: 687100 | DL80: 687100 | DM80: 687100 | DN80: 687100 | DO80: 687100 | ED80: 1 | EE80: 1 | EF80: 1 | EG80: 1 | EH80: 1 | EI80: 1 | EJ80: 1 | EK80: 1 | EL80: 1 | EM80: 1 | EN80: 1 | EO80: 1 | EP80: 1 | EQ80: 1 | ER80: 1 | ES80: 1 | ET80: 1 | EU80: 1
A81: 0 | B81: Fed29 | C81: 78 | D81: Residential Gas Instant Water Heaters | H81: 2015-04-16 | I81: 10 | J81: 0.01 | K81: 1 | L81: 1 | M81: =IF(Dashboard!$F$33="YES",I81,100) -> 10 | P81: 0 | Q81: 0 | R81: 0 | S81: -0.0119 | AB81: 0 | AC81: 0 | AD81: 0 | AE81: 0 | AF81: 0 | AG81: 0 | AH81: 0 | AI81: 0 | AP81: 0.95 | AQ81: 0.95 | AR81: 0.95 | AS81: 0.95 | AT81: 0.95 | AU81: 0.95 | AV81: 0.95 | AW81: 0.95 | AX81: 0.95 | AY81: 0.95 | AZ81: 0.95 | BA81: 5 | BH81: 2016 | BI81: 9 | BJ81: =BJ80 -> 0.31 | BK81: 1965 | BL81: 0.00708 | BM81: 0.09653 | BN81: 0 | BP81: 0.0625 | BR81: 0 | BS81: 0 | BT81: 0 | BU81: 0 | BV81: 0 | BW81: 0 | BX81: 0 | BY81: 0 | BZ81: 0 | CA81: 0 | CB81: 0 | CC81: 0 | CD81: 1 | CF81: 1 | CI81: Y | CJ81: 2015-04-16 | CL81: 0 | CX81: 0 | CY81: 0 | CZ81: 0 | DA81: 0 | DB81: 0 | DC81: 0 | DD81: 0 | DE81: 0 | DF81: =DE81 -> 0 | DG81: 0 | DH81: 0 | DI81: 0 | DJ81: 0 | DK81: 0 | DL81: 0 | DM81: 0 | DN81: 0 | DO81: 0 | ED81: 1 | EE81: 1 | EF81: 1 | EG81: 1 | EH81: 1 | EI81: 1 | EJ81: 1 | EK81: 1 | EL81: 1 | EM81: 1 | EN81: 1 | EO81: 1 | EP81: 1 | EQ81: 1 | ER81: 1 | ES81: 1 | ET81: 1 | EU81: 1
A82: 0 | B82: Fed30 | C82: 79 | D82: Residential Oil Fired Water Heaters | H82: 2015-04-16 | I82: 10 | J82: 0.01 | K82: 1 | L82: 1 | M82: =IF(Dashboard!$F$33="YES",I82,100) -> 10 | P82: 0 | Q82: 0 | R82: 0 | S82: -0.0119 | AB82: 0 | AC82: 0 | AD82: 0 | AE82: 0 | AF82: 0 | AG82: 0 | AH82: 0 | AI82: 0 | AP82: 0.95 | AQ82: 0.95 | AR82: 0.95 | AS82: 0.95 | AT82: 0.95 | AU82: 0.95 | AV82: 0.95 | AW82: 0.95 | AX82: 0.95 | AY82: 0.95 | AZ82: 0.95 | BA82: 5 | BH82: 2016 | BI82: 9 | BJ82: =BJ81 -> 0.31 | BK82: 1965 | BL82: 0.00708 | BM82: 0.09653 | BN82: 0 | BP82: 0.0625 | BR82: 0 | BS82: 0 | BT82: 0 | BU82: 0 | BV82: 0 | BW82: 0 | BX82: 0 | BY82: 0 | BZ82: 0 | CA82: 0 | CB82: 0 | CC82: 0 | CD82: 1 | CF82: 1 | CI82: Y | CJ82: 2015-04-16 | CL82: 0 | CX82: 0 | CY82: 0 | CZ82: 0 | DA82: 0 | DB82: 0 | DC82: 0 | DD82: 0 | DE82: 0 | DF82: =DE82 -> 0 | DG82: 0 | DH82: 0 | DI82: 0 | DJ82: 0 | DK82: 0 | DL82: 0 | DM82: 0 | DN82: 0 | DO82: 0 | ED82: 1 | EE82: 1 | EF82: 1 | EG82: 1 | EH82: 1 | EI82: 1 | EJ82: 1 | EK82: 1 | EL82: 1 | EM82: 1 | EN82: 1 | EO82: 1 | EP82: 1 | EQ82: 1 | ER82: 1 | ES82: 1 | ET82: 1 | EU82: 1
A83: 0 | B83: Fed31 | C83: 80 | D83: Residential Furnaces and Boilers | E83: 127 | G83: 7.8 | H83: 2013-05-01 | I83: 20.33333333 | J83: 0.01 | K83: 1 | L83: 1 | M83: =IF(Dashboard!$F$33="YES",I83,100) -> 20.33333333 | P83: 1000 | Q83: 0 | R83: 61.41732283 | S83: 0 | AB83: 127000 | AC83: 127000 | AD83: 127000 | AE83: 127000 | AF83: 127000 | AG83: 127000 | AH83: 127000 | AI83: 127000 | AP83: 0.95 | AQ83: 0.95 | AR83: 0.95 | AS83: 0.95 | AT83: 0.95 | AU83: 0.95 | AV83: 0.95 | AW83: 0.95 | AX83: 0.95 | AY83: 0.95 | AZ83: 0.95 | BA83: 5 | BH83: 2014 | BI83: 9 | BJ83: =BJ82 -> 0.31 | BK83: 1965 | BL83: 0.00708 | BM83: 0.09653 | BN83: 0 | BP83: 0.0625 | BR83: 0 | BS83: 0 | BT83: 0 | BU83: 0 | BV83: 0 | BW83: 0 | BX83: 0 | BY83: 0 | BZ83: 0 | CA83: 0 | CB83: 1 | CC83: 0 | CD83: 1 | CF83: 1 | CI83: Y | CJ83: 2013-05-01 | CL83: 0 | CX83: 127000 | CY83: 127000 | CZ83: 127000 | DA83: 127000 | DB83: 127000 | DC83: 127000 | DD83: 127000 | DE83: 127000 | DF83: =DE83 -> 127000 | DG83: 127000 | DH83: 127000 | DI83: 127000 | DJ83: 127000 | DK83: 127000 | DL83: 127000 | DM83: 127000 | DN83: 127000 | DO83: 127000 | ED83: 1 | EE83: 1 | EF83: 1 | EG83: 1 | EH83: 1 | EI83: 1 | EJ83: 1 | EK83: 1 | EL83: 1 | EM83: 1 | EN83: 1 | EO83: 1 | EP83: 1 | EQ83: 1 | ER83: 1 | ES83: 1 | ET83: 1 | EU83: 1
A84: 0 | B84: Fed32 | C84: 81 | D84: Commercial Refrigeration | H84: 2016-01-01 | I84: 15 | J84: 0.02 | K84: 1 | L84: 1 | M84: =IF(Dashboard!$F$33="YES",I84,100) -> 15 | P84: 0 | Q84: 0 | R84: 0 | S84: 0 | AB84: 0 | AC84: 0 | AD84: 0 | AE84: 0 | AF84: 0 | AG84: 0 | AH84: 0 | AI84: 0 | AP84: 0.95 | AQ84: 0.95 | AR84: 0.95 | AS84: 0.95 | AT84: 0.95 | AU84: 0.95 | AV84: 0.95 | AW84: 0.95 | AX84: 0.95 | AY84: 0.95 | AZ84: 0.95 | BA84: 5 | BH84: 2017 | BI84: 9 | BJ84: =BJ6 -> 0.5 | BK84: =BK6 -> 1995 | BL84: 0.00232 | BM84: 0.50729 | BN84: 0 | BP84: 0.0625 | BR84: 0 | BS84: 0 | BT84: 0 | BU84: 0 | BV84: 0 | BW84: 0 | BX84: 0 | BY84: 0 | BZ84: 0 | CA84: 0 | CB84: 0 | CC84: 0 | CD84: 1 | CF84: 1 | CI84: N | CJ84: 2016-01-01 | CL84: 0 | CX84: 0 | CY84: 0 | CZ84: 0 | DA84: 0 | DB84: 0 | DC84: 0 | DD84: 0 | DE84: 0 | DF84: =DE84 -> 0 | DG84: 0 | DH84: 0 | DI84: 0 | DJ84: 0 | DK84: 0 | DL84: 0 | DM84: 0 | DN84: 0 | DO84: 0 | ED84: 1 | EE84: 1 | EF84: 1 | EG84: 1 | EH84: 1 | EI84: 1 | EJ84: 1 | EK84: 1 | EL84: 1 | EM84: 1 | EN84: 1 | EO84: 1 | EP84: 1 | EQ84: 1 | ER84: 1 | ES84: 1 | ET84: 1 | EU84: 1
A85: 0 | B85: Fed33 | C85: 82 | D85: Residential Furnace Fans | E85: 1500 | F85: 836 | H85: 2016-01-01 | I85: 18 | J85: 0.01 | K85: 1 | L85: 1 | M85: =IF(Dashboard!$F$33="YES",I85,100) -> 18 | P85: 1000 | Q85: 0.5573333333 | R85: 0 | S85: 0 | AB85: 1500000 | AC85: 1500000 | AD85: 1500000 | AE85: 1500000 | AF85: 1500000 | AG85: 1500000 | AH85: 1500000 | AI85: 1500000 | AP85: 0.95 | AQ85: 0.95 | AR85: 0.95 | AS85: 0.95 | AT85: 0.95 | AU85: 0.95 | AV85: 0.95 | AW85: 0.95 | AX85: 0.95 | AY85: 0.95 | AZ85: 0.95 | BA85: 5 | BH85: 2017 | BI85: 9 | BJ85: =BJ83 -> 0.31 | BK85: =BK83 -> 1965 | BL85: 0.00708 | BM85: 0.09653 | BN85: 0 | BP85: 0.0625 | BR85: 0 | BS85: 0 | BT85: 0 | BU85: 0 | BV85: 0 | BW85: 0 | BX85: 0 | BY85: 0 | BZ85: 0 | CA85: 0 | CB85: 0 | CC85: 0 | CD85: 1 | CF85: 1 | CI85: N | CJ85: 2016-01-01 | CL85: 0 | CX85: 1500000 | CY85: 1500000 | CZ85: 1500000 | DA85: 1500000 | DB85: 1500000 | DC85: 1500000 | DD85: 1500000 | DE85: 1500000 | DF85: =DE85 -> 1500000 | DG85: 1500000 | DH85: 1500000 | DI85: 1500000 | DJ85: 1500000 | DK85: 1500000 | DL85: 1500000 | DM85: 1500000 | DN85: 1500000 | DO85: 1500000 | ED85: 1 | EE85: 1 | EF85: 1 | EG85: 1 | EH85: 1 | EI85: 1 | EJ85: 1 | EK85: 1 | EL85: 1 | EM85: 1 | EN85: 1 | EO85: 1 | EP85: 1 | EQ85: 1 | ER85: 1 | ES85: 1 | ET85: 1 | EU85: 1
A86: 0 | B86: Fed34 | C86: 83 | D86: Televisions | E86: 0 | F86: 0 | H86: 2016-01-01 | I86: 10 | J86: 0.015 | K86: 1 | L86: 1 | M86: =IF(Dashboard!$F$33="YES",I86,100) -> 10 | P86: 0 | Q86: 0 | R86: 0 | S86: -0.01208388048 | AB86: 0 | AC86: 0 | AD86: 0 | AE86: 0 | AF86: 0 | AG86: 0 | AH86: 0 | AI86: 0 | AP86: 0.95 | AQ86: 0.95 | AR86: 0.95 | AS86: 0.95 | AT86: 0.95 | AU86: 0.95 | AV86: 0.95 | AW86: 0.95 | AX86: 0.95 | AY86: 0.95 | AZ86: 0.95 | BA86: 5 | BH86: 2017 | BI86: 9 | BJ86: =BJ39 -> 0.9 | BK86: =BK39 -> 1995 | BL86: 5e-05 | BM86: 0.6 | BN86: 0 | BP86: 0.0625 | BR86: 0 | BS86: 0 | BT86: 0 | BU86: 0 | BV86: 0 | BW86: 0 | BX86: 0 | BY86: 0 | BZ86: 0 | CA86: 0 | CB86: 0 | CC86: 0 | CD86: 1 | CF86: 1 | CI86: N | CJ86: 2016-01-01 | CL86: 0 | CX86: 0 | CY86: 0 | CZ86: 0 | DA86: 0 | DB86: 0 | DC86: 0 | DD86: 0 | DE86: 0 | DF86: =DE86 -> 0 | DG86: 0 | DH86: 0 | DI86: 0 | DJ86: 0 | DK86: 0 | DL86: 0 | DM86: 0 | DN86: 0 | DO86: 0 | ED86: 1 | EE86: 1 | EF86: 1 | EG86: 1 | EH86: 1 | EI86: 1 | EJ86: 1 | EK86: 1 | EL86: 1 | EM86: 1 | EN86: 1 | EO86: 1 | EP86: 1 | EQ86: 1 | ER86: 1 | ES86: 1 | ET86: 1 | EU86: 1
A87: 0 | B87: Fed35 | C87: 84 | D87: Incandescent Reflector Lamps | H87: 2017-01-01 | I87: 1 | J87: 0.015 | K87: 1 | L87: 1 | M87: =IF(Dashboard!$F$33="YES",I87,100) -> 1 | P87: 0 | Q87: 0 | R87: 0 | S87: -0.0119 | AB87: 0 | AC87: 0 | AD87: 0 | AE87: 0 | AF87: 0 | AG87: 0 | AH87: 0 | AI87: 0 | AP87: 0.95 | AQ87: 0.95 | AR87: 0.95 | AS87: 0.95 | AT87: 0.95 | AU87: 0.95 | AV87: 0.95 | AW87: 0.95 | AX87: 0.95 | AY87: 0.95 | AZ87: 0.95 | BA87: 5 | BH87: 2018 | BI87: 9 | BJ87: =BJ29 -> 0.09 | BK87: =BK29 -> 1970 | BL87: 7e-05 | BM87: 0.21307 | BN87: 0 | BP87: 0.0625 | BR87: 0 | BS87: 0 | BT87: 0 | BU87: 0 | BV87: 0 | BW87: 0 | BX87: 0 | BY87: 0 | BZ87: 0 | CA87: 0 | CB87: 0 | CC87: 0 | CD87: 1 | CF87: 1 | CI87: N | CJ87: 2017-01-01 | CL87: 0 | CX87: 0 | CY87: 0 | CZ87: 0 | DA87: 0 | DB87: 0 | DC87: 0 | DD87: 0 | DE87: 0 | DF87: =DE87 -> 0 | DG87: 0 | DH87: 0 | DI87: 0 | DJ87: 0 | DK87: 0 | DL87: 0 | DM87: 0 | DN87: 0 | DO87: 0 | ED87: 1 | EE87: 1 | EF87: 1 | EG87: 1 | EH87: 1 | EI87: 1 | EJ87: 1 | EK87: 1 | EL87: 1 | EM87: 1 | EN87: 1 | EO87: 1 | EP87: 1 | EQ87: 1 | ER87: 1 | ES87: 1 | ET87: 1 | EU87: 1
A88: 0 | B88: Fed36 | C88: 85 | D88: General Service Fluorescent Lamps | H88: 2017-01-01 | I88: 6 | J88: 0.015 | K88: 1 | L88: 1 | M88: =IF(Dashboard!$F$33="YES",I88,100) -> 6 | P88: 0 | Q88: 0 | R88: 0 | S88: -0.0119 | AB88: 0 | AC88: 0 | AD88: 0 | AE88: 0 | AF88: 0 | AG88: 0 | AH88: 0 | AI88: 0 | AP88: 0.95 | AQ88: 0.95 | AR88: 0.95 | AS88: 0.95 | AT88: 0.95 | AU88: 0.95 | AV88: 0.95 | AW88: 0.95 | AX88: 0.95 | AY88: 0.95 | AZ88: 0.95 | BA88: 5 | BH88: 2018 | BI88: 9 | BJ88: =BJ59 -> 0.09 | BK88: =BK59 -> 1970 | BL88: 7e-05 | BM88: 0.21307 | BN88: 0 | BP88: 0.0625 | BR88: 0 | BS88: 0 | BT88: 0 | BU88: 0 | BV88: 0 | BW88: 0 | BX88: 0 | BY88: 0 | BZ88: 0 | CA88: 0 | CB88: 0 | CC88: 0 | CD88: 1 | CF88: 1 | CI88: N | CJ88: 2017-01-01 | CL88: 0 | CX88: 0 | CY88: 0 | CZ88: 0 | DA88: 0 | DB88: 0 | DC88: 0 | DD88: 0 | DE88: 0 | DF88: =DE88 -> 0 | DG88: 0 | DH88: 0 | DI88: 0 | DJ88: 0 | DK88: 0 | DL88: 0 | DM88: 0 | DN88: 0 | DO88: 0 | ED88: 1 | EE88: 1 | EF88: 1 | EG88: 1 | EH88: 1 | EI88: 1 | EJ88: 1 | EK88: 1 | EL88: 1 | EM88: 1 | EN88: 1 | EO88: 1 | EP88: 1 | EQ88: 1 | ER88: 1 | ES88: 1 | ET88: 1 | EU88: 1
A89: 0 | B89: Fed37 | C89: 86 | D89: High-Intensity Discharge Lamps | E89: 12605 | F89: 2315 | H89: 2017-01-01 | I89: 4 | J89: 0.02 | K89: 1 | L89: 1 | M89: =IF(Dashboard!$F$33="YES",I89,100) -> 4 | P89: 1000 | Q89: 0.1836572789 | R89: 0 | S89: -0.0119 | AB89: 12605000 | AC89: 12605000 | AD89: 12605000 | AE89: 12605000 | AF89: 12605000 | AG89: 12605000 | AH89: 12605000 | AI89: 12605000 | AP89: 0.95 | AQ89: 0.95 | AR89: 0.95 | AS89: 0.95 | AT89: 0.95 | AU89: 0.95 | AV89: 0.95 | AW89: 0.95 | AX89: 0.95 | AY89: 0.95 | AZ89: 0.95 | BA89: 5 | BH89: 2018 | BI89: 9 | BJ89: =BJ16 -> 0.74 | BK89: =BK16 -> 1992 | BL89: 0.00075 | BM89: 0.34836 | BN89: 0 | BP89: 0.0625 | BR89: 0 | BS89: 0 | BT89: 0 | BU89: 0 | BV89: 0 | BW89: 0 | BX89: 0 | BY89: 0 | BZ89: 0 | CA89: 0 | CB89: 0 | CC89: 0 | CD89: 1 | CF89: 1 | CI89: N | CJ89: 2017-01-01 | CL89: 0 | CX89: 12605000 | CY89: 12605000 | CZ89: 12605000 | DA89: 12605000 | DB89: 12605000 | DC89: 12605000 | DD89: 12605000 | DE89: 12605000 | DF89: =DE89 -> 12605000 | DG89: 12605000 | DH89: 12605000 | DI89: 12605000 | DJ89: 12605000 | DK89: 12605000 | DL89: 12605000 | DM89: 12605000 | DN89: 12605000 | DO89: 12605000 | ED89: 1 | EE89: 1 | EF89: 1 | EG89: 1 | EH89: 1 | EI89: 1 | EJ89: 1 | EK89: 1 | EL89: 1 | EM89: 1 | EN89: 1 | EO89: 1 | EP89: 1 | EQ89: 1 | ER89: 1 | ES89: 1 | ET89: 1 | EU89: 1
A90: 0 | B90: Fed38 | C90: 87 | D90: Residential Dishwashers | E90: 1096 | F90: 176 | G90: 38.4 | H90: 2018-01-01 | I90: 12 | J90: 0.01 | K90: 1 | L90: 1 | M90: =IF(Dashboard!$F$33="YES",I90,100) -> 12 | P90: 1000 | Q90: 0.1605839416 | R90: 35.03649635 | S90: -0.01765 | AB90: 1096000 | AC90: 1096000 | AD90: 1096000 | AE90: 1096000 | AF90: 1096000 | AG90: 1096000 | AH90: 1096000 | AI90: 1096000 | AP90: 0.95 | AQ90: 0.95 | AR90: 0.95 | AS90: 0.95 | AT90: 0.95 | AU90: 0.95 | AV90: 0.95 | AW90: 0.95 | AX90: 0.95 | AY90: 0.95 | AZ90: 0.95 | BA90: 5 | BH90: 2019 | BI90: 9 | BJ90: =BJ57 -> 0.31 | BK90: =BK57 -> 1965 | BL90: 0.00708 | BM90: 0.09653 | BN90: 0 | BP90: 0.0625 | BR90: 0 | BS90: 0 | BT90: 0 | BU90: 0 | BV90: 0 | BW90: 0 | BX90: 0 | BY90: 0 | BZ90: 0 | CA90: 0 | CB90: 0 | CC90: 0 | CD90: 1 | CF90: 1 | CI90: N | CJ90: 2018-01-01 | CL90: 0 | CX90: 1096000 | CY90: 1096000 | CZ90: 1096000 | DA90: 1096000 | DB90: 1096000 | DC90: 1096000 | DD90: 1096000 | DE90: 1096000 | DF90: =DE90 -> 1096000 | DG90: 1096000 | DH90: 1096000 | DI90: 1096000 | DJ90: 1096000 | DK90: 1096000 | DL90: 1096000 | DM90: 1096000 | DN90: 1096000 | DO90: 1096000 | ED90: 1 | EE90: 1 | EF90: 1 | EG90: 1 | EH90: 1 | EI90: 1 | EJ90: 1 | EK90: 1 | EL90: 1 | EM90: 1 | EN90: 1 | EO90: 1 | EP90: 1 | EQ90: 1 | ER90: 1 | ES90: 1 | ET90: 1 | EU90: 1
A91: 0 | B91: Fed39 | C91: 88 | D91: Residential Dehumidfiers | E91: 82 | F91: 13 | H91: 2018-01-01 | I91: 11 | J91: 0.01 | K91: 1 | L91: 1 | M91: =IF(Dashboard!$F$33="YES",I91,100) -> 11 | P91: 1000 | Q91: 0.1585365854 | R91: 0 | S91: -0.01581196581 | AB91: 82000 | AC91: 82000 | AD91: 82000 | AE91: 82000 | AF91: 82000 | AG91: 82000 | AH91: 82000 | AI91: 82000 | AP91: 0.95 | AQ91: 0.95 | AR91: 0.95 | AS91: 0.95 | AT91: 0.95 | AU91: 0.95 | AV91: 0.95 | AW91: 0.95 | AX91: 0.95 | AY91: 0.95 | AZ91: 0.95 | BA91: 5 | BH91: 2019 | BI91: 6 | BJ91: =BJ90 -> 0.31 | BK91: =BK90 -> 1965 | BL91: 0.00708 | BM91: 0.09653 | BN91: 0 | BP91: 0.0625 | BR91: 0 | BS91: 0 | BT91: 0 | BU91: 0 | BV91: 0 | BW91: 0 | BX91: 0 | BY91: 0 | BZ91: 0 | CA91: 0 | CB91: 0 | CC91: 0 | CD91: 1 | CF91: 1 | CI91: N | CJ91: 2018-01-01 | CL91: 0 | CX91: 82000 | CY91: 82000 | CZ91: 82000 | DA91: 82000 | DB91: 82000 | DC91: 82000 | DD91: 82000 | DE91: 82000 | DF91: =DE91 -> 82000 | DG91: 82000 | DH91: 82000 | DI91: 82000 | DJ91: 82000 | DK91: 82000 | DL91: 82000 | DM91: 82000 | DN91: 82000 | DO91: 82000 | ED91: 1 | EE91: 1 | EF91: 1 | EG91: 1 | EH91: 1 | EI91: 1 | EJ91: 1 | EK91: 1 | EL91: 1 | EM91: 1 | EN91: 1 | EO91: 1 | EP91: 1 | EQ91: 1 | ER91: 1 | ES91: 1 | ET91: 1 | EU91: 1
A92: 0 | B92: Fed40 | C92: 89 | D92: Commercial PTACs and Heat Pumps | E92: 0 | F92: 0 | H92: 2019-01-01 | I92: 10 | J92: 0.02 | K92: 1 | L92: 1 | M92: =IF(Dashboard!$F$33="YES",I92,100) -> 10 | P92: 0 | Q92: 0 | R92: 0 | S92: 0 | AB92: 0 | AC92: 0 | AD92: 0 | AE92: 0 | AF92: 0 | AG92: 0 | AH92: 0 | AI92: 0 | AP92: 0.95 | AQ92: 0.95 | AR92: 0.95 | AS92: 0.95 | AT92: 0.95 | AU92: 0.95 | AV92: 0.95 | AW92: 0.95 | AX92: 0.95 | AY92: 0.95 | AZ92: 0.95 | BA92: 5 | BH92: 2020 | BI92: 9 | BJ92: =BJ25 -> 0.31 | BK92: =BK25 -> 1965 | BL92: 0.00708 | BM92: 0.09653 | BN92: 0 | BP92: 0.0625 | BR92: 0 | BS92: 0 | BT92: 0 | BU92: 0 | BV92: 0 | BW92: 0 | BX92: 0 | BY92: 0 | BZ92: 0 | CA92: 0 | CB92: 0 | CC92: 0 | CD92: 1 | CF92: 1 | CI92: N | CJ92: 2019-01-01 | CL92: 0 | CX92: 0 | CY92: 0 | CZ92: 0 | DA92: 0 | DB92: 0 | DC92: 0 | DD92: 0 | DE92: 0 | DF92: =DE92 -> 0 | DG92: 0 | DH92: 0 | DI92: 0 | DJ92: 0 | DK92: 0 | DL92: 0 | DM92: 0 | DN92: 0 | DO92: 0 | ED92: 1 | EE92: 1 | EF92: 1 | EG92: 1 | EH92: 1 | EI92: 1 | EJ92: 1 | EK92: 1 | EL92: 1 | EM92: 1 | EN92: 1 | EO92: 1 | EP92: 1 | EQ92: 1 | ER92: 1 | ES92: 1 | ET92: 1 | EU92: 1
A93: 0 | B93: Fed41 | C93: 90 | D93: General Service Incandescent Lamps, CFLs, General Service LEDs / OLEDS | E93: 0 | F93: 0 | H93: 2020-01-01 | I93: 5 | J93: 0.015 | K93: 1 | L93: 1 | M93: =IF(Dashboard!$F$33="YES",I93,100) -> 5 | P93: 0 | Q93: 0 | R93: 0 | S93: -0.01765 | AB93: 0 | AC93: 0 | AD93: 0 | AE93: 0 | AF93: 0 | AG93: 0 | AH93: 0 | AI93: 0 | AP93: 0.95 | AQ93: 0.95 | AR93: 0.95 | AS93: 0.95 | AT93: 0.95 | AU93: 0.95 | AV93: 0.95 | AW93: 0.95 | AX93: 0.95 | AY93: 0.95 | AZ93: 0.95 | BA93: 5 | BH93: 2021 | BI93: 9 | BJ93: =BJ29 -> 0.09 | BK93: =BK29 -> 1970 | BL93: 7e-05 | BM93: 0.21307 | BN93: 0 | BP93: 0.0625 | BR93: 0 | BS93: 0 | BT93: 0 | BU93: 0 | BV93: 0 | BW93: 0 | BX93: 0 | BY93: 0 | BZ93: 0 | CA93: 0 | CB93: 0 | CC93: 0 | CD93: 1 | CF93: 1 | CI93: N | CJ93: 2020-01-01 | CL93: 0 | CX93: 0 | CY93: 0 | CZ93: 0 | DA93: 0 | DB93: 0 | DC93: 0 | DD93: 0 | DE93: 0 | DF93: =DE93 -> 0 | DG93: 0 | DH93: 0 | DI93: 0 | DJ93: 0 | DK93: 0 | DL93: 0 | DM93: 0 | DN93: 0 | DO93: 0 | ED93: 1 | EE93: 1 | EF93: 1 | EG93: 1 | EH93: 1 | EI93: 1 | EJ93: 1 | EK93: 1 | EL93: 1 | EM93: 1 | EN93: 1 | EO93: 1 | EP93: 1 | EQ93: 1 | ER93: 1 | ES93: 1 | ET93: 1 | EU93: 1
A94: 0 | C94: =C93+1 -> 91 | D94: =Dashboard!E14 -> 2005 T-24 | E94: =SUM(E95:E109) -> 485.03 | F94: =SUM(F95:F109) -> 211.5 | G94: =SUM(G95:G109) -> 7.19 | N94: =P94/E94 -> 0.7237898293 | P94: =SUMPRODUCT(P95:P113,$CU95:$CU113)/1000000 -> 351.0597809 | Q94: =SUMPRODUCT(Q95:Q113,$CU95:$CU113)/1000 -> 91.84792425 | R94: =SUMPRODUCT(R95:R113,$CU95:$CU113)/1000000 -> 4.40782845 | AJ94: =SUMPRODUCT(AJ95:AJ113,AR95:AR113)-AJ97*AR97 -> 265.524098 | AN94: =SUMPRODUCT($AK95:$AK109,AN95:AN109)/SUM($AK95:$AK109) -> 0.833952071 | BA94: 6 | BP94: =SUMPRODUCT($AK95:$AK107,BP95:BP107)/SUM($AK95:$AK107) -> 0.7042881978 | BR94: 0 | BS94: 0 | BT94: 0 | BU94: 0 | BV94: 0 | BW94: 0 | BX94: 0 | BY94: 0 | BZ94: 0 | CA94: 0 | CB94: 0 | CC94: 0 | CD94: 0 | CL94: 0
A95: 0 | B95: Std B1 | C95: =C94+1 -> 92 | D95: Time dependent valuation, Residential | E95: 6.7 | F95: 27.2 | G95: 0 | H95: =InputsStatic!I28 -> 2006-01-01 | I95: =InputsStatic!K28 -> 9 | J95: 1 | K95: 1 | L95: 0 | M95: 100 | P95: =InputsStatic!L28 -> 0 | Q95: =InputsStatic!M28 -> 0 | R95: =InputsStatic!N28 -> 0 | S95: 0 | U95: =CQ95*DW95 -> 0 | V95: =CR95*DX95 -> 0 | W95: =CS95*DY95 -> 0 | X95: =CT95*DZ95 -> 0 | Y95: =CU95*EA95 -> 0 | Z95: =CV95*EB95 -> 0 | AA95: =CW95*EC95 -> 0 | AB95: =CX95*ED95 -> 0 | AC95: =CY95*EE95 -> 0 | AD95: =CZ95*EF95 -> 0 | AE95: =DA95*EG95 -> 0 | AF95: =DB95*EH95 -> 0 | AG95: =DC95*EI95 -> 0 | AH95: =DD95*EJ95 -> 0 | AI95: =DE95*EK95 -> 0 | AJ95: =(P95*CU95)/1000000 -> 0 | AL95: =InputsTimeDependentCompliance!D112 -> 0 | AM95: =InputsTimeDependentCompliance!E112 -> 0 | AN95: =InputsTimeDependentCompliance!F112 -> 0 | AO95: =InputsTimeDependentCompliance!G112 -> 0 | AP95: =IF(SEandT_ON=$BG$2,$AO95,$AO95+BC95) -> 0 | AQ95: =IF(SEandT_ON=$BG$2,$AO95,$AO95+BD95) -> 0 | AR95: =IF(SEandT_ON=$BG$2,$AO95,$AO95+BE95) -> 0 | AS95: =IF(SEandT_ON=$BG$2,$AO95,$AO95+BF95) -> 0 | AT95: =IF(SEandT_ON=$BG$2,$AO95,$AO95+BG95) -> 0 | AU95: =AT95 -> 0 | AV95: =AU95 -> 0 | AW95: 0 | AX95: 0 | AY95: 0 | AZ95: 0 | BA95: =$BA$94 -> 6 | BH95: 2010 | BI95: =InputsStatic!O28 -> 18 | BJ95: =InputsNOMAD!AG28 -> 0 | BK95: =InputsStatic!P28 -> 2006 | BL95: =InputsNOMAD!AH28 -> 0 | BM95: =InputsNOMAD!AI28 -> 0 | BN95: =InputsStatic!J28 -> 0 | BP95: =InputsStatic!AB28 -> 0.8255208333 | BR95: 1 | BS95: 0 | BT95: 0 | BU95: 0 | BV95: 0 | BW95: 0 | BX95: 0 | BY95: 0 | BZ95: 0 | CA95: 0 | CB95: 0 | CC95: 0 | CD95: 1 | CL95: 0 | CQ95: =InputsTimeDependentUnits!D28 -> 0 | CR95: =InputsTimeDependentUnits!E28 -> 0 | CS95: =InputsTimeDependentUnits!F28 -> 0 | CT95: =InputsTimeDependentUnits!G28 -> 0 | CU95: =InputsTimeDependentUnits!H28 -> 0 | CV95: =InputsTimeDependentUnits!I28 -> 0 | CW95: =InputsTimeDependentUnits!J28 -> 0 | CX95: =InputsTimeDependentUnits!K28 -> 0 | CY95: =InputsTimeDependentUnits!L28 -> 0 | CZ95: =InputsTimeDependentUnits!M28 -> 0 | DA95: =InputsTimeDependentUnits!N28 -> 0 | DB95: =InputsTimeDependentUnits!O28 -> 0 | DC95: =InputsTimeDependentUnits!P28 -> 0 | DD95: =InputsTimeDependentUnits!Q28 -> 0 | DE95: =InputsTimeDependentUnits!R28 -> 0 | DF95: =DE95 -> 0 | DG95: 0 | DH95: 0 | DI95: 0 | DJ95: 0 | DK95: 0 | DL95: 0 | DM95: 0 | DN95: 0 | DO95: 0 | DQ95: 1 | DW95: =SUMPRODUCT(TRANSPOSE(DW$140:DW$144),$DQ95:$DU95) -> 1 | DX95: =SUMPRODUCT(TRANSPOSE(DX$140:DX$144),$DQ95:$DU95) -> 1 | DY95: =SUMPRODUCT(TRANSPOSE(DY$140:DY$144),$DQ95:$DU95) -> 1 | DZ95: =SUMPRODUCT(TRANSPOSE(DZ$140:DZ$144),$DQ95:$DU95) -> 1 | EA95: =SUMPRODUCT(TRANSPOSE(EA$140:EA$144),$DQ95:$DU95) -> 0.2432428262 | EB95: =SUMPRODUCT(TRANSPOSE(EB$140:EB$144),$DQ95:$DU95) -> 0.2432428262 | EC95: =SUMPRODUCT(TRANSPOSE(EC$140:EC$144),$DQ95:$DU95) -> 0.2432428262 | ED95: =SUMPRODUCT(TRANSPOSE(ED$140:ED$144),$DQ95:$DU95) -> 0.2432428262 | EE95: =SUMPRODUCT(TRANSPOSE(EE$140:EE$144),$DQ95:$DU95) -> 0.2432428262 | EF95: =SUMPRODUCT(TRANSPOSE(EF$140:EF$144),$DQ95:$DU95) -> 0.2432428262 | EG95: =SUMPRODUCT(TRANSPOSE(EG$140:EG$144),$DQ95:$DU95) -> 0.2432428262 | EH95: =SUMPRODUCT(TRANSPOSE(EH$140:EH$144),$DQ95:$DU95) -> 0.2432428262 | EI95: =SUMPRODUCT(TRANSPOSE(EI$140:EI$144),$DQ95:$DU95) -> 0.2432428262 | EJ95: =SUMPRODUCT(TRANSPOSE(EJ$140:EJ$144),$DQ95:$DU95) -> 0.2432428262 | EK95: =SUMPRODUCT(TRANSPOSE(EK$140:EK$144),$DQ95:$DU95) -> 0.2432428262 | EL95: =SUMPRODUCT(TRANSPOSE(EL$140:EL$144),$DQ95:$DU95) -> 0.2432428262 | EM95: =SUMPRODUCT(TRANSPOSE(EM$140:EM$144),$DQ95:$DU95) -> 0.2432428262 | EN95: =SUMPRODUCT(TRANSPOSE(EN$140:EN$144),$DQ95:$DU95) -> 0.2432428262 | EO95: =SUMPRODUCT(TRANSPOSE(EO$140:EO$144),$DQ95:$DU95) -> 0.2432428262 | EP95: =SUMPRODUCT(TRANSPOSE(EP$140:EP$144),$DQ95:$DU95) -> 0.2432428262 | EQ95: =SUMPRODUCT(TRANSPOSE(EQ$140:EQ$144),$DQ95:$DU95) -> 0.2432428262 | ER95: =SUMPRODUCT(TRANSPOSE(ER$140:ER$144),$DQ95:$DU95) -> 0.2432428262 | ES95: =SUMPRODUCT(TRANSPOSE(ES$140:ES$144),$DQ95:$DU95) -> 0.2432428262 | ET95: =SUMPRODUCT(TRANSPOSE(ET$140:ET$144),$DQ95:$DU95) -> 0.2432428262 | EU95: =SUMPRODUCT(TRANSPOSE(EU$140:EU$144),$DQ95:$DU95) -> 0.2432428262
A96: 0 | B96: Std B2 | C96: =C95+1 -> 93 | D96: Time dependent valuation, Nonresidential | E96: 4.3 | F96: 18.7 | G96: 0 | H96: =InputsStatic!I29 -> 2006-08-01 | I96: =InputsStatic!K29 -> 9 | J96: 1 | K96: 1 | L96: 0 | M96: 100 | P96: =InputsStatic!L29 -> 0 | Q96: =InputsStatic!M29 -> 0 | R96: =InputsStatic!N29 -> 0 | S96: 0 | U96: 0 | V96: 0 | W96: 0 | X96: 0 | Y96: 0 | Z96: 0 | AA96: 0 | AB96: 0 | AC96: 0 | AD96: 0 | AE96: 0 | AF96: 0 | AG96: 0 | AH96: 0 | AI96: 0 | AJ96: 0 | AL96: =InputsTimeDependentCompliance!D29 -> 0 | AM96: =InputsTimeDependentCompliance!E29 -> 0 | AN96: =InputsTimeDependentCompliance!F29 -> 0 | AO96: =InputsTimeDependentCompliance!G29 -> 0 | AP96: 0 | AQ96: 0 | AR96: 0 | AS96: 0 | AT96: 0 | AU96: =AT96 -> 0 | AV96: 0 | AW96: 0 | AX96: 0 | AY96: 0 | AZ96: 0 | BA96: =$BA$94 -> 6 | BH96: 2010 | BI96: =InputsStatic!O29 -> 18 | BJ96: =InputsNOMAD!AG29 -> 0 | BK96: =InputsStatic!P29 -> 2006 | BL96: =InputsNOMAD!AH29 -> 0 | BM96: =InputsNOMAD!AI29 -> 0 | BN96: =InputsStatic!J29 -> 0 | BP96: =InputsStatic!AB29 -> 0.8520833333 | BR96: 1 | BS96: 0 | BT96: 0 | BU96: 0 | BV96: 0 | BW96: 0 | BX96: 0 | BY96: 0 | BZ96: 0 | CA96: 0 | CB96: 0 | CC96: 0 | CD96: 1 | CL96: 0 | CQ96: =InputsTimeDependentUnits!D29 -> 0 | CR96: =InputsTimeDependentUnits!E29 -> 0 | CS96: =InputsTimeDependentUnits!F29 -> 0 | CT96: =InputsTimeDependentUnits!G29 -> 0 | CU96: =InputsTimeDependentUnits!H29 -> 0 | CV96: =InputsTimeDependentUnits!I29 -> 0 | CW96: =InputsTimeDependentUnits!J29 -> 0 | CX96: =InputsTimeDependentUnits!K29 -> 0 | CY96: =InputsTimeDependentUnits!L29 -> 0 | CZ96: =InputsTimeDependentUnits!M29 -> 0 | DA96: =InputsTimeDependentUnits!N29 -> 0 | DB96: =InputsTimeDependentUnits!O29 -> 0 | DC96: =InputsTimeDependentUnits!P29 -> 0 | DD96: =InputsTimeDependentUnits!Q29 -> 0 | DE96: =InputsTimeDependentUnits!R29 -> 0 | DF96: =DE96 -> 0 | DG96: 0 | DH96: 0 | DI96: 0 | DJ96: 0 | DK96: 0 | DL96: 0 | DM96: 0 | DN96: 0 | DO96: 0 | DT96: 1 | DW96: =SUMPRODUCT(TRANSPOSE(DW$140:DW$144),$DQ96:$DU96) -> 1 | DX96: =SUMPRODUCT(TRANSPOSE(DX$140:DX$144),$DQ96:$DU96) -> 1 | DY96: =SUMPRODUCT(TRANSPOSE(DY$140:DY$144),$DQ96:$DU96) -> 1 | DZ96: =SUMPRODUCT(TRANSPOSE(DZ$140:DZ$144),$DQ96:$DU96) -> 1 | EA96: =SUMPRODUCT(TRANSPOSE(EA$140:EA$144),$DQ96:$DU96) -> 0.3021978022 | EB96: =SUMPRODUCT(TRANSPOSE(EB$140:EB$144),$DQ96:$DU96) -> 0.3021978022 | EC96: =SUMPRODUCT(TRANSPOSE(EC$140:EC$144),$DQ96:$DU96) -> 0.3021978022 | ED96: =SUMPRODUCT(TRANSPOSE(ED$140:ED$144),$DQ96:$DU96) -> 0.3021978022 | EE96: =SUMPRODUCT(TRANSPOSE(EE$140:EE$144),$DQ96:$DU96) -> 0.3021978022 | EF96: =SUMPRODUCT(TRANSPOSE(EF$140:EF$144),$DQ96:$DU96) -> 0.3021978022 | EG96: =SUMPRODUCT(TRANSPOSE(EG$140:EG$144),$DQ96:$DU96) -> 0.3021978022 | EH96: =SUMPRODUCT(TRANSPOSE(EH$140:EH$144),$DQ96:$DU96) -> 0.3021978022 | EI96: =SUMPRODUCT(TRANSPOSE(EI$140:EI$144),$DQ96:$DU96) -> 0.3021978022 | EJ96: =SUMPRODUCT(TRANSPOSE(EJ$140:EJ$144),$DQ96:$DU96) -> 0.3021978022 | EK96: =SUMPRODUCT(TRANSPOSE(EK$140:EK$144),$DQ96:$DU96) -> 0.3021978022 | EL96: =SUMPRODUCT(TRANSPOSE(EL$140:EL$144),$DQ96:$DU96) -> 0.3021978022 | EM96: =SUMPRODUCT(TRANSPOSE(EM$140:EM$144),$DQ96:$DU96) -> 0.3021978022 | EN96: =SUMPRODUCT(TRANSPOSE(EN$140:EN$144),$DQ96:$DU96) -> 0.3021978022 | EO96: =SUMPRODUCT(TRANSPOSE(EO$140:EO$144),$DQ96:$DU96) -> 0.3021978022 | EP96: =SUMPRODUCT(TRANSPOSE(EP$140:EP$144),$DQ96:$DU96) -> 0.3021978022 | EQ96: =SUMPRODUCT(TRANSPOSE(EQ$140:EQ$144),$DQ96:$DU96) -> 0.3021978022 | ER96: =SUMPRODUCT(TRANSPOSE(ER$140:ER$144),$DQ96:$DU96) -> 0.3021978022 | ES96: =SUMPRODUCT(TRANSPOSE(ES$140:ES$144),$DQ96:$DU96) -> 0.3021978022 | ET96: =SUMPRODUCT(TRANSPOSE(ET$140:ET$144),$DQ96:$DU96) -> 0.3021978022 | EU96: =SUMPRODUCT(TRANSPOSE(EU$140:EU$144),$DQ96:$DU96) -> 0.3021978022
A97: 0 | B97: Std B3 | C97: 94 | D97: Res. Hardwired lighting | E97: 64.6 | F97: 2.97 | G97: 0 | H97: =InputsStatic!I30 -> 2006-08-01 | I97: =InputsStatic!K30 -> 8 | J97: 1 | K97: 1 | L97: 0 | M97: 100 | P97: =InputsStatic!L30 -> 350.1997337 | Q97: =InputsStatic!M30 -> 0.016100514 | R97: =InputsStatic!N30 -> 0 | S97: -0.0234 | U97: 128516 | V97: 136776 | W97: 85519 | X97: 111147.5 | Y97: 27035.83203 | Z97: 27035.83203 | AA97: 27035.83203 | AB97: 27035.83203 | AC97: 27035.83203 | AD97: 27035.83203 | AE97: 27035.83203 | AF97: 27035.83203 | AG97: 27035.83203 | AH97: 27035.83203 | AI97: 27035.83203 | AJ97: 38.9238249 | AL97: =InputsTimeDependentCompliance!D30 -> 1.13 | AM97: =InputsTimeDependentCompliance!E30 -> 1.13 | AN97: =InputsTimeDependentCompliance!F30 -> 1.13 | AO97: =InputsTimeDependentCompliance!G30 -> 1.13 | AP97: 1.13 | AQ97: 1.13 | AR97: 1.13 | AS97: 1.13 | AT97: 1.13 | AU97: =AT97 -> 1.13 | AV97: 1.13 | AW97: 1.13 | AX97: 1.13 | AY97: 1.13 | AZ97: 1.13 | BA97: 6 | BH97: 2010 | BI97: =InputsStatic!O30 -> 18 | BJ97: =InputsNOMAD!AG30 -> 0.3 | BK97: =InputsStatic!P30 -> 2000 | BL97: =InputsNOMAD!AH30 -> 0.01801 | BM97: =InputsNOMAD!AI30 -> 0.35594 | BN97: =InputsStatic!J30 -> 14695 | BP97: =InputsStatic!AB30 -> 0.87675 | BR97: 0 | BS97: 0 | BT97: 0 | BU97: 0 | BV97: 0 | BW97: 0 | BX97: 0 | BY97: 0 | BZ97: 0 | CA97: 0 | CB97: 0 | CC97: 0 | CD97: 0 | CL97: 0 | CQ97: =InputsTimeDependentUnits!D30 -> 128516 | CR97: =InputsTimeDependentUnits!E30 -> 136776 | CS97: =InputsTimeDependentUnits!F30 -> 85519 | CT97: =InputsTimeDependentUnits!G30 -> 111147.5 | CU97: =InputsTimeDependentUnits!H30 -> 111147.5 | CV97: =InputsTimeDependentUnits!I30 -> 111147.5 | CW97: =InputsTimeDependentUnits!J30 -> 111147.5 | CX97: =InputsTimeDependentUnits!K30 -> 111147.5 | CY97: =InputsTimeDependentUnits!L30 -> 111147.5 | CZ97: =InputsTimeDependentUnits!M30 -> 111147.5 | DA97: =InputsTimeDependentUnits!N30 -> 111147.5 | DB97: =InputsTimeDependentUnits!O30 -> 111147.5 | DC97: =InputsTimeDependentUnits!P30 -> 111147.5 | DD97: =InputsTimeDependentUnits!Q30 -> 111147.5 | DE97: =InputsTimeDependentUnits!R30 -> 111147.5 | DF97: =DE97 -> 111147.5 | DG97: 111147.5 | DH97: 111147.5 | DI97: 111147.5 | DJ97: 111147.5 | DK97: 111147.5 | DL97: 111147.5 | DM97: 111147.5 | DN97: 111147.5 | DO97: 111147.5 | DQ97: 1 | DW97: =SUMPRODUCT(TRANSPOSE(DW$140:DW$144),$DQ97:$DU97) -> 1 | DX97: =SUMPRODUCT(TRANSPOSE(DX$140:DX$144),$DQ97:$DU97) -> 1 | DY97: =SUMPRODUCT(TRANSPOSE(DY$140:DY$144),$DQ97:$DU97) -> 1 | DZ97: =SUMPRODUCT(TRANSPOSE(DZ$140:DZ$144),$DQ97:$DU97) -> 1 | EA97: =SUMPRODUCT(TRANSPOSE(EA$140:EA$144),$DQ97:$DU97) -> 0.2432428262 | EB97: =SUMPRODUCT(TRANSPOSE(EB$140:EB$144),$DQ97:$DU97) -> 0.2432428262 | EC97: =SUMPRODUCT(TRANSPOSE(EC$140:EC$144),$DQ97:$DU97) -> 0.2432428262 | ED97: =SUMPRODUCT(TRANSPOSE(ED$140:ED$144),$DQ97:$DU97) -> 0.2432428262 | EE97: =SUMPRODUCT(TRANSPOSE(EE$140:EE$144),$DQ97:$DU97) -> 0.2432428262 | EF97: =SUMPRODUCT(TRANSPOSE(EF$140:EF$144),$DQ97:$DU97) -> 0.2432428262 | EG97: =SUMPRODUCT(TRANSPOSE(EG$140:EG$144),$DQ97:$DU97) -> 0.2432428262 | EH97: =SUMPRODUCT(TRANSPOSE(EH$140:EH$144),$DQ97:$DU97) -> 0.2432428262 | EI97: =SUMPRODUCT(TRANSPOSE(EI$140:EI$144),$DQ97:$DU97) -> 0.2432428262 | EJ97: =SUMPRODUCT(TRANSPOSE(EJ$140:EJ$144),$DQ97:$DU97) -> 0.2432428262 | EK97: =SUMPRODUCT(TRANSPOSE(EK$140:EK$144),$DQ97:$DU97) -> 0.2432428262 | EL97: =SUMPRODUCT(TRANSPOSE(EL$140:EL$144),$DQ97:$DU97) -> 0.2432428262 | EM97: =SUMPRODUCT(TRANSPOSE(EM$140:EM$144),$DQ97:$DU97) -> 0.2432428262 | EN97: =SUMPRODUCT(TRANSPOSE(EN$140:EN$144),$DQ97:$DU97) -> 0.2432428262 | EO97: =SUMPRODUCT(TRANSPOSE(EO$140:EO$144),$DQ97:$DU97) -> 0.2432428262 | EP97: =SUMPRODUCT(TRANSPOSE(EP$140:EP$144),$DQ97:$DU97) -> 0.2432428262 | EQ97: =SUMPRODUCT(TRANSPOSE(EQ$140:EQ$144),$DQ97:$DU97) -> 0.2432428262 | ER97: =SUMPRODUCT(TRANSPOSE(ER$140:ER$144),$DQ97:$DU97) -> 0.2432428262 | ES97: =SUMPRODUCT(TRANSPOSE(ES$140:ES$144),$DQ97:$DU97) -> 0.2432428262 | ET97: =SUMPRODUCT(TRANSPOSE(ET$140:ET$144),$DQ97:$DU97) -> 0.2432428262 | EU97: =SUMPRODUCT(TRANSPOSE(EU$140:EU$144),$DQ97:$DU97) -> 0.2432428262
A98: 0 | B98: Std B4 | C98: 95 | D98: Duct improvement | E98: 5.7 | F98: 8.5 | G98: 1.1 | H98: =InputsStatic!I31 -> 2006-01-01 | I98: =InputsStatic!K31 -> 10 | J98: 1 | K98: 1 | L98: 0 | M98: 100 | P98: =InputsStatic!L31 -> 114 | Q98: =InputsStatic!M31 -> 0.1700952381 | R98: =InputsStatic!N31 -> 22 | S98: 0 | U98: 55000 | V98: 55000 | W98: 55000 | X98: 55000 | Y98: 34376.30579 | Z98: 34376.30579 | AA98: 34376.30579 | AB98: 34376.30579 | AC98: 34376.30579 | AD98: 34376.30579 | AE98: 34376.30579 | AF98: 34376.30579 | AG98: 34376.30579 | AH98: 34376.30579 | AI98: 34376.30579 | AJ98: 6.27 | AK98: =AJ98*AP98 -> 3.6993 | AL98: =InputsTimeDependentCompliance!D31 -> 0.59 | AM98: =InputsTimeDependentCompliance!E31 -> 0.59 | AN98: =InputsTimeDependentCompliance!F31 -> 0.59 | AO98: =InputsTimeDependentCompliance!G31 -> 0.59 | AP98: 0.59 | AQ98: 0.59 | AR98: 0.59 | AS98: 0.59 | AT98: 0.59 | AU98: =AT98 -> 0.59 | AV98: 0.59 | AW98: 0.59 | AX98: 0.59 | AY98: 0.59 | AZ98: 0.59 | BA98: 6 | BC98: =MIN(5%,(100%-$AO98)) -> 0.05 | BD98: 0.05 | BE98: 0.05 | BF98: 0.05 | BG98: 0.05 | BH98: 2010 | BI98: =InputsStatic!O31 -> 18 | BJ98: =InputsNOMAD!AG31 -> 0.18 | BK98: =InputsStatic!P31 -> 2006 | BL98: =InputsNOMAD!AH31 -> 0.0002 | BM98: =InputsNOMAD!AI31 -> 0.49969 | BN98: =InputsStatic!J31 -> 0 | BP98: =InputsStatic!AB31 -> 0.6925 | BR98: 1 | BS98: 0 | BT98: 0 | BU98: 0 | BV98: 0 | BW98: 0 | BX98: 0 | BY98: 0 | BZ98: 0 | CA98: 0 | CB98: 0 | CC98: 0 | CD98: 1 | CL98: 0 | CQ98: =InputsTimeDependentUnits!D31 -> 55000 | CR98: =InputsTimeDependentUnits!E31 -> 55000 | CS98: =InputsTimeDependentUnits!F31 -> 55000 | CT98: =InputsTimeDependentUnits!G31 -> 55000 | CU98: =InputsTimeDependentUnits!H31 -> 55000 | CV98: =InputsTimeDependentUnits!I31 -> 55000 | CW98: =InputsTimeDependentUnits!J31 -> 55000 | CX98: =InputsTimeDependentUnits!K31 -> 55000 | CY98: =InputsTimeDependentUnits!L31 -> 55000 | CZ98: =InputsTimeDependentUnits!M31 -> 55000 | DA98: =InputsTimeDependentUnits!N31 -> 55000 | DB98: =InputsTimeDependentUnits!O31 -> 55000 | DC98: =InputsTimeDependentUnits!P31 -> 55000 | DD98: =InputsTimeDependentUnits!Q31 -> 55000 | DE98: =InputsTimeDependentUnits!R31 -> 55000 | DF98: =DE98 -> 55000 | DG98: 55000 | DH98: 55000 | DI98: 55000 | DJ98: 55000 | DK98: 55000 | DL98: 55000 | DM98: 55000 | DN98: 55000 | DO98: 55000 | DS98: 1 | DW98: =SUMPRODUCT(TRANSPOSE(DW$140:DW$144),$DQ98:$DU98) -> 1 | DX98: =SUMPRODUCT(TRANSPOSE(DX$140:DX$144),$DQ98:$DU98) -> 1 | DY98: =SUMPRODUCT(TRANSPOSE(DY$140:DY$144),$DQ98:$DU98) -> 1 | DZ98: =SUMPRODUCT(TRANSPOSE(DZ$140:DZ$144),$DQ98:$DU98) -> 1 | EA98: =SUMPRODUCT(TRANSPOSE(EA$140:EA$144),$DQ98:$DU98) -> 0.6250237417 | EB98: =SUMPRODUCT(TRANSPOSE(EB$140:EB$144),$DQ98:$DU98) -> 0.6250237417 | EC98: =SUMPRODUCT(TRANSPOSE(EC$140:EC$144),$DQ98:$DU98) -> 0.6250237417 | ED98: =SUMPRODUCT(TRANSPOSE(ED$140:ED$144),$DQ98:$DU98) -> 0.6250237417 | EE98: =SUMPRODUCT(TRANSPOSE(EE$140:EE$144),$DQ98:$DU98) -> 0.6250237417 | EF98: =SUMPRODUCT(TRANSPOSE(EF$140:EF$144),$DQ98:$DU98) -> 0.6250237417 | EG98: =SUMPRODUCT(TRANSPOSE(EG$140:EG$144),$DQ98:$DU98) -> 0.6250237417 | EH98: =SUMPRODUCT(TRANSPOSE(EH$140:EH$144),$DQ98:$DU98) -> 0.6250237417 | EI98: =SUMPRODUCT(TRANSPOSE(EI$140:EI$144),$DQ98:$DU98) -> 0.6250237417 | EJ98: =SUMPRODUCT(TRANSPOSE(EJ$140:EJ$144),$DQ98:$DU98) -> 0.6250237417 | EK98: =SUMPRODUCT(TRANSPOSE(EK$140:EK$144),$DQ98:$DU98) -> 0.6250237417 | EL98: =SUMPRODUCT(TRANSPOSE(EL$140:EL$144),$DQ98:$DU98) -> 0.6250237417 | EM98: =SUMPRODUCT(TRANSPOSE(EM$140:EM$144),$DQ98:$DU98) -> 0.6250237417 | EN98: =SUMPRODUCT(TRANSPOSE(EN$140:EN$144),$DQ98:$DU98) -> 0.6250237417 | EO98: =SUMPRODUCT(TRANSPOSE(EO$140:EO$144),$DQ98:$DU98) -> 0.6250237417 | EP98: =SUMPRODUCT(TRANSPOSE(EP$140:EP$144),$DQ98:$DU98) -> 0.6250237417 | EQ98: =SUMPRODUCT(TRANSPOSE(EQ$140:EQ$144),$DQ98:$DU98) -> 0.6250237417 | ER98: =SUMPRODUCT(TRANSPOSE(ER$140:ER$144),$DQ98:$DU98) -> 0.6250237417 | ES98: =SUMPRODUCT(TRANSPOSE(ES$140:ES$144),$DQ98:$DU98) -> 0.6250237417 | ET98: =SUMPRODUCT(TRANSPOSE(ET$140:ET$144),$DQ98:$DU98) -> 0.6250237417 | EU98: =SUMPRODUCT(TRANSPOSE(EU$140:EU$144),$DQ98:$DU98) -> 0.6250237417
A99: 0 | B99: Std B5 | C99: 96 | D99: Window replacement | E99: 6.34 | F99: 2.4 | G99: 0.3 | H99: =InputsStatic!I32 -> 2006-01-01 | I99: =InputsStatic!K32 -> 10 | J99: 1 | K99: 1 | L99: 0 | M99: 100 | P99: =InputsStatic!L32 -> 254 | Q99: =InputsStatic!M32 -> 0.09692105263 | R99: =InputsStatic!N32 -> 11.8 | S99: 0 | U99: 100000 | V99: 100000 | W99: 100000 | X99: 100000 | Y99: 62502.37417 | Z99: 62502.37417 | AA99: 62502.37417 | AB99: 62502.37417 | AC99: 62502.37417 | AD99: 62502.37417 | AE99: 62502.37417 | AF99: 62502.37417 | AG99: 62502.37417 | AH99: 62502.37417 | AI99: 62502.37417 | AJ99: 25.4 | AK99: =AJ99*AP99 -> 20.32 | AL99: =InputsTimeDependentCompliance!D32 -> 0.8 | AM99: =InputsTimeDependentCompliance!E32 -> 0.8 | AN99: =InputsTimeDependentCompliance!F32 -> 0.8 | AO99: =InputsTimeDependentCompliance!G32 -> 0.8 | AP99: 0.8 | AQ99: 0.8 | AR99: 0.8 | AS99: 0.8 | AT99: 0.8 | AU99: =AT99 -> 0.8 | AV99: 0.8 | AW99: 0.8 | AX99: 0.8 | AY99: 0.8 | AZ99: 0.8 | BA99: 6 | BC99: 0.05 | BD99: 0.05 | BE99: 0.05 | BF99: 0.05 | BG99: 0.05 | BH99: 2010 | BI99: =InputsStatic!O32 -> 6 | BJ99: =InputsNOMAD!AG32 -> 0.51 | BK99: =InputsStatic!P32 -> 1990 | BL99: =InputsNOMAD!AH32 -> 0.08943 | BM99: =InputsNOMAD!AI32 -> 0.18602 | BN99: =InputsStatic!J32 -> 17923 | BP99: =InputsStatic!AB32 -> 0.5516666667 | BR99: 1 | BS99: 0 | BT99: 0 | BU99: 0 | BV99: 0 | BW99: 0 | BX99: 0 | BY99: 0 | BZ99: 0 | CA99: 0 | CB99: 0 | CC99: 0 | CD99: 1 | CL99: 0 | CQ99: =InputsTimeDependentUnits!D32 -> 100000 | CR99: =InputsTimeDependentUnits!E32 -> 100000 | CS99: =InputsTimeDependentUnits!F32 -> 100000 | CT99: =InputsTimeDependentUnits!G32 -> 100000 | CU99: =InputsTimeDependentUnits!H32 -> 100000 | CV99: =InputsTimeDependentUnits!I32 -> 100000 | CW99: =InputsTimeDependentUnits!J32 -> 100000 | CX99: =InputsTimeDependentUnits!K32 -> 100000 | CY99: =InputsTimeDependentUnits!L32 -> 100000 | CZ99: =InputsTimeDependentUnits!M32 -> 100000 | DA99: =InputsTimeDependentUnits!N32 -> 100000 | DB99: =InputsTimeDependentUnits!O32 -> 100000 | DC99: =InputsTimeDependentUnits!P32 -> 100000 | DD99: =InputsTimeDependentUnits!Q32 -> 100000 | DE99: =InputsTimeDependentUnits!R32 -> 100000 | DF99: =DE99 -> 100000 | DG99: 100000 | DH99: 100000 | DI99: 100000 | DJ99: 100000 | DK99: 100000 | DL99: 100000 | DM99: 100000 | DN99: 100000 | DO99: 100000 | DS99: 1 | DW99: =SUMPRODUCT(TRANSPOSE(DW$140:DW$144),$DQ99:$DU99) -> 1 | DX99: =SUMPRODUCT(TRANSPOSE(DX$140:DX$144),$DQ99:$DU99) -> 1 | DY99: =SUMPRODUCT(TRANSPOSE(DY$140:DY$144),$DQ99:$DU99) -> 1 | DZ99: =SUMPRODUCT(TRANSPOSE(DZ$140:DZ$144),$DQ99:$DU99) -> 1 | EA99: =SUMPRODUCT(TRANSPOSE(EA$140:EA$144),$DQ99:$DU99) -> 0.6250237417 | EB99: =SUMPRODUCT(TRANSPOSE(EB$140:EB$144),$DQ99:$DU99) -> 0.6250237417 | EC99: =SUMPRODUCT(TRANSPOSE(EC$140:EC$144),$DQ99:$DU99) -> 0.6250237417 | ED99: =SUMPRODUCT(TRANSPOSE(ED$140:ED$144),$DQ99:$DU99) -> 0.6250237417 | EE99: =SUMPRODUCT(TRANSPOSE(EE$140:EE$144),$DQ99:$DU99) -> 0.6250237417 | EF99: =SUMPRODUCT(TRANSPOSE(EF$140:EF$144),$DQ99:$DU99) -> 0.6250237417 | EG99: =SUMPRODUCT(TRANSPOSE(EG$140:EG$144),$DQ99:$DU99) -> 0.6250237417 | EH99: =SUMPRODUCT(TRANSPOSE(EH$140:EH$144),$DQ99:$DU99) -> 0.6250237417 | EI99: =SUMPRODUCT(TRANSPOSE(EI$140:EI$144),$DQ99:$DU99) -> 0.6250237417 | EJ99: =SUMPRODUCT(TRANSPOSE(EJ$140:EJ$144),$DQ99:$DU99) -> 0.6250237417 | EK99: =SUMPRODUCT(TRANSPOSE(EK$140:EK$144),$DQ99:$DU99) -> 0.6250237417 | EL99: =SUMPRODUCT(TRANSPOSE(EL$140:EL$144),$DQ99:$DU99) -> 0.6250237417 | EM99: =SUMPRODUCT(TRANSPOSE(EM$140:EM$144),$DQ99:$DU99) -> 0.6250237417 | EN99: =SUMPRODUCT(TRANSPOSE(EN$140:EN$144),$DQ99:$DU99) -> 0.6250237417 | EO99: =SUMPRODUCT(TRANSPOSE(EO$140:EO$144),$DQ99:$DU99) -> 0.6250237417 | EP99: =SUMPRODUCT(TRANSPOSE(EP$140:EP$144),$DQ99:$DU99) -> 0.6250237417 | EQ99: =SUMPRODUCT(TRANSPOSE(EQ$140:EQ$144),$DQ99:$DU99) -> 0.6250237417 | ER99: =SUMPRODUCT(TRANSPOSE(ER$140:ER$144),$DQ99:$DU99) -> 0.6250237417 | ES99: =SUMPRODUCT(TRANSPOSE(ES$140:ES$144),$DQ99:$DU99) -> 0.6250237417 | ET99: =SUMPRODUCT(TRANSPOSE(ET$140:ET$144),$DQ99:$DU99) -> 0.6250237417 | EU99: =SUMPRODUCT(TRANSPOSE(EU$140:EU$144),$DQ99:$DU99) -> 0.6250237417
A100: 0 | B100: Std B6 | C100: 97 | D100: Lighting controls under skylights | E100: 25.46 | F100: 0 | G100: 0 | H100: =InputsStatic!I33 -> 2006-01-01 | I100: =InputsStatic!K33 -> 15 | J100: 1 | K100: 1 | L100: 0 | M100: 100 | P100: =InputsStatic!L33 -> 599.7361726 | Q100: =InputsStatic!M33 -> 0 | R100: =InputsStatic!N33 -> 0 | S100: -0.00595 | U100: 21226 | V100: 21226 | W100: 21226 | X100: 21226 | Y100: 6414.450549 | Z100: 6414.450549 | AA100: 6414.450549 | AB100: 6414.450549 | AC100: 6414.450549 | AD100: 6414.450549 | AE100: 6414.450549 | AF100: 6414.450549 | AG100: 6414.450549 | AH100: 6414.450549 | AI100: 6414.450549 | AJ100: 12.73 | AK100: 1.05659 | AL100: =InputsTimeDependentCompliance!D33 -> 0.083 | AM100: =InputsTimeDependentCompliance!E33 -> 0.083 | AN100: =InputsTimeDependentCompliance!F33 -> 0.083 | AO100: =InputsTimeDependentCompliance!G33 -> 0.083 | AP100: 0.083 | AQ100: 0.083 | AR100: 0.083 | AS100: 0.083 | AT100: 0.083 | AU100: =AT100 -> 0.083 | AV100: 0.083 | AW100: 0.083 | AX100: 0.083 | AY100: 0.083 | AZ100: 0.083 | BA100: 6 | BC100: 0.05 | BD100: 0.05 | BE100: 0.05 | BF100: 0.05 | BG100: 0.05 | BH100: 2010 | BI100: =InputsStatic!O33 -> 12 | BJ100: =InputsNOMAD!AG33 -> 0.5 | BK100: =InputsStatic!P33 -> 2000 | BL100: =InputsNOMAD!AH33 -> 0.01005 | BM100: =InputsNOMAD!AI33 -> 0.3 | BN100: =InputsStatic!J33 -> 16304 | BP100: =InputsStatic!AB33 -> 0.93875 | BR100: 1 | BS100: 0 | BT100: 0 | BU100: 0 | BV100: 0 | BW100: 0 | BX100: 0 | BY100: 0 | BZ100: 0 | CA100: 0 | CB100: 0 | CC100: 0 | CD100: 1 | CL100: 0 | CQ100: =InputsTimeDependentUnits!D33 -> 21226 | CR100: =InputsTimeDependentUnits!E33 -> 21226 | CS100: =InputsTimeDependentUnits!F33 -> 21226 | CT100: =InputsTimeDependentUnits!G33 -> 21226 | CU100: =InputsTimeDependentUnits!H33 -> 21226 | CV100: =InputsTimeDependentUnits!I33 -> 21226 | CW100: =InputsTimeDependentUnits!J33 -> 21226 | CX100: =InputsTimeDependentUnits!K33 -> 21226 | CY100: =InputsTimeDependentUnits!L33 -> 21226 | CZ100: =InputsTimeDependentUnits!M33 -> 21226 | DA100: =InputsTimeDependentUnits!N33 -> 21226 | DB100: =InputsTimeDependentUnits!O33 -> 21226 | DC100: =InputsTimeDependentUnits!P33 -> 21226 | DD100: =InputsTimeDependentUnits!Q33 -> 21226 | DE100: =InputsTimeDependentUnits!R33 -> 21226 | DF100: =DE100 -> 21226 | DG100: 21226 | DH100: 21226 | DI100: 21226 | DJ100: 21226 | DK100: 21226 | DL100: 21226 | DM100: 21226 | DN100: 21226 | DO100: 21226 | DT100: 1 | DW100: =SUMPRODUCT(TRANSPOSE(DW$140:DW$144),$DQ100:$DU100) -> 1 | DX100: =SUMPRODUCT(TRANSPOSE(DX$140:DX$144),$DQ100:$DU100) -> 1 | DY100: =SUMPRODUCT(TRANSPOSE(DY$140:DY$144),$DQ100:$DU100) -> 1 | DZ100: =SUMPRODUCT(TRANSPOSE(DZ$140:DZ$144),$DQ100:$DU100) -> 1 | EA100: =SUMPRODUCT(TRANSPOSE(EA$140:EA$144),$DQ100:$DU100) -> 0.3021978022 | EB100: =SUMPRODUCT(TRANSPOSE(EB$140:EB$144),$DQ100:$DU100) -> 0.3021978022 | EC100: =SUMPRODUCT(TRANSPOSE(EC$140:EC$144),$DQ100:$DU100) -> 0.3021978022 | ED100: =SUMPRODUCT(TRANSPOSE(ED$140:ED$144),$DQ100:$DU100) -> 0.3021978022 | EE100: =SUMPRODUCT(TRANSPOSE(EE$140:EE$144),$DQ100:$DU100) -> 0.3021978022 | EF100: =SUMPRODUCT(TRANSPOSE(EF$140:EF$144),$DQ100:$DU100) -> 0.3021978022 | EG100: =SUMPRODUCT(TRANSPOSE(EG$140:EG$144),$DQ100:$DU100) -> 0.3021978022 | EH100: =SUMPRODUCT(TRANSPOSE(EH$140:EH$144),$DQ100:$DU100) -> 0.3021978022 | EI100: =SUMPRODUCT(TRANSPOSE(EI$140:EI$144),$DQ100:$DU100) -> 0.3021978022 | EJ100: =SUMPRODUCT(TRANSPOSE(EJ$140:EJ$144),$DQ100:$DU100) -> 0.3021978022 | EK100: =SUMPRODUCT(TRANSPOSE(EK$140:EK$144),$DQ100:$DU100) -> 0.3021978022 | EL100: =SUMPRODUCT(TRANSPOSE(EL$140:EL$144),$DQ100:$DU100) -> 0.3021978022 | EM100: =SUMPRODUCT(TRANSPOSE(EM$140:EM$144),$DQ100:$DU100) -> 0.3021978022 | EN100: =SUMPRODUCT(TRANSPOSE(EN$140:EN$144),$DQ100:$DU100) -> 0.3021978022 | EO100: =SUMPRODUCT(TRANSPOSE(EO$140:EO$144),$DQ100:$DU100) -> 0.3021978022 | EP100: =SUMPRODUCT(TRANSPOSE(EP$140:EP$144),$DQ100:$DU100) -> 0.3021978022 | EQ100: =SUMPRODUCT(TRANSPOSE(EQ$140:EQ$144),$DQ100:$DU100) -> 0.3021978022 | ER100: =SUMPRODUCT(TRANSPOSE(ER$140:ER$144),$DQ100:$DU100) -> 0.3021978022 | ES100: =SUMPRODUCT(TRANSPOSE(ES$140:ES$144),$DQ100:$DU100) -> 0.3021978022 | ET100: =SUMPRODUCT(TRANSPOSE(ET$140:ET$144),$DQ100:$DU100) -> 0.3021978022 | EU100: =SUMPRODUCT(TRANSPOSE(EU$140:EU$144),$DQ100:$DU100) -> 0.3021978022
A101: 0 | B101: Std B7 | C101: 98 | D101: Ducts in existing commercial buildings | E101: 9.73 | F101: 7.36 | G101: 1.04 | H101: =InputsStatic!I34 -> 2006-08-01 | I101: =InputsStatic!K34 -> 15 | J101: 1 | K101: 1 | L101: 0 | M101: 100 | P101: =InputsStatic!L34 -> 0.2629339446 | Q101: =InputsStatic!M34 -> 0.0001997838706 | R101: =InputsStatic!N34 -> 0.02801566921 | S101: 0 | U101: 43547059 | V101: 43547059 | W101: 43547059 | X101: 43547059 | Y101: 39224248.25 | Z101: 39224248.25 | AA101: 39224248.25 | AB101: 39224248.25 | AC101: 39224248.25 | AD101: 39224248.25 | AE101: 39224248.25 | AF101: 39224248.25 | AG101: 39224248.25 | AH101: 39224248.25 | AI101: 39224248.25 | AJ101: 11.45 | AK101: 8.5875 | AL101: =InputsTimeDependentCompliance!D34 -> 0.75 | AM101: =InputsTimeDependentCompliance!E34 -> 0.75 | AN101: =InputsTimeDependentCompliance!F34 -> 0.75 | AO101: =InputsTimeDependentCompliance!G34 -> 0.75 | AP101: 0.75 | AQ101: 0.75 | AR101: 0.75 | AS101: 0.75 | AT101: 0.75 | AU101: =AT101 -> 0.75 | AV101: 0.75 | AW101: 0.75 | AX101: 0.75 | AY101: 0.75 | AZ101: 0.75 | BA101: 6 | BC101: 0.05 | BD101: 0.05 | BE101: 0.05 | BF101: 0.05 | BG101: 0.05 | BH101: 2010 | BI101: =InputsStatic!O34 -> 18 | BJ101: =InputsNOMAD!AG34 -> 0.18 | BK101: =InputsStatic!P34 -> 2000 | BL101: =InputsNOMAD!AH34 -> 0.00037 | BM101: =InputsNOMAD!AI34 -> 0.5 | BN101: =InputsStatic!J34 -> 126000 | BP101: =InputsStatic!AB34 -> 0.73875 | BR101: 1 | BS101: 0 | BT101: 0 | BU101: 0 | BV101: 0 | BW101: 0 | BX101: 0 | BY101: 0 | BZ101: 0 | CA101: 0 | CB101: 0 | CC101: 0 | CD101: 1 | CL101: 0 | CQ101: =InputsTimeDependentUnits!D34 -> 43547059 | CR101: =InputsTimeDependentUnits!E34 -> 43547059 | CS101: =InputsTimeDependentUnits!F34 -> 43547059 | CT101: =InputsTimeDependentUnits!G34 -> 43547059 | CU101: =InputsTimeDependentUnits!H34 -> 43547059 | CV101: =InputsTimeDependentUnits!I34 -> 43547059 | CW101: =InputsTimeDependentUnits!J34 -> 43547059 | CX101: =InputsTimeDependentUnits!K34 -> 43547059 | CY101: =InputsTimeDependentUnits!L34 -> 43547059 | CZ101: =InputsTimeDependentUnits!M34 -> 43547059 | DA101: =InputsTimeDependentUnits!N34 -> 43547059 | DB101: =InputsTimeDependentUnits!O34 -> 43547059 | DC101: =InputsTimeDependentUnits!P34 -> 43547059 | DD101: =InputsTimeDependentUnits!Q34 -> 43547059 | DE101: =InputsTimeDependentUnits!R34 -> 43547059 | DF101: =DE101 -> 43547059 | DG101: 43547059 | DH101: 43547059 | DI101: 43547059 | DJ101: 43547059 | DK101: 43547059 | DL101: 43547059 | DM101: 43547059 | DN101: 43547059 | DO101: 43547059 | DU101: 1 | DW101: =SUMPRODUCT(TRANSPOSE(DW$140:DW$144),$DQ101:$DU101) -> 1 | DX101: =SUMPRODUCT(TRANSPOSE(DX$140:DX$144),$DQ101:$DU101) -> 1 | DY101: =SUMPRODUCT(TRANSPOSE(DY$140:DY$144),$DQ101:$DU101) -> 1 | DZ101: =SUMPRODUCT(TRANSPOSE(DZ$140:DZ$144),$DQ101:$DU101) -> 1 | EA101: =SUMPRODUCT(TRANSPOSE(EA$140:EA$144),$DQ101:$DU101) -> 0.9007324295 | EB101: =SUMPRODUCT(TRANSPOSE(EB$140:EB$144),$DQ101:$DU101) -> 0.9007324295 | EC101: =SUMPRODUCT(TRANSPOSE(EC$140:EC$144),$DQ101:$DU101) -> 0.9007324295 | ED101: =SUMPRODUCT(TRANSPOSE(ED$140:ED$144),$DQ101:$DU101) -> 0.9007324295 | EE101: =SUMPRODUCT(TRANSPOSE(EE$140:EE$144),$DQ101:$DU101) -> 0.9007324295 | EF101: =SUMPRODUCT(TRANSPOSE(EF$140:EF$144),$DQ101:$DU101) -> 0.9007324295 | EG101: =SUMPRODUCT(TRANSPOSE(EG$140:EG$144),$DQ101:$DU101) -> 0.9007324295 | EH101: =SUMPRODUCT(TRANSPOSE(EH$140:EH$144),$DQ101:$DU101) -> 0.9007324295 | EI101: =SUMPRODUCT(TRANSPOSE(EI$140:EI$144),$DQ101:$DU101) -> 0.9007324295 | EJ101: =SUMPRODUCT(TRANSPOSE(EJ$140:EJ$144),$DQ101:$DU101) -> 0.9007324295 | EK101: =SUMPRODUCT(TRANSPOSE(EK$140:EK$144),$DQ101:$DU101) -> 0.9007324295 | EL101: =SUMPRODUCT(TRANSPOSE(EL$140:EL$144),$DQ101:$DU101) -> 0.9007324295 | EM101: =SUMPRODUCT(TRANSPOSE(EM$140:EM$144),$DQ101:$DU101) -> 0.9007324295 | EN101: =SUMPRODUCT(TRANSPOSE(EN$140:EN$144),$DQ101:$DU101) -> 0.9007324295 | EO101: =SUMPRODUCT(TRANSPOSE(EO$140:EO$144),$DQ101:$DU101) -> 0.9007324295 | EP101: =SUMPRODUCT(TRANSPOSE(EP$140:EP$144),$DQ101:$DU101) -> 0.9007324295 | EQ101: =SUMPRODUCT(TRANSPOSE(EQ$140:EQ$144),$DQ101:$DU101) -> 0.9007324295 | ER101: =SUMPRODUCT(TRANSPOSE(ER$140:ER$144),$DQ101:$DU101) -> 0.9007324295 | ES101: =SUMPRODUCT(TRANSPOSE(ES$140:ES$144),$DQ101:$DU101) -> 0.9007324295 | ET101: =SUMPRODUCT(TRANSPOSE(ET$140:ET$144),$DQ101:$DU101) -> 0.9007324295 | EU101: =SUMPRODUCT(TRANSPOSE(EU$140:EU$144),$DQ101:$DU101) -> 0.9007324295
A102: 0 | B102: Std B8 | C102: 99 | D102: Cool roofs | E102: 14.6 | F102: 9.5 | G102: 0 | H102: =InputsStatic!I35 -> 2006-01-01 | I102: =InputsStatic!K35 -> 10 | J102: 1 | K102: 1 | L102: 0 | M102: 100 | P102: =InputsStatic!L35 -> 0.327 | Q102: =InputsStatic!M35 -> 0.0002126393443 | R102: =InputsStatic!N35 -> -0.0045 | S102: 0 | U102: 55939336.25 | V102: 55939336.25 | W102: 55939336.25 | X102: 55939336.25 | Y102: 16904744.47 | Z102: 16904744.47 | AA102: 16904744.47 | AB102: 16904744.47 | AC102: 16904744.47 | AD102: 16904744.47 | AE102: 16904744.47 | AF102: 16904744.47 | AG102: 16904744.47 | AH102: 16904744.47 | AI102: 16904744.47 | AJ102: 18.29216295 | AK102: 13.71912222 | AL102: =InputsTimeDependentCompliance!D35 -> 0.75 | AM102: =InputsTimeDependentCompliance!E35 -> 0.75 | AN102: =InputsTimeDependentCompliance!F35 -> 0.75 | AO102: =InputsTimeDependentCompliance!G35 -> 0.75 | AP102: 0.75 | AQ102: 0.75 | AR102: 0.75 | AS102: 0.75 | AT102: 0.75 | AU102: =AT102 -> 0.75 | AV102: 0.75 | AW102: 0.75 | AX102: 0.75 | AY102: 0.75 | AZ102: 0.75 | BA102: 6 | BC102: 0.05 | BD102: 0.05 | BE102: 0.05 | BF102: 0.05 | BG102: 0.05 | BH102: 2010 | BI102: =InputsStatic!O35 -> 12 | BJ102: =InputsNOMAD!AG35 -> 0.35 | BK102: =InputsStatic!P35 -> 1990 | BL102: =InputsNOMAD!AH35 -> 0.00102 | BM102: =InputsNOMAD!AI35 -> 0.44116 | BN102: =InputsStatic!J35 -> 2118173 | BP102: =InputsStatic!AB35 -> 0.8166666667 | BR102: 1 | BS102: 0 | BT102: 0 | BU102: 0 | BV102: 0 | BW102: 0 | BX102: 0 | BY102: 0 | BZ102: 0 | CA102: 0 | CB102: 0 | CC102: 0 | CD102: 1 | CL102: 0 | CQ102: =InputsTimeDependentUnits!D35 -> 55939336.25 | CR102: =InputsTimeDependentUnits!E35 -> 55939336.25 | CS102: =InputsTimeDependentUnits!F35 -> 55939336.25 | CT102: =InputsTimeDependentUnits!G35 -> 55939336.25 | CU102: =InputsTimeDependentUnits!H35 -> 55939336.25 | CV102: =InputsTimeDependentUnits!I35 -> 55939336.25 | CW102: =InputsTimeDependentUnits!J35 -> 55939336.25 | CX102: =InputsTimeDependentUnits!K35 -> 55939336.25 | CY102: =InputsTimeDependentUnits!L35 -> 55939336.25 | CZ102: =InputsTimeDependentUnits!M35 -> 55939336.25 | DA102: =InputsTimeDependentUnits!N35 -> 55939336.25 | DB102: =InputsTimeDependentUnits!O35 -> 55939336.25 | DC102: =InputsTimeDependentUnits!P35 -> 55939336.25 | DD102: =InputsTimeDependentUnits!Q35 -> 55939336.25 | DE102: =InputsTimeDependentUnits!R35 -> 55939336.25 | DF102: =DE102 -> 55939336.25 | DG102: 55939336.25 | DH102: 55939336.25 | DI102: 55939336.25 | DJ102: 55939336.25 | DK102: 55939336.25 | DL102: 55939336.25 | DM102: 55939336.25 | DN102: 55939336.25 | DO102: 55939336.25 | DT102: 1 | DW102: =SUMPRODUCT(TRANSPOSE(DW$140:DW$144),$DQ102:$DU102) -> 1 | DX102: =SUMPRODUCT(TRANSPOSE(DX$140:DX$144),$DQ102:$DU102) -> 1 | DY102: =SUMPRODUCT(TRANSPOSE(DY$140:DY$144),$DQ102:$DU102) -> 1 | DZ102: =SUMPRODUCT(TRANSPOSE(DZ$140:DZ$144),$DQ102:$DU102) -> 1 | EA102: =SUMPRODUCT(TRANSPOSE(EA$140:EA$144),$DQ102:$DU102) -> 0.3021978022 | EB102: =SUMPRODUCT(TRANSPOSE(EB$140:EB$144),$DQ102:$DU102) -> 0.3021978022 | EC102: =SUMPRODUCT(TRANSPOSE(EC$140:EC$144),$DQ102:$DU102) -> 0.3021978022 | ED102: =SUMPRODUCT(TRANSPOSE(ED$140:ED$144),$DQ102:$DU102) -> 0.3021978022 | EE102: =SUMPRODUCT(TRANSPOSE(EE$140:EE$144),$DQ102:$DU102) -> 0.3021978022 | EF102: =SUMPRODUCT(TRANSPOSE(EF$140:EF$144),$DQ102:$DU102) -> 0.3021978022 | EG102: =SUMPRODUCT(TRANSPOSE(EG$140:EG$144),$DQ102:$DU102) -> 0.3021978022 | EH102: =SUMPRODUCT(TRANSPOSE(EH$140:EH$144),$DQ102:$DU102) -> 0.3021978022 | EI102: =SUMPRODUCT(TRANSPOSE(EI$140:EI$144),$DQ102:$DU102) -> 0.3021978022 | EJ102: =SUMPRODUCT(TRANSPOSE(EJ$140:EJ$144),$DQ102:$DU102) -> 0.3021978022 | EK102: =SUMPRODUCT(TRANSPOSE(EK$140:EK$144),$DQ102:$DU102) -> 0.3021978022 | EL102: =SUMPRODUCT(TRANSPOSE(EL$140:EL$144),$DQ102:$DU102) -> 0.3021978022 | EM102: =SUMPRODUCT(TRANSPOSE(EM$140:EM$144),$DQ102:$DU102) -> 0.3021978022 | EN102: =SUMPRODUCT(TRANSPOSE(EN$140:EN$144),$DQ102:$DU102) -> 0.3021978022 | EO102: =SUMPRODUCT(TRANSPOSE(EO$140:EO$144),$DQ102:$DU102) -> 0.3021978022 | EP102: =SUMPRODUCT(TRANSPOSE(EP$140:EP$144),$DQ102:$DU102) -> 0.3021978022 | EQ102: =SUMPRODUCT(TRANSPOSE(EQ$140:EQ$144),$DQ102:$DU102) -> 0.3021978022 | ER102: =SUMPRODUCT(TRANSPOSE(ER$140:ER$144),$DQ102:$DU102) -> 0.3021978022 | ES102: =SUMPRODUCT(TRANSPOSE(ES$140:ES$144),$DQ102:$DU102) -> 0.3021978022 | ET102: =SUMPRODUCT(TRANSPOSE(ET$140:ET$144),$DQ102:$DU102) -> 0.3021978022 | EU102: =SUMPRODUCT(TRANSPOSE(EU$140:EU$144),$DQ102:$DU102) -> 0.3021978022
A103: 0 | B103: Std B9 | C103: 100 | D103: Relocatable classrooms | E103: 2.9 | F103: 0 | G103: 0 | H103: =InputsStatic!I36 -> 2006-08-01 | I103: =InputsStatic!K36 -> 10 | J103: 1 | K103: 1 | L103: 0 | M103: 100 | P103: =InputsStatic!L36 -> 970 | Q103: =InputsStatic!M36 -> 0 | R103: =InputsStatic!N36 -> 0 | S103: 0 | U103: 3000 | V103: 3000 | W103: 3000 | X103: 3000 | Y103: 906.5934066 | Z103: 906.5934066 | AA103: 906.5934066 | AB103: 906.5934066 | AC103: 906.5934066 | AD103: 906.5934066 | AE103: 906.5934066 | AF103: 906.5934066 | AG103: 906.5934066 | AH103: 906.5934066 | AI103: 906.5934066 | AJ103: 2.91 | AK103: 2.91 | AL103: =InputsTimeDependentCompliance!D36 -> 1 | AM103: =InputsTimeDependentCompliance!E36 -> 1 | AN103: =InputsTimeDependentCompliance!F36 -> 1 | AO103: =InputsTimeDependentCompliance!G36 -> 1 | AP103: 1 | AQ103: 1 | AR103: 1 | AS103: 1 | AT103: 1 | AU103: =AT103 -> 1 | AV103: 1 | AW103: 1 | AX103: 1 | AY103: 1 | AZ103: 1 | BA103: 6 | BC103: 0 | BD103: 0 | BE103: 0 | BF103: 0 | BG103: 0 | BH103: 2010 | BI103: =InputsStatic!O36 -> 18 | BJ103: =InputsNOMAD!AG36 -> 0 | BK103: =InputsStatic!P36 -> 2000 | BL103: =InputsNOMAD!AH36 -> 0 | BM103: =InputsNOMAD!AI36 -> 0 | BN103: =InputsStatic!J36 -> 0 | BP103: =InputsStatic!AB36 -> 0.8125 | BR103: 1 | BS103: 0 | BT103: 0 | BU103: 0 | BV103: 0 | BW103: 0 | BX103: 0 | BY103: 0 | BZ103: 0 | CA103: 0 | CB103: 0 | CC103: 0 | CD103: 1 | CL103: 0 | CQ103: =InputsTimeDependentUnits!D36 -> 3000 | CR103: =InputsTimeDependentUnits!E36 -> 3000 | CS103: =InputsTimeDependentUnits!F36 -> 3000 | CT103: =InputsTimeDependentUnits!G36 -> 3000 | CU103: =InputsTimeDependentUnits!H36 -> 3000 | CV103: =InputsTimeDependentUnits!I36 -> 3000 | CW103: =InputsTimeDependentUnits!J36 -> 3000 | CX103: =InputsTimeDependentUnits!K36 -> 3000 | CY103: =InputsTimeDependentUnits!L36 -> 3000 | CZ103: =InputsTimeDependentUnits!M36 -> 3000 | DA103: =InputsTimeDependentUnits!N36 -> 3000 | DB103: =InputsTimeDependentUnits!O36 -> 3000 | DC103: =InputsTimeDependentUnits!P36 -> 3000 | DD103: =InputsTimeDependentUnits!Q36 -> 3000 | DE103: =InputsTimeDependentUnits!R36 -> 3000 | DF103: =DE103 -> 3000 | DG103: 3000 | DH103: 3000 | DI103: 3000 | DJ103: 3000 | DK103: 3000 | DL103: 3000 | DM103: 3000 | DN103: 3000 | DO103: 3000 | DT103: 1 | DW103: =SUMPRODUCT(TRANSPOSE(DW$140:DW$144),$DQ103:$DU103) -> 1 | DX103: =SUMPRODUCT(TRANSPOSE(DX$140:DX$144),$DQ103:$DU103) -> 1 | DY103: =SUMPRODUCT(TRANSPOSE(DY$140:DY$144),$DQ103:$DU103) -> 1 | DZ103: =SUMPRODUCT(TRANSPOSE(DZ$140:DZ$144),$DQ103:$DU103) -> 1 | EA103: =SUMPRODUCT(TRANSPOSE(EA$140:EA$144),$DQ103:$DU103) -> 0.3021978022 | EB103: =SUMPRODUCT(TRANSPOSE(EB$140:EB$144),$DQ103:$DU103) -> 0.3021978022 | EC103: =SUMPRODUCT(TRANSPOSE(EC$140:EC$144),$DQ103:$DU103) -> 0.3021978022 | ED103: =SUMPRODUCT(TRANSPOSE(ED$140:ED$144),$DQ103:$DU103) -> 0.3021978022 | EE103: =SUMPRODUCT(TRANSPOSE(EE$140:EE$144),$DQ103:$DU103) -> 0.3021978022 | EF103: =SUMPRODUCT(TRANSPOSE(EF$140:EF$144),$DQ103:$DU103) -> 0.3021978022 | EG103: =SUMPRODUCT(TRANSPOSE(EG$140:EG$144),$DQ103:$DU103) -> 0.3021978022 | EH103: =SUMPRODUCT(TRANSPOSE(EH$140:EH$144),$DQ103:$DU103) -> 0.3021978022 | EI103: =SUMPRODUCT(TRANSPOSE(EI$140:EI$144),$DQ103:$DU103) -> 0.3021978022 | EJ103: =SUMPRODUCT(TRANSPOSE(EJ$140:EJ$144),$DQ103:$DU103) -> 0.3021978022 | EK103: =SUMPRODUCT(TRANSPOSE(EK$140:EK$144),$DQ103:$DU103) -> 0.3021978022 | EL103: =SUMPRODUCT(TRANSPOSE(EL$140:EL$144),$DQ103:$DU103) -> 0.3021978022 | EM103: =SUMPRODUCT(TRANSPOSE(EM$140:EM$144),$DQ103:$DU103) -> 0.3021978022 | EN103: =SUMPRODUCT(TRANSPOSE(EN$140:EN$144),$DQ103:$DU103) -> 0.3021978022 | EO103: =SUMPRODUCT(TRANSPOSE(EO$140:EO$144),$DQ103:$DU103) -> 0.3021978022 | EP103: =SUMPRODUCT(TRANSPOSE(EP$140:EP$144),$DQ103:$DU103) -> 0.3021978022 | EQ103: =SUMPRODUCT(TRANSPOSE(EQ$140:EQ$144),$DQ103:$DU103) -> 0.3021978022 | ER103: =SUMPRODUCT(TRANSPOSE(ER$140:ER$144),$DQ103:$DU103) -> 0.3021978022 | ES103: =SUMPRODUCT(TRANSPOSE(ES$140:ES$144),$DQ103:$DU103) -> 0.3021978022 | ET103: =SUMPRODUCT(TRANSPOSE(ET$140:ET$144),$DQ103:$DU103) -> 0.3021978022 | EU103: =SUMPRODUCT(TRANSPOSE(EU$140:EU$144),$DQ103:$DU103) -> 0.3021978022
A104: 0 | B104: Std B10 | C104: 101 | D104: Bi-level lighting control credits | E104: 12.14 | F104: 0 | G104: 0 | H104: =InputsStatic!I37 -> 2006-01-01 | I104: =InputsStatic!K37 -> 10 | J104: 1 | K104: 1 | L104: 0 | M104: 100 | P104: =InputsStatic!L37 -> 0.1539383659 | Q104: =InputsStatic!M37 -> 0 | R104: =InputsStatic!N37 -> 0 | S104: -0.0119 | U104: 10715828 | V104: 10715828 | W104: 10715828 | X104: 10715828 | Y104: 3238299.67 | Z104: 3238299.67 | AA104: 3238299.67 | AB104: 3238299.67 | AC104: 3238299.67 | AD104: 3238299.67 | AE104: 3238299.67 | AF104: 3238299.67 | AG104: 3238299.67 | AH104: 3238299.67 | AI104: 3238299.67 | AJ104: 1.649577052 | AK104: 1.29821714 | AL104: =InputsTimeDependentCompliance!D37 -> 0.787 | AM104: =InputsTimeDependentCompliance!E37 -> 0.787 | AN104: =InputsTimeDependentCompliance!F37 -> 0.787 | AO104: =InputsTimeDependentCompliance!G37 -> 0.787 | AP104: 0.787 | AQ104: 0.787 | AR104: 0.787 | AS104: 0.787 | AT104: 0.787 | AU104: =AT104 -> 0.787 | AV104: 0.787 | AW104: 0.787 | AX104: 0.787 | AY104: 0.787 | AZ104: 0.787 | BA104: 6 | BC104: 0.05 | BD104: 0.05 | BE104: 0.05 | BF104: 0.05 | BG104: 0.05 | BH104: 2010 | BI104: =InputsStatic!O37 -> 12 | BJ104: =InputsNOMAD!AG37 -> 0.27 | BK104: =InputsStatic!P37 -> 1998 | BL104: =InputsNOMAD!AH37 -> 0.02535 | BM104: =InputsNOMAD!AI37 -> 0.06544 | BN104: =InputsStatic!J37 -> 27634 | BP104: =InputsStatic!AB37 -> 0.75375 | BR104: 1 | BS104: 0 | BT104: 0 | BU104: 0 | BV104: 0 | BW104: 0 | BX104: 0 | BY104: 0 | BZ104: 0 | CA104: 0 | CB104: 0 | CC104: 0 | CD104: 1 | CL104: 0 | CQ104: =InputsTimeDependentUnits!D37 -> 10715828 | CR104: =InputsTimeDependentUnits!E37 -> 10715828 | CS104: =InputsTimeDependentUnits!F37 -> 10715828 | CT104: =InputsTimeDependentUnits!G37 -> 10715828 | CU104: =InputsTimeDependentUnits!H37 -> 10715828 | CV104: =InputsTimeDependentUnits!I37 -> 10715828 | CW104: =InputsTimeDependentUnits!J37 -> 10715828 | CX104: =InputsTimeDependentUnits!K37 -> 10715828 | CY104: =InputsTimeDependentUnits!L37 -> 10715828 | CZ104: =InputsTimeDependentUnits!M37 -> 10715828 | DA104: =InputsTimeDependentUnits!N37 -> 10715828 | DB104: =InputsTimeDependentUnits!O37 -> 10715828 | DC104: =InputsTimeDependentUnits!P37 -> 10715828 | DD104: =InputsTimeDependentUnits!Q37 -> 10715828 | DE104: =InputsTimeDependentUnits!R37 -> 10715828 | DF104: =DE104 -> 10715828 | DG104: 10715828 | DH104: 10715828 | DI104: 10715828 | DJ104: 10715828 | DK104: 10715828 | DL104: 10715828 | DM104: 10715828 | DN104: 10715828 | DO104: 10715828 | DT104: 1 | DW104: =SUMPRODUCT(TRANSPOSE(DW$140:DW$144),$DQ104:$DU104) -> 1 | DX104: =SUMPRODUCT(TRANSPOSE(DX$140:DX$144),$DQ104:$DU104) -> 1 | DY104: =SUMPRODUCT(TRANSPOSE(DY$140:DY$144),$DQ104:$DU104) -> 1 | DZ104: =SUMPRODUCT(TRANSPOSE(DZ$140:DZ$144),$DQ104:$DU104) -> 1 | EA104: =SUMPRODUCT(TRANSPOSE(EA$140:EA$144),$DQ104:$DU104) -> 0.3021978022 | EB104: =SUMPRODUCT(TRANSPOSE(EB$140:EB$144),$DQ104:$DU104) -> 0.3021978022 | EC104: =SUMPRODUCT(TRANSPOSE(EC$140:EC$144),$DQ104:$DU104) -> 0.3021978022 | ED104: =SUMPRODUCT(TRANSPOSE(ED$140:ED$144),$DQ104:$DU104) -> 0.3021978022 | EE104: =SUMPRODUCT(TRANSPOSE(EE$140:EE$144),$DQ104:$DU104) -> 0.3021978022 | EF104: =SUMPRODUCT(TRANSPOSE(EF$140:EF$144),$DQ104:$DU104) -> 0.3021978022 | EG104: =SUMPRODUCT(TRANSPOSE(EG$140:EG$144),$DQ104:$DU104) -> 0.3021978022 | EH104: =SUMPRODUCT(TRANSPOSE(EH$140:EH$144),$DQ104:$DU104) -> 0.3021978022 | EI104: =SUMPRODUCT(TRANSPOSE(EI$140:EI$144),$DQ104:$DU104) -> 0.3021978022 | EJ104: =SUMPRODUCT(TRANSPOSE(EJ$140:EJ$144),$DQ104:$DU104) -> 0.3021978022 | EK104: =SUMPRODUCT(TRANSPOSE(EK$140:EK$144),$DQ104:$DU104) -> 0.3021978022 | EL104: =SUMPRODUCT(TRANSPOSE(EL$140:EL$144),$DQ104:$DU104) -> 0.3021978022 | EM104: =SUMPRODUCT(TRANSPOSE(EM$140:EM$144),$DQ104:$DU104) -> 0.3021978022 | EN104: =SUMPRODUCT(TRANSPOSE(EN$140:EN$144),$DQ104:$DU104) -> 0.3021978022 | EO104: =SUMPRODUCT(TRANSPOSE(EO$140:EO$144),$DQ104:$DU104) -> 0.3021978022 | EP104: =SUMPRODUCT(TRANSPOSE(EP$140:EP$144),$DQ104:$DU104) -> 0.3021978022 | EQ104: =SUMPRODUCT(TRANSPOSE(EQ$140:EQ$144),$DQ104:$DU104) -> 0.3021978022 | ER104: =SUMPRODUCT(TRANSPOSE(ER$140:ER$144),$DQ104:$DU104) -> 0.3021978022 | ES104: =SUMPRODUCT(TRANSPOSE(ES$140:ES$144),$DQ104:$DU104) -> 0.3021978022 | ET104: =SUMPRODUCT(TRANSPOSE(ET$140:ET$144),$DQ104:$DU104) -> 0.3021978022 | EU104: =SUMPRODUCT(TRANSPOSE(EU$140:EU$144),$DQ104:$DU104) -> 0.3021978022
